{"text_format":"1","workbook":"xlsx","n_sheets":6,"sheets":["Deckblatt","MusterMA#","Abrechnung","1_MusterMA_","Unterschrift","Erläuterung"],"not_rendered":{"charts":0,"images":22,"macros":1,"external_links":0,"defined_names":39,"comments":3,"pivot_tables":0},"unopened":[],"bounds":{"document_bytes":16777216,"sheet_cells":100000,"rows_first":2000,"rows_last":500,"rows_between":2000,"halvings":0,"cell_chars":16384,"cell_head_chars":4096},"cells_cut":0,"cells_raw":0,"read":"whole","date_system":"1900"}

{"sheet":"Deckblatt","index":0,"n_rows":58,"n_cols":20,"rows_kept":58,"cut":false,"hidden":false,"merged":[[25,9,25,11],[50,10,50,11],[19,3,19,8],[31,10,31,11],[31,3,31,4],[31,6,31,7],[48,7,48,10],[35,1,35,11],[25,3,25,7],[23,9,23,11],[2,7,2,8],[37,4,37,5],[9,2,9,3],[11,1,11,11],[13,10,13,11],[15,3,15,11],[7,2,7,3],[21,3,21,7],[21,9,21,11],[17,3,17,4],[3,2,3,3],[4,2,4,3],[5,2,5,3],[6,2,6,3],[13,6,13,8],[23,3,23,7]]}
[]
[]
[null,null,null,null,null,null,null,"Arbeitsmarktservice\nÖsterreich"]
[]
[null,"Eingang:",null,null,null,null,null,"LD-Termin:"]
[null,"Journal Nr.:",null,null,null,null,null,"Zusatz-/Änderungsangebot zu:"]
[null,"Projekt Nr.:",null,null,null,null,null,"ESF kofinanziert:"]
[null,"Geschäftsziel:",null,null,null,null,null,"Arbeitsmarkterfolg:"]
[]
[null,null,null,null,null,null,null,null,null,null,"Art: ","Kalkulation"]
[]
[null,"BM Kalkulation/Abrechnung Einheitspreise 07.02\nFORMULAR ZUR KALKULATION UND ABRECHNUNG VON BILDUNGSMASSNAHMEN IM AUFTRAG DES AMS"]
[]
[null,"Das Angebot / die Abrechung wird aufgrund der Bekanntmachung des AMS ",null,null,null,null,null,null,null,"mit Datum vom"]
[]
[null,"für folgendes Projekt erstellt:"]
[]
[null,null,"Projektnummer:"]
[]
[null,null,"Bieter / Schulungsträger:"]
[]
[null,null,"Name / Firma:",null,null,null,null,null,"Telefon:"]
[]
[null,null,"Adresse:",null,null,null,null,null,"Fax:"]
[]
[null,null,"Kontaktperson:",null,null,null,null,null,"E-Mail:"]
[]
[null,null,"Bankverbindung:"]
[]
[]
[]
[null,null,"IBAN:",null,null,null,null,null,null,"Gesamtkosten: ",{"$f":"IF(L10=\"Abrechnung\",Abrechnung!L11,K51)","v":0}]
[]
[null,"Der Bieter ist vorsteuerabzugsberechtigt:",null,null,"nein"]
[]
[null,"Die finanzielle Leistung des AMS ist kein Entgelt im Sinne des Umsatzsteuergesetzes; es ist daher keine Umsatzsteuer geltend zu machen! \nAlle Kostenangaben erfolgen in Euro. "]
[]
[null,"Durchführungszeitraum / Projektdauer:"]
[]
[null,null,"Projektbeginn:",null,null,null,"Projektende:",null,null,{"$f":"IF(D40=\"\",\"\",IF(H40<=D40,\"<-- Projektende darf nicht vor dem Projektbeginn sein\",\"\"))","v":""}]
[]
[]
[]
[null,"SOLL-KOSTENÜBERSICHT DES GESAMTPROJEKTES"]
[]
[null,null,null,"Personal-aufwand\ngesamt","Räumliche/\ntechnische \nAusstattung \ngesamt","Sonstiger\nAufwand \ngesamt","Ausbildungs-\nbeihilfe","Unterkunft \nund \nVerpflegung","Kinder-\nbetreuung","TN-bezogene\nKosten","Maßnahmen-\nnebenkosten\ngesamt","PROJEKT-\nGESAMTKOSTEN"]
[null,null,"Kosten: ",{"$f":"SUMIF($B57:$B1000,\"Kosten: \",D57:D1000)","v":0},0,0,0,0,0,0,0,0]
[]
[null,null,null,null,null,null,"davon Erträge/Förderungen:","Art der Erträge",null,null,null,null,"+","–",null,"FlagProtect"]
[]
[null,null,null,null,null,null,null,null,null,"Endsumme lt. Kalkulation: ",{"$f":"L47+SUM(L48:L50)","v":0}]
[]
[]
[null,"SOLL-KOSTENÜBERSICHT DER EINZELMASSNAHMEN"]
[]
[null,null,null,"Personal-aufwand\ngesamt","Räumliche/\ntechnische \nAusstattung \ngesamt","Sonstiger\nAufwand \ngesamt","Ausbildungs-\nbeihilfe","Unterkunft \nund \nVerpflegung","Kinder-\nbetreuung","TN-bezogene\nKosten","Maßnahmen-\nnebenkosten\ngesamt","MASSNAHMEN-\nGESAMTKOSTEN"]
[null,"Maßnahme: ",{"$f":"IF(ISERROR(INDIRECT(\"'\" &  T57 & \"'!BG11\")),\"\",INDIRECT(\"'\" &  T57 & \"'!BG11\"))","v":1},{"$f":"IF(ISERROR(INDIRECT(\"'\" & T57 & \"'!BF11\")),\"\",INDIRECT(\"'\" & T57 & \"'!BF11\"))","v":"1_MusterMA_"},null,null,null,null,null,null,null,null,null,null,null,"BeginnMA",null,null,null,"1_MusterMA_"]
[null,"Kosten: ",null,{"$f":"IF(ISERROR(INDIRECT(\"'\" & T57 & \"'!BD14\")),\"\",INDIRECT(\"'\" & T57 & \"'!BD14\"))","v":0},{"$f":"IF(ISERROR(INDIRECT(\"'\" & T57 & \"'!BD15\")),\"\",INDIRECT(\"'\" & T57 & \"'!BD15\"))","v":0},{"$f":"IF(ISERROR(INDIRECT(\"'\" & $T57 & \"'!BD16\")),\"\",INDIRECT(\"'\" & $T57 & \"'!BD16\"))","v":0},{"$f":"IF(ISERROR(INDIRECT(\"'\" & T57 & \"'!BF13\")),\"\",INDIRECT(\"'\" & T57 & \"'!BF13\"))","v":0},{"$f":"IF(ISERROR(INDIRECT(\"'\" & T57 & \"'!BF14\")),\"\",INDIRECT(\"'\" & T57 & \"'!BF14\"))","v":0},{"$f":"IF(ISERROR(INDIRECT(\"'\" & T57 & \"'!BF15\")),\"\",INDIRECT(\"'\" & T57 & \"'!BF15\"))","v":0},{"$f":"IF(ISERROR(INDIRECT(\"'\" & T57 & \"'!BF16\")),\"\",INDIRECT(\"'\" & T57 & \"'!BF16\"))","v":0},{"$f":"IF(ISERROR(INDIRECT(\"'\" & T57 & \"'!BL15\")),\"\",INDIRECT(\"'\" & T57 & \"'!BL15\"))","v":0},{"$f":"IF(ISERROR(INDIRECT(\"'\" & T57 & \"'!BL16\")),\"\",INDIRECT(\"'\" & T57 & \"'!BL16\"))","v":0},null,null,null,null,null,null,null,"1_MusterMA_"]

{"sheet":"MusterMA#","index":1,"n_rows":587,"n_cols":89,"rows_kept":587,"cut":false,"hidden":true,"merged":[[304,59,304,61],[527,82,527,85],[528,82,528,85],[529,82,529,85],[22,5,22,14],[25,5,25,15],[26,9,26,10],[27,9,27,10],[27,24,27,25],[28,5,28,6],[100,30,100,38],[102,27,102,28],[102,33,102,34],[103,33,103,34],[104,26,104,28],[104,33,104,34],[28,9,28,10],[29,5,29,6],[29,9,29,10],[30,5,30,6],[30,9,30,10],[52,1,52,15],[115,35,115,39],[116,35,116,39],[117,35,117,39],[118,35,118,39],[119,35,119,39],[120,35,120,39],[105,26,105,28],[109,32,109,34],[111,35,111,39],[112,35,112,39],[113,35,113,39],[114,35,114,39],[127,35,127,39],[128,35,128,39],[129,35,129,39],[130,35,130,39],[131,35,131,39],[132,35,132,39],[121,35,121,39],[122,35,122,39],[123,35,123,39],[124,35,124,39],[125,35,125,39],[126,35,126,39],[139,35,139,39],[140,35,140,39],[141,35,141,39],[142,35,142,39],[143,35,143,39],[144,35,144,39],[133,35,133,39],[134,35,134,39],[135,35,135,39],[136,35,136,39],[137,35,137,39],[138,35,138,39],[151,35,151,39],[152,35,152,39],[153,35,153,39],[154,35,154,39],[155,35,155,39],[156,35,156,39],[145,35,145,39],[146,35,146,39],[147,35,147,39],[148,35,148,39],[149,35,149,39],[150,35,150,39],[163,35,163,39],[164,35,164,39],[165,35,165,39],[166,35,166,39],[167,35,167,39],[168,35,168,39],[157,35,157,39],[158,35,158,39],[159,35,159,39],[160,35,160,39],[161,35,161,39],[162,35,162,39],[175,35,175,39],[176,35,176,39],[177,35,177,39],[178,35,178,39],[179,35,179,39],[180,35,180,39],[169,35,169,39],[170,35,170,39],[171,35,171,39],[172,35,172,39],[173,35,173,39],[174,35,174,39],[187,35,187,39],[188,35,188,39],[189,35,189,39],[190,35,190,39],[191,35,191,39],[192,35,192,39],[181,35,181,39],[182,35,182,39],[183,35,183,39],[184,35,184,39],[185,35,185,39],[186,35,186,39],[199,35,199,39],[200,35,200,39],[201,35,201,39],[202,35,202,39],[203,35,203,39],[204,35,204,39],[193,35,193,39],[194,35,194,39],[195,35,195,39],[196,35,196,39],[197,35,197,39],[198,35,198,39],[211,35,211,39],[212,35,212,39],[213,35,213,39],[214,35,214,39],[215,35,215,39],[216,35,216,39],[205,35,205,39],[206,35,206,39],[207,35,207,39],[208,35,208,39],[209,35,209,39],[210,35,210,39],[223,35,223,39],[224,35,224,39],[225,35,225,39],[226,35,226,39],[227,35,227,39],[228,35,228,39],[217,35,217,39],[218,35,218,39],[219,35,219,39],[220,35,220,39],[221,35,221,39],[222,35,222,39],[235,35,235,39],[236,35,236,39],[237,35,237,39],[238,35,238,39],[239,35,239,39],[240,35,240,39],[229,35,229,39],[230,35,230,39],[231,35,231,39],[232,35,232,39],[233,35,233,39],[234,35,234,39],[247,35,247,39],[248,35,248,39],[249,35,249,39],[250,35,250,39],[251,35,251,39],[252,35,252,39],[241,35,241,39],[242,35,242,39],[243,35,243,39],[244,35,244,39],[245,35,245,39],[246,35,246,39],[259,35,259,39],[260,35,260,39],[261,35,261,39],[262,35,262,39],[263,35,263,39],[264,35,264,39],[253,35,253,39],[254,35,254,39],[255,35,255,39],[256,35,256,39],[257,35,257,39],[258,35,258,39],[271,35,271,39],[272,35,272,39],[273,35,273,39],[274,35,274,39],[275,35,275,39],[276,35,276,39],[265,35,265,39],[266,35,266,39],[267,35,267,39],[268,35,268,39],[269,35,269,39],[270,35,270,39],[283,35,283,39],[284,35,284,39],[285,35,285,39],[286,35,286,39],[287,35,287,39],[288,35,288,39],[277,35,277,39],[278,35,278,39],[279,35,279,39],[280,35,280,39],[281,35,281,39],[282,35,282,39],[322,53,322,54],[326,53,326,54],[327,53,327,54],[333,53,333,56],[334,53,334,56],[337,53,337,56],[304,54,304,58],[309,53,309,54],[310,53,310,54],[314,53,314,54],[315,53,315,54],[321,53,321,54],[355,58,355,59],[508,82,508,87],[508,88,508,89],[512,83,512,86],[513,83,513,86],[520,84,520,86],[338,53,338,56],[341,53,341,56],[342,53,342,56],[345,53,345,56],[346,53,346,56],[353,58,353,59],[549,80,549,82],[549,84,549,86],[550,80,550,82],[550,84,550,86],[557,80,557,83],[557,85,557,86],[521,84,521,86],[533,85,533,86],[534,85,534,86],[541,80,541,82],[541,84,541,86],[542,80,542,82],[542,84,542,86],[526,82,526,85],[558,80,558,83],[558,85,558,86],[561,80,561,83],[561,85,561,86],[578,85,578,86],[562,80,562,83],[562,85,562,86],[565,80,565,83],[565,85,565,86],[566,80,566,83],[578,80,578,83],[566,85,566,86],[579,80,579,83],[579,85,579,86],[584,84,584,86],[584,87,584,89],[586,79,587,89],[569,80,569,83],[569,85,569,86],[570,80,570,83],[570,85,570,86]]}
[]
[]
[]
[]
[]
[]
[]
[]
[]
[]
[null,null,null,null,null,null,null,"Status:",null,null,null,null,null,null,null,null,null,null,null,null,null,null,null,null,null,null,null,null,null,null,null,null,null,null,null,null,null,null,null,null,null,null,null,null,null,null,null,null,null,null,null,null,null,null,null,null,"Maßnahme",{"$f":"F23","v":0},{"$f":"P23","v":0},null,null,null,null,null,null,null,null,null,null,null,null,null,null,null,null,null,null,null,null,null,"AbwMSTN",{"$f":"CI529","v":0},"PrAbwPersAufw",{"$f":"CH11*CD13","v":{"$error":"#DIV/0!"}},"PersKOltKalk",{"$f":"BF320","v":0}]
[null,null,null,null,null,null,null,"Bereich:",null,null,null,null,null,null,"Druckkopie:",null,null,null,null,null,null,null,null,null,null,null,null,null,null,null,null,null,"TESTBeginn",null,null,null,null,null,null,null,null,null,null,null,null,null,"Stoppdatum","2035-12-31",{"$f":"TODAY()","v":"2025-02-21"},"TEST-Debugger",null,null,null,null,"GruppentrainerInnen",{"$f":"BF313","v":0},null,null,null,null,null,null,"GESAMTMSTN",{"$f":"BD306","v":0},null,null,null,null,null,null,null,null,null,null,null,null,null,null,null,null,"MK_lt_Kalkulation",{"$f":"BF353","v":0},"PrAbwRäumltech",{"$f":"BD15*CD13","v":{"$error":"#DIV/0!"}},"StornoMSTN",{"$f":"CF524","v":0},"MaNKOgesamt",{"$f":"CG574","v":0}]
[null,null,null,null,null,null,null,"FlagMABlatt:","MABlatt",null,null,null,null,null,null,null,null,null,null,null,null,null,null,null,null,null,null,null,null,null,null,null,"TESTEnde",null,null,null,null,null,null,null,null,null,null,null,null,null,null,null,null,null,null,null,null,null,"EinzeltrainerInnen",{"$f":"BF318","v":0},"Ausbildungsbeihilfe",{"$f":"BF337","v":0},null,null,null,null,"MaßnahmenKO",{"$f":"BF353","v":0},null,null,null,null,null,null,null,null,null,null,null,null,null,null,null,null,"ProzentABW",{"$f":"CD11/CD12","v":{"$error":"#DIV/0!"}},"PrAbwSO",{"$f":"BD16*CD13","v":{"$error":"#DIV/0!"}},"AbwTr",{"$f":"CF537","v":0}]
[null,null,null,null,null,null,null,null,null,null,null,null,null,null,null,null,null,null,null,null,null,null,null,null,null,null,null,null,null,null,null,null,"letzter Sonntag",{"$f":"7-WEEKDAY(AH13,2)+AH13","v":"1900-01-01"},null,null,null,null,null,null,null,null,null,null,null,null,null,null,null,null,null,null,null,null,"PersAufwandGesamt",{"$f":"BF320","v":0},"Unterkunft und Verpflegung",{"$f":"BF341","v":0},null,null,null,null,"Einheitspreis/MSTN",{"$f":"BF354","v":""},null,null,null,null,null,null,null,null,null,null,null,null,null,null,null,null,"MOKoGesamt",{"$f":"BF358","v":0},null,null,"Sonst Aufwand",{"$f":"CF553","v":0},"Erträge",{"$f":"CG582","v":0}]
[null,null,null,null,null,null,null,null,null,null,null,null,null,null,null,null,null,null,null,null,null,null,null,null,null,null,null,null,null,null,null,null,"zeige immer SO als Ende der Woche","nein",null,null,null,null,null,null,null,null,null,null,null,null,"Debugger",{"$f":"IF(AV12=\"\",1,IF(AV12<=AW12,1,0))","v":0},"0…ok, 1…Datumüberlauf",null,null,null,null,null,"räumliche/techn Ausstattung gesamt",{"$f":"BF325","v":0},"Kinderbetreuung",{"$f":"BF345","v":0},null,null,null,null,"MA-NebenKo",{"$f":"BF356","v":0},null,null,null,null,null,null,null,null,null,null,null,null,null,null,null,null,"MSTNZeitplanKalk",{"$f":"MSTNGesamt_Zeitplan","v":0},null,null,"Ausbildungsbeihilfe",{"$f":"CG561","v":0}]
[null,null,null,null,null,null,null,null,null,null,null,null,null,null,null,null,null,null,null,null,null,null,null,null,null,null,null,null,null,null,null,null,null,null,null,null,null,null,null,null,null,null,null,null,null,"Dateifunktion beschränkt auf Stoppdatum, sonst mögliche fehlerhafte Werte",null,null,null,null,null,null,null,null,"Sonstiger Aufwand",{"$f":"BF330","v":0},"TeilBezKosten",{"$f":"BF349","v":0},null,null,null,null,"MA-GesamtKO",{"$f":"BF358","v":0},null,null,null,null,null,null,null,null,null,null,null,null,null,null,null,null,null,"Zeilenpositionen:",null,null,"Unterkunft Verpflg.",{"$f":"CG565","v":0},"GESAMTAlleAbw/Erträge",{"$f":"CF537+CF545+CF553+CG574+CG582","v":0}]
[null,null,null,null,null,null,null,null,null,null,null,null,null,null,null,null,null,null,null,null,null,null,null,null,null,null,null,null,"Samstag Unter","Sonntag Unter","letzter Sonntag Unterricht",null,null,null,null,null,null,null,null,null,null,null,null,null,null,null,"Kalkulation ohne Wettbewerb",null,null,null,null,null,null,"Zeilenpositionen:","Abkürzungen:",{"$f":"MATCH(BC17,BA1:BA3009,0)","v":358},null,null,null,null,null,null,null,null,null,null,null,null,null,null,null,null,null,null,null,null,null,null,null,null,null,"Durchführungsbericht",{"$f":"MATCH(CD17,CB:CB,0)","v":506},null,"Kinderbetr.",{"$f":"CG569","v":0},"räumlich/techn. Ausst.",{"$f":"CF545","v":0}]
[null,null,null,null,null,null,null,null,null,null,null,null,null,null,null,null,null,null,null,null,null,null,null,null,null,null,null,null,{"$f":"AD105","v":"ja"},"nein","nein",null,null,null,null,null,null,null,null,null,null,null,null,null,null,null,null,null,null,null,null,null,null,null,null,null,null,null,null,null,null,null,null,null,null,null,null,null,null,null,null,null,null,null,null,null,null,null,null,null,null,"Anmerkungen",{"$f":"MATCH(CD18,CB:CB,0)","v":586},null,"TnBezKO",{"$f":"CG573","v":0}]
[]
[]
[null,"MASSNAHMENBESCHREIBUNG (organisatorisch)"]
[]
[null,null,null,null,"Bezeichnung der Maßnahme:",null,null,null,null,null,null,null,null,null,null,0]
[]
[]
[null,null,null,null,"Veranstaltungsort:"]
[]
[]
[null,null,null,null,"TeilnehmerInnen ",null,null,null,"Gesamt MSTN "]
[null,null,null,null,"Tageskapazität ",null,null,null,"Veranstaltungsbeginn ",null,null,{"$f":"IF(J30=\"\",\"\",J30)","v":""},{"$f":"IF(WEEKDAY(MassnahmeBeginn,2)=7,\"<– Achtung: Eine Maßnahme kann nicht am Sonntag beginnen!\",\"\")","v":""}]
[null,null,null,null,"TeilnehmerInnen/TrainerInnen-Schlüssel ",null,null,null,"Veranstaltungsende ",null,null,{"$f":"IF(J31=\"\",\"\",J31)","v":""},{"$f":"IF(WEEKDAY(MassnahmeEnde,2)=7,\"<– Achtung: Eine Maßnahme kann nicht am Sonntag enden! \",\"\")&IF(MassnahmeEnde<MassnahmeBeginn,\"<– Achtung: Ende der Maßnahme vor Beginn!\",\"\")","v":""},null,null,null,null,null,null,null,null,null,null,null,null,null,null,null,null,null,"gonk"]
[]
[null,"DARSTELLUNG EINER NORMWOCHE"]
[null,"Unterrichtszeit vormittags:",null,null,null,null,null,null,null,"Unterrichtszeit nachmittags:"]
[]
[null,"Mo von",null,"Uhr bis",null,"Uhr (=",{"$f":"IF(C36<>\"\",(E36-C36)*24,\"\")","v":""}," MS)",null,"Mo von",null,"Uhr bis",null,"Uhr (=",{"$f":"IF(K36<>\"\",(M36-K36)*24,\"\")","v":""}," MS)"]
[null,"Di von",null,"Uhr bis",null,"Uhr (=",""," MS)",null,"Di von",null,"Uhr bis",null,"Uhr (=",""," MS)"]
[null,"Mi von",null,"Uhr bis",null,"Uhr (=",""," MS)",null,"Mi von",null,"Uhr bis",null,"Uhr (=",""," MS)"]
[null,"Do von",null,"Uhr bis",null,"Uhr (=",""," MS)",null,"Do von",null,"Uhr bis",null,"Uhr (=",""," MS)"]
[null,"Fr von",null,"Uhr bis",null,"Uhr (=",""," MS)",null,"Fr von",null,"Uhr bis",null,"Uhr (=",""," MS)"]
[null,"Sa von",null,"Uhr bis",null,"Uhr (=",""," MS)",null,"Sa von",null,"Uhr bis",null,"Uhr (=",""," MS)"]
[]
[]
[]
[]
[]
[]
[null,null,null,null,null,"Maßnahmenstunden pro Woche: ",{"$f":"SUM(G36:G46)+SUM(O36:O46)","v":0}," MS"]
[null,null,null,null,null,null,null,null,null,null,null,null,null,null,null,"Abk.: MSTN = Maßnahmenstunden TeilnehmerInnen"]
[]
[null,"Anmerkungen"]
[]
[null,"Für Zeilenumbruch drücken Sie ALT + ENTER!\nUm einen Text aus der Zwischenablage einzufügen, machen Sie zuerst einen Doppelklick in dieses Feld!"]
[]
[]
[]
[]
[]
[]
[]
[]
[]
[]
[]
[]
[]
[0]
[]
[]
[]
[]
[]
[]
[]
[]
[]
[]
[]
[]
[]
[]
[]
[]
[]
[]
[]
[]
[]
[]
[]
[]
[]
[]
[]
[]
[]
[]
[]
[]
[null,null,null,null,null,null,null,null,null,null,null,null,null,null,null,null,null,null,null,null,null,null,null,null,null,null,null,"ZEITPLAN"]
[null,null,null,null,null,null,null,null,null,null,null,null,null,null,null,null,null,null,null,null,null,null,null,null,null,null,null,null,null,"Bezeichnung der Maßnahme: ",{"$f":"F23","v":0},null,null,null,null,null,null,null,null,{"$f":"P23","v":0}]
[]
[null,null,null,null,null,null,null,null,null,null,null,null,null,null,null,null,null,null,null,null,null,null,null,null,null,null,null,"Veranstaltungsbeginn ",null,{"$f":"IF(AH12<>\"\",AH12,MassnahmeBeginn)","v":"00:00:00"},null,null,"Veranstaltungsende ",{"$f":"IF(MassnahmeEnde<>\"\",MassnahmeEnde,AH13)","v":"00:00:00"},null,null,null,"Gesamt MSTN lt. Beschreibung ",{"$f":"MSTNGesamt","v":0}]
[null,null,null,null,null,null,null,null,null,null,null,null,null,null,null,null,null,null,null,null,null,null,null,null,null,null,null,null,null,{"$f":"AD103","v":"00:00:00"},null,null,null,{"$f":"AH103","v":"00:00:00"}]
[null,null,null,null,null,null,null,null,null,null,null,null,null,null,null,null,null,null,null,null,null,null,null,null,null,null,"Samstag Unterricht ",null,null,"ja",null,null,"Anzahl Wochen ",{"$f":"IF(AV15=1,0,IF(AB113=\"\",\"\",MAX(AB113:AB289)))","v":1}]
[null,null,null,null,null,null,null,null,null,null,null,null,null,null,null,null,null,null,null,null,null,null,null,null,null,null,"Sonntag Unterricht ",null,null,"ja"]
[null,null,null,null,null,null,null,null,null,null,null,null,null,null,null,null,null,null,null,null,null,null,null,null,null,null,null,null,null,{"$f":"IF(AND(AD105=\"nein\",WEEKDAY(AD103)=7,AD103>30000),\"Beginn am SA! \",\"\") & IF(AND(AD105=\"nein\",WEEKDAY(AH103)=7,AH103>30000),\"Ende am SA! \",\"\")","v":""}]
[]
[]
[null,null,null,null,null,null,null,null,null,null,null,null,null,null,null,null,null,null,null,null,null,null,null,null,null,null,null,null,null,null,null,null,"Maßnahmenstunden"]
[null,null,null,null,null,null,null,null,null,null,null,null,null,null,null,null,null,null,null,null,null,null,null,null,null,null,null,null,null,"Summe:",{"$f":"SUM(INDIRECT(\"AE113:AE\" & 113+Anzahl_Wochen-1))","v":0},{"$f":"SUM(INDIRECT(\"AF113:AF\" & 113+Anzahl_Wochen-1))","v":1},{"$f":"SUM(INDIRECT(\"AG113:AG\" & 113+Anzahl_Wochen-1))","v":0},{"$f":"SUM(INDIRECT(\"AH113:AH\" & 113+Anzahl_Wochen-1))","v":0},{"$f":"SUM(INDIRECT(\"AI113:AI\" & 113+Anzahl_Wochen-1))","v":0},{"$f":"IF(AI111<>$AM$103,\"–> Achtung: Diese Summe muss mit den Gesamt MSTN [\" & AM103 & \"] übereinstimmen!\",\"\")","v":""}]
[null,null,null,null,null,null,null,null,null,null,null,null,null,null,null,null,null,null,null,null,null,null,null,null,null,null,null,"Woche der Maßnahme","Beginn","Ende",{"$f":"\"unterrichtsfreie\" & CHAR(10)   & \"Tage\" & CHAR(10) & IF(AD105=\"ja\",\"(außer So)\",\"(außer Sa, So)\")","v":"unterrichtsfreie\nTage\n(außer So)"},"Maßnahmentage \ngesamt","Maßnahmenstunden\nin dieser Woche","Maßnahmenstunden GruppentrainerInnen","Maßnahmenstunden TeilnehmerInnen gesamt \n(Gesamt MSTN) ","Bemerkung",null,null,null,null,null,null,null,null,"Maßnahmentage","Feiertag\nrelevant in\nIntervall",null,"Feiertage\nrelevant","Feiertage","Achtung: keine Zwischenüberschriften!"]
[null,null,null,null,null,null,null,null,null,null,null,null,null,null,null,null,null,null,null,null,null,null,null,null,null,null,null,{"$f":"IF(AC113<>\"\",1,\"\")","v":1},{"$f":"AD103","v":"00:00:00"},{"$f":"IF(AH$15=\"ja\",7-WEEKDAY(AC113,2)+AC113,MIN(AC113+7-WEEKDAY(AC113,2),AH$103))","v":"00:00:00"},{"$f":"AT113","v":0},{"$f":"MAX(AS113-AE113,0)","v":1},null,null,null,null,null,null,null,null,null,null,null,null,{"$f":"AD113-AC113+IF(WEEKDAY(AD113)<>1,1,0)-IF(AND(WEEKDAY(AD113,2)>=6,AD$105=\"nein\"),1,0)","v":1},{"$f":"SUMPRODUCT((AC113<=AV$113:AV$367)*(AD113>=AV$113:AV$367))","v":0},null,{"$f":"IF(AD$105=\"ja\",IF(WEEKDAY(AW113)=1,\"-\",AW113),IF(OR(WEEKDAY(AW113)=1,WEEKDAY(AW113)=7),\"-\",AW113))","v":"2019-01-01"},"2019-01-01","Neujahrstag",{"$f":"YEAR(AW113)","v":2019}]
[null,null,null,null,null,null,null,null,null,null,null,null,null,null,null,null,null,null,null,null,null,null,null,null,null,null,null,{"$f":"IF(ISERROR(IF(AC114<>\"\",AB113+1,0)),\"\",IF(AC114<>\"\",AB113+1,0))","v":0},{"$f":"IF(AD113>=AH103,\"\",AC113+7-WEEKDAY(AD103,2)+1)","v":""},{"$error":"#VALUE!"},{"$f":"AT114","v":{"$error":"#VALUE!"}},{"$f":"MAX(AS114-AE114,0)","v":{"$error":"#VALUE!"}},null,null,null,null,null,null,null,null,null,null,null,null,{"$f":"AD114-AC114+IF(WEEKDAY(AD114)<>1,1,0)-IF(AND(WEEKDAY(AD114,2)>=6,AD$105=\"nein\"),1,0)","v":{"$error":"#VALUE!"}},{"$f":"SUMPRODUCT((AC114<=AV$113:AV$367)*(AD114>=AV$113:AV$367))","v":{"$error":"#VALUE!"}},null,{"$f":"IF(AD$105=\"ja\",IF(WEEKDAY(AW114)=1,\"-\",AW114),IF(OR(WEEKDAY(AW114)=1,WEEKDAY(AW114)=7),\"-\",AW114))","v":"-"},"2019-01-06","Heilige Drei Könige",{"$f":"YEAR(AW114)","v":2019}]
[null,null,null,null,null,null,null,null,null,null,null,null,null,null,null,null,null,null,null,null,null,null,null,null,null,null,null,"",{"$f":"IF(AD114>=AH$103,\"\",AC114+7)","v":{"$error":"#VALUE!"}},{"$error":"#VALUE!"},{"$error":"#VALUE!"},{"$error":"#VALUE!"},null,null,null,null,null,null,null,null,null,null,null,null,{"$error":"#VALUE!"},{"$f":"SUMPRODUCT((AC115<=AV$113:AV$367)*(AD115>=AV$113:AV$367))","v":{"$error":"#VALUE!"}},null,"2019-04-22","2019-04-22","Ostermontag",2019]
[null,null,null,null,null,null,null,null,null,null,null,null,null,null,null,null,null,null,null,null,null,null,null,null,null,null,null,"",{"$error":"#VALUE!"},{"$error":"#VALUE!"},{"$error":"#VALUE!"},{"$error":"#VALUE!"},null,null,null,null,null,null,null,null,null,null,null,null,{"$error":"#VALUE!"},{"$f":"SUMPRODUCT((AC116<=AV$113:AV$367)*(AD116>=AV$113:AV$367))","v":{"$error":"#VALUE!"}},null,"2019-05-01","2019-05-01","Staatsfeiertag",2019]
[null,null,null,null,null,null,null,null,null,null,null,null,null,null,null,null,null,null,null,null,null,null,null,null,null,null,null,"",{"$error":"#VALUE!"},{"$error":"#VALUE!"},{"$error":"#VALUE!"},{"$error":"#VALUE!"},null,null,null,null,null,null,null,null,null,null,null,null,{"$error":"#VALUE!"},{"$f":"SUMPRODUCT((AC117<=AV$113:AV$367)*(AD117>=AV$113:AV$367))","v":{"$error":"#VALUE!"}},null,"2019-05-30","2019-05-30","Christi Himmelfahrt",2019]
[null,null,null,null,null,null,null,null,null,null,null,null,null,null,null,null,null,null,null,null,null,null,null,null,null,null,null,"",{"$error":"#VALUE!"},{"$error":"#VALUE!"},{"$error":"#VALUE!"},{"$error":"#VALUE!"},null,null,null,null,null,null,null,null,null,null,null,null,{"$error":"#VALUE!"},{"$f":"SUMPRODUCT((AC118<=AV$113:AV$367)*(AD118>=AV$113:AV$367))","v":{"$error":"#VALUE!"}},null,"2019-06-10","2019-06-10","Pfingstmontag",2019]
[null,null,null,null,null,null,null,null,null,null,null,null,null,null,null,null,null,null,null,null,null,null,null,null,null,null,null,"",{"$error":"#VALUE!"},{"$error":"#VALUE!"},{"$error":"#VALUE!"},{"$error":"#VALUE!"},null,null,null,null,null,null,null,null,null,null,null,null,{"$error":"#VALUE!"},{"$f":"SUMPRODUCT((AC119<=AV$113:AV$367)*(AD119>=AV$113:AV$367))","v":{"$error":"#VALUE!"}},null,"2019-06-20","2019-06-20","Fronleichnam",2019]
[null,null,null,null,null,null,null,null,null,null,null,null,null,null,null,null,null,null,null,null,null,null,null,null,null,null,null,"",{"$error":"#VALUE!"},{"$error":"#VALUE!"},{"$error":"#VALUE!"},{"$error":"#VALUE!"},null,null,null,null,null,null,null,null,null,null,null,null,{"$error":"#VALUE!"},{"$f":"SUMPRODUCT((AC120<=AV$113:AV$367)*(AD120>=AV$113:AV$367))","v":{"$error":"#VALUE!"}},null,"2019-08-15","2019-08-15","Mariä Himmelfahrt",2019]
[null,null,null,null,null,null,null,null,null,null,null,null,null,null,null,null,null,null,null,null,null,null,null,null,null,null,null,"",{"$error":"#VALUE!"},{"$error":"#VALUE!"},{"$error":"#VALUE!"},{"$error":"#VALUE!"},null,null,null,null,null,null,null,null,null,null,null,null,{"$error":"#VALUE!"},{"$f":"SUMPRODUCT((AC121<=AV$113:AV$367)*(AD121>=AV$113:AV$367))","v":{"$error":"#VALUE!"}},null,"2019-10-26","2019-10-26","Nationalfeiertag",2019]
[null,null,null,null,null,null,null,null,null,null,null,null,null,null,null,null,null,null,null,null,null,null,null,null,null,null,null,"",{"$error":"#VALUE!"},{"$error":"#VALUE!"},{"$error":"#VALUE!"},{"$error":"#VALUE!"},null,null,null,null,null,null,null,null,null,null,null,null,{"$error":"#VALUE!"},{"$f":"SUMPRODUCT((AC122<=AV$113:AV$367)*(AD122>=AV$113:AV$367))","v":{"$error":"#VALUE!"}},null,"2019-11-01","2019-11-01","Allerheiligen",2019]
[null,null,null,null,null,null,null,null,null,null,null,null,null,null,null,null,null,null,null,null,null,null,null,null,null,null,null,"",{"$error":"#VALUE!"},{"$error":"#VALUE!"},{"$error":"#VALUE!"},{"$error":"#VALUE!"},null,null,null,null,null,null,null,null,null,null,null,null,{"$error":"#VALUE!"},{"$f":"SUMPRODUCT((AC123<=AV$113:AV$367)*(AD123>=AV$113:AV$367))","v":{"$error":"#VALUE!"}},null,"-","2019-12-08","Mariä Empfängnis",2019]
[null,null,null,null,null,null,null,null,null,null,null,null,null,null,null,null,null,null,null,null,null,null,null,null,null,null,null,"",{"$error":"#VALUE!"},{"$error":"#VALUE!"},{"$error":"#VALUE!"},{"$error":"#VALUE!"},null,null,null,null,null,null,null,null,null,null,null,null,{"$error":"#VALUE!"},{"$f":"SUMPRODUCT((AC124<=AV$113:AV$367)*(AD124>=AV$113:AV$367))","v":{"$error":"#VALUE!"}},null,"2019-12-24","2019-12-24","unterrichtsfrei",2019]
[null,null,null,null,null,null,null,null,null,null,null,null,null,null,null,null,null,null,null,null,null,null,null,null,null,null,null,"",{"$error":"#VALUE!"},{"$error":"#VALUE!"},{"$error":"#VALUE!"},{"$error":"#VALUE!"},null,null,null,null,null,null,null,null,null,null,null,null,{"$error":"#VALUE!"},{"$f":"SUMPRODUCT((AC125<=AV$113:AV$367)*(AD125>=AV$113:AV$367))","v":{"$error":"#VALUE!"}},null,"2019-12-25","2019-12-25","Christtag",2019]
[null,null,null,null,null,null,null,null,null,null,null,null,null,null,null,null,null,null,null,null,null,null,null,null,null,null,null,"",{"$error":"#VALUE!"},{"$error":"#VALUE!"},{"$error":"#VALUE!"},{"$error":"#VALUE!"},null,null,null,null,null,null,null,null,null,null,null,null,{"$error":"#VALUE!"},{"$f":"SUMPRODUCT((AC126<=AV$113:AV$367)*(AD126>=AV$113:AV$367))","v":{"$error":"#VALUE!"}},null,"2019-12-26","2019-12-26","Stephanitag",2019]
[null,null,null,null,null,null,null,null,null,null,null,null,null,null,null,null,null,null,null,null,null,null,null,null,null,null,null,"",{"$error":"#VALUE!"},{"$error":"#VALUE!"},{"$error":"#VALUE!"},{"$error":"#VALUE!"},null,null,null,null,null,null,null,null,null,null,null,null,{"$error":"#VALUE!"},{"$f":"SUMPRODUCT((AC127<=AV$113:AV$367)*(AD127>=AV$113:AV$367))","v":{"$error":"#VALUE!"}},null,"2019-12-31","2019-12-31","unterrichtsfrei",2019]
[null,null,null,null,null,null,null,null,null,null,null,null,null,null,null,null,null,null,null,null,null,null,null,null,null,null,null,"",{"$error":"#VALUE!"},{"$error":"#VALUE!"},{"$error":"#VALUE!"},{"$error":"#VALUE!"},null,null,null,null,null,null,null,null,null,null,null,null,{"$error":"#VALUE!"},{"$f":"SUMPRODUCT((AC128<=AV$113:AV$367)*(AD128>=AV$113:AV$367))","v":{"$error":"#VALUE!"}},null,"2020-01-01","2020-01-01","Neujahrstag",2020]
[null,null,null,null,null,null,null,null,null,null,null,null,null,null,null,null,null,null,null,null,null,null,null,null,null,null,null,"",{"$error":"#VALUE!"},{"$error":"#VALUE!"},{"$error":"#VALUE!"},{"$error":"#VALUE!"},null,null,null,null,null,null,null,null,null,null,null,null,{"$error":"#VALUE!"},{"$f":"SUMPRODUCT((AC129<=AV$113:AV$367)*(AD129>=AV$113:AV$367))","v":{"$error":"#VALUE!"}},null,"2020-01-06","2020-01-06","Heilige Drei Könige",2020]
[null,null,null,null,null,null,null,null,null,null,null,null,null,null,null,null,null,null,null,null,null,null,null,null,null,null,null,"",{"$error":"#VALUE!"},{"$error":"#VALUE!"},{"$error":"#VALUE!"},{"$error":"#VALUE!"},null,null,null,null,null,null,null,null,null,null,null,null,{"$error":"#VALUE!"},{"$f":"SUMPRODUCT((AC130<=AV$113:AV$367)*(AD130>=AV$113:AV$367))","v":{"$error":"#VALUE!"}},null,"2020-04-13","2020-04-13","Ostermontag",2020]
[null,null,null,null,null,null,null,null,null,null,null,null,null,null,null,null,null,null,null,null,null,null,null,null,null,null,null,"",{"$error":"#VALUE!"},{"$error":"#VALUE!"},{"$error":"#VALUE!"},{"$error":"#VALUE!"},null,null,null,null,null,null,null,null,null,null,null,null,{"$error":"#VALUE!"},{"$f":"SUMPRODUCT((AC131<=AV$113:AV$367)*(AD131>=AV$113:AV$367))","v":{"$error":"#VALUE!"}},null,"2020-05-01","2020-05-01","Staatsfeiertag",2020]
[null,null,null,null,null,null,null,null,null,null,null,null,null,null,null,null,null,null,null,null,null,null,null,null,null,null,null,"",{"$error":"#VALUE!"},{"$error":"#VALUE!"},{"$error":"#VALUE!"},{"$error":"#VALUE!"},null,null,null,null,null,null,null,null,null,null,null,null,{"$error":"#VALUE!"},{"$f":"SUMPRODUCT((AC132<=AV$113:AV$367)*(AD132>=AV$113:AV$367))","v":{"$error":"#VALUE!"}},null,"2020-05-21","2020-05-21","Christi Himmelfahrt",2020]
[null,null,null,null,null,null,null,null,null,null,null,null,null,null,null,null,null,null,null,null,null,null,null,null,null,null,null,"",{"$error":"#VALUE!"},{"$error":"#VALUE!"},{"$error":"#VALUE!"},{"$error":"#VALUE!"},null,null,null,null,null,null,null,null,null,null,null,null,{"$error":"#VALUE!"},{"$f":"SUMPRODUCT((AC133<=AV$113:AV$367)*(AD133>=AV$113:AV$367))","v":{"$error":"#VALUE!"}},null,"2020-06-01","2020-06-01","Pfingstmontag",2020]
[null,null,null,null,null,null,null,null,null,null,null,null,null,null,null,null,null,null,null,null,null,null,null,null,null,null,null,"",{"$error":"#VALUE!"},{"$error":"#VALUE!"},{"$error":"#VALUE!"},{"$error":"#VALUE!"},null,null,null,null,null,null,null,null,null,null,null,null,{"$error":"#VALUE!"},{"$f":"SUMPRODUCT((AC134<=AV$113:AV$367)*(AD134>=AV$113:AV$367))","v":{"$error":"#VALUE!"}},null,"2020-06-11","2020-06-11","Fronleichnam",2020]
[null,null,null,null,null,null,null,null,null,null,null,null,null,null,null,null,null,null,null,null,null,null,null,null,null,null,null,"",{"$error":"#VALUE!"},{"$error":"#VALUE!"},{"$error":"#VALUE!"},{"$error":"#VALUE!"},null,null,null,null,null,null,null,null,null,null,null,null,{"$error":"#VALUE!"},{"$f":"SUMPRODUCT((AC135<=AV$113:AV$367)*(AD135>=AV$113:AV$367))","v":{"$error":"#VALUE!"}},null,"2020-08-15","2020-08-15","Mariä Himmelfahrt",2020]
[null,null,null,null,null,null,null,null,null,null,null,null,null,null,null,null,null,null,null,null,null,null,null,null,null,null,null,"",{"$error":"#VALUE!"},{"$error":"#VALUE!"},{"$error":"#VALUE!"},{"$error":"#VALUE!"},null,null,null,null,null,null,null,null,null,null,null,null,{"$error":"#VALUE!"},{"$f":"SUMPRODUCT((AC136<=AV$113:AV$367)*(AD136>=AV$113:AV$367))","v":{"$error":"#VALUE!"}},null,"2020-10-26","2020-10-26","Nationalfeiertag",2020]
[null,null,null,null,null,null,null,null,null,null,null,null,null,null,null,null,null,null,null,null,null,null,null,null,null,null,null,"",{"$error":"#VALUE!"},{"$error":"#VALUE!"},{"$error":"#VALUE!"},{"$error":"#VALUE!"},null,null,null,null,null,null,null,null,null,null,null,null,{"$error":"#VALUE!"},{"$f":"SUMPRODUCT((AC137<=AV$113:AV$367)*(AD137>=AV$113:AV$367))","v":{"$error":"#VALUE!"}},null,"-","2020-11-01","Allerheiligen",2020]
[null,null,null,null,null,null,null,null,null,null,null,null,null,null,null,null,null,null,null,null,null,null,null,null,null,null,null,"",{"$error":"#VALUE!"},{"$error":"#VALUE!"},{"$error":"#VALUE!"},{"$error":"#VALUE!"},null,null,null,null,null,null,null,null,null,null,null,null,{"$error":"#VALUE!"},{"$f":"SUMPRODUCT((AC138<=AV$113:AV$367)*(AD138>=AV$113:AV$367))","v":{"$error":"#VALUE!"}},null,"2020-12-08","2020-12-08","Mariä Empfängnis",2020]
[null,null,null,null,null,null,null,null,null,null,null,null,null,null,null,null,null,null,null,null,null,null,null,null,null,null,null,"",{"$error":"#VALUE!"},{"$error":"#VALUE!"},{"$error":"#VALUE!"},{"$error":"#VALUE!"},null,null,null,null,null,null,null,null,null,null,null,null,{"$error":"#VALUE!"},{"$f":"SUMPRODUCT((AC139<=AV$113:AV$367)*(AD139>=AV$113:AV$367))","v":{"$error":"#VALUE!"}},null,"2020-12-24","2020-12-24","unterrichtsfrei",2020]
[null,null,null,null,null,null,null,null,null,null,null,null,null,null,null,null,null,null,null,null,null,null,null,null,null,null,null,"",{"$error":"#VALUE!"},{"$error":"#VALUE!"},{"$error":"#VALUE!"},{"$error":"#VALUE!"},null,null,null,null,null,null,null,null,null,null,null,null,{"$error":"#VALUE!"},{"$f":"SUMPRODUCT((AC140<=AV$113:AV$367)*(AD140>=AV$113:AV$367))","v":{"$error":"#VALUE!"}},null,"2020-12-25","2020-12-25","Christtag",2020]
[null,null,null,null,null,null,null,null,null,null,null,null,null,null,null,null,null,null,null,null,null,null,null,null,null,null,null,"",{"$error":"#VALUE!"},{"$error":"#VALUE!"},{"$error":"#VALUE!"},{"$error":"#VALUE!"},null,null,null,null,null,null,null,null,null,null,null,null,{"$error":"#VALUE!"},{"$f":"SUMPRODUCT((AC141<=AV$113:AV$367)*(AD141>=AV$113:AV$367))","v":{"$error":"#VALUE!"}},null,"2020-12-26","2020-12-26","Stephanitag",2020]
[null,null,null,null,null,null,null,null,null,null,null,null,null,null,null,null,null,null,null,null,null,null,null,null,null,null,null,"",{"$error":"#VALUE!"},{"$error":"#VALUE!"},{"$error":"#VALUE!"},{"$error":"#VALUE!"},null,null,null,null,null,null,null,null,null,null,null,null,{"$error":"#VALUE!"},{"$f":"SUMPRODUCT((AC142<=AV$113:AV$367)*(AD142>=AV$113:AV$367))","v":{"$error":"#VALUE!"}},null,"2020-12-31","2020-12-31","unterrichtsfrei",2020]
[null,null,null,null,null,null,null,null,null,null,null,null,null,null,null,null,null,null,null,null,null,null,null,null,null,null,null,"",{"$error":"#VALUE!"},{"$error":"#VALUE!"},{"$error":"#VALUE!"},{"$error":"#VALUE!"},null,null,null,null,null,null,null,null,null,null,null,null,{"$error":"#VALUE!"},{"$f":"SUMPRODUCT((AC143<=AV$113:AV$367)*(AD143>=AV$113:AV$367))","v":{"$error":"#VALUE!"}},null,"2021-01-01","2021-01-01","Neujahrstag",2021]
[null,null,null,null,null,null,null,null,null,null,null,null,null,null,null,null,null,null,null,null,null,null,null,null,null,null,null,"",{"$error":"#VALUE!"},{"$error":"#VALUE!"},{"$error":"#VALUE!"},{"$error":"#VALUE!"},null,null,null,null,null,null,null,null,null,null,null,null,{"$error":"#VALUE!"},{"$f":"SUMPRODUCT((AC144<=AV$113:AV$367)*(AD144>=AV$113:AV$367))","v":{"$error":"#VALUE!"}},null,"2021-01-06","2021-01-06","Heilige Drei Könige",2021]
[null,null,null,null,null,null,null,null,null,null,null,null,null,null,null,null,null,null,null,null,null,null,null,null,null,null,null,"",{"$error":"#VALUE!"},{"$error":"#VALUE!"},{"$error":"#VALUE!"},{"$error":"#VALUE!"},null,null,null,null,null,null,null,null,null,null,null,null,{"$error":"#VALUE!"},{"$f":"SUMPRODUCT((AC145<=AV$113:AV$367)*(AD145>=AV$113:AV$367))","v":{"$error":"#VALUE!"}},null,"2021-04-05","2021-04-05","Ostermontag",2021]
[null,null,null,null,null,null,null,null,null,null,null,null,null,null,null,null,null,null,null,null,null,null,null,null,null,null,null,"",{"$error":"#VALUE!"},{"$error":"#VALUE!"},{"$f":"AT146","v":{"$error":"#VALUE!"}},{"$error":"#VALUE!"},null,null,null,null,null,null,null,null,null,null,null,null,{"$error":"#VALUE!"},{"$f":"SUMPRODUCT((AC146<=AV$113:AV$367)*(AD146>=AV$113:AV$367))","v":{"$error":"#VALUE!"}},null,"2021-05-01","2021-05-01","Staatsfeiertag",2021]
[null,null,null,null,null,null,null,null,null,null,null,null,null,null,null,null,null,null,null,null,null,null,null,null,null,null,null,"",{"$error":"#VALUE!"},{"$error":"#VALUE!"},{"$error":"#VALUE!"},{"$error":"#VALUE!"},null,null,null,null,null,null,null,null,null,null,null,null,{"$error":"#VALUE!"},{"$f":"SUMPRODUCT((AC147<=AV$113:AV$367)*(AD147>=AV$113:AV$367))","v":{"$error":"#VALUE!"}},null,"2021-05-13","2021-05-13","Christi Himmelfahrt",2021]
[null,null,null,null,null,null,null,null,null,null,null,null,null,null,null,null,null,null,null,null,null,null,null,null,null,null,null,"",{"$error":"#VALUE!"},{"$error":"#VALUE!"},{"$error":"#VALUE!"},{"$error":"#VALUE!"},null,null,null,null,null,null,null,null,null,null,null,null,{"$error":"#VALUE!"},{"$f":"SUMPRODUCT((AC148<=AV$113:AV$367)*(AD148>=AV$113:AV$367))","v":{"$error":"#VALUE!"}},null,"2021-05-24","2021-05-24","Pfingstmontag",2021]
[null,null,null,null,null,null,null,null,null,null,null,null,null,null,null,null,null,null,null,null,null,null,null,null,null,null,null,"",{"$error":"#VALUE!"},{"$error":"#VALUE!"},{"$error":"#VALUE!"},{"$error":"#VALUE!"},null,null,null,null,null,null,null,null,null,null,null,null,{"$error":"#VALUE!"},{"$f":"SUMPRODUCT((AC149<=AV$113:AV$367)*(AD149>=AV$113:AV$367))","v":{"$error":"#VALUE!"}},null,"2021-06-03","2021-06-03","Fronleichnam",2021]
[null,null,null,null,null,null,null,null,null,null,null,null,null,null,null,null,null,null,null,null,null,null,null,null,null,null,null,"",{"$error":"#VALUE!"},{"$error":"#VALUE!"},{"$error":"#VALUE!"},{"$error":"#VALUE!"},null,null,null,null,null,null,null,null,null,null,null,null,{"$error":"#VALUE!"},{"$f":"SUMPRODUCT((AC150<=AV$113:AV$367)*(AD150>=AV$113:AV$367))","v":{"$error":"#VALUE!"}},null,"-","2021-08-15","Maria Himmelfahrt",2021]
[null,null,null,null,null,null,null,null,null,null,null,null,null,null,null,null,null,null,null,null,null,null,null,null,null,null,null,"",{"$error":"#VALUE!"},{"$error":"#VALUE!"},{"$error":"#VALUE!"},{"$error":"#VALUE!"},null,null,null,null,null,null,null,null,null,null,null,null,{"$error":"#VALUE!"},{"$f":"SUMPRODUCT((AC151<=AV$113:AV$367)*(AD151>=AV$113:AV$367))","v":{"$error":"#VALUE!"}},null,"2021-10-26","2021-10-26","Nationalfeiertag",2021]
[null,null,null,null,null,null,null,null,null,null,null,null,null,null,null,null,null,null,null,null,null,null,null,null,null,null,null,"",{"$error":"#VALUE!"},{"$error":"#VALUE!"},{"$error":"#VALUE!"},{"$error":"#VALUE!"},null,null,null,null,null,null,null,null,null,null,null,null,{"$error":"#VALUE!"},{"$f":"SUMPRODUCT((AC152<=AV$113:AV$367)*(AD152>=AV$113:AV$367))","v":{"$error":"#VALUE!"}},null,"2021-11-01","2021-11-01","Allerheiligen",2021]
[null,null,null,null,null,null,null,null,null,null,null,null,null,null,null,null,null,null,null,null,null,null,null,null,null,null,null,"",{"$error":"#VALUE!"},{"$error":"#VALUE!"},{"$error":"#VALUE!"},{"$error":"#VALUE!"},null,null,null,null,null,null,null,null,null,null,null,null,{"$error":"#VALUE!"},{"$f":"SUMPRODUCT((AC153<=AV$113:AV$367)*(AD153>=AV$113:AV$367))","v":{"$error":"#VALUE!"}},null,"2021-12-08","2021-12-08","Maria Empfängnis",2021]
[null,null,null,null,null,null,null,null,null,null,null,null,null,null,null,null,null,null,null,null,null,null,null,null,null,null,null,"",{"$error":"#VALUE!"},{"$error":"#VALUE!"},{"$error":"#VALUE!"},{"$error":"#VALUE!"},null,null,null,null,null,null,null,null,null,null,null,null,{"$error":"#VALUE!"},{"$f":"SUMPRODUCT((AC154<=AV$113:AV$367)*(AD154>=AV$113:AV$367))","v":{"$error":"#VALUE!"}},null,"2021-12-24","2021-12-24","unterrichtsfrei",2021]
[null,null,null,null,null,null,null,null,null,null,null,null,null,null,null,null,null,null,null,null,null,null,null,null,null,null,null,"",{"$error":"#VALUE!"},{"$error":"#VALUE!"},{"$error":"#VALUE!"},{"$error":"#VALUE!"},null,null,null,null,null,null,null,null,null,null,null,null,{"$error":"#VALUE!"},{"$f":"SUMPRODUCT((AC155<=AV$113:AV$367)*(AD155>=AV$113:AV$367))","v":{"$error":"#VALUE!"}},null,"2021-12-25","2021-12-25","Christtag",2021]
[null,null,null,null,null,null,null,null,null,null,null,null,null,null,null,null,null,null,null,null,null,null,null,null,null,null,null,"",{"$error":"#VALUE!"},{"$error":"#VALUE!"},{"$error":"#VALUE!"},{"$error":"#VALUE!"},null,null,null,null,null,null,null,null,null,null,null,null,{"$error":"#VALUE!"},{"$f":"SUMPRODUCT((AC156<=AV$113:AV$367)*(AD156>=AV$113:AV$367))","v":{"$error":"#VALUE!"}},null,"-","2021-12-26","Stephanstag",2021]
[null,null,null,null,null,null,null,null,null,null,null,null,null,null,null,null,null,null,null,null,null,null,null,null,null,null,null,"",{"$error":"#VALUE!"},{"$error":"#VALUE!"},{"$error":"#VALUE!"},{"$error":"#VALUE!"},null,null,null,null,null,null,null,null,null,null,null,null,{"$error":"#VALUE!"},{"$f":"SUMPRODUCT((AC157<=AV$113:AV$367)*(AD157>=AV$113:AV$367))","v":{"$error":"#VALUE!"}},null,"2021-12-31","2021-12-31","unterrichtsfrei",2021]
[null,null,null,null,null,null,null,null,null,null,null,null,null,null,null,null,null,null,null,null,null,null,null,null,null,null,null,"",{"$error":"#VALUE!"},{"$error":"#VALUE!"},{"$error":"#VALUE!"},{"$error":"#VALUE!"},null,null,null,null,null,null,null,null,null,null,null,null,{"$error":"#VALUE!"},{"$f":"SUMPRODUCT((AC158<=AV$113:AV$367)*(AD158>=AV$113:AV$367))","v":{"$error":"#VALUE!"}},null,"2022-01-01","2022-01-01","Neujahrstag",2022]
[null,null,null,null,null,null,null,null,null,null,null,null,null,null,null,null,null,null,null,null,null,null,null,null,null,null,null,"",{"$error":"#VALUE!"},{"$error":"#VALUE!"},{"$error":"#VALUE!"},{"$error":"#VALUE!"},null,null,null,null,null,null,null,null,null,null,null,null,{"$error":"#VALUE!"},{"$f":"SUMPRODUCT((AC159<=AV$113:AV$367)*(AD159>=AV$113:AV$367))","v":{"$error":"#VALUE!"}},null,"2022-01-06","2022-01-06","Heilige Drei Könige",2022]
[null,null,null,null,null,null,null,null,null,null,null,null,null,null,null,null,null,null,null,null,null,null,null,null,null,null,null,"",{"$error":"#VALUE!"},{"$error":"#VALUE!"},{"$error":"#VALUE!"},{"$error":"#VALUE!"},null,null,null,null,null,null,null,null,null,null,null,null,{"$error":"#VALUE!"},{"$f":"SUMPRODUCT((AC160<=AV$113:AV$367)*(AD160>=AV$113:AV$367))","v":{"$error":"#VALUE!"}},null,"2022-04-18","2022-04-18","Ostermontag",2022]
[null,null,null,null,null,null,null,null,null,null,null,null,null,null,null,null,null,null,null,null,null,null,null,null,null,null,null,"",{"$error":"#VALUE!"},{"$error":"#VALUE!"},{"$error":"#VALUE!"},{"$error":"#VALUE!"},null,null,null,null,null,null,null,null,null,null,null,null,{"$error":"#VALUE!"},{"$f":"SUMPRODUCT((AC161<=AV$113:AV$367)*(AD161>=AV$113:AV$367))","v":{"$error":"#VALUE!"}},null,"-","2022-05-01","Staatsfeiertag",2022]
[null,null,null,null,null,null,null,null,null,null,null,null,null,null,null,null,null,null,null,null,null,null,null,null,null,null,null,"",{"$error":"#VALUE!"},{"$error":"#VALUE!"},{"$error":"#VALUE!"},{"$error":"#VALUE!"},null,null,null,null,null,null,null,null,null,null,null,null,{"$error":"#VALUE!"},{"$f":"SUMPRODUCT((AC162<=AV$113:AV$367)*(AD162>=AV$113:AV$367))","v":{"$error":"#VALUE!"}},null,"2022-05-26","2022-05-26","Christi Himmelfahrt",2022]
[null,null,null,null,null,null,null,null,null,null,null,null,null,null,null,null,null,null,null,null,null,null,null,null,null,null,null,"",{"$error":"#VALUE!"},{"$error":"#VALUE!"},{"$error":"#VALUE!"},{"$error":"#VALUE!"},null,null,null,null,null,null,null,null,null,null,null,null,{"$error":"#VALUE!"},{"$f":"SUMPRODUCT((AC163<=AV$113:AV$367)*(AD163>=AV$113:AV$367))","v":{"$error":"#VALUE!"}},null,"2022-06-06","2022-06-06","Pfingstmontag",2022]
[null,null,null,null,null,null,null,null,null,null,null,null,null,null,null,null,null,null,null,null,null,null,null,null,null,null,null,"",{"$error":"#VALUE!"},{"$error":"#VALUE!"},{"$error":"#VALUE!"},{"$error":"#VALUE!"},null,null,null,null,null,null,null,null,null,null,null,null,{"$error":"#VALUE!"},{"$f":"SUMPRODUCT((AC164<=AV$113:AV$367)*(AD164>=AV$113:AV$367))","v":{"$error":"#VALUE!"}},null,"2022-06-16","2022-06-16","Fronleichnam",2022]
[null,null,null,null,null,null,null,null,null,null,null,null,null,null,null,null,null,null,null,null,null,null,null,null,null,null,null,"",{"$error":"#VALUE!"},{"$error":"#VALUE!"},{"$error":"#VALUE!"},{"$error":"#VALUE!"},null,null,null,null,null,null,null,null,null,null,null,null,{"$error":"#VALUE!"},{"$f":"SUMPRODUCT((AC165<=AV$113:AV$367)*(AD165>=AV$113:AV$367))","v":{"$error":"#VALUE!"}},null,"2022-08-15","2022-08-15","Maria Himmelfahrt",2022]
[null,null,null,null,null,null,null,null,null,null,null,null,null,null,null,null,null,null,null,null,null,null,null,null,null,null,null,"",{"$error":"#VALUE!"},{"$error":"#VALUE!"},{"$error":"#VALUE!"},{"$error":"#VALUE!"},null,null,null,null,null,null,null,null,null,null,null,null,{"$error":"#VALUE!"},{"$f":"SUMPRODUCT((AC166<=AV$113:AV$367)*(AD166>=AV$113:AV$367))","v":{"$error":"#VALUE!"}},null,"2022-10-26","2022-10-26","Nationalfeiertag",2022]
[null,null,null,null,null,null,null,null,null,null,null,null,null,null,null,null,null,null,null,null,null,null,null,null,null,null,null,"",{"$error":"#VALUE!"},{"$error":"#VALUE!"},{"$error":"#VALUE!"},{"$error":"#VALUE!"},null,null,null,null,null,null,null,null,null,null,null,null,{"$error":"#VALUE!"},{"$f":"SUMPRODUCT((AC167<=AV$113:AV$367)*(AD167>=AV$113:AV$367))","v":{"$error":"#VALUE!"}},null,"2022-11-01","2022-11-01","Allerheiligen",2022]
[null,null,null,null,null,null,null,null,null,null,null,null,null,null,null,null,null,null,null,null,null,null,null,null,null,null,null,"",{"$error":"#VALUE!"},{"$error":"#VALUE!"},{"$error":"#VALUE!"},{"$error":"#VALUE!"},null,null,null,null,null,null,null,null,null,null,null,null,{"$error":"#VALUE!"},{"$f":"SUMPRODUCT((AC168<=AV$113:AV$367)*(AD168>=AV$113:AV$367))","v":{"$error":"#VALUE!"}},null,"2022-12-08","2022-12-08","Maria Empfängnis",2022]
[null,null,null,null,null,null,null,null,null,null,null,null,null,null,null,null,null,null,null,null,null,null,null,null,null,null,null,"",{"$error":"#VALUE!"},{"$error":"#VALUE!"},{"$error":"#VALUE!"},{"$error":"#VALUE!"},null,null,null,null,null,null,null,null,null,null,null,null,{"$error":"#VALUE!"},{"$f":"SUMPRODUCT((AC169<=AV$113:AV$367)*(AD169>=AV$113:AV$367))","v":{"$error":"#VALUE!"}},null,"2022-12-24","2022-12-24","unterrichtsfrei",2022]
[null,null,null,null,null,null,null,null,null,null,null,null,null,null,null,null,null,null,null,null,null,null,null,null,null,null,null,"",{"$error":"#VALUE!"},{"$error":"#VALUE!"},{"$error":"#VALUE!"},{"$error":"#VALUE!"},null,null,null,null,null,null,null,null,null,null,null,null,{"$error":"#VALUE!"},{"$f":"SUMPRODUCT((AC170<=AV$113:AV$367)*(AD170>=AV$113:AV$367))","v":{"$error":"#VALUE!"}},null,"-","2022-12-25","Christtag",2022]
[null,null,null,null,null,null,null,null,null,null,null,null,null,null,null,null,null,null,null,null,null,null,null,null,null,null,null,"",{"$error":"#VALUE!"},{"$error":"#VALUE!"},{"$error":"#VALUE!"},{"$error":"#VALUE!"},null,null,null,null,null,null,null,null,null,null,null,null,{"$error":"#VALUE!"},{"$f":"SUMPRODUCT((AC171<=AV$113:AV$367)*(AD171>=AV$113:AV$367))","v":{"$error":"#VALUE!"}},null,"2022-12-26","2022-12-26","Stephanstag",2022]
[null,null,null,null,null,null,null,null,null,null,null,null,null,null,null,null,null,null,null,null,null,null,null,null,null,null,null,"",{"$error":"#VALUE!"},{"$error":"#VALUE!"},{"$error":"#VALUE!"},{"$error":"#VALUE!"},null,null,null,null,null,null,null,null,null,null,null,null,{"$error":"#VALUE!"},{"$f":"SUMPRODUCT((AC172<=AV$113:AV$367)*(AD172>=AV$113:AV$367))","v":{"$error":"#VALUE!"}},null,"2022-12-31","2022-12-31","unterrichtsfrei",2022]
[null,null,null,null,null,null,null,null,null,null,null,null,null,null,null,null,null,null,null,null,null,null,null,null,null,null,null,"",{"$error":"#VALUE!"},{"$error":"#VALUE!"},{"$error":"#VALUE!"},{"$error":"#VALUE!"},null,null,null,null,null,null,null,null,null,null,null,null,{"$error":"#VALUE!"},{"$f":"SUMPRODUCT((AC173<=AV$113:AV$367)*(AD173>=AV$113:AV$367))","v":{"$error":"#VALUE!"}},null,"-","2023-01-01","Neujahrstag",2023]
[null,null,null,null,null,null,null,null,null,null,null,null,null,null,null,null,null,null,null,null,null,null,null,null,null,null,null,"",{"$error":"#VALUE!"},{"$error":"#VALUE!"},{"$error":"#VALUE!"},{"$error":"#VALUE!"},null,null,null,null,null,null,null,null,null,null,null,null,{"$error":"#VALUE!"},{"$f":"SUMPRODUCT((AC174<=AV$113:AV$367)*(AD174>=AV$113:AV$367))","v":{"$error":"#VALUE!"}},null,"2023-01-06","2023-01-06","Heilige Drei Könige",2023]
[null,null,null,null,null,null,null,null,null,null,null,null,null,null,null,null,null,null,null,null,null,null,null,null,null,null,null,"",{"$error":"#VALUE!"},{"$error":"#VALUE!"},{"$error":"#VALUE!"},{"$error":"#VALUE!"},null,null,null,null,null,null,null,null,null,null,null,null,{"$error":"#VALUE!"},{"$f":"SUMPRODUCT((AC175<=AV$113:AV$367)*(AD175>=AV$113:AV$367))","v":{"$error":"#VALUE!"}},null,"2023-04-10","2023-04-10","Ostermontag",2023]
[null,null,null,null,null,null,null,null,null,null,null,null,null,null,null,null,null,null,null,null,null,null,null,null,null,null,null,"",{"$error":"#VALUE!"},{"$error":"#VALUE!"},{"$error":"#VALUE!"},{"$error":"#VALUE!"},null,null,null,null,null,null,null,null,null,null,null,null,{"$error":"#VALUE!"},{"$f":"SUMPRODUCT((AC176<=AV$113:AV$367)*(AD176>=AV$113:AV$367))","v":{"$error":"#VALUE!"}},null,"2023-05-01","2023-05-01","Staatsfeiertag",2023]
[null,null,null,null,null,null,null,null,null,null,null,null,null,null,null,null,null,null,null,null,null,null,null,null,null,null,null,"",{"$error":"#VALUE!"},{"$f":"IF(AH$15=\"ja\",7-WEEKDAY(AC177,2)+AC177,MIN(AC177+7-WEEKDAY(AC177,2),AH$103))","v":{"$error":"#VALUE!"}},{"$error":"#VALUE!"},{"$error":"#VALUE!"},null,null,null,null,null,null,null,null,null,null,null,null,{"$error":"#VALUE!"},{"$f":"SUMPRODUCT((AC177<=AV$113:AV$367)*(AD177>=AV$113:AV$367))","v":{"$error":"#VALUE!"}},null,"2023-05-18","2023-05-18","Christi Himmelfahrt",2023]
[null,null,null,null,null,null,null,null,null,null,null,null,null,null,null,null,null,null,null,null,null,null,null,null,null,null,null,{"$f":"IF(ISERROR(IF(AC178<>\"\",AB177+1,0)),\"\",IF(AC178<>\"\",AB177+1,0))","v":""},{"$error":"#VALUE!"},{"$error":"#VALUE!"},{"$f":"AT178","v":{"$error":"#VALUE!"}},{"$f":"MAX(AS178-AE178,0)","v":{"$error":"#VALUE!"}},null,null,null,null,null,null,null,null,null,null,null,null,{"$f":"AD178-AC178+IF(WEEKDAY(AD178)<>1,1,0)-IF(AND(WEEKDAY(AD178,2)>=6,AD$105=\"nein\"),1,0)","v":{"$error":"#VALUE!"}},{"$f":"SUMPRODUCT((AC178<=AV$113:AV$367)*(AD178>=AV$113:AV$367))","v":{"$error":"#VALUE!"}},null,{"$f":"IF(AD$105=\"ja\",IF(WEEKDAY(AW178)=1,\"-\",AW178),IF(OR(WEEKDAY(AW178)=1,WEEKDAY(AW178)=7),\"-\",AW178))","v":"2023-05-29"},"2023-05-29","Pfingstmontag",{"$f":"YEAR(AW178)","v":2023}]
[null,null,null,null,null,null,null,null,null,null,null,null,null,null,null,null,null,null,null,null,null,null,null,null,null,null,null,"",{"$f":"IF(AD178>=AH$103,\"\",AC178+7)","v":{"$error":"#VALUE!"}},{"$error":"#VALUE!"},{"$error":"#VALUE!"},{"$error":"#VALUE!"},null,null,null,null,null,null,null,null,null,null,null,null,{"$error":"#VALUE!"},{"$f":"SUMPRODUCT((AC179<=AV$113:AV$367)*(AD179>=AV$113:AV$367))","v":{"$error":"#VALUE!"}},null,"2023-06-08","2023-06-08","Fronleichnam",2023]
[null,null,null,null,null,null,null,null,null,null,null,null,null,null,null,null,null,null,null,null,null,null,null,null,null,null,null,"",{"$error":"#VALUE!"},{"$error":"#VALUE!"},{"$error":"#VALUE!"},{"$error":"#VALUE!"},null,null,null,null,null,null,null,null,null,null,null,null,{"$error":"#VALUE!"},{"$f":"SUMPRODUCT((AC180<=AV$113:AV$367)*(AD180>=AV$113:AV$367))","v":{"$error":"#VALUE!"}},null,"2023-08-15","2023-08-15","Maria Himmelfahrt",2023]
[null,null,null,null,null,null,null,null,null,null,null,null,null,null,null,null,null,null,null,null,null,null,null,null,null,null,null,"",{"$error":"#VALUE!"},{"$error":"#VALUE!"},{"$error":"#VALUE!"},{"$error":"#VALUE!"},null,null,null,null,null,null,null,null,null,null,null,null,{"$error":"#VALUE!"},{"$f":"SUMPRODUCT((AC181<=AV$113:AV$367)*(AD181>=AV$113:AV$367))","v":{"$error":"#VALUE!"}},null,"2023-10-26","2023-10-26","Nationalfeiertag",2023]
[null,null,null,null,null,null,null,null,null,null,null,null,null,null,null,null,null,null,null,null,null,null,null,null,null,null,null,"",{"$error":"#VALUE!"},{"$error":"#VALUE!"},{"$error":"#VALUE!"},{"$error":"#VALUE!"},null,null,null,null,null,null,null,null,null,null,null,null,{"$error":"#VALUE!"},{"$f":"SUMPRODUCT((AC182<=AV$113:AV$367)*(AD182>=AV$113:AV$367))","v":{"$error":"#VALUE!"}},null,"2023-11-01","2023-11-01","Allerheiligen",2023]
[null,null,null,null,null,null,null,null,null,null,null,null,null,null,null,null,null,null,null,null,null,null,null,null,null,null,null,"",{"$error":"#VALUE!"},{"$error":"#VALUE!"},{"$error":"#VALUE!"},{"$error":"#VALUE!"},null,null,null,null,null,null,null,null,null,null,null,null,{"$error":"#VALUE!"},{"$f":"SUMPRODUCT((AC183<=AV$113:AV$367)*(AD183>=AV$113:AV$367))","v":{"$error":"#VALUE!"}},null,"2023-12-08","2023-12-08","Maria Empfängnis",2023]
[null,null,null,null,null,null,null,null,null,null,null,null,null,null,null,null,null,null,null,null,null,null,null,null,null,null,null,"",{"$error":"#VALUE!"},{"$error":"#VALUE!"},{"$error":"#VALUE!"},{"$error":"#VALUE!"},null,null,null,null,null,null,null,null,null,null,null,null,{"$error":"#VALUE!"},{"$f":"SUMPRODUCT((AC184<=AV$113:AV$367)*(AD184>=AV$113:AV$367))","v":{"$error":"#VALUE!"}},null,"-","2023-12-24","unterrichtsfrei",2023]
[null,null,null,null,null,null,null,null,null,null,null,null,null,null,null,null,null,null,null,null,null,null,null,null,null,null,null,"",{"$error":"#VALUE!"},{"$error":"#VALUE!"},{"$error":"#VALUE!"},{"$error":"#VALUE!"},null,null,null,null,null,null,null,null,null,null,null,null,{"$error":"#VALUE!"},{"$f":"SUMPRODUCT((AC185<=AV$113:AV$367)*(AD185>=AV$113:AV$367))","v":{"$error":"#VALUE!"}},null,"2023-12-25","2023-12-25","Christtag",2023]
[null,null,null,null,null,null,null,null,null,null,null,null,null,null,null,null,null,null,null,null,null,null,null,null,null,null,null,"",{"$error":"#VALUE!"},{"$error":"#VALUE!"},{"$error":"#VALUE!"},{"$error":"#VALUE!"},null,null,null,null,null,null,null,null,null,null,null,null,{"$error":"#VALUE!"},{"$f":"SUMPRODUCT((AC186<=AV$113:AV$367)*(AD186>=AV$113:AV$367))","v":{"$error":"#VALUE!"}},null,"2023-12-26","2023-12-26","Stephanstag",2023]
[null,null,null,null,null,null,null,null,null,null,null,null,null,null,null,null,null,null,null,null,null,null,null,null,null,null,null,"",{"$error":"#VALUE!"},{"$error":"#VALUE!"},{"$error":"#VALUE!"},{"$error":"#VALUE!"},null,null,null,null,null,null,null,null,null,null,null,null,{"$error":"#VALUE!"},{"$f":"SUMPRODUCT((AC187<=AV$113:AV$367)*(AD187>=AV$113:AV$367))","v":{"$error":"#VALUE!"}},null,"-","2023-12-31","unterrichtsfrei",2023]
[null,null,null,null,null,null,null,null,null,null,null,null,null,null,null,null,null,null,null,null,null,null,null,null,null,null,null,"",{"$error":"#VALUE!"},{"$error":"#VALUE!"},{"$error":"#VALUE!"},{"$error":"#VALUE!"},null,null,null,null,null,null,null,null,null,null,null,null,{"$error":"#VALUE!"},{"$f":"SUMPRODUCT((AC188<=AV$113:AV$367)*(AD188>=AV$113:AV$367))","v":{"$error":"#VALUE!"}},null,"2024-01-01","2024-01-01","Neujahrstag",2024]
[null,null,null,null,null,null,null,null,null,null,null,null,null,null,null,null,null,null,null,null,null,null,null,null,null,null,null,"",{"$error":"#VALUE!"},{"$error":"#VALUE!"},{"$error":"#VALUE!"},{"$error":"#VALUE!"},null,null,null,null,null,null,null,null,null,null,null,null,{"$error":"#VALUE!"},{"$f":"SUMPRODUCT((AC189<=AV$113:AV$367)*(AD189>=AV$113:AV$367))","v":{"$error":"#VALUE!"}},null,"2024-01-06","2024-01-06","Heilige Drei Könige",2024]
[null,null,null,null,null,null,null,null,null,null,null,null,null,null,null,null,null,null,null,null,null,null,null,null,null,null,null,"",{"$error":"#VALUE!"},{"$error":"#VALUE!"},{"$error":"#VALUE!"},{"$error":"#VALUE!"},null,null,null,null,null,null,null,null,null,null,null,null,{"$error":"#VALUE!"},{"$f":"SUMPRODUCT((AC190<=AV$113:AV$367)*(AD190>=AV$113:AV$367))","v":{"$error":"#VALUE!"}},null,"2024-04-01","2024-04-01","Ostermontag",2024]
[null,null,null,null,null,null,null,null,null,null,null,null,null,null,null,null,null,null,null,null,null,null,null,null,null,null,null,"",{"$error":"#VALUE!"},{"$error":"#VALUE!"},{"$error":"#VALUE!"},{"$error":"#VALUE!"},null,null,null,null,null,null,null,null,null,null,null,null,{"$error":"#VALUE!"},{"$f":"SUMPRODUCT((AC191<=AV$113:AV$367)*(AD191>=AV$113:AV$367))","v":{"$error":"#VALUE!"}},null,"2024-05-01","2024-05-01","Staatsfeiertag",2024]
[null,null,null,null,null,null,null,null,null,null,null,null,null,null,null,null,null,null,null,null,null,null,null,null,null,null,null,"",{"$error":"#VALUE!"},{"$error":"#VALUE!"},{"$error":"#VALUE!"},{"$error":"#VALUE!"},null,null,null,null,null,null,null,null,null,null,null,null,{"$error":"#VALUE!"},{"$f":"SUMPRODUCT((AC192<=AV$113:AV$367)*(AD192>=AV$113:AV$367))","v":{"$error":"#VALUE!"}},null,"2024-05-09","2024-05-09","Christi Himmelfahrt",2024]
[null,null,null,null,null,null,null,null,null,null,null,null,null,null,null,null,null,null,null,null,null,null,null,null,null,null,null,"",{"$error":"#VALUE!"},{"$error":"#VALUE!"},{"$error":"#VALUE!"},{"$error":"#VALUE!"},null,null,null,null,null,null,null,null,null,null,null,null,{"$error":"#VALUE!"},{"$f":"SUMPRODUCT((AC193<=AV$113:AV$367)*(AD193>=AV$113:AV$367))","v":{"$error":"#VALUE!"}},null,"2024-05-20","2024-05-20","Pfingstmontag",2024]
[null,null,null,null,null,null,null,null,null,null,null,null,null,null,null,null,null,null,null,null,null,null,null,null,null,null,null,"",{"$error":"#VALUE!"},{"$error":"#VALUE!"},{"$error":"#VALUE!"},{"$error":"#VALUE!"},null,null,null,null,null,null,null,null,null,null,null,null,{"$error":"#VALUE!"},{"$f":"SUMPRODUCT((AC194<=AV$113:AV$367)*(AD194>=AV$113:AV$367))","v":{"$error":"#VALUE!"}},null,"2024-05-30","2024-05-30","Fronleichnam",2024]
[null,null,null,null,null,null,null,null,null,null,null,null,null,null,null,null,null,null,null,null,null,null,null,null,null,null,null,"",{"$error":"#VALUE!"},{"$error":"#VALUE!"},{"$error":"#VALUE!"},{"$error":"#VALUE!"},null,null,null,null,null,null,null,null,null,null,null,null,{"$error":"#VALUE!"},{"$f":"SUMPRODUCT((AC195<=AV$113:AV$367)*(AD195>=AV$113:AV$367))","v":{"$error":"#VALUE!"}},null,"2024-08-15","2024-08-15","Maria Himmelfahrt",2024]
[null,null,null,null,null,null,null,null,null,null,null,null,null,null,null,null,null,null,null,null,null,null,null,null,null,null,null,"",{"$error":"#VALUE!"},{"$error":"#VALUE!"},{"$error":"#VALUE!"},{"$error":"#VALUE!"},null,null,null,null,null,null,null,null,null,null,null,null,{"$error":"#VALUE!"},{"$f":"SUMPRODUCT((AC196<=AV$113:AV$367)*(AD196>=AV$113:AV$367))","v":{"$error":"#VALUE!"}},null,"2024-10-26","2024-10-26","Nationalfeiertag",2024]
[null,null,null,null,null,null,null,null,null,null,null,null,null,null,null,null,null,null,null,null,null,null,null,null,null,null,null,"",{"$error":"#VALUE!"},{"$error":"#VALUE!"},{"$error":"#VALUE!"},{"$error":"#VALUE!"},null,null,null,null,null,null,null,null,null,null,null,null,{"$error":"#VALUE!"},{"$f":"SUMPRODUCT((AC197<=AV$113:AV$367)*(AD197>=AV$113:AV$367))","v":{"$error":"#VALUE!"}},null,"2024-11-01","2024-11-01","Allerheiligen",2024]
[null,null,null,null,null,null,null,null,null,null,null,null,null,null,null,null,null,null,null,null,null,null,null,null,null,null,null,"",{"$error":"#VALUE!"},{"$error":"#VALUE!"},{"$error":"#VALUE!"},{"$error":"#VALUE!"},null,null,null,null,null,null,null,null,null,null,null,null,{"$error":"#VALUE!"},{"$f":"SUMPRODUCT((AC198<=AV$113:AV$367)*(AD198>=AV$113:AV$367))","v":{"$error":"#VALUE!"}},null,"-","2024-12-08","Maria Empfängnis",2024]
[null,null,null,null,null,null,null,null,null,null,null,null,null,null,null,null,null,null,null,null,null,null,null,null,null,null,null,"",{"$error":"#VALUE!"},{"$error":"#VALUE!"},{"$error":"#VALUE!"},{"$error":"#VALUE!"},null,null,null,null,null,null,null,null,null,null,null,null,{"$error":"#VALUE!"},{"$f":"SUMPRODUCT((AC199<=AV$113:AV$367)*(AD199>=AV$113:AV$367))","v":{"$error":"#VALUE!"}},null,"2024-12-24","2024-12-24","unterrichtsfrei",2024]
[null,null,null,null,null,null,null,null,null,null,null,null,null,null,null,null,null,null,null,null,null,null,null,null,null,null,null,"",{"$error":"#VALUE!"},{"$error":"#VALUE!"},{"$error":"#VALUE!"},{"$error":"#VALUE!"},null,null,null,null,null,null,null,null,null,null,null,null,{"$error":"#VALUE!"},{"$f":"SUMPRODUCT((AC200<=AV$113:AV$367)*(AD200>=AV$113:AV$367))","v":{"$error":"#VALUE!"}},null,"2024-12-25","2024-12-25","Christtag",2024]
[null,null,null,null,null,null,null,null,null,null,null,null,null,null,null,null,null,null,null,null,null,null,null,null,null,null,null,"",{"$error":"#VALUE!"},{"$error":"#VALUE!"},{"$error":"#VALUE!"},{"$error":"#VALUE!"},null,null,null,null,null,null,null,null,null,null,null,null,{"$error":"#VALUE!"},{"$f":"SUMPRODUCT((AC201<=AV$113:AV$367)*(AD201>=AV$113:AV$367))","v":{"$error":"#VALUE!"}},null,"2024-12-26","2024-12-26","Stephanstag",2024]
[null,null,null,null,null,null,null,null,null,null,null,null,null,null,null,null,null,null,null,null,null,null,null,null,null,null,null,"",{"$error":"#VALUE!"},{"$error":"#VALUE!"},{"$error":"#VALUE!"},{"$error":"#VALUE!"},null,null,null,null,null,null,null,null,null,null,null,null,{"$error":"#VALUE!"},{"$f":"SUMPRODUCT((AC202<=AV$113:AV$367)*(AD202>=AV$113:AV$367))","v":{"$error":"#VALUE!"}},null,"2024-12-31","2024-12-31","unterrichtsfrei",2024]
[null,null,null,null,null,null,null,null,null,null,null,null,null,null,null,null,null,null,null,null,null,null,null,null,null,null,null,"",{"$error":"#VALUE!"},{"$error":"#VALUE!"},{"$error":"#VALUE!"},{"$error":"#VALUE!"},null,null,null,null,null,null,null,null,null,null,null,null,{"$error":"#VALUE!"},{"$f":"SUMPRODUCT((AC203<=AV$113:AV$367)*(AD203>=AV$113:AV$367))","v":{"$error":"#VALUE!"}},null,"2025-01-01","2025-01-01","Neujahrstag",2025]
[null,null,null,null,null,null,null,null,null,null,null,null,null,null,null,null,null,null,null,null,null,null,null,null,null,null,null,"",{"$error":"#VALUE!"},{"$error":"#VALUE!"},{"$error":"#VALUE!"},{"$error":"#VALUE!"},null,null,null,null,null,null,null,null,null,null,null,null,{"$error":"#VALUE!"},{"$f":"SUMPRODUCT((AC204<=AV$113:AV$367)*(AD204>=AV$113:AV$367))","v":{"$error":"#VALUE!"}},null,"2025-01-06","2025-01-06","Heilige Drei Könige",2025]
[null,null,null,null,null,null,null,null,null,null,null,null,null,null,null,null,null,null,null,null,null,null,null,null,null,null,null,"",{"$error":"#VALUE!"},{"$error":"#VALUE!"},{"$error":"#VALUE!"},{"$error":"#VALUE!"},null,null,null,null,null,null,null,null,null,null,null,null,{"$error":"#VALUE!"},{"$f":"SUMPRODUCT((AC205<=AV$113:AV$367)*(AD205>=AV$113:AV$367))","v":{"$error":"#VALUE!"}},null,"2025-04-21","2025-04-21","Ostermontag",2025]
[null,null,null,null,null,null,null,null,null,null,null,null,null,null,null,null,null,null,null,null,null,null,null,null,null,null,null,"",{"$error":"#VALUE!"},{"$error":"#VALUE!"},{"$error":"#VALUE!"},{"$error":"#VALUE!"},null,null,null,null,null,null,null,null,null,null,null,null,{"$error":"#VALUE!"},{"$f":"SUMPRODUCT((AC206<=AV$113:AV$367)*(AD206>=AV$113:AV$367))","v":{"$error":"#VALUE!"}},null,"2025-05-01","2025-05-01","Staatsfeiertag",2025]
[null,null,null,null,null,null,null,null,null,null,null,null,null,null,null,null,null,null,null,null,null,null,null,null,null,null,null,"",{"$error":"#VALUE!"},{"$error":"#VALUE!"},{"$error":"#VALUE!"},{"$error":"#VALUE!"},null,null,null,null,null,null,null,null,null,null,null,null,{"$error":"#VALUE!"},{"$f":"SUMPRODUCT((AC207<=AV$113:AV$367)*(AD207>=AV$113:AV$367))","v":{"$error":"#VALUE!"}},null,"2025-05-29","2025-05-29","Christi Himmelfahrt",2025]
[null,null,null,null,null,null,null,null,null,null,null,null,null,null,null,null,null,null,null,null,null,null,null,null,null,null,null,"",{"$error":"#VALUE!"},{"$error":"#VALUE!"},{"$error":"#VALUE!"},{"$error":"#VALUE!"},null,null,null,null,null,null,null,null,null,null,null,null,{"$error":"#VALUE!"},{"$f":"SUMPRODUCT((AC208<=AV$113:AV$367)*(AD208>=AV$113:AV$367))","v":{"$error":"#VALUE!"}},null,"2025-06-09","2025-06-09","Pfingstmontag",2025]
[null,null,null,null,null,null,null,null,null,null,null,null,null,null,null,null,null,null,null,null,null,null,null,null,null,null,null,"",{"$error":"#VALUE!"},{"$error":"#VALUE!"},{"$error":"#VALUE!"},{"$error":"#VALUE!"},null,null,null,null,null,null,null,null,null,null,null,null,{"$error":"#VALUE!"},{"$f":"SUMPRODUCT((AC209<=AV$113:AV$367)*(AD209>=AV$113:AV$367))","v":{"$error":"#VALUE!"}},null,"2025-06-19","2025-06-19","Fronleichnam",2025]
[null,null,null,null,null,null,null,null,null,null,null,null,null,null,null,null,null,null,null,null,null,null,null,null,null,null,null,"",{"$error":"#VALUE!"},{"$error":"#VALUE!"},{"$f":"AT210","v":{"$error":"#VALUE!"}},{"$error":"#VALUE!"},null,null,null,null,null,null,null,null,null,null,null,null,{"$error":"#VALUE!"},{"$f":"SUMPRODUCT((AC210<=AV$113:AV$367)*(AD210>=AV$113:AV$367))","v":{"$error":"#VALUE!"}},null,"2025-08-15","2025-08-15","Maria Himmelfahrt",2025]
[null,null,null,null,null,null,null,null,null,null,null,null,null,null,null,null,null,null,null,null,null,null,null,null,null,null,null,"",{"$error":"#VALUE!"},{"$error":"#VALUE!"},{"$error":"#VALUE!"},{"$error":"#VALUE!"},null,null,null,null,null,null,null,null,null,null,null,null,{"$error":"#VALUE!"},{"$f":"SUMPRODUCT((AC211<=AV$113:AV$367)*(AD211>=AV$113:AV$367))","v":{"$error":"#VALUE!"}},null,"-","2025-10-26","Nationalfeiertag",2025]
[null,null,null,null,null,null,null,null,null,null,null,null,null,null,null,null,null,null,null,null,null,null,null,null,null,null,null,"",{"$error":"#VALUE!"},{"$error":"#VALUE!"},{"$error":"#VALUE!"},{"$error":"#VALUE!"},null,null,null,null,null,null,null,null,null,null,null,null,{"$error":"#VALUE!"},{"$f":"SUMPRODUCT((AC212<=AV$113:AV$367)*(AD212>=AV$113:AV$367))","v":{"$error":"#VALUE!"}},null,"2025-11-01","2025-11-01","Allerheiligen",2025]
[null,null,null,null,null,null,null,null,null,null,null,null,null,null,null,null,null,null,null,null,null,null,null,null,null,null,null,"",{"$error":"#VALUE!"},{"$error":"#VALUE!"},{"$error":"#VALUE!"},{"$error":"#VALUE!"},null,null,null,null,null,null,null,null,null,null,null,null,{"$error":"#VALUE!"},{"$f":"SUMPRODUCT((AC213<=AV$113:AV$367)*(AD213>=AV$113:AV$367))","v":{"$error":"#VALUE!"}},null,"2025-12-08","2025-12-08","Maria Empfängnis",2025]
[null,null,null,null,null,null,null,null,null,null,null,null,null,null,null,null,null,null,null,null,null,null,null,null,null,null,null,"",{"$error":"#VALUE!"},{"$error":"#VALUE!"},{"$error":"#VALUE!"},{"$error":"#VALUE!"},null,null,null,null,null,null,null,null,null,null,null,null,{"$error":"#VALUE!"},{"$f":"SUMPRODUCT((AC214<=AV$113:AV$367)*(AD214>=AV$113:AV$367))","v":{"$error":"#VALUE!"}},null,"2025-12-24","2025-12-24","unterrichtsfrei",2025]
[null,null,null,null,null,null,null,null,null,null,null,null,null,null,null,null,null,null,null,null,null,null,null,null,null,null,null,"",{"$error":"#VALUE!"},{"$error":"#VALUE!"},{"$error":"#VALUE!"},{"$error":"#VALUE!"},null,null,null,null,null,null,null,null,null,null,null,null,{"$error":"#VALUE!"},{"$f":"SUMPRODUCT((AC215<=AV$113:AV$367)*(AD215>=AV$113:AV$367))","v":{"$error":"#VALUE!"}},null,"2025-12-25","2025-12-25","Christtag",2025]
[null,null,null,null,null,null,null,null,null,null,null,null,null,null,null,null,null,null,null,null,null,null,null,null,null,null,null,"",{"$error":"#VALUE!"},{"$error":"#VALUE!"},{"$error":"#VALUE!"},{"$error":"#VALUE!"},null,null,null,null,null,null,null,null,null,null,null,null,{"$error":"#VALUE!"},{"$f":"SUMPRODUCT((AC216<=AV$113:AV$367)*(AD216>=AV$113:AV$367))","v":{"$error":"#VALUE!"}},null,"2025-12-26","2025-12-26","Stephanstag",2025]
[null,null,null,null,null,null,null,null,null,null,null,null,null,null,null,null,null,null,null,null,null,null,null,null,null,null,null,"",{"$error":"#VALUE!"},{"$error":"#VALUE!"},{"$error":"#VALUE!"},{"$error":"#VALUE!"},null,null,null,null,null,null,null,null,null,null,null,null,{"$error":"#VALUE!"},{"$f":"SUMPRODUCT((AC217<=AV$113:AV$367)*(AD217>=AV$113:AV$367))","v":{"$error":"#VALUE!"}},null,"2025-12-31","2025-12-31","unterrichtsfrei",2025]
[null,null,null,null,null,null,null,null,null,null,null,null,null,null,null,null,null,null,null,null,null,null,null,null,null,null,null,"",{"$error":"#VALUE!"},{"$error":"#VALUE!"},{"$error":"#VALUE!"},{"$error":"#VALUE!"},null,null,null,null,null,null,null,null,null,null,null,null,{"$error":"#VALUE!"},{"$f":"SUMPRODUCT((AC218<=AV$113:AV$367)*(AD218>=AV$113:AV$367))","v":{"$error":"#VALUE!"}},null,"2026-01-01","2026-01-01","Neujahr",2026]
[null,null,null,null,null,null,null,null,null,null,null,null,null,null,null,null,null,null,null,null,null,null,null,null,null,null,null,"",{"$error":"#VALUE!"},{"$error":"#VALUE!"},{"$error":"#VALUE!"},{"$error":"#VALUE!"},null,null,null,null,null,null,null,null,null,null,null,null,{"$error":"#VALUE!"},{"$f":"SUMPRODUCT((AC219<=AV$113:AV$367)*(AD219>=AV$113:AV$367))","v":{"$error":"#VALUE!"}},null,"2026-01-06","2026-01-06","Heilige Drei Könige",2026]
[null,null,null,null,null,null,null,null,null,null,null,null,null,null,null,null,null,null,null,null,null,null,null,null,null,null,null,"",{"$error":"#VALUE!"},{"$error":"#VALUE!"},{"$error":"#VALUE!"},{"$error":"#VALUE!"},null,null,null,null,null,null,null,null,null,null,null,null,{"$error":"#VALUE!"},{"$f":"SUMPRODUCT((AC220<=AV$113:AV$367)*(AD220>=AV$113:AV$367))","v":{"$error":"#VALUE!"}},null,"2026-04-06","2026-04-06","Ostermontag",2026]
[null,null,null,null,null,null,null,null,null,null,null,null,null,null,null,null,null,null,null,null,null,null,null,null,null,null,null,"",{"$error":"#VALUE!"},{"$error":"#VALUE!"},{"$error":"#VALUE!"},{"$error":"#VALUE!"},null,null,null,null,null,null,null,null,null,null,null,null,{"$error":"#VALUE!"},{"$f":"SUMPRODUCT((AC221<=AV$113:AV$367)*(AD221>=AV$113:AV$367))","v":{"$error":"#VALUE!"}},null,"2026-05-01","2026-05-01","Staatsfeiertag",2026]
[null,null,null,null,null,null,null,null,null,null,null,null,null,null,null,null,null,null,null,null,null,null,null,null,null,null,null,"",{"$error":"#VALUE!"},{"$error":"#VALUE!"},{"$error":"#VALUE!"},{"$error":"#VALUE!"},null,null,null,null,null,null,null,null,null,null,null,null,{"$error":"#VALUE!"},{"$f":"SUMPRODUCT((AC222<=AV$113:AV$367)*(AD222>=AV$113:AV$367))","v":{"$error":"#VALUE!"}},null,"2026-05-14","2026-05-14","Christi Himmelfahrt",2026]
[null,null,null,null,null,null,null,null,null,null,null,null,null,null,null,null,null,null,null,null,null,null,null,null,null,null,null,"",{"$error":"#VALUE!"},{"$error":"#VALUE!"},{"$error":"#VALUE!"},{"$error":"#VALUE!"},null,null,null,null,null,null,null,null,null,null,null,null,{"$error":"#VALUE!"},{"$f":"SUMPRODUCT((AC223<=AV$113:AV$367)*(AD223>=AV$113:AV$367))","v":{"$error":"#VALUE!"}},null,"2026-05-25","2026-05-25","Pfingstmontag",2026]
[null,null,null,null,null,null,null,null,null,null,null,null,null,null,null,null,null,null,null,null,null,null,null,null,null,null,null,"",{"$error":"#VALUE!"},{"$error":"#VALUE!"},{"$error":"#VALUE!"},{"$error":"#VALUE!"},null,null,null,null,null,null,null,null,null,null,null,null,{"$error":"#VALUE!"},{"$f":"SUMPRODUCT((AC224<=AV$113:AV$367)*(AD224>=AV$113:AV$367))","v":{"$error":"#VALUE!"}},null,"2026-06-04","2026-06-04","Fronleichnam",2026]
[null,null,null,null,null,null,null,null,null,null,null,null,null,null,null,null,null,null,null,null,null,null,null,null,null,null,null,"",{"$error":"#VALUE!"},{"$error":"#VALUE!"},{"$error":"#VALUE!"},{"$error":"#VALUE!"},null,null,null,null,null,null,null,null,null,null,null,null,{"$error":"#VALUE!"},{"$f":"SUMPRODUCT((AC225<=AV$113:AV$367)*(AD225>=AV$113:AV$367))","v":{"$error":"#VALUE!"}},null,"2026-08-15","2026-08-15","Mariä Himmelfahrt",2026]
[null,null,null,null,null,null,null,null,null,null,null,null,null,null,null,null,null,null,null,null,null,null,null,null,null,null,null,"",{"$error":"#VALUE!"},{"$error":"#VALUE!"},{"$error":"#VALUE!"},{"$error":"#VALUE!"},null,null,null,null,null,null,null,null,null,null,null,null,{"$error":"#VALUE!"},{"$f":"SUMPRODUCT((AC226<=AV$113:AV$367)*(AD226>=AV$113:AV$367))","v":{"$error":"#VALUE!"}},null,"2026-10-26","2026-10-26","Nationalfeiertag",2026]
[null,null,null,null,null,null,null,null,null,null,null,null,null,null,null,null,null,null,null,null,null,null,null,null,null,null,null,"",{"$error":"#VALUE!"},{"$error":"#VALUE!"},{"$error":"#VALUE!"},{"$error":"#VALUE!"},null,null,null,null,null,null,null,null,null,null,null,null,{"$error":"#VALUE!"},{"$f":"SUMPRODUCT((AC227<=AV$113:AV$367)*(AD227>=AV$113:AV$367))","v":{"$error":"#VALUE!"}},null,"-","2026-11-01","Allerheiligen",2026]
[null,null,null,null,null,null,null,null,null,null,null,null,null,null,null,null,null,null,null,null,null,null,null,null,null,null,null,"",{"$error":"#VALUE!"},{"$error":"#VALUE!"},{"$error":"#VALUE!"},{"$error":"#VALUE!"},null,null,null,null,null,null,null,null,null,null,null,null,{"$error":"#VALUE!"},{"$f":"SUMPRODUCT((AC228<=AV$113:AV$367)*(AD228>=AV$113:AV$367))","v":{"$error":"#VALUE!"}},null,"2026-12-08","2026-12-08","Mariä Empfängnis",2026]
[null,null,null,null,null,null,null,null,null,null,null,null,null,null,null,null,null,null,null,null,null,null,null,null,null,null,null,"",{"$error":"#VALUE!"},{"$error":"#VALUE!"},{"$error":"#VALUE!"},{"$error":"#VALUE!"},null,null,null,null,null,null,null,null,null,null,null,null,{"$error":"#VALUE!"},{"$f":"SUMPRODUCT((AC229<=AV$113:AV$367)*(AD229>=AV$113:AV$367))","v":{"$error":"#VALUE!"}},null,"2026-12-24","2026-12-24","Heiligabend",2026]
[null,null,null,null,null,null,null,null,null,null,null,null,null,null,null,null,null,null,null,null,null,null,null,null,null,null,null,"",{"$error":"#VALUE!"},{"$error":"#VALUE!"},{"$error":"#VALUE!"},{"$error":"#VALUE!"},null,null,null,null,null,null,null,null,null,null,null,null,{"$error":"#VALUE!"},{"$f":"SUMPRODUCT((AC230<=AV$113:AV$367)*(AD230>=AV$113:AV$367))","v":{"$error":"#VALUE!"}},null,"2026-12-25","2026-12-25","Christtag",2026]
[null,null,null,null,null,null,null,null,null,null,null,null,null,null,null,null,null,null,null,null,null,null,null,null,null,null,null,"",{"$error":"#VALUE!"},{"$error":"#VALUE!"},{"$error":"#VALUE!"},{"$error":"#VALUE!"},null,null,null,null,null,null,null,null,null,null,null,null,{"$error":"#VALUE!"},{"$f":"SUMPRODUCT((AC231<=AV$113:AV$367)*(AD231>=AV$113:AV$367))","v":{"$error":"#VALUE!"}},null,"2026-12-26","2026-12-26","Stefanitag",2026]
[null,null,null,null,null,null,null,null,null,null,null,null,null,null,null,null,null,null,null,null,null,null,null,null,null,null,null,"",{"$error":"#VALUE!"},{"$error":"#VALUE!"},{"$error":"#VALUE!"},{"$error":"#VALUE!"},null,null,null,null,null,null,null,null,null,null,null,null,{"$error":"#VALUE!"},{"$f":"SUMPRODUCT((AC232<=AV$113:AV$367)*(AD232>=AV$113:AV$367))","v":{"$error":"#VALUE!"}},null,"2026-12-31","2026-12-31","Silvester",2026]
[null,null,null,null,null,null,null,null,null,null,null,null,null,null,null,null,null,null,null,null,null,null,null,null,null,null,null,"",{"$error":"#VALUE!"},{"$error":"#VALUE!"},{"$error":"#VALUE!"},{"$error":"#VALUE!"},null,null,null,null,null,null,null,null,null,null,null,null,{"$error":"#VALUE!"},{"$f":"SUMPRODUCT((AC233<=AV$113:AV$367)*(AD233>=AV$113:AV$367))","v":{"$error":"#VALUE!"}},null,"2027-01-01","2027-01-01","Neujahr",2027]
[null,null,null,null,null,null,null,null,null,null,null,null,null,null,null,null,null,null,null,null,null,null,null,null,null,null,null,"",{"$error":"#VALUE!"},{"$error":"#VALUE!"},{"$error":"#VALUE!"},{"$error":"#VALUE!"},null,null,null,null,null,null,null,null,null,null,null,null,{"$error":"#VALUE!"},{"$f":"SUMPRODUCT((AC234<=AV$113:AV$367)*(AD234>=AV$113:AV$367))","v":{"$error":"#VALUE!"}},null,"2027-01-06","2027-01-06","Heilige Drei Könige",2027]
[null,null,null,null,null,null,null,null,null,null,null,null,null,null,null,null,null,null,null,null,null,null,null,null,null,null,null,"",{"$error":"#VALUE!"},{"$error":"#VALUE!"},{"$error":"#VALUE!"},{"$error":"#VALUE!"},null,null,null,null,null,null,null,null,null,null,null,null,{"$error":"#VALUE!"},{"$f":"SUMPRODUCT((AC235<=AV$113:AV$367)*(AD235>=AV$113:AV$367))","v":{"$error":"#VALUE!"}},null,"2027-03-29","2027-03-29","Ostermontag",2027]
[null,null,null,null,null,null,null,null,null,null,null,null,null,null,null,null,null,null,null,null,null,null,null,null,null,null,null,"",{"$error":"#VALUE!"},{"$error":"#VALUE!"},{"$error":"#VALUE!"},{"$error":"#VALUE!"},null,null,null,null,null,null,null,null,null,null,null,null,{"$error":"#VALUE!"},{"$f":"SUMPRODUCT((AC236<=AV$113:AV$367)*(AD236>=AV$113:AV$367))","v":{"$error":"#VALUE!"}},null,"2027-05-01","2027-05-01","Staatsfeiertag",2027]
[null,null,null,null,null,null,null,null,null,null,null,null,null,null,null,null,null,null,null,null,null,null,null,null,null,null,null,"",{"$error":"#VALUE!"},{"$error":"#VALUE!"},{"$error":"#VALUE!"},{"$error":"#VALUE!"},null,null,null,null,null,null,null,null,null,null,null,null,{"$error":"#VALUE!"},{"$f":"SUMPRODUCT((AC237<=AV$113:AV$367)*(AD237>=AV$113:AV$367))","v":{"$error":"#VALUE!"}},null,"2027-05-06","2027-05-06","Christi Himmelfahrt",2027]
[null,null,null,null,null,null,null,null,null,null,null,null,null,null,null,null,null,null,null,null,null,null,null,null,null,null,null,"",{"$error":"#VALUE!"},{"$error":"#VALUE!"},{"$error":"#VALUE!"},{"$error":"#VALUE!"},null,null,null,null,null,null,null,null,null,null,null,null,{"$error":"#VALUE!"},{"$f":"SUMPRODUCT((AC238<=AV$113:AV$367)*(AD238>=AV$113:AV$367))","v":{"$error":"#VALUE!"}},null,"2027-05-17","2027-05-17","Pfingstmontag",2027]
[null,null,null,null,null,null,null,null,null,null,null,null,null,null,null,null,null,null,null,null,null,null,null,null,null,null,null,"",{"$error":"#VALUE!"},{"$error":"#VALUE!"},{"$error":"#VALUE!"},{"$error":"#VALUE!"},null,null,null,null,null,null,null,null,null,null,null,null,{"$error":"#VALUE!"},{"$f":"SUMPRODUCT((AC239<=AV$113:AV$367)*(AD239>=AV$113:AV$367))","v":{"$error":"#VALUE!"}},null,"2027-05-27","2027-05-27","Fronleichnam",2027]
[null,null,null,null,null,null,null,null,null,null,null,null,null,null,null,null,null,null,null,null,null,null,null,null,null,null,null,"",{"$error":"#VALUE!"},{"$error":"#VALUE!"},{"$error":"#VALUE!"},{"$error":"#VALUE!"},null,null,null,null,null,null,null,null,null,null,null,null,{"$error":"#VALUE!"},{"$f":"SUMPRODUCT((AC240<=AV$113:AV$367)*(AD240>=AV$113:AV$367))","v":{"$error":"#VALUE!"}},null,"-","2027-08-15","Mariä Himmelfahrt",2027]
[null,null,null,null,null,null,null,null,null,null,null,null,null,null,null,null,null,null,null,null,null,null,null,null,null,null,null,"",{"$error":"#VALUE!"},{"$f":"IF(AH$15=\"ja\",7-WEEKDAY(AC241,2)+AC241,MIN(AC241+7-WEEKDAY(AC241,2),AH$103))","v":{"$error":"#VALUE!"}},{"$error":"#VALUE!"},{"$error":"#VALUE!"},null,null,null,null,null,null,null,null,null,null,null,null,{"$error":"#VALUE!"},{"$f":"SUMPRODUCT((AC241<=AV$113:AV$367)*(AD241>=AV$113:AV$367))","v":{"$error":"#VALUE!"}},null,"2027-10-26","2027-10-26","Nationalfeiertag",2027]
[null,null,null,null,null,null,null,null,null,null,null,null,null,null,null,null,null,null,null,null,null,null,null,null,null,null,null,{"$f":"IF(ISERROR(IF(AC242<>\"\",AB241+1,0)),\"\",IF(AC242<>\"\",AB241+1,0))","v":""},{"$error":"#VALUE!"},{"$error":"#VALUE!"},{"$f":"AT242","v":{"$error":"#VALUE!"}},{"$f":"MAX(AS242-AE242,0)","v":{"$error":"#VALUE!"}},null,null,null,null,null,null,null,null,null,null,null,null,{"$f":"AD242-AC242+IF(WEEKDAY(AD242)<>1,1,0)-IF(AND(WEEKDAY(AD242,2)>=6,AD$105=\"nein\"),1,0)","v":{"$error":"#VALUE!"}},{"$f":"SUMPRODUCT((AC242<=AV$113:AV$367)*(AD242>=AV$113:AV$367))","v":{"$error":"#VALUE!"}},null,{"$f":"IF(AD$105=\"ja\",IF(WEEKDAY(AW242)=1,\"-\",AW242),IF(OR(WEEKDAY(AW242)=1,WEEKDAY(AW242)=7),\"-\",AW242))","v":"2027-11-01"},"2027-11-01","Allerheiligen",{"$f":"YEAR(AW242)","v":2027}]
[null,null,null,null,null,null,null,null,null,null,null,null,null,null,null,null,null,null,null,null,null,null,null,null,null,null,null,"",{"$f":"IF(AD242>=AH$103,\"\",AC242+7)","v":{"$error":"#VALUE!"}},{"$error":"#VALUE!"},{"$error":"#VALUE!"},{"$error":"#VALUE!"},null,null,null,null,null,null,null,null,null,null,null,null,{"$error":"#VALUE!"},{"$f":"SUMPRODUCT((AC243<=AV$113:AV$367)*(AD243>=AV$113:AV$367))","v":{"$error":"#VALUE!"}},null,"2027-12-08","2027-12-08","Mariä Empfängnis",2027]
[null,null,null,null,null,null,null,null,null,null,null,null,null,null,null,null,null,null,null,null,null,null,null,null,null,null,null,"",{"$error":"#VALUE!"},{"$error":"#VALUE!"},{"$error":"#VALUE!"},{"$error":"#VALUE!"},null,null,null,null,null,null,null,null,null,null,null,null,{"$error":"#VALUE!"},{"$f":"SUMPRODUCT((AC244<=AV$113:AV$367)*(AD244>=AV$113:AV$367))","v":{"$error":"#VALUE!"}},null,"2027-12-24","2027-12-24","Heiligabend",2027]
[null,null,null,null,null,null,null,null,null,null,null,null,null,null,null,null,null,null,null,null,null,null,null,null,null,null,null,"",{"$error":"#VALUE!"},{"$error":"#VALUE!"},{"$error":"#VALUE!"},{"$error":"#VALUE!"},null,null,null,null,null,null,null,null,null,null,null,null,{"$error":"#VALUE!"},{"$f":"SUMPRODUCT((AC245<=AV$113:AV$367)*(AD245>=AV$113:AV$367))","v":{"$error":"#VALUE!"}},null,"2027-12-25","2027-12-25","Christtag",2027]
[null,null,null,null,null,null,null,null,null,null,null,null,null,null,null,null,null,null,null,null,null,null,null,null,null,null,null,"",{"$error":"#VALUE!"},{"$error":"#VALUE!"},{"$error":"#VALUE!"},{"$error":"#VALUE!"},null,null,null,null,null,null,null,null,null,null,null,null,{"$error":"#VALUE!"},{"$f":"SUMPRODUCT((AC246<=AV$113:AV$367)*(AD246>=AV$113:AV$367))","v":{"$error":"#VALUE!"}},null,"-","2027-12-26","Stefanitag",2027]
[null,null,null,null,null,null,null,null,null,null,null,null,null,null,null,null,null,null,null,null,null,null,null,null,null,null,null,"",{"$error":"#VALUE!"},{"$error":"#VALUE!"},{"$error":"#VALUE!"},{"$error":"#VALUE!"},null,null,null,null,null,null,null,null,null,null,null,null,{"$error":"#VALUE!"},{"$f":"SUMPRODUCT((AC247<=AV$113:AV$367)*(AD247>=AV$113:AV$367))","v":{"$error":"#VALUE!"}},null,"2027-12-31","2027-12-31","Silvester",2027]
[null,null,null,null,null,null,null,null,null,null,null,null,null,null,null,null,null,null,null,null,null,null,null,null,null,null,null,"",{"$error":"#VALUE!"},{"$error":"#VALUE!"},{"$error":"#VALUE!"},{"$error":"#VALUE!"},null,null,null,null,null,null,null,null,null,null,null,null,{"$error":"#VALUE!"},{"$f":"SUMPRODUCT((AC248<=AV$113:AV$367)*(AD248>=AV$113:AV$367))","v":{"$error":"#VALUE!"}},null,"2028-01-01","2028-01-01","Neujahr",2028]
[null,null,null,null,null,null,null,null,null,null,null,null,null,null,null,null,null,null,null,null,null,null,null,null,null,null,null,"",{"$error":"#VALUE!"},{"$error":"#VALUE!"},{"$error":"#VALUE!"},{"$error":"#VALUE!"},null,null,null,null,null,null,null,null,null,null,null,null,{"$error":"#VALUE!"},{"$f":"SUMPRODUCT((AC249<=AV$113:AV$367)*(AD249>=AV$113:AV$367))","v":{"$error":"#VALUE!"}},null,"2028-01-06","2028-01-06","Heilige Drei Könige",2028]
[null,null,null,null,null,null,null,null,null,null,null,null,null,null,null,null,null,null,null,null,null,null,null,null,null,null,null,"",{"$error":"#VALUE!"},{"$error":"#VALUE!"},{"$error":"#VALUE!"},{"$error":"#VALUE!"},null,null,null,null,null,null,null,null,null,null,null,null,{"$error":"#VALUE!"},{"$f":"SUMPRODUCT((AC250<=AV$113:AV$367)*(AD250>=AV$113:AV$367))","v":{"$error":"#VALUE!"}},null,"2028-04-17","2028-04-17","Ostermontag",2028]
[null,null,null,null,null,null,null,null,null,null,null,null,null,null,null,null,null,null,null,null,null,null,null,null,null,null,null,"",{"$error":"#VALUE!"},{"$error":"#VALUE!"},{"$error":"#VALUE!"},{"$error":"#VALUE!"},null,null,null,null,null,null,null,null,null,null,null,null,{"$error":"#VALUE!"},{"$f":"SUMPRODUCT((AC251<=AV$113:AV$367)*(AD251>=AV$113:AV$367))","v":{"$error":"#VALUE!"}},null,"2028-05-01","2028-05-01","Staatsfeiertag",2028]
[null,null,null,null,null,null,null,null,null,null,null,null,null,null,null,null,null,null,null,null,null,null,null,null,null,null,null,"",{"$error":"#VALUE!"},{"$error":"#VALUE!"},{"$error":"#VALUE!"},{"$error":"#VALUE!"},null,null,null,null,null,null,null,null,null,null,null,null,{"$error":"#VALUE!"},{"$f":"SUMPRODUCT((AC252<=AV$113:AV$367)*(AD252>=AV$113:AV$367))","v":{"$error":"#VALUE!"}},null,"2028-05-25","2028-05-25","Christi Himmelfahrt",2028]
[null,null,null,null,null,null,null,null,null,null,null,null,null,null,null,null,null,null,null,null,null,null,null,null,null,null,null,"",{"$error":"#VALUE!"},{"$error":"#VALUE!"},{"$error":"#VALUE!"},{"$error":"#VALUE!"},null,null,null,null,null,null,null,null,null,null,null,null,{"$error":"#VALUE!"},{"$f":"SUMPRODUCT((AC253<=AV$113:AV$367)*(AD253>=AV$113:AV$367))","v":{"$error":"#VALUE!"}},null,"2028-06-05","2028-06-05","Pfingstmontag",2028]
[null,null,null,null,null,null,null,null,null,null,null,null,null,null,null,null,null,null,null,null,null,null,null,null,null,null,null,"",{"$error":"#VALUE!"},{"$error":"#VALUE!"},{"$error":"#VALUE!"},{"$error":"#VALUE!"},null,null,null,null,null,null,null,null,null,null,null,null,{"$error":"#VALUE!"},{"$f":"SUMPRODUCT((AC254<=AV$113:AV$367)*(AD254>=AV$113:AV$367))","v":{"$error":"#VALUE!"}},null,"2028-06-15","2028-06-15","Fronleichnam",2028]
[null,null,null,null,null,null,null,null,null,null,null,null,null,null,null,null,null,null,null,null,null,null,null,null,null,null,null,"",{"$error":"#VALUE!"},{"$error":"#VALUE!"},{"$error":"#VALUE!"},{"$error":"#VALUE!"},null,null,null,null,null,null,null,null,null,null,null,null,{"$error":"#VALUE!"},{"$f":"SUMPRODUCT((AC255<=AV$113:AV$367)*(AD255>=AV$113:AV$367))","v":{"$error":"#VALUE!"}},null,"2028-08-15","2028-08-15","Mariä Himmelfahrt",2028]
[null,null,null,null,null,null,null,null,null,null,null,null,null,null,null,null,null,null,null,null,null,null,null,null,null,null,null,"",{"$error":"#VALUE!"},{"$error":"#VALUE!"},{"$error":"#VALUE!"},{"$error":"#VALUE!"},null,null,null,null,null,null,null,null,null,null,null,null,{"$error":"#VALUE!"},{"$f":"SUMPRODUCT((AC256<=AV$113:AV$367)*(AD256>=AV$113:AV$367))","v":{"$error":"#VALUE!"}},null,"2028-10-26","2028-10-26","Nationalfeiertag",2028]
[null,null,null,null,null,null,null,null,null,null,null,null,null,null,null,null,null,null,null,null,null,null,null,null,null,null,null,"",{"$error":"#VALUE!"},{"$error":"#VALUE!"},{"$error":"#VALUE!"},{"$error":"#VALUE!"},null,null,null,null,null,null,null,null,null,null,null,null,{"$error":"#VALUE!"},{"$f":"SUMPRODUCT((AC257<=AV$113:AV$367)*(AD257>=AV$113:AV$367))","v":{"$error":"#VALUE!"}},null,"2028-11-01","2028-11-01","Allerheiligen",2028]
[null,null,null,null,null,null,null,null,null,null,null,null,null,null,null,null,null,null,null,null,null,null,null,null,null,null,null,"",{"$error":"#VALUE!"},{"$error":"#VALUE!"},{"$error":"#VALUE!"},{"$error":"#VALUE!"},null,null,null,null,null,null,null,null,null,null,null,null,{"$error":"#VALUE!"},{"$f":"SUMPRODUCT((AC258<=AV$113:AV$367)*(AD258>=AV$113:AV$367))","v":{"$error":"#VALUE!"}},null,"2028-12-08","2028-12-08","Mariä Empfängnis",2028]
[null,null,null,null,null,null,null,null,null,null,null,null,null,null,null,null,null,null,null,null,null,null,null,null,null,null,null,"",{"$error":"#VALUE!"},{"$error":"#VALUE!"},{"$error":"#VALUE!"},{"$error":"#VALUE!"},null,null,null,null,null,null,null,null,null,null,null,null,{"$error":"#VALUE!"},{"$f":"SUMPRODUCT((AC259<=AV$113:AV$367)*(AD259>=AV$113:AV$367))","v":{"$error":"#VALUE!"}},null,"-","2028-12-24","Heiligabend",2028]
[null,null,null,null,null,null,null,null,null,null,null,null,null,null,null,null,null,null,null,null,null,null,null,null,null,null,null,"",{"$error":"#VALUE!"},{"$error":"#VALUE!"},{"$error":"#VALUE!"},{"$error":"#VALUE!"},null,null,null,null,null,null,null,null,null,null,null,null,{"$error":"#VALUE!"},{"$f":"SUMPRODUCT((AC260<=AV$113:AV$367)*(AD260>=AV$113:AV$367))","v":{"$error":"#VALUE!"}},null,"2028-12-25","2028-12-25","Christtag",2028]
[null,null,null,null,null,null,null,null,null,null,null,null,null,null,null,null,null,null,null,null,null,null,null,null,null,null,null,"",{"$error":"#VALUE!"},{"$error":"#VALUE!"},{"$error":"#VALUE!"},{"$error":"#VALUE!"},null,null,null,null,null,null,null,null,null,null,null,null,{"$error":"#VALUE!"},{"$f":"SUMPRODUCT((AC261<=AV$113:AV$367)*(AD261>=AV$113:AV$367))","v":{"$error":"#VALUE!"}},null,"2028-12-26","2028-12-26","Stefanitag",2028]
[null,null,null,null,null,null,null,null,null,null,null,null,null,null,null,null,null,null,null,null,null,null,null,null,null,null,null,"",{"$error":"#VALUE!"},{"$error":"#VALUE!"},{"$error":"#VALUE!"},{"$error":"#VALUE!"},null,null,null,null,null,null,null,null,null,null,null,null,{"$error":"#VALUE!"},{"$f":"SUMPRODUCT((AC262<=AV$113:AV$367)*(AD262>=AV$113:AV$367))","v":{"$error":"#VALUE!"}},null,"-","2028-12-31","Silvester",2028]
[null,null,null,null,null,null,null,null,null,null,null,null,null,null,null,null,null,null,null,null,null,null,null,null,null,null,null,"",{"$error":"#VALUE!"},{"$error":"#VALUE!"},{"$error":"#VALUE!"},{"$error":"#VALUE!"},null,null,null,null,null,null,null,null,null,null,null,null,{"$error":"#VALUE!"},{"$f":"SUMPRODUCT((AC263<=AV$113:AV$367)*(AD263>=AV$113:AV$367))","v":{"$error":"#VALUE!"}},null,"2029-01-01","2029-01-01","Neujahr",2029]
[null,null,null,null,null,null,null,null,null,null,null,null,null,null,null,null,null,null,null,null,null,null,null,null,null,null,null,"",{"$error":"#VALUE!"},{"$error":"#VALUE!"},{"$error":"#VALUE!"},{"$error":"#VALUE!"},null,null,null,null,null,null,null,null,null,null,null,null,{"$error":"#VALUE!"},{"$f":"SUMPRODUCT((AC264<=AV$113:AV$367)*(AD264>=AV$113:AV$367))","v":{"$error":"#VALUE!"}},null,"2029-01-06","2029-01-06","Heilige Drei Könige",2029]
[null,null,null,null,null,null,null,null,null,null,null,null,null,null,null,null,null,null,null,null,null,null,null,null,null,null,null,"",{"$error":"#VALUE!"},{"$error":"#VALUE!"},{"$error":"#VALUE!"},{"$error":"#VALUE!"},null,null,null,null,null,null,null,null,null,null,null,null,{"$error":"#VALUE!"},{"$f":"SUMPRODUCT((AC265<=AV$113:AV$367)*(AD265>=AV$113:AV$367))","v":{"$error":"#VALUE!"}},null,"2029-04-02","2029-04-02","Ostermontag",2029]
[null,null,null,null,null,null,null,null,null,null,null,null,null,null,null,null,null,null,null,null,null,null,null,null,null,null,null,"",{"$error":"#VALUE!"},{"$error":"#VALUE!"},{"$error":"#VALUE!"},{"$error":"#VALUE!"},null,null,null,null,null,null,null,null,null,null,null,null,{"$error":"#VALUE!"},{"$f":"SUMPRODUCT((AC266<=AV$113:AV$367)*(AD266>=AV$113:AV$367))","v":{"$error":"#VALUE!"}},null,"2029-05-01","2029-05-01","Staatsfeiertag",2029]
[null,null,null,null,null,null,null,null,null,null,null,null,null,null,null,null,null,null,null,null,null,null,null,null,null,null,null,"",{"$error":"#VALUE!"},{"$error":"#VALUE!"},{"$error":"#VALUE!"},{"$error":"#VALUE!"},null,null,null,null,null,null,null,null,null,null,null,null,{"$error":"#VALUE!"},{"$f":"SUMPRODUCT((AC267<=AV$113:AV$367)*(AD267>=AV$113:AV$367))","v":{"$error":"#VALUE!"}},null,"2029-05-10","2029-05-10","Christi Himmelfahrt",2029]
[null,null,null,null,null,null,null,null,null,null,null,null,null,null,null,null,null,null,null,null,null,null,null,null,null,null,null,"",{"$error":"#VALUE!"},{"$error":"#VALUE!"},{"$error":"#VALUE!"},{"$error":"#VALUE!"},null,null,null,null,null,null,null,null,null,null,null,null,{"$error":"#VALUE!"},{"$f":"SUMPRODUCT((AC268<=AV$113:AV$367)*(AD268>=AV$113:AV$367))","v":{"$error":"#VALUE!"}},null,"2029-05-21","2029-05-21","Pfingstmontag",2029]
[null,null,null,null,null,null,null,null,null,null,null,null,null,null,null,null,null,null,null,null,null,null,null,null,null,null,null,"",{"$error":"#VALUE!"},{"$error":"#VALUE!"},{"$error":"#VALUE!"},{"$error":"#VALUE!"},null,null,null,null,null,null,null,null,null,null,null,null,{"$error":"#VALUE!"},{"$f":"SUMPRODUCT((AC269<=AV$113:AV$367)*(AD269>=AV$113:AV$367))","v":{"$error":"#VALUE!"}},null,"2029-05-31","2029-05-31","Fronleichnam",2029]
[null,null,null,null,null,null,null,null,null,null,null,null,null,null,null,null,null,null,null,null,null,null,null,null,null,null,null,"",{"$error":"#VALUE!"},{"$error":"#VALUE!"},{"$error":"#VALUE!"},{"$error":"#VALUE!"},null,null,null,null,null,null,null,null,null,null,null,null,{"$error":"#VALUE!"},{"$f":"SUMPRODUCT((AC270<=AV$113:AV$367)*(AD270>=AV$113:AV$367))","v":{"$error":"#VALUE!"}},null,"2029-08-15","2029-08-15","Mariä Himmelfahrt",2029]
[null,null,null,null,null,null,null,null,null,null,null,null,null,null,null,null,null,null,null,null,null,null,null,null,null,null,null,"",{"$error":"#VALUE!"},{"$error":"#VALUE!"},{"$error":"#VALUE!"},{"$error":"#VALUE!"},null,null,null,null,null,null,null,null,null,null,null,null,{"$error":"#VALUE!"},{"$f":"SUMPRODUCT((AC271<=AV$113:AV$367)*(AD271>=AV$113:AV$367))","v":{"$error":"#VALUE!"}},null,"2029-10-26","2029-10-26","Nationalfeiertag",2029]
[null,null,null,null,null,null,null,null,null,null,null,null,null,null,null,null,null,null,null,null,null,null,null,null,null,null,null,"",{"$error":"#VALUE!"},{"$error":"#VALUE!"},{"$error":"#VALUE!"},{"$error":"#VALUE!"},null,null,null,null,null,null,null,null,null,null,null,null,{"$error":"#VALUE!"},{"$f":"SUMPRODUCT((AC272<=AV$113:AV$367)*(AD272>=AV$113:AV$367))","v":{"$error":"#VALUE!"}},null,"2029-11-01","2029-11-01","Allerheiligen",2029]
[null,null,null,null,null,null,null,null,null,null,null,null,null,null,null,null,null,null,null,null,null,null,null,null,null,null,null,"",{"$error":"#VALUE!"},{"$error":"#VALUE!"},{"$error":"#VALUE!"},{"$error":"#VALUE!"},null,null,null,null,null,null,null,null,null,null,null,null,{"$error":"#VALUE!"},{"$f":"SUMPRODUCT((AC273<=AV$113:AV$367)*(AD273>=AV$113:AV$367))","v":{"$error":"#VALUE!"}},null,"2029-12-08","2029-12-08","Mariä Empfängnis",2029]
[null,null,null,null,null,null,null,null,null,null,null,null,null,null,null,null,null,null,null,null,null,null,null,null,null,null,null,"",{"$error":"#VALUE!"},{"$error":"#VALUE!"},{"$f":"AT274","v":{"$error":"#VALUE!"}},{"$error":"#VALUE!"},null,null,null,null,null,null,null,null,null,null,null,null,{"$error":"#VALUE!"},{"$f":"SUMPRODUCT((AC274<=AV$113:AV$367)*(AD274>=AV$113:AV$367))","v":{"$error":"#VALUE!"}},null,"2029-12-24","2029-12-24","Heiligabend",2029]
[null,null,null,null,null,null,null,null,null,null,null,null,null,null,null,null,null,null,null,null,null,null,null,null,null,null,null,"",{"$error":"#VALUE!"},{"$error":"#VALUE!"},{"$error":"#VALUE!"},{"$error":"#VALUE!"},null,null,null,null,null,null,null,null,null,null,null,null,{"$error":"#VALUE!"},{"$f":"SUMPRODUCT((AC275<=AV$113:AV$367)*(AD275>=AV$113:AV$367))","v":{"$error":"#VALUE!"}},null,"2029-12-25","2029-12-25","Christtag",2029]
[null,null,null,null,null,null,null,null,null,null,null,null,null,null,null,null,null,null,null,null,null,null,null,null,null,null,null,"",{"$error":"#VALUE!"},{"$error":"#VALUE!"},{"$error":"#VALUE!"},{"$error":"#VALUE!"},null,null,null,null,null,null,null,null,null,null,null,null,{"$error":"#VALUE!"},{"$f":"SUMPRODUCT((AC276<=AV$113:AV$367)*(AD276>=AV$113:AV$367))","v":{"$error":"#VALUE!"}},null,"2029-12-26","2029-12-26","Stefanitag",2029]
[null,null,null,null,null,null,null,null,null,null,null,null,null,null,null,null,null,null,null,null,null,null,null,null,null,null,null,"",{"$error":"#VALUE!"},{"$error":"#VALUE!"},{"$error":"#VALUE!"},{"$error":"#VALUE!"},null,null,null,null,null,null,null,null,null,null,null,null,{"$error":"#VALUE!"},{"$f":"SUMPRODUCT((AC277<=AV$113:AV$367)*(AD277>=AV$113:AV$367))","v":{"$error":"#VALUE!"}},null,"2029-12-31","2029-12-31","Silvester",2029]
[null,null,null,null,null,null,null,null,null,null,null,null,null,null,null,null,null,null,null,null,null,null,null,null,null,null,null,"",{"$error":"#VALUE!"},{"$error":"#VALUE!"},{"$error":"#VALUE!"},{"$error":"#VALUE!"},null,null,null,null,null,null,null,null,null,null,null,null,{"$error":"#VALUE!"},{"$f":"SUMPRODUCT((AC278<=AV$113:AV$367)*(AD278>=AV$113:AV$367))","v":{"$error":"#VALUE!"}},null,"2030-01-01","2030-01-01","Neujahr",2030]
[null,null,null,null,null,null,null,null,null,null,null,null,null,null,null,null,null,null,null,null,null,null,null,null,null,null,null,"",{"$error":"#VALUE!"},{"$error":"#VALUE!"},{"$error":"#VALUE!"},{"$error":"#VALUE!"},null,null,null,null,null,null,null,null,null,null,null,null,{"$error":"#VALUE!"},{"$f":"SUMPRODUCT((AC279<=AV$113:AV$367)*(AD279>=AV$113:AV$367))","v":{"$error":"#VALUE!"}},null,"-","2030-01-06","Heilige Drei Könige",2030]
[null,null,null,null,null,null,null,null,null,null,null,null,null,null,null,null,null,null,null,null,null,null,null,null,null,null,null,"",{"$error":"#VALUE!"},{"$error":"#VALUE!"},{"$error":"#VALUE!"},{"$error":"#VALUE!"},null,null,null,null,null,null,null,null,null,null,null,null,{"$error":"#VALUE!"},{"$f":"SUMPRODUCT((AC280<=AV$113:AV$367)*(AD280>=AV$113:AV$367))","v":{"$error":"#VALUE!"}},null,"2030-04-22","2030-04-22","Ostermontag",2030]
[null,null,null,null,null,null,null,null,null,null,null,null,null,null,null,null,null,null,null,null,null,null,null,null,null,null,null,"",{"$error":"#VALUE!"},{"$error":"#VALUE!"},{"$error":"#VALUE!"},{"$error":"#VALUE!"},null,null,null,null,null,null,null,null,null,null,null,null,{"$error":"#VALUE!"},{"$f":"SUMPRODUCT((AC281<=AV$113:AV$367)*(AD281>=AV$113:AV$367))","v":{"$error":"#VALUE!"}},null,"2030-05-01","2030-05-01","Staatsfeiertag",2030]
[null,null,null,null,null,null,null,null,null,null,null,null,null,null,null,null,null,null,null,null,null,null,null,null,null,null,null,"",{"$error":"#VALUE!"},{"$error":"#VALUE!"},{"$error":"#VALUE!"},{"$error":"#VALUE!"},null,null,null,null,null,null,null,null,null,null,null,null,{"$error":"#VALUE!"},{"$f":"SUMPRODUCT((AC282<=AV$113:AV$367)*(AD282>=AV$113:AV$367))","v":{"$error":"#VALUE!"}},null,"2030-05-30","2030-05-30","Christi Himmelfahrt",2030]
[null,null,null,null,null,null,null,null,null,null,null,null,null,null,null,null,null,null,null,null,null,null,null,null,null,null,null,"",{"$error":"#VALUE!"},{"$error":"#VALUE!"},{"$error":"#VALUE!"},{"$error":"#VALUE!"},null,null,null,null,null,null,null,null,null,null,null,null,{"$error":"#VALUE!"},{"$f":"SUMPRODUCT((AC283<=AV$113:AV$367)*(AD283>=AV$113:AV$367))","v":{"$error":"#VALUE!"}},null,"2030-06-10","2030-06-10","Pfingstmontag",2030]
[null,null,null,null,null,null,null,null,null,null,null,null,null,null,null,null,null,null,null,null,null,null,null,null,null,null,null,"",{"$error":"#VALUE!"},{"$error":"#VALUE!"},{"$error":"#VALUE!"},{"$error":"#VALUE!"},null,null,null,null,null,null,null,null,null,null,null,null,{"$error":"#VALUE!"},{"$f":"SUMPRODUCT((AC284<=AV$113:AV$367)*(AD284>=AV$113:AV$367))","v":{"$error":"#VALUE!"}},null,"2030-06-20","2030-06-20","Fronleichnam",2030]
[null,null,null,null,null,null,null,null,null,null,null,null,null,null,null,null,null,null,null,null,null,null,null,null,null,null,null,"",{"$error":"#VALUE!"},{"$error":"#VALUE!"},{"$error":"#VALUE!"},{"$error":"#VALUE!"},null,null,null,null,null,null,null,null,null,null,null,null,{"$error":"#VALUE!"},{"$f":"SUMPRODUCT((AC285<=AV$113:AV$367)*(AD285>=AV$113:AV$367))","v":{"$error":"#VALUE!"}},null,"2030-08-15","2030-08-15","Mariä Himmelfahrt",2030]
[null,null,null,null,null,null,null,null,null,null,null,null,null,null,null,null,null,null,null,null,null,null,null,null,null,null,null,"",{"$error":"#VALUE!"},{"$error":"#VALUE!"},{"$error":"#VALUE!"},{"$error":"#VALUE!"},null,null,null,null,null,null,null,null,null,null,null,null,{"$error":"#VALUE!"},{"$f":"SUMPRODUCT((AC286<=AV$113:AV$367)*(AD286>=AV$113:AV$367))","v":{"$error":"#VALUE!"}},null,"2030-10-26","2030-10-26","Nationalfeiertag",2030]
[null,null,null,null,null,null,null,null,null,null,null,null,null,null,null,null,null,null,null,null,null,null,null,null,null,null,null,"",{"$error":"#VALUE!"},{"$error":"#VALUE!"},{"$error":"#VALUE!"},{"$error":"#VALUE!"},null,null,null,null,null,null,null,null,null,null,null,null,{"$error":"#VALUE!"},{"$f":"SUMPRODUCT((AC287<=AV$113:AV$367)*(AD287>=AV$113:AV$367))","v":{"$error":"#VALUE!"}},null,"2030-11-01","2030-11-01","Allerheiligen",2030]
[null,null,null,null,null,null,null,null,null,null,null,null,null,null,null,null,null,null,null,null,null,null,null,null,null,null,null,"",{"$error":"#VALUE!"},{"$error":"#VALUE!"},{"$error":"#VALUE!"},{"$error":"#VALUE!"},null,null,null,null,null,null,null,null,null,null,null,null,{"$error":"#VALUE!"},{"$f":"SUMPRODUCT((AC288<=AV$113:AV$367)*(AD288>=AV$113:AV$367))","v":{"$error":"#VALUE!"}},null,"-","2030-12-08","Mariä Empfängnis",2030]
[null,null,null,null,null,null,null,null,null,null,null,null,null,null,null,null,null,null,null,null,null,null,null,null,null,null,null,"",{"$error":"#VALUE!"},{"$error":"#VALUE!"},{"$error":"#VALUE!"},{"$error":"#VALUE!"},null,null,null,null,null,null,null,null,null,null,null,null,{"$error":"#VALUE!"},{"$f":"SUMPRODUCT((AC289<=AV$113:AV$367)*(AD289>=AV$113:AV$367))","v":{"$error":"#VALUE!"}},null,"2030-12-24","2030-12-24","Heiligabend",2030]
[null,null,null,null,null,null,null,null,null,null,null,null,null,null,null,null,null,null,null,null,null,null,null,null,null,null,null,null,null,null,{"$f":"AT291","v":0},null,null,null,null,null,null,null,null,null,null,null,null,null,{"$f":"AD290-AC290+IF(WEEKDAY(AD290)<>1,1,0)-IF(AND(WEEKDAY(AD290,2)>=6,AD$105=\"nein\"),1,0)","v":1},{"$f":"SUMPRODUCT((AC290<=AV$113:AV$367)*(AD290>=AV$113:AV$367))","v":0},null,{"$f":"IF(AD$105=\"ja\",IF(WEEKDAY(AW290)=1,\"-\",AW290),IF(OR(WEEKDAY(AW290)=1,WEEKDAY(AW290)=7),\"-\",AW290))","v":"2030-12-25"},"2030-12-25","Christtag",2030]
[null,null,null,null,null,null,null,null,null,null,null,null,null,null,null,null,null,null,null,null,null,null,null,null,null,null,null,null,null,null,null,null,null,null,null,null,null,null,null,null,null,null,null,null,1,{"$f":"SUMPRODUCT((AC291<=AV$113:AV$367)*(AD291>=AV$113:AV$367))","v":0},null,"2030-12-26","2030-12-26","Stefanitag",2030]
[null,null,null,null,null,null,null,null,null,null,null,null,null,null,null,null,null,null,null,null,null,null,null,null,null,null,null,null,null,null,null,null,null,null,null,null,null,null,null,null,null,null,null,null,1,{"$f":"SUMPRODUCT((AC292<=AV$113:AV$367)*(AD292>=AV$113:AV$367))","v":0},null,"2030-12-31","2030-12-31","Silvester",2030]
[null,null,null,null,null,null,null,null,null,null,null,null,null,null,null,null,null,null,null,null,null,null,null,null,null,null,null,null,null,null,null,null,null,null,null,null,null,null,null,null,null,null,null,null,1,{"$f":"SUMPRODUCT((AC293<=AV$113:AV$367)*(AD293>=AV$113:AV$367))","v":0},null,"2031-01-01","2031-01-01","Neujahr",2031]
[null,null,null,null,null,null,null,null,null,null,null,null,null,null,null,null,null,null,null,null,null,null,null,null,null,null,null,null,null,null,null,null,null,null,null,null,null,null,null,null,null,null,null,null,1,{"$f":"SUMPRODUCT((AC294<=AV$113:AV$367)*(AD294>=AV$113:AV$367))","v":0},null,"2031-01-06","2031-01-06","Heilige Drei Könige",2031]
[null,null,null,null,null,null,null,null,null,null,null,null,null,null,null,null,null,null,null,null,null,null,null,null,null,null,null,null,null,null,null,null,null,null,null,null,null,null,null,null,null,null,null,null,1,{"$f":"SUMPRODUCT((AC295<=AV$113:AV$367)*(AD295>=AV$113:AV$367))","v":0},null,"2031-04-14","2031-04-14","Ostermontag",2031]
[null,null,null,null,null,null,null,null,null,null,null,null,null,null,null,null,null,null,null,null,null,null,null,null,null,null,null,null,null,null,null,null,null,null,null,null,null,null,null,null,null,null,null,null,1,{"$f":"SUMPRODUCT((AC296<=AV$113:AV$367)*(AD296>=AV$113:AV$367))","v":0},null,"2031-05-01","2031-05-01","Staatsfeiertag",2031]
[null,null,null,null,null,null,null,null,null,null,null,null,null,null,null,null,null,null,null,null,null,null,null,null,null,null,null,null,null,null,null,null,null,null,null,null,null,null,null,null,null,null,null,null,1,{"$f":"SUMPRODUCT((AC297<=AV$113:AV$367)*(AD297>=AV$113:AV$367))","v":0},null,"2031-05-22","2031-05-22","Christi Himmelfahrt",2031]
[null,null,null,null,null,null,null,null,null,null,null,null,null,null,null,null,null,null,null,null,null,null,null,null,null,null,null,null,null,null,null,null,null,null,null,null,null,null,null,null,null,null,null,null,1,{"$f":"SUMPRODUCT((AC298<=AV$113:AV$367)*(AD298>=AV$113:AV$367))","v":0},null,"2031-06-02","2031-06-02","Pfingstmontag",2031]
[null,null,null,null,null,null,null,null,null,null,null,null,null,null,null,null,null,null,null,null,null,null,null,null,null,null,null,null,null,null,null,null,null,null,null,null,null,null,null,null,null,null,null,null,1,{"$f":"SUMPRODUCT((AC299<=AV$113:AV$367)*(AD299>=AV$113:AV$367))","v":0},null,"2031-06-12","2031-06-12","Fronleichnam",2031]
[null,null,null,null,null,null,null,null,null,null,null,null,null,null,null,null,null,null,null,null,null,null,null,null,null,null,null,null,null,null,null,null,null,null,null,null,null,null,null,null,null,null,null,null,1,{"$f":"SUMPRODUCT((AC300<=AV$113:AV$367)*(AD300>=AV$113:AV$367))","v":0},null,"2031-08-15","2031-08-15","Mariä Himmelfahrt",2031]
[null,null,null,null,null,null,null,null,null,null,null,null,null,null,null,null,null,null,null,null,null,null,null,null,null,null,null,null,null,null,null,null,null,null,null,null,null,null,null,null,null,null,null,null,1,{"$f":"SUMPRODUCT((AC301<=AV$113:AV$367)*(AD301>=AV$113:AV$367))","v":0},null,"-","2031-10-26","Nationalfeiertag",2031]
[null,null,null,null,null,null,null,null,null,null,null,null,null,null,null,null,null,null,null,null,null,null,null,null,null,null,null,null,null,null,null,null,null,null,null,null,null,null,null,null,null,null,null,null,1,{"$f":"SUMPRODUCT((AC302<=AV$113:AV$367)*(AD302>=AV$113:AV$367))","v":0},null,"2031-11-01","2031-11-01","Allerheiligen",2031]
[null,null,null,null,null,null,null,null,null,null,null,null,null,null,null,null,null,null,null,null,null,null,null,null,null,null,null,null,null,null,null,null,null,null,null,null,null,null,null,null,null,null,null,null,1,{"$f":"SUMPRODUCT((AC303<=AV$113:AV$367)*(AD303>=AV$113:AV$367))","v":0},null,"2031-12-08","2031-12-08","Mariä Empfängnis",2031]
[null,null,null,null,null,null,null,null,null,null,null,null,null,null,null,null,null,null,null,null,null,null,null,null,null,null,null,null,null,null,null,null,null,null,null,null,null,null,null,null,null,null,null,null,1,{"$f":"SUMPRODUCT((AC304<=AV$113:AV$367)*(AD304>=AV$113:AV$367))","v":0},null,"2031-12-24","2031-12-24","Heiligabend",2031,null,"KALKULATION"]
[null,null,null,null,null,null,null,null,null,null,null,null,null,null,null,null,null,null,null,null,null,null,null,null,null,null,null,null,null,null,null,null,null,null,null,null,null,null,null,null,null,null,null,null,1,{"$f":"SUMPRODUCT((AC305<=AV$113:AV$367)*(AD305>=AV$113:AV$367))","v":0},null,"2031-12-25","2031-12-25","Christtag",2031,null,null,"Bezeichnung der Maßnahme:",{"$f":"F23","v":0},null,null,null,null,{"$f":"P23","v":0}]
[null,null,null,null,null,null,null,null,null,null,null,null,null,null,null,null,null,null,null,null,null,null,null,null,null,null,null,null,null,null,null,null,null,null,null,null,null,null,null,null,null,null,null,null,1,{"$f":"SUMPRODUCT((AC306<=AV$113:AV$367)*(AD306>=AV$113:AV$367))","v":0},null,"2031-12-26","2031-12-26","Stefanitag",{"$f":"YEAR(AW306)","v":2031},null,null,null,"Gesamt MSTN lt. Zeitplan ",{"$f":"MSTNGesamt_Zeitplan","v":0}]
[null,null,null,null,null,null,null,null,null,null,null,null,null,null,null,null,null,null,null,null,null,null,null,null,null,null,null,null,null,null,null,null,null,null,null,null,null,null,null,null,null,null,null,null,1,{"$f":"SUMPRODUCT((AC307<=AV$113:AV$367)*(AD307>=AV$113:AV$367))","v":0},null,"2031-12-31","2031-12-31","Silvester",2031,null,null,null,"MS GruppentrainerInnen lt. Zeitplan ",{"$f":"MPS","v":0},{"$f":"IF(ROUND(BD307,2)<>$BD$313,\"–> Achtung: Wert stimmt nicht mit MS GruppentrainerInnen lt. Kalkulation überein!\",\"\")","v":""}]
[null,null,null,null,null,null,null,null,null,null,null,null,null,null,null,null,null,null,null,null,null,null,null,null,null,null,null,null,null,null,null,null,null,null,null,null,null,null,null,null,null,null,null,null,1,{"$f":"SUMPRODUCT((AC308<=AV$113:AV$367)*(AD308>=AV$113:AV$367))","v":0},null,"2032-01-01","2032-01-01","Neujahr",2032]
[null,null,null,null,null,null,null,null,null,null,null,null,null,null,null,null,null,null,null,null,null,null,null,null,null,null,null,null,null,null,null,null,null,null,null,null,null,null,null,null,null,null,null,null,1,{"$f":"SUMPRODUCT((AC309<=AV$113:AV$367)*(AD309>=AV$113:AV$367))","v":0},null,"2032-01-06","2032-01-06","Heilige Drei Könige",2032,null,"MASSNAHMENKOSTEN"]
[null,null,null,null,null,null,null,null,null,null,null,null,null,null,null,null,null,null,null,null,null,null,null,null,null,null,null,null,null,null,null,null,null,null,null,null,null,null,null,null,null,null,null,null,1,{"$f":"SUMPRODUCT((AC310<=AV$113:AV$367)*(AD310>=AV$113:AV$367))","v":0},null,"2032-03-29","2032-03-29","Ostermontag",2032,null,null,"GruppentrainerInnen",null,"MS","Einheitspreis/MS","Gesamt"]
[null,null,null,null,null,null,null,null,null,null,null,null,null,null,null,null,null,null,null,null,null,null,null,null,null,null,null,null,null,null,null,null,null,null,null,null,null,null,null,null,null,null,null,null,1,{"$f":"SUMPRODUCT((AC311<=AV$113:AV$367)*(AD311>=AV$113:AV$367))","v":0},null,"2032-05-01","2032-05-01","Staatsfeiertag",2032,null,"e",null,null,null,null,{"$f":"BD311*BE311","v":0},"+","–"]
[null,null,null,null,null,null,null,null,null,null,null,null,null,null,null,null,null,null,null,null,null,null,null,null,null,null,null,null,null,null,null,null,null,null,null,null,null,null,null,null,null,null,null,null,1,{"$f":"SUMPRODUCT((AC312<=AV$113:AV$367)*(AD312>=AV$113:AV$367))","v":0},null,"2032-05-06","2032-05-06","Christi Himmelfahrt",2032,null,null,"Zeile nicht löschen!"]
[null,null,null,null,null,null,null,null,null,null,null,null,null,null,null,null,null,null,null,null,null,null,null,null,null,null,null,null,null,null,null,null,null,null,null,null,null,null,null,null,null,null,null,null,1,{"$f":"SUMPRODUCT((AC313<=AV$113:AV$367)*(AD313>=AV$113:AV$367))","v":0},null,"2032-05-17","2032-05-17","Pfingstmontag",2032,null,null,null,"Summe",{"$f":"SUM(BD311:BD312)","v":0},{"$f":"IF(ISERROR(BF313/BD313),0,ROUND(BF313/BD313,2))","v":0},{"$f":"SUM(BF311:BF312)","v":0}]
[null,null,null,null,null,null,null,null,null,null,null,null,null,null,null,null,null,null,null,null,null,null,null,null,null,null,null,null,null,null,null,null,null,null,null,null,null,null,null,null,null,null,null,null,1,{"$f":"SUMPRODUCT((AC314<=AV$113:AV$367)*(AD314>=AV$113:AV$367))","v":0},null,"2032-05-27","2032-05-27","Fronleichnam",2032]
[null,null,null,null,null,null,null,null,null,null,null,null,null,null,null,null,null,null,null,null,null,null,null,null,null,null,null,null,null,null,null,null,null,null,null,null,null,null,null,null,null,null,null,null,1,{"$f":"SUMPRODUCT((AC315<=AV$113:AV$367)*(AD315>=AV$113:AV$367))","v":0},null,"-","2032-08-15","Mariä Himmelfahrt",2032,null,null,"EinzeltrainerInnen",null,"MS","Einheitspreis/MS","Gesamt"]
[null,null,null,null,null,null,null,null,null,null,null,null,null,null,null,null,null,null,null,null,null,null,null,null,null,null,null,null,null,null,null,null,null,null,null,null,null,null,null,null,null,null,null,null,1,{"$f":"SUMPRODUCT((AC316<=AV$113:AV$367)*(AD316>=AV$113:AV$367))","v":0},null,"2032-10-26","2032-10-26","Nationalfeiertag",2032,null,"e",null,null,null,null,{"$f":"BD316*BE316","v":0},"+","–"]
[null,null,null,null,null,null,null,null,null,null,null,null,null,null,null,null,null,null,null,null,null,null,null,null,null,null,null,null,null,null,null,null,null,null,null,null,null,null,null,null,null,null,null,null,1,{"$f":"SUMPRODUCT((AC317<=AV$113:AV$367)*(AD317>=AV$113:AV$367))","v":0},null,"2032-11-01","2032-11-01","Allerheiligen",2032]
[null,null,null,null,null,null,null,null,null,null,null,null,null,null,null,null,null,null,null,null,null,null,null,null,null,null,null,null,null,null,null,null,null,null,null,null,null,null,null,null,null,null,null,null,1,{"$f":"SUMPRODUCT((AC318<=AV$113:AV$367)*(AD318>=AV$113:AV$367))","v":0},null,"2032-12-08","2032-12-08","Mariä Empfängnis",2032,null,null,null,"Summe",{"$f":"SUM(BD316:BD317)","v":0},null,{"$f":"SUM(BF316:BF317)","v":0}]
[null,null,null,null,null,null,null,null,null,null,null,null,null,null,null,null,null,null,null,null,null,null,null,null,null,null,null,null,null,null,null,null,null,null,null,null,null,null,null,null,null,null,null,null,1,{"$f":"SUMPRODUCT((AC319<=AV$113:AV$367)*(AD319>=AV$113:AV$367))","v":0},null,"2032-12-24","2032-12-24","Heiligabend",2032]
[null,null,null,null,null,null,null,null,null,null,null,null,null,null,null,null,null,null,null,null,null,null,null,null,null,null,null,null,null,null,null,null,null,null,null,null,null,null,null,null,null,null,null,null,1,{"$f":"SUMPRODUCT((AC320<=AV$113:AV$367)*(AD320>=AV$113:AV$367))","v":0},null,"2032-12-25","2032-12-25","Christtag",2032,null,null,null,null,null,"Personalaufwand gesamt",{"$f":"ROUND(BF313+BF318,2)","v":0}]
[null,null,null,null,null,null,null,null,null,null,null,null,null,null,null,null,null,null,null,null,null,null,null,null,null,null,null,null,null,null,null,null,null,null,null,null,null,null,null,null,null,null,null,null,1,{"$f":"SUMPRODUCT((AC321<=AV$113:AV$367)*(AD321>=AV$113:AV$367))","v":0},null,"-","2032-12-26","Stefanitag",2032]
[null,null,null,null,null,null,null,null,null,null,null,null,null,null,null,null,null,null,null,null,null,null,null,null,null,null,null,null,null,null,null,null,null,null,null,null,null,null,null,null,null,null,null,null,1,{"$f":"SUMPRODUCT((AC322<=AV$113:AV$367)*(AD322>=AV$113:AV$367))","v":0},null,"2032-12-31","2032-12-31","Silvester",2032,null,null,"Räumliche/technische Ausstattung",null,"MS","Einheitspreis/MS","Gesamt"]
[null,null,null,null,null,null,null,null,null,null,null,null,null,null,null,null,null,null,null,null,null,null,null,null,null,null,null,null,null,null,null,null,null,null,null,null,null,null,null,null,null,null,null,null,1,{"$f":"SUMPRODUCT((AC323<=AV$113:AV$367)*(AD323>=AV$113:AV$367))","v":0},null,"2033-01-01","2033-01-01","Neujahr",2033,null,"e1",null,null,null,{"$f":"IF(ISERROR(BF323/BD323),0,BF323/BD323)","v":0},null,"+","–"]
[null,null,null,null,null,null,null,null,null,null,null,null,null,null,null,null,null,null,null,null,null,null,null,null,null,null,null,null,null,null,null,null,null,null,null,null,null,null,null,null,null,null,null,null,1,{"$f":"SUMPRODUCT((AC324<=AV$113:AV$367)*(AD324>=AV$113:AV$367))","v":0},null,"2033-01-06","2033-01-06","Heilige Drei Könige",2033]
[null,null,null,null,null,null,null,null,null,null,null,null,null,null,null,null,null,null,null,null,null,null,null,null,null,null,null,null,null,null,null,null,null,null,null,null,null,null,null,null,null,null,null,null,1,{"$f":"SUMPRODUCT((AC325<=AV$113:AV$367)*(AD325>=AV$113:AV$367))","v":0},null,"2033-04-18","2033-04-18","Ostermontag",2033,null,null,null,"Summe",{"$f":"ROUND(SUM(BD323:BD324),2)","v":0},null,{"$f":"ROUND(SUM(BF323:BF324),4)","v":0}]
[null,null,null,null,null,null,null,null,null,null,null,null,null,null,null,null,null,null,null,null,null,null,null,null,null,null,null,null,null,null,null,null,null,null,null,null,null,null,null,null,null,null,null,null,1,{"$f":"SUMPRODUCT((AC326<=AV$113:AV$367)*(AD326>=AV$113:AV$367))","v":0},null,"-","2033-05-01","Staatsfeiertag",2033]
[null,null,null,null,null,null,null,null,null,null,null,null,null,null,null,null,null,null,null,null,null,null,null,null,null,null,null,null,null,null,null,null,null,null,null,null,null,null,null,null,null,null,null,null,1,{"$f":"SUMPRODUCT((AC327<=AV$113:AV$367)*(AD327>=AV$113:AV$367))","v":0},null,"2033-05-26","2033-05-26","Christi Himmelfahrt",2033,null,null,"Sonstiger Aufwand",null,"MS","Einheitspreis/MS","Gesamt"]
[null,null,null,null,null,null,null,null,null,null,null,null,null,null,null,null,null,null,null,null,null,null,null,null,null,null,null,null,null,null,null,null,null,null,null,null,null,null,null,null,null,null,null,null,1,{"$f":"SUMPRODUCT((AC328<=AV$113:AV$367)*(AD328>=AV$113:AV$367))","v":0},null,"2033-06-06","2033-06-06","Pfingstmontag",2033,null,"e1",null,null,null,{"$f":"IF(ISERROR(BF328/BD328),0,BF328/BD328)","v":0},null,"+","–"]
[null,null,null,null,null,null,null,null,null,null,null,null,null,null,null,null,null,null,null,null,null,null,null,null,null,null,null,null,null,null,null,null,null,null,null,null,null,null,null,null,null,null,null,null,1,{"$f":"SUMPRODUCT((AC329<=AV$113:AV$367)*(AD329>=AV$113:AV$367))","v":0},null,"2033-06-16","2033-06-16","Fronleichnam",2033,null,null,"Zeile nicht löschen !"]
[null,null,null,null,null,null,null,null,null,null,null,null,null,null,null,null,null,null,null,null,null,null,null,null,null,null,null,null,null,null,null,null,null,null,null,null,null,null,null,null,null,null,null,null,1,{"$f":"SUMPRODUCT((AC330<=AV$113:AV$367)*(AD330>=AV$113:AV$367))","v":0},null,"2033-08-15","2033-08-15","Mariä Himmelfahrt",2033,null,null,null,"Summe",{"$f":"ROUND(SUM(BD328:BD329),2)","v":0},null,{"$f":"ROUND(SUM(BF328:BF329),2)","v":0}]
[null,null,null,null,null,null,null,null,null,null,null,null,null,null,null,null,null,null,null,null,null,null,null,null,null,null,null,null,null,null,null,null,null,null,null,null,null,null,null,null,null,null,null,null,1,{"$f":"SUMPRODUCT((AC331<=AV$113:AV$367)*(AD331>=AV$113:AV$367))","v":0},null,"2033-10-26","2033-10-26","Nationalfeiertag",2033]
[null,null,null,null,null,null,null,null,null,null,null,null,null,null,null,null,null,null,null,null,null,null,null,null,null,null,null,null,null,null,null,null,null,null,null,null,null,null,null,null,null,null,null,null,1,{"$f":"SUMPRODUCT((AC332<=AV$113:AV$367)*(AD332>=AV$113:AV$367))","v":0},null,"2033-11-01","2033-11-01","Allerheiligen",2033]
[null,null,null,null,null,null,null,null,null,null,null,null,null,null,null,null,null,null,null,null,null,null,null,null,null,null,null,null,null,null,null,null,null,null,null,null,null,null,null,null,null,null,null,null,1,{"$f":"SUMPRODUCT((AC333<=AV$113:AV$367)*(AD333>=AV$113:AV$367))","v":0},null,"2033-12-08","2033-12-08","Mariä Empfängnis",2033,null,"MASSNAHMENNEBENKOSTEN"]
[null,null,null,null,null,null,null,null,null,null,null,null,null,null,null,null,null,null,null,null,null,null,null,null,null,null,null,null,null,null,null,null,null,null,null,null,null,null,null,null,null,null,null,null,1,{"$f":"SUMPRODUCT((AC334<=AV$113:AV$367)*(AD334>=AV$113:AV$367))","v":0},null,"2033-12-24","2033-12-24","Heiligabend",2033,null,null,"Ausbildungsbeihilfe",null,null,null,"Gesamt"]
[null,null,null,null,null,null,null,null,null,null,null,null,null,null,null,null,null,null,null,null,null,null,null,null,null,null,null,null,null,null,null,null,null,null,null,null,null,null,null,null,null,null,null,null,1,{"$f":"SUMPRODUCT((AC335<=AV$113:AV$367)*(AD335>=AV$113:AV$367))","v":0},null,"-","2033-12-25","Christtag",2033,null,"e2",null,null,null,null,null,"+","–"]
[null,null,null,null,null,null,null,null,null,null,null,null,null,null,null,null,null,null,null,null,null,null,null,null,null,null,null,null,null,null,null,null,null,null,null,null,null,null,null,null,null,null,null,null,1,{"$f":"SUMPRODUCT((AC336<=AV$113:AV$367)*(AD336>=AV$113:AV$367))","v":0},null,"2033-12-26","2033-12-26","Stefanitag",2033]
[null,null,null,null,null,null,null,null,null,null,null,null,null,null,null,null,null,null,null,null,null,null,null,null,null,null,null,null,null,null,null,null,null,null,null,null,null,null,null,null,null,null,null,null,1,{"$f":"SUMPRODUCT((AC337<=AV$113:AV$367)*(AD337>=AV$113:AV$367))","v":0},null,"2033-12-31","2033-12-31","Silvester",2033,null,null,null,null,null,"Summe",{"$f":"SUM(BF335:BF336)","v":0}]
[null,null,null,null,null,null,null,null,null,null,null,null,null,null,null,null,null,null,null,null,null,null,null,null,null,null,null,null,null,null,null,null,null,null,null,null,null,null,null,null,null,null,null,null,1,{"$f":"SUMPRODUCT((AC338<=AV$113:AV$367)*(AD338>=AV$113:AV$367))","v":0},null,"-","2034-01-01","Neujahr",2034,null,null,"Unterkunft und Verpflegung",null,null,null,"Gesamt"]
[null,null,null,null,null,null,null,null,null,null,null,null,null,null,null,null,null,null,null,null,null,null,null,null,null,null,null,null,null,null,null,null,null,null,null,null,null,null,null,null,null,null,null,null,1,{"$f":"SUMPRODUCT((AC339<=AV$113:AV$367)*(AD339>=AV$113:AV$367))","v":0},null,"2034-01-06","2034-01-06","Heilige Drei Könige",2034,null,"e2",null,null,null,null,null,"+","–"]
[null,null,null,null,null,null,null,null,null,null,null,null,null,null,null,null,null,null,null,null,null,null,null,null,null,null,null,null,null,null,null,null,null,null,null,null,null,null,null,null,null,null,null,null,1,{"$f":"SUMPRODUCT((AC340<=AV$113:AV$367)*(AD340>=AV$113:AV$367))","v":0},null,"2034-04-10","2034-04-10","Ostermontag",2034]
[null,null,null,null,null,null,null,null,null,null,null,null,null,null,null,null,null,null,null,null,null,null,null,null,null,null,null,null,null,null,null,null,null,null,null,null,null,null,null,null,null,null,null,null,1,{"$f":"SUMPRODUCT((AC341<=AV$113:AV$367)*(AD341>=AV$113:AV$367))","v":0},null,"2034-05-01","2034-05-01","Staatsfeiertag",2034,null,null,null,null,null,"Summe",{"$f":"SUM(BF339:BF340)","v":0}]
[null,null,null,null,null,null,null,null,null,null,null,null,null,null,null,null,null,null,null,null,null,null,null,null,null,null,null,null,null,null,null,null,null,null,null,null,null,null,null,null,null,null,null,null,1,{"$f":"SUMPRODUCT((AC342<=AV$113:AV$367)*(AD342>=AV$113:AV$367))","v":0},null,"2034-05-18","2034-05-18","Christi Himmelfahrt",2034,null,null,"Kinderbetreuung",null,null,null,"Gesamt"]
[null,null,null,null,null,null,null,null,null,null,null,null,null,null,null,null,null,null,null,null,null,null,null,null,null,null,null,null,null,null,null,null,null,null,null,null,null,null,null,null,null,null,null,null,1,{"$f":"SUMPRODUCT((AC343<=AV$113:AV$367)*(AD343>=AV$113:AV$367))","v":0},null,"2034-05-29","2034-05-29","Pfingstmontag",2034,null,"e2",null,null,null,null,null,"+","–"]
[null,null,null,null,null,null,null,null,null,null,null,null,null,null,null,null,null,null,null,null,null,null,null,null,null,null,null,null,null,null,null,null,null,null,null,null,null,null,null,null,null,null,null,null,1,{"$f":"SUMPRODUCT((AC344<=AV$113:AV$367)*(AD344>=AV$113:AV$367))","v":0},null,"2034-06-08","2034-06-08","Fronleichnam",2034]
[null,null,null,null,null,null,null,null,null,null,null,null,null,null,null,null,null,null,null,null,null,null,null,null,null,null,null,null,null,null,null,null,null,null,null,null,null,null,null,null,null,null,null,null,1,{"$f":"SUMPRODUCT((AC345<=AV$113:AV$367)*(AD345>=AV$113:AV$367))","v":0},null,"2034-08-15","2034-08-15","Mariä Himmelfahrt",2034,null,null,null,null,null,"Summe",{"$f":"SUM(BF343:BF344)","v":0}]
[null,null,null,null,null,null,null,null,null,null,null,null,null,null,null,null,null,null,null,null,null,null,null,null,null,null,null,null,null,null,null,null,null,null,null,null,null,null,null,null,null,null,null,null,1,{"$f":"SUMPRODUCT((AC346<=AV$113:AV$367)*(AD346>=AV$113:AV$367))","v":0},null,"2034-10-26","2034-10-26","Nationalfeiertag",2034,null,null,"TeilnehmerInnenbezogene Kosten",null,null,null,"Gesamt"]
[null,null,null,null,null,null,null,null,null,null,null,null,null,null,null,null,null,null,null,null,null,null,null,null,null,null,null,null,null,null,null,null,null,null,null,null,null,null,null,null,null,null,null,null,1,{"$f":"SUMPRODUCT((AC347<=AV$113:AV$367)*(AD347>=AV$113:AV$367))","v":0},null,"2034-11-01","2034-11-01","Allerheiligen",2034,null,"e2","",null,null,null,null,"+","–"]
[null,null,null,null,null,null,null,null,null,null,null,null,null,null,null,null,null,null,null,null,null,null,null,null,null,null,null,null,null,null,null,null,null,null,null,null,null,null,null,null,null,null,null,null,1,{"$f":"SUMPRODUCT((AC348<=AV$113:AV$367)*(AD348>=AV$113:AV$367))","v":0},null,"2034-12-08","2034-12-08","Mariä Empfängnis",2034]
[null,null,null,null,null,null,null,null,null,null,null,null,null,null,null,null,null,null,null,null,null,null,null,null,null,null,null,null,null,null,null,null,null,null,null,null,null,null,null,null,null,null,null,null,1,{"$f":"SUMPRODUCT((AC349<=AV$113:AV$367)*(AD349>=AV$113:AV$367))","v":0},null,"-","2034-12-24","Heiligabend",2034,null,null,null,null,null,"Summe",{"$f":"SUM(BF347:BF348)","v":0}]
[null,null,null,null,null,null,null,null,null,null,null,null,null,null,null,null,null,null,null,null,null,null,null,null,null,null,null,null,null,null,null,null,null,null,null,null,null,null,null,null,null,null,null,null,1,{"$f":"SUMPRODUCT((AC350<=AV$113:AV$367)*(AD350>=AV$113:AV$367))","v":0},null,"2034-12-25","2034-12-25","Christtag",2034]
[null,null,null,null,null,null,null,null,null,null,null,null,null,null,null,null,null,null,null,null,null,null,null,null,null,null,null,null,null,null,null,null,null,null,null,null,null,null,null,null,null,null,null,null,1,{"$f":"SUMPRODUCT((AC351<=AV$113:AV$367)*(AD351>=AV$113:AV$367))","v":0},null,"2034-12-26","2034-12-26","Stefanitag",2034]
[null,null,null,null,null,null,null,null,null,null,null,null,null,null,null,null,null,null,null,null,null,null,null,null,null,null,null,null,null,null,null,null,null,null,null,null,null,null,null,null,null,null,null,null,1,{"$f":"SUMPRODUCT((AC352<=AV$113:AV$367)*(AD352>=AV$113:AV$367))","v":0},null,"-","2034-12-31","Silvester",2034,null,null,null,null,null,"Gesamt MSTN",{"$f":"MSTNGesamt_Zeitplan","v":0}]
[null,null,null,null,null,null,null,null,null,null,null,null,null,null,null,null,null,null,null,null,null,null,null,null,null,null,null,null,null,null,null,null,null,null,null,null,null,null,null,null,null,null,null,null,1,{"$f":"SUMPRODUCT((AC353<=AV$113:AV$367)*(AD353>=AV$113:AV$367))","v":0},null,"2035-01-01","2035-01-01","Neujahr",2035,null,null,null,null,null,"Maßnahmenkosten",{"$f":"BF320+BF325+BF330","v":0}]
[null,null,null,null,null,null,null,null,null,null,null,null,null,null,null,null,null,null,null,null,null,null,null,null,null,null,null,null,null,null,null,null,null,null,null,null,null,null,null,null,null,null,null,null,{"$f":"AD354-AC354+IF(WEEKDAY(AD354)<>1,1,0)-IF(AND(WEEKDAY(AD354,2)>=6,AD$105=\"nein\"),1,0)","v":1},{"$f":"SUMPRODUCT((AC354<=AV$113:AV$367)*(AD354>=AV$113:AV$367))","v":0},null,{"$f":"IF(AD$105=\"ja\",IF(WEEKDAY(AW354)=1,\"-\",AW354),IF(OR(WEEKDAY(AW354)=1,WEEKDAY(AW354)=7),\"-\",AW354))","v":"2035-01-06"},"2035-01-06","Heilige Drei Könige",2035,null,null,null,null,null,"Einheitspreis / MSTN",{"$f":"IF(BF352=0,\"\",BF353/BF352)","v":""}]
[null,null,null,null,null,null,null,null,null,null,null,null,null,null,null,null,null,null,null,null,null,null,null,null,null,null,null,null,null,null,null,null,null,null,null,null,null,null,null,null,null,null,null,null,1,{"$f":"SUMPRODUCT((AC355<=AV$113:AV$367)*(AD355>=AV$113:AV$367))","v":0},null,"2035-03-26","2035-03-26","Ostermontag",2035]
[null,null,null,null,null,null,null,null,null,null,null,null,null,null,null,null,null,null,null,null,null,null,null,null,null,null,null,null,null,null,null,null,null,null,null,null,null,null,null,null,null,null,null,null,1,{"$f":"SUMPRODUCT((AC356<=AV$113:AV$367)*(AD356>=AV$113:AV$367))","v":0},null,"2035-05-01","2035-05-01","Staatsfeiertag",2035,null,null,null,null,null,"Maßnahmennebenkosten",{"$f":"ROUND(BF337+BF341+BF345+BF349,2)","v":0},{"$f":"IF(BF358=0,\"\",BF356/BF358)","v":""}]
[null,null,null,null,null,null,null,null,null,null,null,null,null,null,null,null,null,null,null,null,null,null,null,null,null,null,null,null,null,null,null,null,null,null,null,null,null,null,null,null,null,null,null,null,1,{"$f":"SUMPRODUCT((AC357<=AV$113:AV$367)*(AD357>=AV$113:AV$367))","v":0},null,"2035-05-03","2035-05-03","Christi Himmelfahrt",2035]
[null,null,null,null,null,null,null,null,null,null,null,null,null,null,null,null,null,null,null,null,null,null,null,null,null,null,null,null,null,null,null,null,null,null,null,null,null,null,null,null,null,null,null,null,1,{"$f":"SUMPRODUCT((AC358<=AV$113:AV$367)*(AD358>=AV$113:AV$367))","v":0},null,"2035-05-11","2035-05-11","Pfingstmontag",2035,null,"Abkürzungen:",null,null,null,"Maßnahmengesamtkosten",{"$f":"BF353+BF356","v":0}]
[null,null,null,null,null,null,null,null,null,null,null,null,null,null,null,null,null,null,null,null,null,null,null,null,null,null,null,null,null,null,null,null,null,null,null,null,null,null,null,null,null,null,null,null,1,{"$f":"SUMPRODUCT((AC359<=AV$113:AV$367)*(AD359>=AV$113:AV$367))","v":0},null,"2035-05-24","2035-05-24","Fronleichnam",2035,null,"MS = Maßnahmenstunde/n"]
[null,null,null,null,null,null,null,null,null,null,null,null,null,null,null,null,null,null,null,null,null,null,null,null,null,null,null,null,null,null,null,null,null,null,null,null,null,null,null,null,null,null,null,null,1,{"$f":"SUMPRODUCT((AC360<=AV$113:AV$367)*(AD360>=AV$113:AV$367))","v":0},null,"2035-08-15","2035-08-15","Mariä Himmelfahrt",2035,null,"MSTN = Maßnahmenstunden TeilnehmerInnen"]
[null,null,null,null,null,null,null,null,null,null,null,null,null,null,null,null,null,null,null,null,null,null,null,null,null,null,null,null,null,null,null,null,null,null,null,null,null,null,null,null,null,null,null,null,1,{"$f":"SUMPRODUCT((AC361<=AV$113:AV$367)*(AD361>=AV$113:AV$367))","v":0},null,"2035-10-26","2035-10-26","Nationalfeiertag",2035]
[null,null,null,null,null,null,null,null,null,null,null,null,null,null,null,null,null,null,null,null,null,null,null,null,null,null,null,null,null,null,null,null,null,null,null,null,null,null,null,null,null,null,null,null,1,{"$f":"SUMPRODUCT((AC362<=AV$113:AV$367)*(AD362>=AV$113:AV$367))","v":0},null,"2035-11-01","2035-11-01","Allerheiligen",2035]
[null,null,null,null,null,null,null,null,null,null,null,null,null,null,null,null,null,null,null,null,null,null,null,null,null,null,null,null,null,null,null,null,null,null,null,null,null,null,null,null,null,null,null,null,1,{"$f":"SUMPRODUCT((AC363<=AV$113:AV$367)*(AD363>=AV$113:AV$367))","v":0},null,"2035-12-08","2035-12-08","Mariä Empfängnis",2035]
[null,null,null,null,null,null,null,null,null,null,null,null,null,null,null,null,null,null,null,null,null,null,null,null,null,null,null,null,null,null,null,null,null,null,null,null,null,null,null,null,null,null,null,null,1,{"$f":"SUMPRODUCT((AC364<=AV$113:AV$367)*(AD364>=AV$113:AV$367))","v":0},null,"2035-12-24","2035-12-24","Heiligabend",2035]
[null,null,null,null,null,null,null,null,null,null,null,null,null,null,null,null,null,null,null,null,null,null,null,null,null,null,null,null,null,null,null,null,null,null,null,null,null,null,null,null,null,null,null,null,1,{"$f":"SUMPRODUCT((AC365<=AV$113:AV$367)*(AD365>=AV$113:AV$367))","v":0},null,"2035-12-25","2035-12-25","Christtag",2035]
[null,null,null,null,null,null,null,null,null,null,null,null,null,null,null,null,null,null,null,null,null,null,null,null,null,null,null,null,null,null,null,null,null,null,null,null,null,null,null,null,null,null,null,null,1,{"$f":"SUMPRODUCT((AC366<=AV$113:AV$367)*(AD366>=AV$113:AV$367))","v":0},null,"2035-12-26","2035-12-26","Stefanitag",2035]
[null,null,null,null,null,null,null,null,null,null,null,null,null,null,null,null,null,null,null,null,null,null,null,null,null,null,null,null,null,null,null,null,null,null,null,null,null,null,null,null,null,null,null,null,1,{"$f":"SUMPRODUCT((AC367<=AV$113:AV$367)*(AD367>=AV$113:AV$367))","v":0},null,"2035-12-31","2035-12-31","Silvester",2035]
[]
[]
[]
[]
[]
[]
[]
[]
[]
[]
[]
[]
[]
[]
[]
[]
[]
[]
[]
[]
[]
[]
[]
[]
[]
[]
[]
[]
[]
[]
[]
[]
[]
[]
[]
[]
[]
[]
[]
[]
[]
[]
[]
[]
[]
[]
[]
[]
[]
[]
[]
[]
[]
[]
[]
[]
[]
[]
[]
[]
[]
[]
[]
[]
[]
[]
[]
[]
[]
[]
[]
[]
[]
[]
[]
[]
[]
[]
[]
[]
[]
[]
[]
[]
[]
[]
[]
[]
[]
[]
[]
[]
[]
[]
[]
[]
[]
[]
[]
[]
[]
[]
[]
[]
[]
[]
[]
[]
[]
[]
[]
[]
[]
[]
[]
[]
[]
[]
[]
[]
[]
[]
[]
[]
[]
[]
[]
[]
[]
[]
[]
[]
[]
[]
[]
[]
[]
[]
[null,null,null,null,null,null,null,null,null,null,null,null,null,null,null,null,null,null,null,null,null,null,null,null,null,null,null,null,null,null,null,null,null,null,null,null,null,null,null,null,null,null,null,null,null,null,null,null,null,null,null,null,null,null,null,null,null,null,null,null,null,null,null,null,null,null,null,null,null,null,null,null,null,null,null,null,null,null,null,"DURCHFÜHRUNGSBERICHT"]
[null,null,null,null,null,null,null,null,null,null,null,null,null,null,null,null,null,null,null,null,null,null,null,null,null,null,null,null,null,null,null,null,null,null,null,null,null,null,null,null,null,null,null,null,null,null,null,null,null,null,null,null,null,null,null,null,null,null,null,null,null,null,null,null,null,null,null,null,null,null,null,null,null,null,null,null,null,null,null,"DURCHFÜHRUNGSBERICHT"]
[]
[null,null,null,null,null,null,null,null,null,null,null,null,null,null,null,null,null,null,null,null,null,null,null,null,null,null,null,null,null,null,null,null,null,null,null,null,null,null,null,null,null,null,null,null,null,null,null,null,null,null,null,null,null,null,null,null,null,null,null,null,null,null,null,null,null,null,null,null,null,null,null,null,null,null,null,null,null,null,null,null,null,"Bezeichnung der Maßnahme:",{"$f":"F23","v":0},null,null,null,null,null,{"$f":"P23","v":0}]
[]
[null,null,null,null,null,null,null,null,null,null,null,null,null,null,null,null,null,null,null,null,null,null,null,null,null,null,null,null,null,null,null,null,null,null,null,null,null,null,null,null,null,null,null,null,null,null,null,null,null,null,null,null,null,null,null,null,null,null,null,null,null,null,null,null,null,null,null,null,null,null,null,null,null,null,null,null,null,null,null,"ABWEICHUNGEN BEI MSTN"]
[]
[null,null,null,null,null,null,null,null,null,null,null,null,null,null,null,null,null,null,null,null,null,null,null,null,null,null,null,null,null,null,null,null,null,null,null,null,null,null,null,null,null,null,null,null,null,null,null,null,null,null,null,null,null,null,null,null,null,null,null,null,null,null,null,null,null,null,null,null,null,null,null,null,null,null,null,null,null,null,null,null,"Datum","Anzahl MSTN","Betrag","Begründung"]
[null,null,null,null,null,null,null,null,null,null,null,null,null,null,null,null,null,null,null,null,null,null,null,null,null,null,null,null,null,null,null,null,null,null,null,null,null,null,null,null,null,null,null,null,null,null,null,null,null,null,null,null,null,null,null,null,null,null,null,null,null,null,null,null,null,null,null,null,null,null,null,null,null,null,null,null,null,null,null,"e1",null,null,{"$f":"IF(ISERROR(ROUND(Einheitspreis_MSTN*CD514,2)),0,ROUND(Einheitspreis_MSTN*CD514,2))","v":0},null,null,null,null,"+","–"]
[]
[null,null,null,null,null,null,null,null,null,null,null,null,null,null,null,null,null,null,null,null,null,null,null,null,null,null,null,null,null,null,null,null,null,null,null,null,null,null,null,null,null,null,null,null,null,null,null,null,null,null,null,null,null,null,null,null,null,null,null,null,null,null,null,null,null,null,null,null,null,null,null,null,null,null,null,null,null,null,null,null,"Summe",{"$f":"ROUND(SUM(CD514:CD515),2)","v":0},{"$f":"ROUND(SUM(CE514:CE515),2)","v":0}]
[]
[]
[null,null,null,null,null,null,null,null,null,null,null,null,null,null,null,null,null,null,null,null,null,null,null,null,null,null,null,null,null,null,null,null,null,null,null,null,null,null,null,null,null,null,null,null,null,null,null,null,null,null,null,null,null,null,null,null,null,null,null,null,null,null,null,null,null,null,null,null,null,null,null,null,null,null,null,null,null,null,null,"STORNO VON MSTN"]
[]
[null,null,null,null,null,null,null,null,null,null,null,null,null,null,null,null,null,null,null,null,null,null,null,null,null,null,null,null,null,null,null,null,null,null,null,null,null,null,null,null,null,null,null,null,null,null,null,null,null,null,null,null,null,null,null,null,null,null,null,null,null,null,null,null,null,null,null,null,null,null,null,null,null,null,null,null,null,null,null,null,"Datum","Anzahl MSTN","Prozentsatz","Betrag","Begründung"]
[null,null,null,null,null,null,null,null,null,null,null,null,null,null,null,null,null,null,null,null,null,null,null,null,null,null,null,null,null,null,null,null,null,null,null,null,null,null,null,null,null,null,null,null,null,null,null,null,null,null,null,null,null,null,null,null,null,null,null,null,null,null,null,null,null,null,null,null,null,null,null,null,null,null,null,null,null,null,null,"e2",null,null,null,{"$f":"IF(ISERROR(ROUND(Einheitspreis_MSTN*CD522*CE522,2)),0,ROUND(Einheitspreis_MSTN*CD522*CE522,2))","v":0},"",null,null,"+","–"]
[]
[null,null,null,null,null,null,null,null,null,null,null,null,null,null,null,null,null,null,null,null,null,null,null,null,null,null,null,null,null,null,null,null,null,null,null,null,null,null,null,null,null,null,null,null,null,null,null,null,null,null,null,null,null,null,null,null,null,null,null,null,null,null,null,null,null,null,null,null,null,null,null,null,null,null,null,null,null,null,null,null,"Summe",{"$f":"ROUND(SUM(CD522:CD523),2)","v":0},"Summe",{"$f":"ROUND(SUM(CF522:CF523),2)","v":0}]
[]
[]
[null,null,null,null,null,null,null,null,null,null,null,null,null,null,null,null,null,null,null,null,null,null,null,null,null,null,null,null,null,null,null,null,null,null,null,null,null,null,null,null,null,null,null,null,null,null,null,null,null,null,null,null,null,null,null,null,null,null,null,null,null,null,null,null,null,null,null,null,null,null,null,null,null,null,null,null,null,null,null,null,null,null,"Anzahl der tatsächlich geleisteten MSTN",null,null,null,{"$f":"MSTNGesamt_Zeitplan+CD516","v":0}]
[null,null,null,null,null,null,null,null,null,null,null,null,null,null,null,null,null,null,null,null,null,null,null,null,null,null,null,null,null,null,null,null,null,null,null,null,null,null,null,null,null,null,null,null,null,null,null,null,null,null,null,null,null,null,null,null,null,null,null,null,null,null,null,null,null,null,null,null,null,null,null,null,null,null,null,null,null,null,null,null,null,null,"Maßnahmenkosten lt. Kalkulation",null,null,null,{"$f":"CD12","v":0}]
[null,null,null,null,null,null,null,null,null,null,null,null,null,null,null,null,null,null,null,null,null,null,null,null,null,null,null,null,null,null,null,null,null,null,null,null,null,null,null,null,null,null,null,null,null,null,null,null,null,null,null,null,null,null,null,null,null,null,null,null,null,null,null,null,null,null,null,null,null,null,null,null,null,null,null,null,null,null,null,null,null,null,"Kostenmäßige Abweichung und Storno bei MSTN",null,null,null,{"$f":"CE516+CF524","v":0}]
[null,null,null,null,null,null,null,null,null,null,null,null,null,null,null,null,null,null,null,null,null,null,null,null,null,null,null,null,null,null,null,null,null,null,null,null,null,null,null,null,null,null,null,null,null,null,null,null,null,null,null,null,null,null,null,null,null,null,null,null,null,null,null,null,null,null,null,null,null,null,null,null,null,null,null,null,null,null,null,null,null,null,"ergibt %-Änderung bei Personal, Ausstattung u. sonstigem Aufwand",null,null,null,{"$f":"IF(ISERROR(CI529/CI528),0,(CI529/CI528))","v":0}]
[]
[null,null,null,null,null,null,null,null,null,null,null,null,null,null,null,null,null,null,null,null,null,null,null,null,null,null,null,null,null,null,null,null,null,null,null,null,null,null,null,null,null,null,null,null,null,null,null,null,null,null,null,null,null,null,null,null,null,null,null,null,null,null,null,null,null,null,null,null,null,null,null,null,null,null,null,null,null,null,null,"ABWEICHUNGEN BEI TRAINERiNNENSTUNDEN"]
[]
[null,null,null,null,null,null,null,null,null,null,null,null,null,null,null,null,null,null,null,null,null,null,null,null,null,null,null,null,null,null,null,null,null,null,null,null,null,null,null,null,null,null,null,null,null,null,null,null,null,null,null,null,null,null,null,null,null,null,null,null,null,null,null,null,null,null,null,null,null,null,null,null,null,null,null,null,null,null,null,null,"Datum","Anzahl MSP","Einheitspreis MSP","Betrag","TrainerIn","Begründung"]
[null,null,null,null,null,null,null,null,null,null,null,null,null,null,null,null,null,null,null,null,null,null,null,null,null,null,null,null,null,null,null,null,null,null,null,null,null,null,null,null,null,null,null,null,null,null,null,null,null,null,null,null,null,null,null,null,null,null,null,null,null,null,null,null,null,null,null,null,null,null,null,null,null,null,null,null,null,null,null,"e2",null,null,null,{"$f":"ROUND(CD535*CE535,2)","v":0},null,null,null,"+","–"]
[]
[null,null,null,null,null,null,null,null,null,null,null,null,null,null,null,null,null,null,null,null,null,null,null,null,null,null,null,null,null,null,null,null,null,null,null,null,null,null,null,null,null,null,null,null,null,null,null,null,null,null,null,null,null,null,null,null,null,null,null,null,null,null,null,null,null,null,null,null,null,null,null,null,null,null,null,null,null,null,null,null,"Summe",{"$f":"ROUND(SUM(CD535:CD536),2)","v":0},"Summe",{"$f":"ROUND(SUM(CF535:CF536),2)","v":0}]
[]
[]
[null,null,null,null,null,null,null,null,null,null,null,null,null,null,null,null,null,null,null,null,null,null,null,null,null,null,null,null,null,null,null,null,null,null,null,null,null,null,null,null,null,null,null,null,null,null,null,null,null,null,null,null,null,null,null,null,null,null,null,null,null,null,null,null,null,null,null,null,null,null,null,null,null,null,null,null,null,null,null,"ABWEICHUNGEN BEI RÄUMLICHER/TECHNISCHER AUSSTATTUNG"]
[]
[null,null,null,null,null,null,null,null,null,null,null,null,null,null,null,null,null,null,null,null,null,null,null,null,null,null,null,null,null,null,null,null,null,null,null,null,null,null,null,null,null,null,null,null,null,null,null,null,null,null,null,null,null,null,null,null,null,null,null,null,null,null,null,null,null,null,null,null,null,null,null,null,null,null,null,null,null,null,null,null,"Bezeichnung",null,null,"Betrag","Begründung"]
[null,null,null,null,null,null,null,null,null,null,null,null,null,null,null,null,null,null,null,null,null,null,null,null,null,null,null,null,null,null,null,null,null,null,null,null,null,null,null,null,null,null,null,null,null,null,null,null,null,null,null,null,null,null,null,null,null,null,null,null,null,null,null,null,null,null,null,null,null,null,null,null,null,null,null,null,null,null,null,"e3",null,null,null,null,null,null,null,"+","–"]
[]
[null,null,null,null,null,null,null,null,null,null,null,null,null,null,null,null,null,null,null,null,null,null,null,null,null,null,null,null,null,null,null,null,null,null,null,null,null,null,null,null,null,null,null,null,null,null,null,null,null,null,null,null,null,null,null,null,null,null,null,null,null,null,null,null,null,null,null,null,null,null,null,null,null,null,null,null,null,null,null,null,null,null,"Summe",{"$f":"ROUND(SUM(CF543:CF544),4)","v":0}]
[]
[]
[null,null,null,null,null,null,null,null,null,null,null,null,null,null,null,null,null,null,null,null,null,null,null,null,null,null,null,null,null,null,null,null,null,null,null,null,null,null,null,null,null,null,null,null,null,null,null,null,null,null,null,null,null,null,null,null,null,null,null,null,null,null,null,null,null,null,null,null,null,null,null,null,null,null,null,null,null,null,null,"ABWEICHUNGEN BEI SONSTIGEM AUFWAND"]
[]
[null,null,null,null,null,null,null,null,null,null,null,null,null,null,null,null,null,null,null,null,null,null,null,null,null,null,null,null,null,null,null,null,null,null,null,null,null,null,null,null,null,null,null,null,null,null,null,null,null,null,null,null,null,null,null,null,null,null,null,null,null,null,null,null,null,null,null,null,null,null,null,null,null,null,null,null,null,null,null,null,"Bezeichnung",null,null,"Betrag","Begründung"]
[null,null,null,null,null,null,null,null,null,null,null,null,null,null,null,null,null,null,null,null,null,null,null,null,null,null,null,null,null,null,null,null,null,null,null,null,null,null,null,null,null,null,null,null,null,null,null,null,null,null,null,null,null,null,null,null,null,null,null,null,null,null,null,null,null,null,null,null,null,null,null,null,null,null,null,null,null,null,null,"e3",null,null,null,null,null,null,null,"+","–"]
[]
[null,null,null,null,null,null,null,null,null,null,null,null,null,null,null,null,null,null,null,null,null,null,null,null,null,null,null,null,null,null,null,null,null,null,null,null,null,null,null,null,null,null,null,null,null,null,null,null,null,null,null,null,null,null,null,null,null,null,null,null,null,null,null,null,null,null,null,null,null,null,null,null,null,null,null,null,null,null,null,null,null,null,"Summe",{"$f":"ROUND(SUM(CF551:CF552),4)","v":0}]
[]
[]
[null,null,null,null,null,null,null,null,null,null,null,null,null,null,null,null,null,null,null,null,null,null,null,null,null,null,null,null,null,null,null,null,null,null,null,null,null,null,null,null,null,null,null,null,null,null,null,null,null,null,null,null,null,null,null,null,null,null,null,null,null,null,null,null,null,null,null,null,null,null,null,null,null,null,null,null,null,null,null,"ABWEICHUNGEN BEI MASSNAHMENNEBENKOSTEN"]
[]
[null,null,null,null,null,null,null,null,null,null,null,null,null,null,null,null,null,null,null,null,null,null,null,null,null,null,null,null,null,null,null,null,null,null,null,null,null,null,null,null,null,null,null,null,null,null,null,null,null,null,null,null,null,null,null,null,null,null,null,null,null,null,null,null,null,null,null,null,null,null,null,null,null,null,null,null,null,null,null,null,"Ausbildungsbeihilfe",null,null,null,"Betrag","Begründung"]
[null,null,null,null,null,null,null,null,null,null,null,null,null,null,null,null,null,null,null,null,null,null,null,null,null,null,null,null,null,null,null,null,null,null,null,null,null,null,null,null,null,null,null,null,null,null,null,null,null,null,null,null,null,null,null,null,null,null,null,null,null,null,null,null,null,null,null,null,null,null,null,null,null,null,null,null,null,null,null,"e4",null,null,null,null,null,null,null,"+","–"]
[]
[null,null,null,null,null,null,null,null,null,null,null,null,null,null,null,null,null,null,null,null,null,null,null,null,null,null,null,null,null,null,null,null,null,null,null,null,null,null,null,null,null,null,null,null,null,null,null,null,null,null,null,null,null,null,null,null,null,null,null,null,null,null,null,null,null,null,null,null,null,null,null,null,null,null,null,null,null,null,null,null,null,null,null,"Summe",{"$f":"ROUND(SUM(CG559:CG560),2)","v":0}]
[null,null,null,null,null,null,null,null,null,null,null,null,null,null,null,null,null,null,null,null,null,null,null,null,null,null,null,null,null,null,null,null,null,null,null,null,null,null,null,null,null,null,null,null,null,null,null,null,null,null,null,null,null,null,null,null,null,null,null,null,null,null,null,null,null,null,null,null,null,null,null,null,null,null,null,null,null,null,null,null,"Unterkunft und Verpflegung",null,null,null,"Betrag"]
[null,null,null,null,null,null,null,null,null,null,null,null,null,null,null,null,null,null,null,null,null,null,null,null,null,null,null,null,null,null,null,null,null,null,null,null,null,null,null,null,null,null,null,null,null,null,null,null,null,null,null,null,null,null,null,null,null,null,null,null,null,null,null,null,null,null,null,null,null,null,null,null,null,null,null,null,null,null,null,"e4","",null,null,null,null,"",null,"+","–"]
[]
[null,null,null,null,null,null,null,null,null,null,null,null,null,null,null,null,null,null,null,null,null,null,null,null,null,null,null,null,null,null,null,null,null,null,null,null,null,null,null,null,null,null,null,null,null,null,null,null,null,null,null,null,null,null,null,null,null,null,null,null,null,null,null,null,null,null,null,null,null,null,null,null,null,null,null,null,null,null,null,null,null,null,null,"Summe",{"$f":"ROUND(SUM(CG563:CG564),2)","v":0}]
[null,null,null,null,null,null,null,null,null,null,null,null,null,null,null,null,null,null,null,null,null,null,null,null,null,null,null,null,null,null,null,null,null,null,null,null,null,null,null,null,null,null,null,null,null,null,null,null,null,null,null,null,null,null,null,null,null,null,null,null,null,null,null,null,null,null,null,null,null,null,null,null,null,null,null,null,null,null,null,null,"Kinderbetreuung",null,null,null,"Betrag"]
[null,null,null,null,null,null,null,null,null,null,null,null,null,null,null,null,null,null,null,null,null,null,null,null,null,null,null,null,null,null,null,null,null,null,null,null,null,null,null,null,null,null,null,null,null,null,null,null,null,null,null,null,null,null,null,null,null,null,null,null,null,null,null,null,null,null,null,null,null,null,null,null,null,null,null,null,null,null,null,"e4",null,null,null,null,null,null,null,"+","–"]
[]
[null,null,null,null,null,null,null,null,null,null,null,null,null,null,null,null,null,null,null,null,null,null,null,null,null,null,null,null,null,null,null,null,null,null,null,null,null,null,null,null,null,null,null,null,null,null,null,null,null,null,null,null,null,null,null,null,null,null,null,null,null,null,null,null,null,null,null,null,null,null,null,null,null,null,null,null,null,null,null,null,null,null,null,"Summe",{"$f":"ROUND(SUM(CG567:CG568),2)","v":0}]
[null,null,null,null,null,null,null,null,null,null,null,null,null,null,null,null,null,null,null,null,null,null,null,null,null,null,null,null,null,null,null,null,null,null,null,null,null,null,null,null,null,null,null,null,null,null,null,null,null,null,null,null,null,null,null,null,null,null,null,null,null,null,null,null,null,null,null,null,null,null,null,null,null,null,null,null,null,null,null,null,"TeilnehmerInnenbezogene Kosten",null,null,null,"Betrag"]
[null,null,null,null,null,null,null,null,null,null,null,null,null,null,null,null,null,null,null,null,null,null,null,null,null,null,null,null,null,null,null,null,null,null,null,null,null,null,null,null,null,null,null,null,null,null,null,null,null,null,null,null,null,null,null,null,null,null,null,null,null,null,null,null,null,null,null,null,null,null,null,null,null,null,null,null,null,null,null,"e4",null,null,null,null,null,null,null,"+","–"]
[]
[null,null,null,null,null,null,null,null,null,null,null,null,null,null,null,null,null,null,null,null,null,null,null,null,null,null,null,null,null,null,null,null,null,null,null,null,null,null,null,null,null,null,null,null,null,null,null,null,null,null,null,null,null,null,null,null,null,null,null,null,null,null,null,null,null,null,null,null,null,null,null,null,null,null,null,null,null,null,null,null,null,null,null,"Summe",{"$f":"ROUND(SUM(CG571:CG572),2)","v":0}]
[null,null,null,null,null,null,null,null,null,null,null,null,null,null,null,null,null,null,null,null,null,null,null,null,null,null,null,null,null,null,null,null,null,null,null,null,null,null,null,null,null,null,null,null,null,null,null,null,null,null,null,null,null,null,null,null,null,null,null,null,null,null,null,null,null,null,null,null,null,null,null,null,null,null,null,null,null,null,null,null,null,null,null,"Summe gesamt",{"$f":"CG561+CG565+CG569+CG573","v":0}]
[]
[]
[null,null,null,null,null,null,null,null,null,null,null,null,null,null,null,null,null,null,null,null,null,null,null,null,null,null,null,null,null,null,null,null,null,null,null,null,null,null,null,null,null,null,null,null,null,null,null,null,null,null,null,null,null,null,null,null,null,null,null,null,null,null,null,null,null,null,null,null,null,null,null,null,null,null,null,null,null,null,null,"ERTRÄGE / FÖRDERUNGEN"]
[]
[null,null,null,null,null,null,null,null,null,null,null,null,null,null,null,null,null,null,null,null,null,null,null,null,null,null,null,null,null,null,null,null,null,null,null,null,null,null,null,null,null,null,null,null,null,null,null,null,null,null,null,null,null,null,null,null,null,null,null,null,null,null,null,null,null,null,null,null,null,null,null,null,null,null,null,null,null,null,null,null,"Art der Erträge / Förderungen",null,null,null,"Betrag","Begründung"]
[null,null,null,null,null,null,null,null,null,null,null,null,null,null,null,null,null,null,null,null,null,null,null,null,null,null,null,null,null,null,null,null,null,null,null,null,null,null,null,null,null,null,null,null,null,null,null,null,null,null,null,null,null,null,null,null,null,null,null,null,null,null,null,null,null,null,null,null,null,null,null,null,null,null,null,null,null,null,null,"e5",null,null,null,null,null,null,null,"+","–"]
[]
[null,null,null,null,null,null,null,null,null,null,null,null,null,null,null,null,null,null,null,null,null,null,null,null,null,null,null,null,null,null,null,null,null,null,null,null,null,null,null,null,null,null,null,null,null,null,null,null,null,null,null,null,null,null,null,null,null,null,null,null,null,null,null,null,null,null,null,null,null,null,null,null,null,null,null,null,null,null,null,null,null,null,null,"Summe",{"$f":"ROUND(SUM(CG580:CG581),2)","v":0}]
[]
[]
[null,null,null,null,null,null,null,null,null,null,null,null,null,null,null,null,null,null,null,null,null,null,null,null,null,null,null,null,null,null,null,null,null,null,null,null,null,null,null,null,null,null,null,null,null,null,null,null,null,null,null,null,null,null,null,null,null,null,null,null,null,null,null,null,null,null,null,null,null,null,null,null,null,null,null,null,null,null,null,null,null,null,null,null,"Gesamtsumme aller Abweichungen",null,null,{"$f":"CG582+CG574+CF553+CF545+CF537+CI529","v":0}]
[null,null,null,null,null,null,null,null,null,null,null,null,null,null,null,null,null,null,null,null,null,null,null,null,null,null,null,null,null,null,null,null,null,null,null,null,null,null,null,null,null,null,null,null,null,null,null,null,null,null,null,null,null,null,null,null,null,null,null,null,null,null,null,null,null,null,null,null,null,null,null,null,null,null,null,null,null,null,null,"Anmerkungen"]
[null,null,null,null,null,null,null,null,null,null,null,null,null,null,null,null,null,null,null,null,null,null,null,null,null,null,null,null,null,null,null,null,null,null,null,null,null,null,null,null,null,null,null,null,null,null,null,null,null,null,null,null,null,null,null,null,null,null,null,null,null,null,null,null,null,null,null,null,null,null,null,null,null,null,null,null,null,null,null,"Für Zeilenumbruch drücken Sie ALT + ENTER!\nUm einen Text aus der Zwischenablage einzufügen, machen Sie zuerst einen Doppelklick in dieses Feld!"]

{"sheet":"Abrechnung","index":2,"n_rows":24,"n_cols":17,"rows_kept":24,"cut":false,"hidden":true,"merged":[[19,15,19,16]]}
[]
[null,"ABRECHNUNG "]
[]
[]
[]
[null,"KOSTENÜBERSICHT DES GESAMTPROJEKTS"]
[null,null,"Personal-\naufwand \ngesamt","Räumliche/\ntechnische Ausstattung gesamt","Sonstiger Aufwand gesamt","Ausbildungs-\nbeihilfe","Unterkunft und Verpflegung","Kinder-\nbetreuung","TN-bezogene Kosten","Projekt-\nnebenkosten gesamt","Erträge/\nFörderungen","PROJEKT-GESAMTKOSTEN"]
[null,"Kalkulation",{"$f":"SUMIF($B$21:$B$2005,$B8,C$21:C$2005)","v":0},0,0,0,0,0,0,0,null,{"$f":"SUMIF($B$21:$B$2005,$B8,L$21:L$2005)","v":0}]
[null,"%-Änderung",0,0,0,null,null,null,null,null,null,{"$f":"SUMIF($B$21:$B$2005,$B9,L$21:L$2005)","v":0}]
[null,"sonst. Abw.",0,0,0,0,0,0,0,0,{"$f":"SUMIF($B$21:$B$2005,$B10,K$21:K$2005)","v":0},{"$f":"SUMIF($B$21:$B$2005,$B10,L$21:L$2005)","v":0}]
[null,"IST-Kosten",0,0,0,0,0,0,0,0,{"$f":"SUMIF($B$21:$B$2005,$B11,K$21:K$2005)","v":0},{"$f":"SUMIF($B$21:$B$2005,$B11,L$21:L$2005)","v":0}]
[]
[]
[]
[]
[]
[null,"KOSTENÜBERSICHT DER EINZELMASSNAHMEN"]
[null,{"$f":"INDIRECT(\"'\" &$T18&\"'!BF11\")","v":{"$error":"#REF!"}},null,null,null,null,null,null,null,null,null,{"$f":"IF(ISERROR(INDIRECT(\"'\"&T18&\"'!BG11\")),\"\",INDIRECT(\"'\"&T18&\"'!BG11\"))","v":""}]
[]
[null,null,"Personal-\naufwand \ngesamt","Räumliche/\ntechnische Ausstattung gesamt","Sonstiger Aufwand gesamt","Ausbildungs-\nbeihilfe","Unterkunft und Verpflegung","Kinder-\nbetreuung","TN-bezogene Kosten","Maßnahmen-\nnebenkosten gesamt","Erträge/\nFörderungen","MASSNAHMEN-GESAMTKOSTEN"]
[null,"Kalkulation",{"$f":"IF(ISERROR(INDIRECT(\"'\" & $T21 & \"'!BD14\")),\"\",INDIRECT(\"'\" & $T21 & \"'!BD14\"))","v":""},{"$f":"IF(ISERROR(INDIRECT(\"'\" & $T21 & \"'!BD15\")),\"\",INDIRECT(\"'\" & $T21 & \"'!BD15\"))","v":""},{"$f":"IF(ISERROR(INDIRECT(\"'\" & $T21 & \"'!BD16\")),\"\",INDIRECT(\"'\" & $T21 & \"'!BD16\"))","v":""},{"$f":"IF(ISERROR(INDIRECT(\"'\" & $T21 & \"'!BF13\")),\"\",INDIRECT(\"'\" & $T21 & \"'!BF13\"))","v":""},{"$f":"IF(ISERROR(INDIRECT(\"'\" & $T21 & \"'!BF14\")),\"\",INDIRECT(\"'\" & $T21 & \"'!BF14\"))","v":""},{"$f":"IF(ISERROR(INDIRECT(\"'\" & $T21 & \"'!BF15\")),\"\",INDIRECT(\"'\" & $T21 & \"'!BF15\"))","v":""},{"$f":"IF(ISERROR(INDIRECT(\"'\" & $T21 & \"'!BF16\")),\"\",INDIRECT(\"'\" & $T21 & \"'!BF16\"))","v":""},{"$f":"IF(ISERROR(INDIRECT(\"'\" & $T21 & \"'!BL15\")),\"\",INDIRECT(\"'\" & $T21 & \"'!BL15\"))","v":""},null,{"$f":"IF(ISERROR(INDIRECT(\"'\" & $T21 & \"'!BL16\")),\"\",INDIRECT(\"'\" & $T21 & \"'!BL16\"))","v":""},null,null,null,null,{"$f":"IF(O21=0,\"\",P21/O21)","v":""}]
[null,"%-Änderung",{"$f":"IF(ISERROR(INDIRECT(\"'\" & $T22 & \"'!CF11\")),0,INDIRECT(\"'\" & $T22 & \"'!CF11\"))","v":0},{"$f":"IF(ISERROR(INDIRECT(\"'\" & $T22 & \"'!CF12\")),0,INDIRECT(\"'\" & $T22 & \"'!CF12\"))","v":0},{"$f":"IF(ISERROR(INDIRECT(\"'\" & $T22 & \"'!CF13\")),0,INDIRECT(\"'\" & $T22 & \"'!CF13\"))","v":0},null,null,null,null,null,null,{"$f":"SUM(C22:E22)","v":0}]
[null,"sonst. Abw.",{"$f":"IF(ISERROR(INDIRECT(\"'\" & $T23 & \"'!CH13\")),\"\",INDIRECT(\"'\" & $T23 & \"'!CH13\"))","v":""},{"$f":"IF(ISERROR(INDIRECT(\"'\" & $T23 & \"'!CJ17\")),\"\",INDIRECT(\"'\" & $T23 & \"'!CJ17\"))","v":""},{"$f":"IF(ISERROR(INDIRECT(\"'\" & $T23 & \"'!CH14\")),\"\",INDIRECT(\"'\" & $T23 & \"'!CH14\"))","v":""},{"$f":"IF(ISERROR(INDIRECT(\"'\" & $T23 & \"'!CH15\")),\"\",INDIRECT(\"'\" & $T23 & \"'!CH15\"))","v":""},{"$f":"IF(ISERROR(INDIRECT(\"'\" & $T23 & \"'!CH16\")),\"\",INDIRECT(\"'\" & $T23 & \"'!CH16\"))","v":""},{"$f":"IF(ISERROR(INDIRECT(\"'\" & $T23 & \"'!CH17\")),\"\",INDIRECT(\"'\" & $T23 & \"'!CH17\"))","v":""},{"$f":"IF(ISERROR(INDIRECT(\"'\" & $T23 & \"'!CH18\")),\"\",INDIRECT(\"'\" & $T23 & \"'!CH18\"))","v":""},{"$f":"IF(ISERROR(INDIRECT(\"'\" & $T23 & \"'!CJ12\")),\"\",INDIRECT(\"'\" & $T23 & \"'!CJ12\"))","v":""},{"$f":"IF(ISERROR(INDIRECT(\"'\" & $T23 & \"'!CJ14\")),\"\",INDIRECT(\"'\" & $T23 & \"'!CJ14\"))","v":""},{"$f":"IF(ISERROR(INDIRECT(\"'\" & $T23 & \"'!CJ16\")),\"\",INDIRECT(\"'\" & $T23 & \"'!CJ16\"))","v":""}]
[null,"IST-Kosten",{"$f":"IF(ISERROR(C21+C22+C23),\"\",C21+C22+C23)","v":""},{"$f":"IF(ISERROR(D21+D22+D23),\"\",D21+D22+D23)","v":""},"","","","","","",{"$f":"IF(ISERROR(K23),\"\",K23)","v":""},{"$f":"IF(ISERROR(L21+L22+L23),\"\",L21+L22+L23)","v":""}]

{"sheet":"1_MusterMA_","index":3,"n_rows":587,"n_cols":89,"rows_kept":587,"cut":false,"hidden":false,"merged":[[22,5,22,14],[25,5,25,15],[26,9,26,10],[27,9,27,10],[27,24,27,25],[28,5,28,6],[28,9,28,10],[102,27,102,28],[102,33,102,34],[103,33,103,34],[104,26,104,28],[104,33,104,34],[105,26,105,28],[29,5,29,6],[29,9,29,10],[30,5,30,6],[30,9,30,10],[52,1,52,15],[100,30,100,38],[116,35,116,39],[117,35,117,39],[118,35,118,39],[119,35,119,39],[120,35,120,39],[121,35,121,39],[109,32,109,34],[111,35,111,39],[112,35,112,39],[113,35,113,39],[114,35,114,39],[115,35,115,39],[128,35,128,39],[129,35,129,39],[130,35,130,39],[131,35,131,39],[132,35,132,39],[133,35,133,39],[122,35,122,39],[123,35,123,39],[124,35,124,39],[125,35,125,39],[126,35,126,39],[127,35,127,39],[140,35,140,39],[141,35,141,39],[142,35,142,39],[143,35,143,39],[144,35,144,39],[145,35,145,39],[134,35,134,39],[135,35,135,39],[136,35,136,39],[137,35,137,39],[138,35,138,39],[139,35,139,39],[152,35,152,39],[153,35,153,39],[154,35,154,39],[155,35,155,39],[156,35,156,39],[157,35,157,39],[146,35,146,39],[147,35,147,39],[148,35,148,39],[149,35,149,39],[150,35,150,39],[151,35,151,39],[164,35,164,39],[165,35,165,39],[166,35,166,39],[167,35,167,39],[168,35,168,39],[169,35,169,39],[158,35,158,39],[159,35,159,39],[160,35,160,39],[161,35,161,39],[162,35,162,39],[163,35,163,39],[176,35,176,39],[177,35,177,39],[178,35,178,39],[179,35,179,39],[180,35,180,39],[181,35,181,39],[170,35,170,39],[171,35,171,39],[172,35,172,39],[173,35,173,39],[174,35,174,39],[175,35,175,39],[188,35,188,39],[189,35,189,39],[190,35,190,39],[191,35,191,39],[192,35,192,39],[193,35,193,39],[182,35,182,39],[183,35,183,39],[184,35,184,39],[185,35,185,39],[186,35,186,39],[187,35,187,39],[200,35,200,39],[201,35,201,39],[202,35,202,39],[203,35,203,39],[204,35,204,39],[205,35,205,39],[194,35,194,39],[195,35,195,39],[196,35,196,39],[197,35,197,39],[198,35,198,39],[199,35,199,39],[212,35,212,39],[213,35,213,39],[214,35,214,39],[215,35,215,39],[216,35,216,39],[217,35,217,39],[206,35,206,39],[207,35,207,39],[208,35,208,39],[209,35,209,39],[210,35,210,39],[211,35,211,39],[224,35,224,39],[225,35,225,39],[226,35,226,39],[227,35,227,39],[228,35,228,39],[229,35,229,39],[218,35,218,39],[219,35,219,39],[220,35,220,39],[221,35,221,39],[222,35,222,39],[223,35,223,39],[236,35,236,39],[237,35,237,39],[238,35,238,39],[239,35,239,39],[240,35,240,39],[241,35,241,39],[230,35,230,39],[231,35,231,39],[232,35,232,39],[233,35,233,39],[234,35,234,39],[235,35,235,39],[248,35,248,39],[249,35,249,39],[250,35,250,39],[251,35,251,39],[252,35,252,39],[253,35,253,39],[242,35,242,39],[243,35,243,39],[244,35,244,39],[245,35,245,39],[246,35,246,39],[247,35,247,39],[260,35,260,39],[261,35,261,39],[262,35,262,39],[263,35,263,39],[264,35,264,39],[265,35,265,39],[254,35,254,39],[255,35,255,39],[256,35,256,39],[257,35,257,39],[258,35,258,39],[259,35,259,39],[272,35,272,39],[273,35,273,39],[274,35,274,39],[275,35,275,39],[276,35,276,39],[277,35,277,39],[266,35,266,39],[267,35,267,39],[268,35,268,39],[269,35,269,39],[270,35,270,39],[271,35,271,39],[284,35,284,39],[285,35,285,39],[286,35,286,39],[287,35,287,39],[288,35,288,39],[304,54,304,58],[278,35,278,39],[279,35,279,39],[280,35,280,39],[281,35,281,39],[282,35,282,39],[283,35,283,39],[322,53,322,54],[326,53,326,54],[327,53,327,54],[333,53,333,56],[334,53,334,56],[337,53,337,56],[304,59,304,61],[309,53,309,54],[310,53,310,54],[314,53,314,54],[315,53,315,54],[321,53,321,54],[355,58,355,59],[508,82,508,87],[508,88,508,89],[512,83,512,86],[513,83,513,86],[520,84,520,86],[338,53,338,56],[341,53,341,56],[342,53,342,56],[345,53,345,56],[346,53,346,56],[353,58,353,59],[534,85,534,86],[541,80,541,82],[541,84,541,86],[542,80,542,82],[542,84,542,86],[549,80,549,82],[549,84,549,86],[521,84,521,86],[526,82,526,85],[527,82,527,85],[528,82,528,85],[529,82,529,85],[533,85,533,86],[561,80,561,83],[561,85,561,86],[562,80,562,83],[562,85,562,86],[565,80,565,83],[565,85,565,86],[550,80,550,82],[550,84,550,86],[557,80,557,83],[557,85,557,86],[558,80,558,83],[558,85,558,86],[586,79,587,89],[578,80,578,83],[578,85,578,86],[579,80,579,83],[579,85,579,86],[584,84,584,86],[584,87,584,89],[566,80,566,83],[566,85,566,86],[569,80,569,83],[569,85,569,86],[570,80,570,83],[570,85,570,86]]}
[]
[]
[]
[]
[]
[]
[]
[]
[]
[]
[null,null,null,null,null,null,null,"Status:",null,null,null,null,null,null,null,null,null,null,null,null,null,null,null,null,null,null,null,null,null,null,null,null,null,null,null,null,null,null,null,null,null,null,null,null,null,null,null,null,null,null,null,null,null,null,null,null,"Maßnahme",{"$f":"F23","v":"1_MusterMA_"},{"$f":"P23","v":1},null,null,null,null,null,null,null,null,null,null,null,null,null,null,null,null,null,null,null,null,null,"AbwMSTN",{"$f":"CI529","v":0},"PrAbwPersAufw",{"$f":"CH11*CD13","v":{"$error":"#DIV/0!"}},"PersKOltKalk",{"$f":"BF320","v":0}]
[null,null,null,null,null,null,null,"Bereich:",null,null,null,null,null,null,"Druckkopie:",null,null,null,null,null,null,null,null,null,null,null,null,null,null,null,null,null,"TESTBeginn",null,null,null,null,null,null,null,null,null,null,null,null,null,"Stoppdatum","2035-12-31",{"$f":"TODAY()","v":"2025-02-21"},"TEST-Debugger",null,null,null,null,"GruppentrainerInnen",{"$f":"BF313","v":0},null,null,null,null,null,null,"GESAMTMSTN",{"$f":"BD306","v":0},null,null,null,null,null,null,null,null,null,null,null,null,null,null,null,null,"MK_lt_Kalkulation",{"$f":"BF353","v":0},"PrAbwRäumltech",{"$f":"BD15*CD13","v":{"$error":"#DIV/0!"}},"StornoMSTN",{"$f":"CF524","v":0},"MaNKOgesamt",{"$f":"CG574","v":0}]
[null,null,null,null,null,null,null,"FlagMABlatt:","MABlatt",null,null,null,null,null,null,null,null,null,null,null,null,null,null,null,null,null,null,null,null,null,null,null,"TESTEnde",null,null,null,null,null,null,null,null,null,null,null,null,null,null,null,null,null,null,null,null,null,"EinzeltrainerInnen",{"$f":"BF318","v":0},"Ausbildungsbeihilfe",{"$f":"BF337","v":0},null,null,null,null,"MaßnahmenKO",{"$f":"BF353","v":0},null,null,null,null,null,null,null,null,null,null,null,null,null,null,null,null,"ProzentABW",{"$f":"CD11/CD12","v":{"$error":"#DIV/0!"}},"PrAbwSO",{"$f":"BD16*CD13","v":{"$error":"#DIV/0!"}},"AbwTr",{"$f":"CF537","v":0}]
[null,null,null,null,null,null,null,null,null,null,null,null,null,null,null,null,null,null,null,null,null,null,null,null,null,null,null,null,null,null,null,null,"letzter Sonntag",{"$f":"7-WEEKDAY(AH13,2)+AH13","v":"1900-01-01"},null,null,null,null,null,null,null,null,null,null,null,null,null,null,null,null,null,null,null,null,"PersAufwandGesamt",{"$f":"BF320","v":0},"Unterkunft und Verpflegung",{"$f":"BF341","v":0},null,null,null,null,"Einheitspreis/MSTN",{"$f":"BF354","v":""},null,null,null,null,null,null,null,null,null,null,null,null,null,null,null,null,"MOKoGesamt",{"$f":"BF358","v":0},null,null,"Sonst Aufwand",{"$f":"CF553","v":0},"Erträge",{"$f":"CG582","v":0}]
[null,null,null,null,null,null,null,null,null,null,null,null,null,null,null,null,null,null,null,null,null,null,null,null,null,null,null,null,null,null,null,null,"zeige immer SO als Ende der Woche","nein",null,null,null,null,null,null,null,null,null,null,null,null,"Debugger",{"$f":"IF(AV12=\"\",1,IF(AV12<=AW12,1,0))","v":0},"0…ok, 1…Datumüberlauf",null,null,null,null,null,"räumliche/techn Ausstattung gesamt",{"$f":"BF325","v":0},"Kinderbetreuung",{"$f":"BF345","v":0},null,null,null,null,"MA-NebenKo",{"$f":"BF356","v":0},null,null,null,null,null,null,null,null,null,null,null,null,null,null,null,null,"MSTNZeitplanKalk",{"$f":"MSTNGesamt_Zeitplan","v":0},null,null,"Ausbildungsbeihilfe",{"$f":"CG561","v":0}]
[null,null,null,null,null,null,null,null,null,null,null,null,null,null,null,null,null,null,null,null,null,null,null,null,null,null,null,null,null,null,null,null,null,null,null,null,null,null,null,null,null,null,null,null,null,"Dateifunktion beschränkt auf Stoppdatum, sonst mögliche fehlerhafte Werte",null,null,null,null,null,null,null,null,"Sonstiger Aufwand",{"$f":"BF330","v":0},"TeilBezKosten",{"$f":"BF349","v":0},null,null,null,null,"MA-GesamtKO",{"$f":"BF358","v":0},null,null,null,null,null,null,null,null,null,null,null,null,null,null,null,null,null,"Zeilenpositionen:",null,null,"Unterkunft Verpflg.",{"$f":"CG565","v":0},"GESAMTAlleAbw/Erträge",{"$f":"CF537+CF545+CF553+CG574+CG582","v":0}]
[null,null,null,null,null,null,null,null,null,null,null,null,null,null,null,null,null,null,null,null,null,null,null,null,null,null,null,null,"Samstag Unter","Sonntag Unter","letzter Sonntag Unterricht",null,null,null,null,null,null,null,null,null,null,null,null,null,null,null,"Kalkulation ohne Wettbewerb",null,null,null,null,null,null,"Zeilenpositionen:","Abkürzungen:",{"$f":"MATCH(BC17,BA1:BA3009,0)","v":358},null,null,null,null,null,null,null,null,null,null,null,null,null,null,null,null,null,null,null,null,null,null,null,null,null,"Durchführungsbericht",{"$f":"MATCH(CD17,CB:CB,0)","v":506},null,"Kinderbetr.",{"$f":"CG569","v":0},"räumlich/techn. Ausst.",{"$f":"CF545","v":0}]
[null,null,null,null,null,null,null,null,null,null,null,null,null,null,null,null,null,null,null,null,null,null,null,null,null,null,null,null,{"$f":"AD105","v":"ja"},"nein","nein",null,null,null,null,null,null,null,null,null,null,null,null,null,null,null,null,null,null,null,null,null,null,null,null,null,null,null,null,null,null,null,null,null,null,null,null,null,null,null,null,null,null,null,null,null,null,null,null,null,null,"Anmerkungen",{"$f":"MATCH(CD18,CB:CB,0)","v":586},null,"TnBezKO",{"$f":"CG573","v":0}]
[]
[]
[null,"MASSNAHMENBESCHREIBUNG (organisatorisch)"]
[]
[null,null,null,null,"Bezeichnung der Maßnahme:","1_MusterMA_",null,null,null,null,null,null,null,null,null,1]
[]
[]
[null,null,null,null,"Veranstaltungsort:"]
[]
[]
[null,null,null,null,"TeilnehmerInnen ",null,null,null,"Gesamt MSTN "]
[null,null,null,null,"Tageskapazität ",null,null,null,"Veranstaltungsbeginn ",null,null,{"$f":"IF(J30=\"\",\"\",J30)","v":""},{"$f":"IF(WEEKDAY(MassnahmeBeginn,2)=7,\"<– Achtung: Eine Maßnahme kann nicht am Sonntag beginnen!\",\"\")","v":""}]
[null,null,null,null,"TeilnehmerInnen/TrainerInnen-Schlüssel ",null,null,null,"Veranstaltungsende ",null,null,{"$f":"IF(J31=\"\",\"\",J31)","v":""},{"$f":"IF(WEEKDAY(MassnahmeEnde,2)=7,\"<– Achtung: Eine Maßnahme kann nicht am Sonntag enden! \",\"\")&IF(MassnahmeEnde<MassnahmeBeginn,\"<– Achtung: Ende der Maßnahme vor Beginn!\",\"\")","v":""},null,null,null,null,null,null,null,null,null,null,null,null,null,null,null,null,null,"gonk"]
[]
[null,"DARSTELLUNG EINER NORMWOCHE"]
[null,"Unterrichtszeit vormittags:",null,null,null,null,null,null,null,"Unterrichtszeit nachmittags:"]
[]
[null,"Mo von",null,"Uhr bis",null,"Uhr (=",{"$f":"IF(C36<>\"\",(E36-C36)*24,\"\")","v":""}," MS)",null,"Mo von",null,"Uhr bis",null,"Uhr (=",{"$f":"IF(K36<>\"\",(M36-K36)*24,\"\")","v":""}," MS)"]
[null,"Di von",null,"Uhr bis",null,"Uhr (=",""," MS)",null,"Di von",null,"Uhr bis",null,"Uhr (=",""," MS)"]
[null,"Mi von",null,"Uhr bis",null,"Uhr (=",""," MS)",null,"Mi von",null,"Uhr bis",null,"Uhr (=",""," MS)"]
[null,"Do von",null,"Uhr bis",null,"Uhr (=",""," MS)",null,"Do von",null,"Uhr bis",null,"Uhr (=",""," MS)"]
[null,"Fr von",null,"Uhr bis",null,"Uhr (=",""," MS)",null,"Fr von",null,"Uhr bis",null,"Uhr (=",""," MS)"]
[null,"Sa von",null,"Uhr bis",null,"Uhr (=",""," MS)",null,"Sa von",null,"Uhr bis",null,"Uhr (=",""," MS)"]
[]
[]
[]
[]
[]
[]
[null,null,null,null,null,"Maßnahmenstunden pro Woche: ",{"$f":"SUM(G36:G46)+SUM(O36:O46)","v":0}," MS"]
[null,null,null,null,null,null,null,null,null,null,null,null,null,null,null,"Abk.: MSTN = Maßnahmenstunden TeilnehmerInnen"]
[]
[null,"Anmerkungen"]
[]
[null,"Für Zeilenumbruch drücken Sie ALT + ENTER!\nUm einen Text aus der Zwischenablage einzufügen, machen Sie zuerst einen Doppelklick in dieses Feld!"]
[]
[]
[]
[]
[]
[]
[]
[]
[]
[]
[]
[]
[]
[0]
[]
[]
[]
[]
[]
[]
[]
[]
[]
[]
[]
[]
[]
[]
[]
[]
[]
[]
[]
[]
[]
[]
[]
[]
[]
[]
[]
[]
[]
[]
[]
[]
[null,null,null,null,null,null,null,null,null,null,null,null,null,null,null,null,null,null,null,null,null,null,null,null,null,null,null,"ZEITPLAN"]
[null,null,null,null,null,null,null,null,null,null,null,null,null,null,null,null,null,null,null,null,null,null,null,null,null,null,null,null,null,"Bezeichnung der Maßnahme: ",{"$f":"F23","v":"1_MusterMA_"},null,null,null,null,null,null,null,null,{"$f":"P23","v":1}]
[]
[null,null,null,null,null,null,null,null,null,null,null,null,null,null,null,null,null,null,null,null,null,null,null,null,null,null,null,"Veranstaltungsbeginn ",null,{"$f":"IF(AH12<>\"\",AH12,MassnahmeBeginn)","v":"00:00:00"},null,null,"Veranstaltungsende ",{"$f":"IF(MassnahmeEnde<>\"\",MassnahmeEnde,AH13)","v":"00:00:00"},null,null,null,"Gesamt MSTN lt. Beschreibung ",{"$f":"MSTNGesamt","v":0}]
[null,null,null,null,null,null,null,null,null,null,null,null,null,null,null,null,null,null,null,null,null,null,null,null,null,null,null,null,null,{"$f":"AD103","v":"00:00:00"},null,null,null,{"$f":"AH103","v":"00:00:00"}]
[null,null,null,null,null,null,null,null,null,null,null,null,null,null,null,null,null,null,null,null,null,null,null,null,null,null,"Samstag Unterricht ",null,null,"ja",null,null,"Anzahl Wochen ",{"$f":"IF(AV15=1,0,IF(AB113=\"\",\"\",MAX(AB113:AB289)))","v":1}]
[null,null,null,null,null,null,null,null,null,null,null,null,null,null,null,null,null,null,null,null,null,null,null,null,null,null,"Sonntag Unterricht ",null,null,"ja"]
[null,null,null,null,null,null,null,null,null,null,null,null,null,null,null,null,null,null,null,null,null,null,null,null,null,null,null,null,null,{"$f":"IF(AND(AD105=\"nein\",WEEKDAY(AD103)=7,AD103>30000),\"Beginn am SA! \",\"\") & IF(AND(AD105=\"nein\",WEEKDAY(AH103)=7,AH103>30000),\"Ende am SA! \",\"\")","v":""}]
[]
[]
[null,null,null,null,null,null,null,null,null,null,null,null,null,null,null,null,null,null,null,null,null,null,null,null,null,null,null,null,null,null,null,null,"Maßnahmenstunden"]
[null,null,null,null,null,null,null,null,null,null,null,null,null,null,null,null,null,null,null,null,null,null,null,null,null,null,null,null,null,"Summe:",{"$f":"SUM(INDIRECT(\"AE113:AE\" & 113+Anzahl_Wochen-1))","v":0},{"$f":"SUM(INDIRECT(\"AF113:AF\" & 113+Anzahl_Wochen-1))","v":1},{"$f":"SUM(INDIRECT(\"AG113:AG\" & 113+Anzahl_Wochen-1))","v":0},{"$f":"SUM(INDIRECT(\"AH113:AH\" & 113+Anzahl_Wochen-1))","v":0},{"$f":"SUM(INDIRECT(\"AI113:AI\" & 113+Anzahl_Wochen-1))","v":0},{"$f":"IF(AI111<>$AM$103,\"–> Achtung: Diese Summe muss mit den Gesamt MSTN [\" & AM103 & \"] übereinstimmen!\",\"\")","v":""}]
[null,null,null,null,null,null,null,null,null,null,null,null,null,null,null,null,null,null,null,null,null,null,null,null,null,null,null,"Woche der Maßnahme","Beginn","Ende",{"$f":"\"unterrichtsfreie\" & CHAR(10)   & \"Tage\" & CHAR(10) & IF(AD105=\"ja\",\"(außer So)\",\"(außer Sa, So)\")","v":"unterrichtsfreie\nTage\n(außer So)"},"Maßnahmentage \ngesamt","Maßnahmenstunden\nin dieser Woche","Maßnahmenstunden GruppentrainerInnen","Maßnahmenstunden TeilnehmerInnen gesamt \n(Gesamt MSTN) ","Bemerkung",null,null,null,null,null,null,null,null,"Maßnahmentage","Feiertag\nrelevant in\nIntervall",null,"Feiertage\nrelevant","Feiertage","Achtung: keine Zwischenüberschriften!"]
[null,null,null,null,null,null,null,null,null,null,null,null,null,null,null,null,null,null,null,null,null,null,null,null,null,null,null,{"$f":"IF(AC113<>\"\",1,\"\")","v":1},{"$f":"AD103","v":"00:00:00"},{"$f":"IF(AH$15=\"ja\",7-WEEKDAY(AC113,2)+AC113,MIN(AC113+7-WEEKDAY(AC113,2),AH$103))","v":"00:00:00"},{"$f":"AT113","v":0},{"$f":"MAX(AS113-AE113,0)","v":1},null,null,null,null,null,null,null,null,null,null,null,null,{"$f":"AD113-AC113+IF(WEEKDAY(AD113)<>1,1,0)-IF(AND(WEEKDAY(AD113,2)>=6,AD$105=\"nein\"),1,0)","v":1},{"$f":"SUMPRODUCT((AC113<=AV$113:AV$367)*(AD113>=AV$113:AV$367))","v":0},null,{"$f":"IF(AD$105=\"ja\",IF(WEEKDAY(AW113)=1,\"-\",AW113),IF(OR(WEEKDAY(AW113)=1,WEEKDAY(AW113)=7),\"-\",AW113))","v":"2019-01-01"},"2019-01-01","Neujahrstag",{"$f":"YEAR(AW113)","v":2019}]
[null,null,null,null,null,null,null,null,null,null,null,null,null,null,null,null,null,null,null,null,null,null,null,null,null,null,null,{"$f":"IF(ISERROR(IF(AC114<>\"\",AB113+1,0)),\"\",IF(AC114<>\"\",AB113+1,0))","v":0},{"$f":"IF(AD113>=AH103,\"\",AC113+7-WEEKDAY(AD103,2)+1)","v":""},{"$error":"#VALUE!"},{"$f":"AT114","v":{"$error":"#VALUE!"}},{"$f":"MAX(AS114-AE114,0)","v":{"$error":"#VALUE!"}},null,null,null,null,null,null,null,null,null,null,null,null,{"$f":"AD114-AC114+IF(WEEKDAY(AD114)<>1,1,0)-IF(AND(WEEKDAY(AD114,2)>=6,AD$105=\"nein\"),1,0)","v":{"$error":"#VALUE!"}},{"$f":"SUMPRODUCT((AC114<=AV$113:AV$367)*(AD114>=AV$113:AV$367))","v":{"$error":"#VALUE!"}},null,{"$f":"IF(AD$105=\"ja\",IF(WEEKDAY(AW114)=1,\"-\",AW114),IF(OR(WEEKDAY(AW114)=1,WEEKDAY(AW114)=7),\"-\",AW114))","v":"-"},"2019-01-06","Heilige Drei Könige",{"$f":"YEAR(AW114)","v":2019}]
[null,null,null,null,null,null,null,null,null,null,null,null,null,null,null,null,null,null,null,null,null,null,null,null,null,null,null,"",{"$f":"IF(AD114>=AH$103,\"\",AC114+7)","v":{"$error":"#VALUE!"}},{"$error":"#VALUE!"},{"$error":"#VALUE!"},{"$error":"#VALUE!"},null,null,null,null,null,null,null,null,null,null,null,null,{"$error":"#VALUE!"},{"$f":"SUMPRODUCT((AC115<=AV$113:AV$367)*(AD115>=AV$113:AV$367))","v":{"$error":"#VALUE!"}},null,"2019-04-22","2019-04-22","Ostermontag",2019]
[null,null,null,null,null,null,null,null,null,null,null,null,null,null,null,null,null,null,null,null,null,null,null,null,null,null,null,"",{"$error":"#VALUE!"},{"$error":"#VALUE!"},{"$error":"#VALUE!"},{"$error":"#VALUE!"},null,null,null,null,null,null,null,null,null,null,null,null,{"$error":"#VALUE!"},{"$f":"SUMPRODUCT((AC116<=AV$113:AV$367)*(AD116>=AV$113:AV$367))","v":{"$error":"#VALUE!"}},null,"2019-05-01","2019-05-01","Staatsfeiertag",2019]
[null,null,null,null,null,null,null,null,null,null,null,null,null,null,null,null,null,null,null,null,null,null,null,null,null,null,null,"",{"$error":"#VALUE!"},{"$error":"#VALUE!"},{"$error":"#VALUE!"},{"$error":"#VALUE!"},null,null,null,null,null,null,null,null,null,null,null,null,{"$error":"#VALUE!"},{"$f":"SUMPRODUCT((AC117<=AV$113:AV$367)*(AD117>=AV$113:AV$367))","v":{"$error":"#VALUE!"}},null,"2019-05-30","2019-05-30","Christi Himmelfahrt",2019]
[null,null,null,null,null,null,null,null,null,null,null,null,null,null,null,null,null,null,null,null,null,null,null,null,null,null,null,"",{"$error":"#VALUE!"},{"$error":"#VALUE!"},{"$error":"#VALUE!"},{"$error":"#VALUE!"},null,null,null,null,null,null,null,null,null,null,null,null,{"$error":"#VALUE!"},{"$f":"SUMPRODUCT((AC118<=AV$113:AV$367)*(AD118>=AV$113:AV$367))","v":{"$error":"#VALUE!"}},null,"2019-06-10","2019-06-10","Pfingstmontag",2019]
[null,null,null,null,null,null,null,null,null,null,null,null,null,null,null,null,null,null,null,null,null,null,null,null,null,null,null,"",{"$error":"#VALUE!"},{"$error":"#VALUE!"},{"$error":"#VALUE!"},{"$error":"#VALUE!"},null,null,null,null,null,null,null,null,null,null,null,null,{"$error":"#VALUE!"},{"$f":"SUMPRODUCT((AC119<=AV$113:AV$367)*(AD119>=AV$113:AV$367))","v":{"$error":"#VALUE!"}},null,"2019-06-20","2019-06-20","Fronleichnam",2019]
[null,null,null,null,null,null,null,null,null,null,null,null,null,null,null,null,null,null,null,null,null,null,null,null,null,null,null,"",{"$error":"#VALUE!"},{"$error":"#VALUE!"},{"$error":"#VALUE!"},{"$error":"#VALUE!"},null,null,null,null,null,null,null,null,null,null,null,null,{"$error":"#VALUE!"},{"$f":"SUMPRODUCT((AC120<=AV$113:AV$367)*(AD120>=AV$113:AV$367))","v":{"$error":"#VALUE!"}},null,"2019-08-15","2019-08-15","Mariä Himmelfahrt",2019]
[null,null,null,null,null,null,null,null,null,null,null,null,null,null,null,null,null,null,null,null,null,null,null,null,null,null,null,"",{"$error":"#VALUE!"},{"$error":"#VALUE!"},{"$error":"#VALUE!"},{"$error":"#VALUE!"},null,null,null,null,null,null,null,null,null,null,null,null,{"$error":"#VALUE!"},{"$f":"SUMPRODUCT((AC121<=AV$113:AV$367)*(AD121>=AV$113:AV$367))","v":{"$error":"#VALUE!"}},null,"2019-10-26","2019-10-26","Nationalfeiertag",2019]
[null,null,null,null,null,null,null,null,null,null,null,null,null,null,null,null,null,null,null,null,null,null,null,null,null,null,null,"",{"$error":"#VALUE!"},{"$error":"#VALUE!"},{"$error":"#VALUE!"},{"$error":"#VALUE!"},null,null,null,null,null,null,null,null,null,null,null,null,{"$error":"#VALUE!"},{"$f":"SUMPRODUCT((AC122<=AV$113:AV$367)*(AD122>=AV$113:AV$367))","v":{"$error":"#VALUE!"}},null,"2019-11-01","2019-11-01","Allerheiligen",2019]
[null,null,null,null,null,null,null,null,null,null,null,null,null,null,null,null,null,null,null,null,null,null,null,null,null,null,null,"",{"$error":"#VALUE!"},{"$error":"#VALUE!"},{"$error":"#VALUE!"},{"$error":"#VALUE!"},null,null,null,null,null,null,null,null,null,null,null,null,{"$error":"#VALUE!"},{"$f":"SUMPRODUCT((AC123<=AV$113:AV$367)*(AD123>=AV$113:AV$367))","v":{"$error":"#VALUE!"}},null,"-","2019-12-08","Mariä Empfängnis",2019]
[null,null,null,null,null,null,null,null,null,null,null,null,null,null,null,null,null,null,null,null,null,null,null,null,null,null,null,"",{"$error":"#VALUE!"},{"$error":"#VALUE!"},{"$error":"#VALUE!"},{"$error":"#VALUE!"},null,null,null,null,null,null,null,null,null,null,null,null,{"$error":"#VALUE!"},{"$f":"SUMPRODUCT((AC124<=AV$113:AV$367)*(AD124>=AV$113:AV$367))","v":{"$error":"#VALUE!"}},null,"2019-12-24","2019-12-24","unterrichtsfrei",2019]
[null,null,null,null,null,null,null,null,null,null,null,null,null,null,null,null,null,null,null,null,null,null,null,null,null,null,null,"",{"$error":"#VALUE!"},{"$error":"#VALUE!"},{"$error":"#VALUE!"},{"$error":"#VALUE!"},null,null,null,null,null,null,null,null,null,null,null,null,{"$error":"#VALUE!"},{"$f":"SUMPRODUCT((AC125<=AV$113:AV$367)*(AD125>=AV$113:AV$367))","v":{"$error":"#VALUE!"}},null,"2019-12-25","2019-12-25","Christtag",2019]
[null,null,null,null,null,null,null,null,null,null,null,null,null,null,null,null,null,null,null,null,null,null,null,null,null,null,null,"",{"$error":"#VALUE!"},{"$error":"#VALUE!"},{"$error":"#VALUE!"},{"$error":"#VALUE!"},null,null,null,null,null,null,null,null,null,null,null,null,{"$error":"#VALUE!"},{"$f":"SUMPRODUCT((AC126<=AV$113:AV$367)*(AD126>=AV$113:AV$367))","v":{"$error":"#VALUE!"}},null,"2019-12-26","2019-12-26","Stephanitag",2019]
[null,null,null,null,null,null,null,null,null,null,null,null,null,null,null,null,null,null,null,null,null,null,null,null,null,null,null,"",{"$error":"#VALUE!"},{"$error":"#VALUE!"},{"$error":"#VALUE!"},{"$error":"#VALUE!"},null,null,null,null,null,null,null,null,null,null,null,null,{"$error":"#VALUE!"},{"$f":"SUMPRODUCT((AC127<=AV$113:AV$367)*(AD127>=AV$113:AV$367))","v":{"$error":"#VALUE!"}},null,"2019-12-31","2019-12-31","unterrichtsfrei",2019]
[null,null,null,null,null,null,null,null,null,null,null,null,null,null,null,null,null,null,null,null,null,null,null,null,null,null,null,"",{"$error":"#VALUE!"},{"$error":"#VALUE!"},{"$error":"#VALUE!"},{"$error":"#VALUE!"},null,null,null,null,null,null,null,null,null,null,null,null,{"$error":"#VALUE!"},{"$f":"SUMPRODUCT((AC128<=AV$113:AV$367)*(AD128>=AV$113:AV$367))","v":{"$error":"#VALUE!"}},null,"2020-01-01","2020-01-01","Neujahrstag",2020]
[null,null,null,null,null,null,null,null,null,null,null,null,null,null,null,null,null,null,null,null,null,null,null,null,null,null,null,"",{"$error":"#VALUE!"},{"$error":"#VALUE!"},{"$error":"#VALUE!"},{"$error":"#VALUE!"},null,null,null,null,null,null,null,null,null,null,null,null,{"$error":"#VALUE!"},{"$f":"SUMPRODUCT((AC129<=AV$113:AV$367)*(AD129>=AV$113:AV$367))","v":{"$error":"#VALUE!"}},null,"2020-01-06","2020-01-06","Heilige Drei Könige",2020]
[null,null,null,null,null,null,null,null,null,null,null,null,null,null,null,null,null,null,null,null,null,null,null,null,null,null,null,"",{"$error":"#VALUE!"},{"$error":"#VALUE!"},{"$error":"#VALUE!"},{"$error":"#VALUE!"},null,null,null,null,null,null,null,null,null,null,null,null,{"$error":"#VALUE!"},{"$f":"SUMPRODUCT((AC130<=AV$113:AV$367)*(AD130>=AV$113:AV$367))","v":{"$error":"#VALUE!"}},null,"2020-04-13","2020-04-13","Ostermontag",2020]
[null,null,null,null,null,null,null,null,null,null,null,null,null,null,null,null,null,null,null,null,null,null,null,null,null,null,null,"",{"$error":"#VALUE!"},{"$error":"#VALUE!"},{"$error":"#VALUE!"},{"$error":"#VALUE!"},null,null,null,null,null,null,null,null,null,null,null,null,{"$error":"#VALUE!"},{"$f":"SUMPRODUCT((AC131<=AV$113:AV$367)*(AD131>=AV$113:AV$367))","v":{"$error":"#VALUE!"}},null,"2020-05-01","2020-05-01","Staatsfeiertag",2020]
[null,null,null,null,null,null,null,null,null,null,null,null,null,null,null,null,null,null,null,null,null,null,null,null,null,null,null,"",{"$error":"#VALUE!"},{"$error":"#VALUE!"},{"$error":"#VALUE!"},{"$error":"#VALUE!"},null,null,null,null,null,null,null,null,null,null,null,null,{"$error":"#VALUE!"},{"$f":"SUMPRODUCT((AC132<=AV$113:AV$367)*(AD132>=AV$113:AV$367))","v":{"$error":"#VALUE!"}},null,"2020-05-21","2020-05-21","Christi Himmelfahrt",2020]
[null,null,null,null,null,null,null,null,null,null,null,null,null,null,null,null,null,null,null,null,null,null,null,null,null,null,null,"",{"$error":"#VALUE!"},{"$error":"#VALUE!"},{"$error":"#VALUE!"},{"$error":"#VALUE!"},null,null,null,null,null,null,null,null,null,null,null,null,{"$error":"#VALUE!"},{"$f":"SUMPRODUCT((AC133<=AV$113:AV$367)*(AD133>=AV$113:AV$367))","v":{"$error":"#VALUE!"}},null,"2020-06-01","2020-06-01","Pfingstmontag",2020]
[null,null,null,null,null,null,null,null,null,null,null,null,null,null,null,null,null,null,null,null,null,null,null,null,null,null,null,"",{"$error":"#VALUE!"},{"$error":"#VALUE!"},{"$error":"#VALUE!"},{"$error":"#VALUE!"},null,null,null,null,null,null,null,null,null,null,null,null,{"$error":"#VALUE!"},{"$f":"SUMPRODUCT((AC134<=AV$113:AV$367)*(AD134>=AV$113:AV$367))","v":{"$error":"#VALUE!"}},null,"2020-06-11","2020-06-11","Fronleichnam",2020]
[null,null,null,null,null,null,null,null,null,null,null,null,null,null,null,null,null,null,null,null,null,null,null,null,null,null,null,"",{"$error":"#VALUE!"},{"$error":"#VALUE!"},{"$error":"#VALUE!"},{"$error":"#VALUE!"},null,null,null,null,null,null,null,null,null,null,null,null,{"$error":"#VALUE!"},{"$f":"SUMPRODUCT((AC135<=AV$113:AV$367)*(AD135>=AV$113:AV$367))","v":{"$error":"#VALUE!"}},null,"2020-08-15","2020-08-15","Mariä Himmelfahrt",2020]
[null,null,null,null,null,null,null,null,null,null,null,null,null,null,null,null,null,null,null,null,null,null,null,null,null,null,null,"",{"$error":"#VALUE!"},{"$error":"#VALUE!"},{"$error":"#VALUE!"},{"$error":"#VALUE!"},null,null,null,null,null,null,null,null,null,null,null,null,{"$error":"#VALUE!"},{"$f":"SUMPRODUCT((AC136<=AV$113:AV$367)*(AD136>=AV$113:AV$367))","v":{"$error":"#VALUE!"}},null,"2020-10-26","2020-10-26","Nationalfeiertag",2020]
[null,null,null,null,null,null,null,null,null,null,null,null,null,null,null,null,null,null,null,null,null,null,null,null,null,null,null,"",{"$error":"#VALUE!"},{"$error":"#VALUE!"},{"$error":"#VALUE!"},{"$error":"#VALUE!"},null,null,null,null,null,null,null,null,null,null,null,null,{"$error":"#VALUE!"},{"$f":"SUMPRODUCT((AC137<=AV$113:AV$367)*(AD137>=AV$113:AV$367))","v":{"$error":"#VALUE!"}},null,"-","2020-11-01","Allerheiligen",2020]
[null,null,null,null,null,null,null,null,null,null,null,null,null,null,null,null,null,null,null,null,null,null,null,null,null,null,null,"",{"$error":"#VALUE!"},{"$error":"#VALUE!"},{"$error":"#VALUE!"},{"$error":"#VALUE!"},null,null,null,null,null,null,null,null,null,null,null,null,{"$error":"#VALUE!"},{"$f":"SUMPRODUCT((AC138<=AV$113:AV$367)*(AD138>=AV$113:AV$367))","v":{"$error":"#VALUE!"}},null,"2020-12-08","2020-12-08","Mariä Empfängnis",2020]
[null,null,null,null,null,null,null,null,null,null,null,null,null,null,null,null,null,null,null,null,null,null,null,null,null,null,null,"",{"$error":"#VALUE!"},{"$error":"#VALUE!"},{"$error":"#VALUE!"},{"$error":"#VALUE!"},null,null,null,null,null,null,null,null,null,null,null,null,{"$error":"#VALUE!"},{"$f":"SUMPRODUCT((AC139<=AV$113:AV$367)*(AD139>=AV$113:AV$367))","v":{"$error":"#VALUE!"}},null,"2020-12-24","2020-12-24","unterrichtsfrei",2020]
[null,null,null,null,null,null,null,null,null,null,null,null,null,null,null,null,null,null,null,null,null,null,null,null,null,null,null,"",{"$error":"#VALUE!"},{"$error":"#VALUE!"},{"$error":"#VALUE!"},{"$error":"#VALUE!"},null,null,null,null,null,null,null,null,null,null,null,null,{"$error":"#VALUE!"},{"$f":"SUMPRODUCT((AC140<=AV$113:AV$367)*(AD140>=AV$113:AV$367))","v":{"$error":"#VALUE!"}},null,"2020-12-25","2020-12-25","Christtag",2020]
[null,null,null,null,null,null,null,null,null,null,null,null,null,null,null,null,null,null,null,null,null,null,null,null,null,null,null,"",{"$error":"#VALUE!"},{"$error":"#VALUE!"},{"$error":"#VALUE!"},{"$error":"#VALUE!"},null,null,null,null,null,null,null,null,null,null,null,null,{"$error":"#VALUE!"},{"$f":"SUMPRODUCT((AC141<=AV$113:AV$367)*(AD141>=AV$113:AV$367))","v":{"$error":"#VALUE!"}},null,"2020-12-26","2020-12-26","Stephanitag",2020]
[null,null,null,null,null,null,null,null,null,null,null,null,null,null,null,null,null,null,null,null,null,null,null,null,null,null,null,"",{"$error":"#VALUE!"},{"$error":"#VALUE!"},{"$error":"#VALUE!"},{"$error":"#VALUE!"},null,null,null,null,null,null,null,null,null,null,null,null,{"$error":"#VALUE!"},{"$f":"SUMPRODUCT((AC142<=AV$113:AV$367)*(AD142>=AV$113:AV$367))","v":{"$error":"#VALUE!"}},null,"2020-12-31","2020-12-31","unterrichtsfrei",2020]
[null,null,null,null,null,null,null,null,null,null,null,null,null,null,null,null,null,null,null,null,null,null,null,null,null,null,null,"",{"$error":"#VALUE!"},{"$error":"#VALUE!"},{"$error":"#VALUE!"},{"$error":"#VALUE!"},null,null,null,null,null,null,null,null,null,null,null,null,{"$error":"#VALUE!"},{"$f":"SUMPRODUCT((AC143<=AV$113:AV$367)*(AD143>=AV$113:AV$367))","v":{"$error":"#VALUE!"}},null,"2021-01-01","2021-01-01","Neujahrstag",2021]
[null,null,null,null,null,null,null,null,null,null,null,null,null,null,null,null,null,null,null,null,null,null,null,null,null,null,null,"",{"$error":"#VALUE!"},{"$error":"#VALUE!"},{"$error":"#VALUE!"},{"$error":"#VALUE!"},null,null,null,null,null,null,null,null,null,null,null,null,{"$error":"#VALUE!"},{"$f":"SUMPRODUCT((AC144<=AV$113:AV$367)*(AD144>=AV$113:AV$367))","v":{"$error":"#VALUE!"}},null,"2021-01-06","2021-01-06","Heilige Drei Könige",2021]
[null,null,null,null,null,null,null,null,null,null,null,null,null,null,null,null,null,null,null,null,null,null,null,null,null,null,null,"",{"$error":"#VALUE!"},{"$error":"#VALUE!"},{"$error":"#VALUE!"},{"$error":"#VALUE!"},null,null,null,null,null,null,null,null,null,null,null,null,{"$error":"#VALUE!"},{"$f":"SUMPRODUCT((AC145<=AV$113:AV$367)*(AD145>=AV$113:AV$367))","v":{"$error":"#VALUE!"}},null,"2021-04-05","2021-04-05","Ostermontag",2021]
[null,null,null,null,null,null,null,null,null,null,null,null,null,null,null,null,null,null,null,null,null,null,null,null,null,null,null,"",{"$error":"#VALUE!"},{"$error":"#VALUE!"},{"$f":"AT146","v":{"$error":"#VALUE!"}},{"$error":"#VALUE!"},null,null,null,null,null,null,null,null,null,null,null,null,{"$error":"#VALUE!"},{"$f":"SUMPRODUCT((AC146<=AV$113:AV$367)*(AD146>=AV$113:AV$367))","v":{"$error":"#VALUE!"}},null,"2021-05-01","2021-05-01","Staatsfeiertag",2021]
[null,null,null,null,null,null,null,null,null,null,null,null,null,null,null,null,null,null,null,null,null,null,null,null,null,null,null,"",{"$error":"#VALUE!"},{"$error":"#VALUE!"},{"$error":"#VALUE!"},{"$error":"#VALUE!"},null,null,null,null,null,null,null,null,null,null,null,null,{"$error":"#VALUE!"},{"$f":"SUMPRODUCT((AC147<=AV$113:AV$367)*(AD147>=AV$113:AV$367))","v":{"$error":"#VALUE!"}},null,"2021-05-13","2021-05-13","Christi Himmelfahrt",2021]
[null,null,null,null,null,null,null,null,null,null,null,null,null,null,null,null,null,null,null,null,null,null,null,null,null,null,null,"",{"$error":"#VALUE!"},{"$error":"#VALUE!"},{"$error":"#VALUE!"},{"$error":"#VALUE!"},null,null,null,null,null,null,null,null,null,null,null,null,{"$error":"#VALUE!"},{"$f":"SUMPRODUCT((AC148<=AV$113:AV$367)*(AD148>=AV$113:AV$367))","v":{"$error":"#VALUE!"}},null,"2021-05-24","2021-05-24","Pfingstmontag",2021]
[null,null,null,null,null,null,null,null,null,null,null,null,null,null,null,null,null,null,null,null,null,null,null,null,null,null,null,"",{"$error":"#VALUE!"},{"$error":"#VALUE!"},{"$error":"#VALUE!"},{"$error":"#VALUE!"},null,null,null,null,null,null,null,null,null,null,null,null,{"$error":"#VALUE!"},{"$f":"SUMPRODUCT((AC149<=AV$113:AV$367)*(AD149>=AV$113:AV$367))","v":{"$error":"#VALUE!"}},null,"2021-06-03","2021-06-03","Fronleichnam",2021]
[null,null,null,null,null,null,null,null,null,null,null,null,null,null,null,null,null,null,null,null,null,null,null,null,null,null,null,"",{"$error":"#VALUE!"},{"$error":"#VALUE!"},{"$error":"#VALUE!"},{"$error":"#VALUE!"},null,null,null,null,null,null,null,null,null,null,null,null,{"$error":"#VALUE!"},{"$f":"SUMPRODUCT((AC150<=AV$113:AV$367)*(AD150>=AV$113:AV$367))","v":{"$error":"#VALUE!"}},null,"-","2021-08-15","Maria Himmelfahrt",2021]
[null,null,null,null,null,null,null,null,null,null,null,null,null,null,null,null,null,null,null,null,null,null,null,null,null,null,null,"",{"$error":"#VALUE!"},{"$error":"#VALUE!"},{"$error":"#VALUE!"},{"$error":"#VALUE!"},null,null,null,null,null,null,null,null,null,null,null,null,{"$error":"#VALUE!"},{"$f":"SUMPRODUCT((AC151<=AV$113:AV$367)*(AD151>=AV$113:AV$367))","v":{"$error":"#VALUE!"}},null,"2021-10-26","2021-10-26","Nationalfeiertag",2021]
[null,null,null,null,null,null,null,null,null,null,null,null,null,null,null,null,null,null,null,null,null,null,null,null,null,null,null,"",{"$error":"#VALUE!"},{"$error":"#VALUE!"},{"$error":"#VALUE!"},{"$error":"#VALUE!"},null,null,null,null,null,null,null,null,null,null,null,null,{"$error":"#VALUE!"},{"$f":"SUMPRODUCT((AC152<=AV$113:AV$367)*(AD152>=AV$113:AV$367))","v":{"$error":"#VALUE!"}},null,"2021-11-01","2021-11-01","Allerheiligen",2021]
[null,null,null,null,null,null,null,null,null,null,null,null,null,null,null,null,null,null,null,null,null,null,null,null,null,null,null,"",{"$error":"#VALUE!"},{"$error":"#VALUE!"},{"$error":"#VALUE!"},{"$error":"#VALUE!"},null,null,null,null,null,null,null,null,null,null,null,null,{"$error":"#VALUE!"},{"$f":"SUMPRODUCT((AC153<=AV$113:AV$367)*(AD153>=AV$113:AV$367))","v":{"$error":"#VALUE!"}},null,"2021-12-08","2021-12-08","Maria Empfängnis",2021]
[null,null,null,null,null,null,null,null,null,null,null,null,null,null,null,null,null,null,null,null,null,null,null,null,null,null,null,"",{"$error":"#VALUE!"},{"$error":"#VALUE!"},{"$error":"#VALUE!"},{"$error":"#VALUE!"},null,null,null,null,null,null,null,null,null,null,null,null,{"$error":"#VALUE!"},{"$f":"SUMPRODUCT((AC154<=AV$113:AV$367)*(AD154>=AV$113:AV$367))","v":{"$error":"#VALUE!"}},null,"2021-12-24","2021-12-24","unterrichtsfrei",2021]
[null,null,null,null,null,null,null,null,null,null,null,null,null,null,null,null,null,null,null,null,null,null,null,null,null,null,null,"",{"$error":"#VALUE!"},{"$error":"#VALUE!"},{"$error":"#VALUE!"},{"$error":"#VALUE!"},null,null,null,null,null,null,null,null,null,null,null,null,{"$error":"#VALUE!"},{"$f":"SUMPRODUCT((AC155<=AV$113:AV$367)*(AD155>=AV$113:AV$367))","v":{"$error":"#VALUE!"}},null,"2021-12-25","2021-12-25","Christtag",2021]
[null,null,null,null,null,null,null,null,null,null,null,null,null,null,null,null,null,null,null,null,null,null,null,null,null,null,null,"",{"$error":"#VALUE!"},{"$error":"#VALUE!"},{"$error":"#VALUE!"},{"$error":"#VALUE!"},null,null,null,null,null,null,null,null,null,null,null,null,{"$error":"#VALUE!"},{"$f":"SUMPRODUCT((AC156<=AV$113:AV$367)*(AD156>=AV$113:AV$367))","v":{"$error":"#VALUE!"}},null,"-","2021-12-26","Stephanstag",2021]
[null,null,null,null,null,null,null,null,null,null,null,null,null,null,null,null,null,null,null,null,null,null,null,null,null,null,null,"",{"$error":"#VALUE!"},{"$error":"#VALUE!"},{"$error":"#VALUE!"},{"$error":"#VALUE!"},null,null,null,null,null,null,null,null,null,null,null,null,{"$error":"#VALUE!"},{"$f":"SUMPRODUCT((AC157<=AV$113:AV$367)*(AD157>=AV$113:AV$367))","v":{"$error":"#VALUE!"}},null,"2021-12-31","2021-12-31","unterrichtsfrei",2021]
[null,null,null,null,null,null,null,null,null,null,null,null,null,null,null,null,null,null,null,null,null,null,null,null,null,null,null,"",{"$error":"#VALUE!"},{"$error":"#VALUE!"},{"$error":"#VALUE!"},{"$error":"#VALUE!"},null,null,null,null,null,null,null,null,null,null,null,null,{"$error":"#VALUE!"},{"$f":"SUMPRODUCT((AC158<=AV$113:AV$367)*(AD158>=AV$113:AV$367))","v":{"$error":"#VALUE!"}},null,"2022-01-01","2022-01-01","Neujahrstag",2022]
[null,null,null,null,null,null,null,null,null,null,null,null,null,null,null,null,null,null,null,null,null,null,null,null,null,null,null,"",{"$error":"#VALUE!"},{"$error":"#VALUE!"},{"$error":"#VALUE!"},{"$error":"#VALUE!"},null,null,null,null,null,null,null,null,null,null,null,null,{"$error":"#VALUE!"},{"$f":"SUMPRODUCT((AC159<=AV$113:AV$367)*(AD159>=AV$113:AV$367))","v":{"$error":"#VALUE!"}},null,"2022-01-06","2022-01-06","Heilige Drei Könige",2022]
[null,null,null,null,null,null,null,null,null,null,null,null,null,null,null,null,null,null,null,null,null,null,null,null,null,null,null,"",{"$error":"#VALUE!"},{"$error":"#VALUE!"},{"$error":"#VALUE!"},{"$error":"#VALUE!"},null,null,null,null,null,null,null,null,null,null,null,null,{"$error":"#VALUE!"},{"$f":"SUMPRODUCT((AC160<=AV$113:AV$367)*(AD160>=AV$113:AV$367))","v":{"$error":"#VALUE!"}},null,"2022-04-18","2022-04-18","Ostermontag",2022]
[null,null,null,null,null,null,null,null,null,null,null,null,null,null,null,null,null,null,null,null,null,null,null,null,null,null,null,"",{"$error":"#VALUE!"},{"$error":"#VALUE!"},{"$error":"#VALUE!"},{"$error":"#VALUE!"},null,null,null,null,null,null,null,null,null,null,null,null,{"$error":"#VALUE!"},{"$f":"SUMPRODUCT((AC161<=AV$113:AV$367)*(AD161>=AV$113:AV$367))","v":{"$error":"#VALUE!"}},null,"-","2022-05-01","Staatsfeiertag",2022]
[null,null,null,null,null,null,null,null,null,null,null,null,null,null,null,null,null,null,null,null,null,null,null,null,null,null,null,"",{"$error":"#VALUE!"},{"$error":"#VALUE!"},{"$error":"#VALUE!"},{"$error":"#VALUE!"},null,null,null,null,null,null,null,null,null,null,null,null,{"$error":"#VALUE!"},{"$f":"SUMPRODUCT((AC162<=AV$113:AV$367)*(AD162>=AV$113:AV$367))","v":{"$error":"#VALUE!"}},null,"2022-05-26","2022-05-26","Christi Himmelfahrt",2022]
[null,null,null,null,null,null,null,null,null,null,null,null,null,null,null,null,null,null,null,null,null,null,null,null,null,null,null,"",{"$error":"#VALUE!"},{"$error":"#VALUE!"},{"$error":"#VALUE!"},{"$error":"#VALUE!"},null,null,null,null,null,null,null,null,null,null,null,null,{"$error":"#VALUE!"},{"$f":"SUMPRODUCT((AC163<=AV$113:AV$367)*(AD163>=AV$113:AV$367))","v":{"$error":"#VALUE!"}},null,"2022-06-06","2022-06-06","Pfingstmontag",2022]
[null,null,null,null,null,null,null,null,null,null,null,null,null,null,null,null,null,null,null,null,null,null,null,null,null,null,null,"",{"$error":"#VALUE!"},{"$error":"#VALUE!"},{"$error":"#VALUE!"},{"$error":"#VALUE!"},null,null,null,null,null,null,null,null,null,null,null,null,{"$error":"#VALUE!"},{"$f":"SUMPRODUCT((AC164<=AV$113:AV$367)*(AD164>=AV$113:AV$367))","v":{"$error":"#VALUE!"}},null,"2022-06-16","2022-06-16","Fronleichnam",2022]
[null,null,null,null,null,null,null,null,null,null,null,null,null,null,null,null,null,null,null,null,null,null,null,null,null,null,null,"",{"$error":"#VALUE!"},{"$error":"#VALUE!"},{"$error":"#VALUE!"},{"$error":"#VALUE!"},null,null,null,null,null,null,null,null,null,null,null,null,{"$error":"#VALUE!"},{"$f":"SUMPRODUCT((AC165<=AV$113:AV$367)*(AD165>=AV$113:AV$367))","v":{"$error":"#VALUE!"}},null,"2022-08-15","2022-08-15","Maria Himmelfahrt",2022]
[null,null,null,null,null,null,null,null,null,null,null,null,null,null,null,null,null,null,null,null,null,null,null,null,null,null,null,"",{"$error":"#VALUE!"},{"$error":"#VALUE!"},{"$error":"#VALUE!"},{"$error":"#VALUE!"},null,null,null,null,null,null,null,null,null,null,null,null,{"$error":"#VALUE!"},{"$f":"SUMPRODUCT((AC166<=AV$113:AV$367)*(AD166>=AV$113:AV$367))","v":{"$error":"#VALUE!"}},null,"2022-10-26","2022-10-26","Nationalfeiertag",2022]
[null,null,null,null,null,null,null,null,null,null,null,null,null,null,null,null,null,null,null,null,null,null,null,null,null,null,null,"",{"$error":"#VALUE!"},{"$error":"#VALUE!"},{"$error":"#VALUE!"},{"$error":"#VALUE!"},null,null,null,null,null,null,null,null,null,null,null,null,{"$error":"#VALUE!"},{"$f":"SUMPRODUCT((AC167<=AV$113:AV$367)*(AD167>=AV$113:AV$367))","v":{"$error":"#VALUE!"}},null,"2022-11-01","2022-11-01","Allerheiligen",2022]
[null,null,null,null,null,null,null,null,null,null,null,null,null,null,null,null,null,null,null,null,null,null,null,null,null,null,null,"",{"$error":"#VALUE!"},{"$error":"#VALUE!"},{"$error":"#VALUE!"},{"$error":"#VALUE!"},null,null,null,null,null,null,null,null,null,null,null,null,{"$error":"#VALUE!"},{"$f":"SUMPRODUCT((AC168<=AV$113:AV$367)*(AD168>=AV$113:AV$367))","v":{"$error":"#VALUE!"}},null,"2022-12-08","2022-12-08","Maria Empfängnis",2022]
[null,null,null,null,null,null,null,null,null,null,null,null,null,null,null,null,null,null,null,null,null,null,null,null,null,null,null,"",{"$error":"#VALUE!"},{"$error":"#VALUE!"},{"$error":"#VALUE!"},{"$error":"#VALUE!"},null,null,null,null,null,null,null,null,null,null,null,null,{"$error":"#VALUE!"},{"$f":"SUMPRODUCT((AC169<=AV$113:AV$367)*(AD169>=AV$113:AV$367))","v":{"$error":"#VALUE!"}},null,"2022-12-24","2022-12-24","unterrichtsfrei",2022]
[null,null,null,null,null,null,null,null,null,null,null,null,null,null,null,null,null,null,null,null,null,null,null,null,null,null,null,"",{"$error":"#VALUE!"},{"$error":"#VALUE!"},{"$error":"#VALUE!"},{"$error":"#VALUE!"},null,null,null,null,null,null,null,null,null,null,null,null,{"$error":"#VALUE!"},{"$f":"SUMPRODUCT((AC170<=AV$113:AV$367)*(AD170>=AV$113:AV$367))","v":{"$error":"#VALUE!"}},null,"-","2022-12-25","Christtag",2022]
[null,null,null,null,null,null,null,null,null,null,null,null,null,null,null,null,null,null,null,null,null,null,null,null,null,null,null,"",{"$error":"#VALUE!"},{"$error":"#VALUE!"},{"$error":"#VALUE!"},{"$error":"#VALUE!"},null,null,null,null,null,null,null,null,null,null,null,null,{"$error":"#VALUE!"},{"$f":"SUMPRODUCT((AC171<=AV$113:AV$367)*(AD171>=AV$113:AV$367))","v":{"$error":"#VALUE!"}},null,"2022-12-26","2022-12-26","Stephanstag",2022]
[null,null,null,null,null,null,null,null,null,null,null,null,null,null,null,null,null,null,null,null,null,null,null,null,null,null,null,"",{"$error":"#VALUE!"},{"$error":"#VALUE!"},{"$error":"#VALUE!"},{"$error":"#VALUE!"},null,null,null,null,null,null,null,null,null,null,null,null,{"$error":"#VALUE!"},{"$f":"SUMPRODUCT((AC172<=AV$113:AV$367)*(AD172>=AV$113:AV$367))","v":{"$error":"#VALUE!"}},null,"2022-12-31","2022-12-31","unterrichtsfrei",2022]
[null,null,null,null,null,null,null,null,null,null,null,null,null,null,null,null,null,null,null,null,null,null,null,null,null,null,null,"",{"$error":"#VALUE!"},{"$error":"#VALUE!"},{"$error":"#VALUE!"},{"$error":"#VALUE!"},null,null,null,null,null,null,null,null,null,null,null,null,{"$error":"#VALUE!"},{"$f":"SUMPRODUCT((AC173<=AV$113:AV$367)*(AD173>=AV$113:AV$367))","v":{"$error":"#VALUE!"}},null,"-","2023-01-01","Neujahrstag",2023]
[null,null,null,null,null,null,null,null,null,null,null,null,null,null,null,null,null,null,null,null,null,null,null,null,null,null,null,"",{"$error":"#VALUE!"},{"$error":"#VALUE!"},{"$error":"#VALUE!"},{"$error":"#VALUE!"},null,null,null,null,null,null,null,null,null,null,null,null,{"$error":"#VALUE!"},{"$f":"SUMPRODUCT((AC174<=AV$113:AV$367)*(AD174>=AV$113:AV$367))","v":{"$error":"#VALUE!"}},null,"2023-01-06","2023-01-06","Heilige Drei Könige",2023]
[null,null,null,null,null,null,null,null,null,null,null,null,null,null,null,null,null,null,null,null,null,null,null,null,null,null,null,"",{"$error":"#VALUE!"},{"$error":"#VALUE!"},{"$error":"#VALUE!"},{"$error":"#VALUE!"},null,null,null,null,null,null,null,null,null,null,null,null,{"$error":"#VALUE!"},{"$f":"SUMPRODUCT((AC175<=AV$113:AV$367)*(AD175>=AV$113:AV$367))","v":{"$error":"#VALUE!"}},null,"2023-04-10","2023-04-10","Ostermontag",2023]
[null,null,null,null,null,null,null,null,null,null,null,null,null,null,null,null,null,null,null,null,null,null,null,null,null,null,null,"",{"$error":"#VALUE!"},{"$error":"#VALUE!"},{"$error":"#VALUE!"},{"$error":"#VALUE!"},null,null,null,null,null,null,null,null,null,null,null,null,{"$error":"#VALUE!"},{"$f":"SUMPRODUCT((AC176<=AV$113:AV$367)*(AD176>=AV$113:AV$367))","v":{"$error":"#VALUE!"}},null,"2023-05-01","2023-05-01","Staatsfeiertag",2023]
[null,null,null,null,null,null,null,null,null,null,null,null,null,null,null,null,null,null,null,null,null,null,null,null,null,null,null,"",{"$error":"#VALUE!"},{"$f":"IF(AH$15=\"ja\",7-WEEKDAY(AC177,2)+AC177,MIN(AC177+7-WEEKDAY(AC177,2),AH$103))","v":{"$error":"#VALUE!"}},{"$error":"#VALUE!"},{"$error":"#VALUE!"},null,null,null,null,null,null,null,null,null,null,null,null,{"$error":"#VALUE!"},{"$f":"SUMPRODUCT((AC177<=AV$113:AV$367)*(AD177>=AV$113:AV$367))","v":{"$error":"#VALUE!"}},null,"2023-05-18","2023-05-18","Christi Himmelfahrt",2023]
[null,null,null,null,null,null,null,null,null,null,null,null,null,null,null,null,null,null,null,null,null,null,null,null,null,null,null,{"$f":"IF(ISERROR(IF(AC178<>\"\",AB177+1,0)),\"\",IF(AC178<>\"\",AB177+1,0))","v":""},{"$error":"#VALUE!"},{"$error":"#VALUE!"},{"$f":"AT178","v":{"$error":"#VALUE!"}},{"$f":"MAX(AS178-AE178,0)","v":{"$error":"#VALUE!"}},null,null,null,null,null,null,null,null,null,null,null,null,{"$f":"AD178-AC178+IF(WEEKDAY(AD178)<>1,1,0)-IF(AND(WEEKDAY(AD178,2)>=6,AD$105=\"nein\"),1,0)","v":{"$error":"#VALUE!"}},{"$f":"SUMPRODUCT((AC178<=AV$113:AV$367)*(AD178>=AV$113:AV$367))","v":{"$error":"#VALUE!"}},null,{"$f":"IF(AD$105=\"ja\",IF(WEEKDAY(AW178)=1,\"-\",AW178),IF(OR(WEEKDAY(AW178)=1,WEEKDAY(AW178)=7),\"-\",AW178))","v":"2023-05-29"},"2023-05-29","Pfingstmontag",{"$f":"YEAR(AW178)","v":2023}]
[null,null,null,null,null,null,null,null,null,null,null,null,null,null,null,null,null,null,null,null,null,null,null,null,null,null,null,"",{"$f":"IF(AD178>=AH$103,\"\",AC178+7)","v":{"$error":"#VALUE!"}},{"$error":"#VALUE!"},{"$error":"#VALUE!"},{"$error":"#VALUE!"},null,null,null,null,null,null,null,null,null,null,null,null,{"$error":"#VALUE!"},{"$f":"SUMPRODUCT((AC179<=AV$113:AV$367)*(AD179>=AV$113:AV$367))","v":{"$error":"#VALUE!"}},null,"2023-06-08","2023-06-08","Fronleichnam",2023]
[null,null,null,null,null,null,null,null,null,null,null,null,null,null,null,null,null,null,null,null,null,null,null,null,null,null,null,"",{"$error":"#VALUE!"},{"$error":"#VALUE!"},{"$error":"#VALUE!"},{"$error":"#VALUE!"},null,null,null,null,null,null,null,null,null,null,null,null,{"$error":"#VALUE!"},{"$f":"SUMPRODUCT((AC180<=AV$113:AV$367)*(AD180>=AV$113:AV$367))","v":{"$error":"#VALUE!"}},null,"2023-08-15","2023-08-15","Maria Himmelfahrt",2023]
[null,null,null,null,null,null,null,null,null,null,null,null,null,null,null,null,null,null,null,null,null,null,null,null,null,null,null,"",{"$error":"#VALUE!"},{"$error":"#VALUE!"},{"$error":"#VALUE!"},{"$error":"#VALUE!"},null,null,null,null,null,null,null,null,null,null,null,null,{"$error":"#VALUE!"},{"$f":"SUMPRODUCT((AC181<=AV$113:AV$367)*(AD181>=AV$113:AV$367))","v":{"$error":"#VALUE!"}},null,"2023-10-26","2023-10-26","Nationalfeiertag",2023]
[null,null,null,null,null,null,null,null,null,null,null,null,null,null,null,null,null,null,null,null,null,null,null,null,null,null,null,"",{"$error":"#VALUE!"},{"$error":"#VALUE!"},{"$error":"#VALUE!"},{"$error":"#VALUE!"},null,null,null,null,null,null,null,null,null,null,null,null,{"$error":"#VALUE!"},{"$f":"SUMPRODUCT((AC182<=AV$113:AV$367)*(AD182>=AV$113:AV$367))","v":{"$error":"#VALUE!"}},null,"2023-11-01","2023-11-01","Allerheiligen",2023]
[null,null,null,null,null,null,null,null,null,null,null,null,null,null,null,null,null,null,null,null,null,null,null,null,null,null,null,"",{"$error":"#VALUE!"},{"$error":"#VALUE!"},{"$error":"#VALUE!"},{"$error":"#VALUE!"},null,null,null,null,null,null,null,null,null,null,null,null,{"$error":"#VALUE!"},{"$f":"SUMPRODUCT((AC183<=AV$113:AV$367)*(AD183>=AV$113:AV$367))","v":{"$error":"#VALUE!"}},null,"2023-12-08","2023-12-08","Maria Empfängnis",2023]
[null,null,null,null,null,null,null,null,null,null,null,null,null,null,null,null,null,null,null,null,null,null,null,null,null,null,null,"",{"$error":"#VALUE!"},{"$error":"#VALUE!"},{"$error":"#VALUE!"},{"$error":"#VALUE!"},null,null,null,null,null,null,null,null,null,null,null,null,{"$error":"#VALUE!"},{"$f":"SUMPRODUCT((AC184<=AV$113:AV$367)*(AD184>=AV$113:AV$367))","v":{"$error":"#VALUE!"}},null,"-","2023-12-24","unterrichtsfrei",2023]
[null,null,null,null,null,null,null,null,null,null,null,null,null,null,null,null,null,null,null,null,null,null,null,null,null,null,null,"",{"$error":"#VALUE!"},{"$error":"#VALUE!"},{"$error":"#VALUE!"},{"$error":"#VALUE!"},null,null,null,null,null,null,null,null,null,null,null,null,{"$error":"#VALUE!"},{"$f":"SUMPRODUCT((AC185<=AV$113:AV$367)*(AD185>=AV$113:AV$367))","v":{"$error":"#VALUE!"}},null,"2023-12-25","2023-12-25","Christtag",2023]
[null,null,null,null,null,null,null,null,null,null,null,null,null,null,null,null,null,null,null,null,null,null,null,null,null,null,null,"",{"$error":"#VALUE!"},{"$error":"#VALUE!"},{"$error":"#VALUE!"},{"$error":"#VALUE!"},null,null,null,null,null,null,null,null,null,null,null,null,{"$error":"#VALUE!"},{"$f":"SUMPRODUCT((AC186<=AV$113:AV$367)*(AD186>=AV$113:AV$367))","v":{"$error":"#VALUE!"}},null,"2023-12-26","2023-12-26","Stephanstag",2023]
[null,null,null,null,null,null,null,null,null,null,null,null,null,null,null,null,null,null,null,null,null,null,null,null,null,null,null,"",{"$error":"#VALUE!"},{"$error":"#VALUE!"},{"$error":"#VALUE!"},{"$error":"#VALUE!"},null,null,null,null,null,null,null,null,null,null,null,null,{"$error":"#VALUE!"},{"$f":"SUMPRODUCT((AC187<=AV$113:AV$367)*(AD187>=AV$113:AV$367))","v":{"$error":"#VALUE!"}},null,"-","2023-12-31","unterrichtsfrei",2023]
[null,null,null,null,null,null,null,null,null,null,null,null,null,null,null,null,null,null,null,null,null,null,null,null,null,null,null,"",{"$error":"#VALUE!"},{"$error":"#VALUE!"},{"$error":"#VALUE!"},{"$error":"#VALUE!"},null,null,null,null,null,null,null,null,null,null,null,null,{"$error":"#VALUE!"},{"$f":"SUMPRODUCT((AC188<=AV$113:AV$367)*(AD188>=AV$113:AV$367))","v":{"$error":"#VALUE!"}},null,"2024-01-01","2024-01-01","Neujahrstag",2024]
[null,null,null,null,null,null,null,null,null,null,null,null,null,null,null,null,null,null,null,null,null,null,null,null,null,null,null,"",{"$error":"#VALUE!"},{"$error":"#VALUE!"},{"$error":"#VALUE!"},{"$error":"#VALUE!"},null,null,null,null,null,null,null,null,null,null,null,null,{"$error":"#VALUE!"},{"$f":"SUMPRODUCT((AC189<=AV$113:AV$367)*(AD189>=AV$113:AV$367))","v":{"$error":"#VALUE!"}},null,"2024-01-06","2024-01-06","Heilige Drei Könige",2024]
[null,null,null,null,null,null,null,null,null,null,null,null,null,null,null,null,null,null,null,null,null,null,null,null,null,null,null,"",{"$error":"#VALUE!"},{"$error":"#VALUE!"},{"$error":"#VALUE!"},{"$error":"#VALUE!"},null,null,null,null,null,null,null,null,null,null,null,null,{"$error":"#VALUE!"},{"$f":"SUMPRODUCT((AC190<=AV$113:AV$367)*(AD190>=AV$113:AV$367))","v":{"$error":"#VALUE!"}},null,"2024-04-01","2024-04-01","Ostermontag",2024]
[null,null,null,null,null,null,null,null,null,null,null,null,null,null,null,null,null,null,null,null,null,null,null,null,null,null,null,"",{"$error":"#VALUE!"},{"$error":"#VALUE!"},{"$error":"#VALUE!"},{"$error":"#VALUE!"},null,null,null,null,null,null,null,null,null,null,null,null,{"$error":"#VALUE!"},{"$f":"SUMPRODUCT((AC191<=AV$113:AV$367)*(AD191>=AV$113:AV$367))","v":{"$error":"#VALUE!"}},null,"2024-05-01","2024-05-01","Staatsfeiertag",2024]
[null,null,null,null,null,null,null,null,null,null,null,null,null,null,null,null,null,null,null,null,null,null,null,null,null,null,null,"",{"$error":"#VALUE!"},{"$error":"#VALUE!"},{"$error":"#VALUE!"},{"$error":"#VALUE!"},null,null,null,null,null,null,null,null,null,null,null,null,{"$error":"#VALUE!"},{"$f":"SUMPRODUCT((AC192<=AV$113:AV$367)*(AD192>=AV$113:AV$367))","v":{"$error":"#VALUE!"}},null,"2024-05-09","2024-05-09","Christi Himmelfahrt",2024]
[null,null,null,null,null,null,null,null,null,null,null,null,null,null,null,null,null,null,null,null,null,null,null,null,null,null,null,"",{"$error":"#VALUE!"},{"$error":"#VALUE!"},{"$error":"#VALUE!"},{"$error":"#VALUE!"},null,null,null,null,null,null,null,null,null,null,null,null,{"$error":"#VALUE!"},{"$f":"SUMPRODUCT((AC193<=AV$113:AV$367)*(AD193>=AV$113:AV$367))","v":{"$error":"#VALUE!"}},null,"2024-05-20","2024-05-20","Pfingstmontag",2024]
[null,null,null,null,null,null,null,null,null,null,null,null,null,null,null,null,null,null,null,null,null,null,null,null,null,null,null,"",{"$error":"#VALUE!"},{"$error":"#VALUE!"},{"$error":"#VALUE!"},{"$error":"#VALUE!"},null,null,null,null,null,null,null,null,null,null,null,null,{"$error":"#VALUE!"},{"$f":"SUMPRODUCT((AC194<=AV$113:AV$367)*(AD194>=AV$113:AV$367))","v":{"$error":"#VALUE!"}},null,"2024-05-30","2024-05-30","Fronleichnam",2024]
[null,null,null,null,null,null,null,null,null,null,null,null,null,null,null,null,null,null,null,null,null,null,null,null,null,null,null,"",{"$error":"#VALUE!"},{"$error":"#VALUE!"},{"$error":"#VALUE!"},{"$error":"#VALUE!"},null,null,null,null,null,null,null,null,null,null,null,null,{"$error":"#VALUE!"},{"$f":"SUMPRODUCT((AC195<=AV$113:AV$367)*(AD195>=AV$113:AV$367))","v":{"$error":"#VALUE!"}},null,"2024-08-15","2024-08-15","Maria Himmelfahrt",2024]
[null,null,null,null,null,null,null,null,null,null,null,null,null,null,null,null,null,null,null,null,null,null,null,null,null,null,null,"",{"$error":"#VALUE!"},{"$error":"#VALUE!"},{"$error":"#VALUE!"},{"$error":"#VALUE!"},null,null,null,null,null,null,null,null,null,null,null,null,{"$error":"#VALUE!"},{"$f":"SUMPRODUCT((AC196<=AV$113:AV$367)*(AD196>=AV$113:AV$367))","v":{"$error":"#VALUE!"}},null,"2024-10-26","2024-10-26","Nationalfeiertag",2024]
[null,null,null,null,null,null,null,null,null,null,null,null,null,null,null,null,null,null,null,null,null,null,null,null,null,null,null,"",{"$error":"#VALUE!"},{"$error":"#VALUE!"},{"$error":"#VALUE!"},{"$error":"#VALUE!"},null,null,null,null,null,null,null,null,null,null,null,null,{"$error":"#VALUE!"},{"$f":"SUMPRODUCT((AC197<=AV$113:AV$367)*(AD197>=AV$113:AV$367))","v":{"$error":"#VALUE!"}},null,"2024-11-01","2024-11-01","Allerheiligen",2024]
[null,null,null,null,null,null,null,null,null,null,null,null,null,null,null,null,null,null,null,null,null,null,null,null,null,null,null,"",{"$error":"#VALUE!"},{"$error":"#VALUE!"},{"$error":"#VALUE!"},{"$error":"#VALUE!"},null,null,null,null,null,null,null,null,null,null,null,null,{"$error":"#VALUE!"},{"$f":"SUMPRODUCT((AC198<=AV$113:AV$367)*(AD198>=AV$113:AV$367))","v":{"$error":"#VALUE!"}},null,"-","2024-12-08","Maria Empfängnis",2024]
[null,null,null,null,null,null,null,null,null,null,null,null,null,null,null,null,null,null,null,null,null,null,null,null,null,null,null,"",{"$error":"#VALUE!"},{"$error":"#VALUE!"},{"$error":"#VALUE!"},{"$error":"#VALUE!"},null,null,null,null,null,null,null,null,null,null,null,null,{"$error":"#VALUE!"},{"$f":"SUMPRODUCT((AC199<=AV$113:AV$367)*(AD199>=AV$113:AV$367))","v":{"$error":"#VALUE!"}},null,"2024-12-24","2024-12-24","unterrichtsfrei",2024]
[null,null,null,null,null,null,null,null,null,null,null,null,null,null,null,null,null,null,null,null,null,null,null,null,null,null,null,"",{"$error":"#VALUE!"},{"$error":"#VALUE!"},{"$error":"#VALUE!"},{"$error":"#VALUE!"},null,null,null,null,null,null,null,null,null,null,null,null,{"$error":"#VALUE!"},{"$f":"SUMPRODUCT((AC200<=AV$113:AV$367)*(AD200>=AV$113:AV$367))","v":{"$error":"#VALUE!"}},null,"2024-12-25","2024-12-25","Christtag",2024]
[null,null,null,null,null,null,null,null,null,null,null,null,null,null,null,null,null,null,null,null,null,null,null,null,null,null,null,"",{"$error":"#VALUE!"},{"$error":"#VALUE!"},{"$error":"#VALUE!"},{"$error":"#VALUE!"},null,null,null,null,null,null,null,null,null,null,null,null,{"$error":"#VALUE!"},{"$f":"SUMPRODUCT((AC201<=AV$113:AV$367)*(AD201>=AV$113:AV$367))","v":{"$error":"#VALUE!"}},null,"2024-12-26","2024-12-26","Stephanstag",2024]
[null,null,null,null,null,null,null,null,null,null,null,null,null,null,null,null,null,null,null,null,null,null,null,null,null,null,null,"",{"$error":"#VALUE!"},{"$error":"#VALUE!"},{"$error":"#VALUE!"},{"$error":"#VALUE!"},null,null,null,null,null,null,null,null,null,null,null,null,{"$error":"#VALUE!"},{"$f":"SUMPRODUCT((AC202<=AV$113:AV$367)*(AD202>=AV$113:AV$367))","v":{"$error":"#VALUE!"}},null,"2024-12-31","2024-12-31","unterrichtsfrei",2024]
[null,null,null,null,null,null,null,null,null,null,null,null,null,null,null,null,null,null,null,null,null,null,null,null,null,null,null,"",{"$error":"#VALUE!"},{"$error":"#VALUE!"},{"$error":"#VALUE!"},{"$error":"#VALUE!"},null,null,null,null,null,null,null,null,null,null,null,null,{"$error":"#VALUE!"},{"$f":"SUMPRODUCT((AC203<=AV$113:AV$367)*(AD203>=AV$113:AV$367))","v":{"$error":"#VALUE!"}},null,"2025-01-01","2025-01-01","Neujahrstag",2025]
[null,null,null,null,null,null,null,null,null,null,null,null,null,null,null,null,null,null,null,null,null,null,null,null,null,null,null,"",{"$error":"#VALUE!"},{"$error":"#VALUE!"},{"$error":"#VALUE!"},{"$error":"#VALUE!"},null,null,null,null,null,null,null,null,null,null,null,null,{"$error":"#VALUE!"},{"$f":"SUMPRODUCT((AC204<=AV$113:AV$367)*(AD204>=AV$113:AV$367))","v":{"$error":"#VALUE!"}},null,"2025-01-06","2025-01-06","Heilige Drei Könige",2025]
[null,null,null,null,null,null,null,null,null,null,null,null,null,null,null,null,null,null,null,null,null,null,null,null,null,null,null,"",{"$error":"#VALUE!"},{"$error":"#VALUE!"},{"$error":"#VALUE!"},{"$error":"#VALUE!"},null,null,null,null,null,null,null,null,null,null,null,null,{"$error":"#VALUE!"},{"$f":"SUMPRODUCT((AC205<=AV$113:AV$367)*(AD205>=AV$113:AV$367))","v":{"$error":"#VALUE!"}},null,"2025-04-21","2025-04-21","Ostermontag",2025]
[null,null,null,null,null,null,null,null,null,null,null,null,null,null,null,null,null,null,null,null,null,null,null,null,null,null,null,"",{"$error":"#VALUE!"},{"$error":"#VALUE!"},{"$error":"#VALUE!"},{"$error":"#VALUE!"},null,null,null,null,null,null,null,null,null,null,null,null,{"$error":"#VALUE!"},{"$f":"SUMPRODUCT((AC206<=AV$113:AV$367)*(AD206>=AV$113:AV$367))","v":{"$error":"#VALUE!"}},null,"2025-05-01","2025-05-01","Staatsfeiertag",2025]
[null,null,null,null,null,null,null,null,null,null,null,null,null,null,null,null,null,null,null,null,null,null,null,null,null,null,null,"",{"$error":"#VALUE!"},{"$error":"#VALUE!"},{"$error":"#VALUE!"},{"$error":"#VALUE!"},null,null,null,null,null,null,null,null,null,null,null,null,{"$error":"#VALUE!"},{"$f":"SUMPRODUCT((AC207<=AV$113:AV$367)*(AD207>=AV$113:AV$367))","v":{"$error":"#VALUE!"}},null,"2025-05-29","2025-05-29","Christi Himmelfahrt",2025]
[null,null,null,null,null,null,null,null,null,null,null,null,null,null,null,null,null,null,null,null,null,null,null,null,null,null,null,"",{"$error":"#VALUE!"},{"$error":"#VALUE!"},{"$error":"#VALUE!"},{"$error":"#VALUE!"},null,null,null,null,null,null,null,null,null,null,null,null,{"$error":"#VALUE!"},{"$f":"SUMPRODUCT((AC208<=AV$113:AV$367)*(AD208>=AV$113:AV$367))","v":{"$error":"#VALUE!"}},null,"2025-06-09","2025-06-09","Pfingstmontag",2025]
[null,null,null,null,null,null,null,null,null,null,null,null,null,null,null,null,null,null,null,null,null,null,null,null,null,null,null,"",{"$error":"#VALUE!"},{"$error":"#VALUE!"},{"$error":"#VALUE!"},{"$error":"#VALUE!"},null,null,null,null,null,null,null,null,null,null,null,null,{"$error":"#VALUE!"},{"$f":"SUMPRODUCT((AC209<=AV$113:AV$367)*(AD209>=AV$113:AV$367))","v":{"$error":"#VALUE!"}},null,"2025-06-19","2025-06-19","Fronleichnam",2025]
[null,null,null,null,null,null,null,null,null,null,null,null,null,null,null,null,null,null,null,null,null,null,null,null,null,null,null,"",{"$error":"#VALUE!"},{"$error":"#VALUE!"},{"$f":"AT210","v":{"$error":"#VALUE!"}},{"$error":"#VALUE!"},null,null,null,null,null,null,null,null,null,null,null,null,{"$error":"#VALUE!"},{"$f":"SUMPRODUCT((AC210<=AV$113:AV$367)*(AD210>=AV$113:AV$367))","v":{"$error":"#VALUE!"}},null,"2025-08-15","2025-08-15","Maria Himmelfahrt",2025]
[null,null,null,null,null,null,null,null,null,null,null,null,null,null,null,null,null,null,null,null,null,null,null,null,null,null,null,"",{"$error":"#VALUE!"},{"$error":"#VALUE!"},{"$error":"#VALUE!"},{"$error":"#VALUE!"},null,null,null,null,null,null,null,null,null,null,null,null,{"$error":"#VALUE!"},{"$f":"SUMPRODUCT((AC211<=AV$113:AV$367)*(AD211>=AV$113:AV$367))","v":{"$error":"#VALUE!"}},null,"-","2025-10-26","Nationalfeiertag",2025]
[null,null,null,null,null,null,null,null,null,null,null,null,null,null,null,null,null,null,null,null,null,null,null,null,null,null,null,"",{"$error":"#VALUE!"},{"$error":"#VALUE!"},{"$error":"#VALUE!"},{"$error":"#VALUE!"},null,null,null,null,null,null,null,null,null,null,null,null,{"$error":"#VALUE!"},{"$f":"SUMPRODUCT((AC212<=AV$113:AV$367)*(AD212>=AV$113:AV$367))","v":{"$error":"#VALUE!"}},null,"2025-11-01","2025-11-01","Allerheiligen",2025]
[null,null,null,null,null,null,null,null,null,null,null,null,null,null,null,null,null,null,null,null,null,null,null,null,null,null,null,"",{"$error":"#VALUE!"},{"$error":"#VALUE!"},{"$error":"#VALUE!"},{"$error":"#VALUE!"},null,null,null,null,null,null,null,null,null,null,null,null,{"$error":"#VALUE!"},{"$f":"SUMPRODUCT((AC213<=AV$113:AV$367)*(AD213>=AV$113:AV$367))","v":{"$error":"#VALUE!"}},null,"2025-12-08","2025-12-08","Maria Empfängnis",2025]
[null,null,null,null,null,null,null,null,null,null,null,null,null,null,null,null,null,null,null,null,null,null,null,null,null,null,null,"",{"$error":"#VALUE!"},{"$error":"#VALUE!"},{"$error":"#VALUE!"},{"$error":"#VALUE!"},null,null,null,null,null,null,null,null,null,null,null,null,{"$error":"#VALUE!"},{"$f":"SUMPRODUCT((AC214<=AV$113:AV$367)*(AD214>=AV$113:AV$367))","v":{"$error":"#VALUE!"}},null,"2025-12-24","2025-12-24","unterrichtsfrei",2025]
[null,null,null,null,null,null,null,null,null,null,null,null,null,null,null,null,null,null,null,null,null,null,null,null,null,null,null,"",{"$error":"#VALUE!"},{"$error":"#VALUE!"},{"$error":"#VALUE!"},{"$error":"#VALUE!"},null,null,null,null,null,null,null,null,null,null,null,null,{"$error":"#VALUE!"},{"$f":"SUMPRODUCT((AC215<=AV$113:AV$367)*(AD215>=AV$113:AV$367))","v":{"$error":"#VALUE!"}},null,"2025-12-25","2025-12-25","Christtag",2025]
[null,null,null,null,null,null,null,null,null,null,null,null,null,null,null,null,null,null,null,null,null,null,null,null,null,null,null,"",{"$error":"#VALUE!"},{"$error":"#VALUE!"},{"$error":"#VALUE!"},{"$error":"#VALUE!"},null,null,null,null,null,null,null,null,null,null,null,null,{"$error":"#VALUE!"},{"$f":"SUMPRODUCT((AC216<=AV$113:AV$367)*(AD216>=AV$113:AV$367))","v":{"$error":"#VALUE!"}},null,"2025-12-26","2025-12-26","Stephanstag",2025]
[null,null,null,null,null,null,null,null,null,null,null,null,null,null,null,null,null,null,null,null,null,null,null,null,null,null,null,"",{"$error":"#VALUE!"},{"$error":"#VALUE!"},{"$error":"#VALUE!"},{"$error":"#VALUE!"},null,null,null,null,null,null,null,null,null,null,null,null,{"$error":"#VALUE!"},{"$f":"SUMPRODUCT((AC217<=AV$113:AV$367)*(AD217>=AV$113:AV$367))","v":{"$error":"#VALUE!"}},null,"2025-12-31","2025-12-31","unterrichtsfrei",2025]
[null,null,null,null,null,null,null,null,null,null,null,null,null,null,null,null,null,null,null,null,null,null,null,null,null,null,null,"",{"$error":"#VALUE!"},{"$error":"#VALUE!"},{"$error":"#VALUE!"},{"$error":"#VALUE!"},null,null,null,null,null,null,null,null,null,null,null,null,{"$error":"#VALUE!"},{"$f":"SUMPRODUCT((AC218<=AV$113:AV$367)*(AD218>=AV$113:AV$367))","v":{"$error":"#VALUE!"}},null,"2026-01-01","2026-01-01","Neujahr",2026]
[null,null,null,null,null,null,null,null,null,null,null,null,null,null,null,null,null,null,null,null,null,null,null,null,null,null,null,"",{"$error":"#VALUE!"},{"$error":"#VALUE!"},{"$error":"#VALUE!"},{"$error":"#VALUE!"},null,null,null,null,null,null,null,null,null,null,null,null,{"$error":"#VALUE!"},{"$f":"SUMPRODUCT((AC219<=AV$113:AV$367)*(AD219>=AV$113:AV$367))","v":{"$error":"#VALUE!"}},null,"2026-01-06","2026-01-06","Heilige Drei Könige",2026]
[null,null,null,null,null,null,null,null,null,null,null,null,null,null,null,null,null,null,null,null,null,null,null,null,null,null,null,"",{"$error":"#VALUE!"},{"$error":"#VALUE!"},{"$error":"#VALUE!"},{"$error":"#VALUE!"},null,null,null,null,null,null,null,null,null,null,null,null,{"$error":"#VALUE!"},{"$f":"SUMPRODUCT((AC220<=AV$113:AV$367)*(AD220>=AV$113:AV$367))","v":{"$error":"#VALUE!"}},null,"2026-04-06","2026-04-06","Ostermontag",2026]
[null,null,null,null,null,null,null,null,null,null,null,null,null,null,null,null,null,null,null,null,null,null,null,null,null,null,null,"",{"$error":"#VALUE!"},{"$error":"#VALUE!"},{"$error":"#VALUE!"},{"$error":"#VALUE!"},null,null,null,null,null,null,null,null,null,null,null,null,{"$error":"#VALUE!"},{"$f":"SUMPRODUCT((AC221<=AV$113:AV$367)*(AD221>=AV$113:AV$367))","v":{"$error":"#VALUE!"}},null,"2026-05-01","2026-05-01","Staatsfeiertag",2026]
[null,null,null,null,null,null,null,null,null,null,null,null,null,null,null,null,null,null,null,null,null,null,null,null,null,null,null,"",{"$error":"#VALUE!"},{"$error":"#VALUE!"},{"$error":"#VALUE!"},{"$error":"#VALUE!"},null,null,null,null,null,null,null,null,null,null,null,null,{"$error":"#VALUE!"},{"$f":"SUMPRODUCT((AC222<=AV$113:AV$367)*(AD222>=AV$113:AV$367))","v":{"$error":"#VALUE!"}},null,"2026-05-14","2026-05-14","Christi Himmelfahrt",2026]
[null,null,null,null,null,null,null,null,null,null,null,null,null,null,null,null,null,null,null,null,null,null,null,null,null,null,null,"",{"$error":"#VALUE!"},{"$error":"#VALUE!"},{"$error":"#VALUE!"},{"$error":"#VALUE!"},null,null,null,null,null,null,null,null,null,null,null,null,{"$error":"#VALUE!"},{"$f":"SUMPRODUCT((AC223<=AV$113:AV$367)*(AD223>=AV$113:AV$367))","v":{"$error":"#VALUE!"}},null,"2026-05-25","2026-05-25","Pfingstmontag",2026]
[null,null,null,null,null,null,null,null,null,null,null,null,null,null,null,null,null,null,null,null,null,null,null,null,null,null,null,"",{"$error":"#VALUE!"},{"$error":"#VALUE!"},{"$error":"#VALUE!"},{"$error":"#VALUE!"},null,null,null,null,null,null,null,null,null,null,null,null,{"$error":"#VALUE!"},{"$f":"SUMPRODUCT((AC224<=AV$113:AV$367)*(AD224>=AV$113:AV$367))","v":{"$error":"#VALUE!"}},null,"2026-06-04","2026-06-04","Fronleichnam",2026]
[null,null,null,null,null,null,null,null,null,null,null,null,null,null,null,null,null,null,null,null,null,null,null,null,null,null,null,"",{"$error":"#VALUE!"},{"$error":"#VALUE!"},{"$error":"#VALUE!"},{"$error":"#VALUE!"},null,null,null,null,null,null,null,null,null,null,null,null,{"$error":"#VALUE!"},{"$f":"SUMPRODUCT((AC225<=AV$113:AV$367)*(AD225>=AV$113:AV$367))","v":{"$error":"#VALUE!"}},null,"2026-08-15","2026-08-15","Mariä Himmelfahrt",2026]
[null,null,null,null,null,null,null,null,null,null,null,null,null,null,null,null,null,null,null,null,null,null,null,null,null,null,null,"",{"$error":"#VALUE!"},{"$error":"#VALUE!"},{"$error":"#VALUE!"},{"$error":"#VALUE!"},null,null,null,null,null,null,null,null,null,null,null,null,{"$error":"#VALUE!"},{"$f":"SUMPRODUCT((AC226<=AV$113:AV$367)*(AD226>=AV$113:AV$367))","v":{"$error":"#VALUE!"}},null,"2026-10-26","2026-10-26","Nationalfeiertag",2026]
[null,null,null,null,null,null,null,null,null,null,null,null,null,null,null,null,null,null,null,null,null,null,null,null,null,null,null,"",{"$error":"#VALUE!"},{"$error":"#VALUE!"},{"$error":"#VALUE!"},{"$error":"#VALUE!"},null,null,null,null,null,null,null,null,null,null,null,null,{"$error":"#VALUE!"},{"$f":"SUMPRODUCT((AC227<=AV$113:AV$367)*(AD227>=AV$113:AV$367))","v":{"$error":"#VALUE!"}},null,"-","2026-11-01","Allerheiligen",2026]
[null,null,null,null,null,null,null,null,null,null,null,null,null,null,null,null,null,null,null,null,null,null,null,null,null,null,null,"",{"$error":"#VALUE!"},{"$error":"#VALUE!"},{"$error":"#VALUE!"},{"$error":"#VALUE!"},null,null,null,null,null,null,null,null,null,null,null,null,{"$error":"#VALUE!"},{"$f":"SUMPRODUCT((AC228<=AV$113:AV$367)*(AD228>=AV$113:AV$367))","v":{"$error":"#VALUE!"}},null,"2026-12-08","2026-12-08","Mariä Empfängnis",2026]
[null,null,null,null,null,null,null,null,null,null,null,null,null,null,null,null,null,null,null,null,null,null,null,null,null,null,null,"",{"$error":"#VALUE!"},{"$error":"#VALUE!"},{"$error":"#VALUE!"},{"$error":"#VALUE!"},null,null,null,null,null,null,null,null,null,null,null,null,{"$error":"#VALUE!"},{"$f":"SUMPRODUCT((AC229<=AV$113:AV$367)*(AD229>=AV$113:AV$367))","v":{"$error":"#VALUE!"}},null,"2026-12-24","2026-12-24","Heiligabend",2026]
[null,null,null,null,null,null,null,null,null,null,null,null,null,null,null,null,null,null,null,null,null,null,null,null,null,null,null,"",{"$error":"#VALUE!"},{"$error":"#VALUE!"},{"$error":"#VALUE!"},{"$error":"#VALUE!"},null,null,null,null,null,null,null,null,null,null,null,null,{"$error":"#VALUE!"},{"$f":"SUMPRODUCT((AC230<=AV$113:AV$367)*(AD230>=AV$113:AV$367))","v":{"$error":"#VALUE!"}},null,"2026-12-25","2026-12-25","Christtag",2026]
[null,null,null,null,null,null,null,null,null,null,null,null,null,null,null,null,null,null,null,null,null,null,null,null,null,null,null,"",{"$error":"#VALUE!"},{"$error":"#VALUE!"},{"$error":"#VALUE!"},{"$error":"#VALUE!"},null,null,null,null,null,null,null,null,null,null,null,null,{"$error":"#VALUE!"},{"$f":"SUMPRODUCT((AC231<=AV$113:AV$367)*(AD231>=AV$113:AV$367))","v":{"$error":"#VALUE!"}},null,"2026-12-26","2026-12-26","Stefanitag",2026]
[null,null,null,null,null,null,null,null,null,null,null,null,null,null,null,null,null,null,null,null,null,null,null,null,null,null,null,"",{"$error":"#VALUE!"},{"$error":"#VALUE!"},{"$error":"#VALUE!"},{"$error":"#VALUE!"},null,null,null,null,null,null,null,null,null,null,null,null,{"$error":"#VALUE!"},{"$f":"SUMPRODUCT((AC232<=AV$113:AV$367)*(AD232>=AV$113:AV$367))","v":{"$error":"#VALUE!"}},null,"2026-12-31","2026-12-31","Silvester",2026]
[null,null,null,null,null,null,null,null,null,null,null,null,null,null,null,null,null,null,null,null,null,null,null,null,null,null,null,"",{"$error":"#VALUE!"},{"$error":"#VALUE!"},{"$error":"#VALUE!"},{"$error":"#VALUE!"},null,null,null,null,null,null,null,null,null,null,null,null,{"$error":"#VALUE!"},{"$f":"SUMPRODUCT((AC233<=AV$113:AV$367)*(AD233>=AV$113:AV$367))","v":{"$error":"#VALUE!"}},null,"2027-01-01","2027-01-01","Neujahr",2027]
[null,null,null,null,null,null,null,null,null,null,null,null,null,null,null,null,null,null,null,null,null,null,null,null,null,null,null,"",{"$error":"#VALUE!"},{"$error":"#VALUE!"},{"$error":"#VALUE!"},{"$error":"#VALUE!"},null,null,null,null,null,null,null,null,null,null,null,null,{"$error":"#VALUE!"},{"$f":"SUMPRODUCT((AC234<=AV$113:AV$367)*(AD234>=AV$113:AV$367))","v":{"$error":"#VALUE!"}},null,"2027-01-06","2027-01-06","Heilige Drei Könige",2027]
[null,null,null,null,null,null,null,null,null,null,null,null,null,null,null,null,null,null,null,null,null,null,null,null,null,null,null,"",{"$error":"#VALUE!"},{"$error":"#VALUE!"},{"$error":"#VALUE!"},{"$error":"#VALUE!"},null,null,null,null,null,null,null,null,null,null,null,null,{"$error":"#VALUE!"},{"$f":"SUMPRODUCT((AC235<=AV$113:AV$367)*(AD235>=AV$113:AV$367))","v":{"$error":"#VALUE!"}},null,"2027-03-29","2027-03-29","Ostermontag",2027]
[null,null,null,null,null,null,null,null,null,null,null,null,null,null,null,null,null,null,null,null,null,null,null,null,null,null,null,"",{"$error":"#VALUE!"},{"$error":"#VALUE!"},{"$error":"#VALUE!"},{"$error":"#VALUE!"},null,null,null,null,null,null,null,null,null,null,null,null,{"$error":"#VALUE!"},{"$f":"SUMPRODUCT((AC236<=AV$113:AV$367)*(AD236>=AV$113:AV$367))","v":{"$error":"#VALUE!"}},null,"2027-05-01","2027-05-01","Staatsfeiertag",2027]
[null,null,null,null,null,null,null,null,null,null,null,null,null,null,null,null,null,null,null,null,null,null,null,null,null,null,null,"",{"$error":"#VALUE!"},{"$error":"#VALUE!"},{"$error":"#VALUE!"},{"$error":"#VALUE!"},null,null,null,null,null,null,null,null,null,null,null,null,{"$error":"#VALUE!"},{"$f":"SUMPRODUCT((AC237<=AV$113:AV$367)*(AD237>=AV$113:AV$367))","v":{"$error":"#VALUE!"}},null,"2027-05-06","2027-05-06","Christi Himmelfahrt",2027]
[null,null,null,null,null,null,null,null,null,null,null,null,null,null,null,null,null,null,null,null,null,null,null,null,null,null,null,"",{"$error":"#VALUE!"},{"$error":"#VALUE!"},{"$error":"#VALUE!"},{"$error":"#VALUE!"},null,null,null,null,null,null,null,null,null,null,null,null,{"$error":"#VALUE!"},{"$f":"SUMPRODUCT((AC238<=AV$113:AV$367)*(AD238>=AV$113:AV$367))","v":{"$error":"#VALUE!"}},null,"2027-05-17","2027-05-17","Pfingstmontag",2027]
[null,null,null,null,null,null,null,null,null,null,null,null,null,null,null,null,null,null,null,null,null,null,null,null,null,null,null,"",{"$error":"#VALUE!"},{"$error":"#VALUE!"},{"$error":"#VALUE!"},{"$error":"#VALUE!"},null,null,null,null,null,null,null,null,null,null,null,null,{"$error":"#VALUE!"},{"$f":"SUMPRODUCT((AC239<=AV$113:AV$367)*(AD239>=AV$113:AV$367))","v":{"$error":"#VALUE!"}},null,"2027-05-27","2027-05-27","Fronleichnam",2027]
[null,null,null,null,null,null,null,null,null,null,null,null,null,null,null,null,null,null,null,null,null,null,null,null,null,null,null,"",{"$error":"#VALUE!"},{"$error":"#VALUE!"},{"$error":"#VALUE!"},{"$error":"#VALUE!"},null,null,null,null,null,null,null,null,null,null,null,null,{"$error":"#VALUE!"},{"$f":"SUMPRODUCT((AC240<=AV$113:AV$367)*(AD240>=AV$113:AV$367))","v":{"$error":"#VALUE!"}},null,"-","2027-08-15","Mariä Himmelfahrt",2027]
[null,null,null,null,null,null,null,null,null,null,null,null,null,null,null,null,null,null,null,null,null,null,null,null,null,null,null,"",{"$error":"#VALUE!"},{"$f":"IF(AH$15=\"ja\",7-WEEKDAY(AC241,2)+AC241,MIN(AC241+7-WEEKDAY(AC241,2),AH$103))","v":{"$error":"#VALUE!"}},{"$error":"#VALUE!"},{"$error":"#VALUE!"},null,null,null,null,null,null,null,null,null,null,null,null,{"$error":"#VALUE!"},{"$f":"SUMPRODUCT((AC241<=AV$113:AV$367)*(AD241>=AV$113:AV$367))","v":{"$error":"#VALUE!"}},null,"2027-10-26","2027-10-26","Nationalfeiertag",2027]
[null,null,null,null,null,null,null,null,null,null,null,null,null,null,null,null,null,null,null,null,null,null,null,null,null,null,null,{"$f":"IF(ISERROR(IF(AC242<>\"\",AB241+1,0)),\"\",IF(AC242<>\"\",AB241+1,0))","v":""},{"$error":"#VALUE!"},{"$error":"#VALUE!"},{"$f":"AT242","v":{"$error":"#VALUE!"}},{"$f":"MAX(AS242-AE242,0)","v":{"$error":"#VALUE!"}},null,null,null,null,null,null,null,null,null,null,null,null,{"$f":"AD242-AC242+IF(WEEKDAY(AD242)<>1,1,0)-IF(AND(WEEKDAY(AD242,2)>=6,AD$105=\"nein\"),1,0)","v":{"$error":"#VALUE!"}},{"$f":"SUMPRODUCT((AC242<=AV$113:AV$367)*(AD242>=AV$113:AV$367))","v":{"$error":"#VALUE!"}},null,{"$f":"IF(AD$105=\"ja\",IF(WEEKDAY(AW242)=1,\"-\",AW242),IF(OR(WEEKDAY(AW242)=1,WEEKDAY(AW242)=7),\"-\",AW242))","v":"2027-11-01"},"2027-11-01","Allerheiligen",{"$f":"YEAR(AW242)","v":2027}]
[null,null,null,null,null,null,null,null,null,null,null,null,null,null,null,null,null,null,null,null,null,null,null,null,null,null,null,"",{"$f":"IF(AD242>=AH$103,\"\",AC242+7)","v":{"$error":"#VALUE!"}},{"$error":"#VALUE!"},{"$error":"#VALUE!"},{"$error":"#VALUE!"},null,null,null,null,null,null,null,null,null,null,null,null,{"$error":"#VALUE!"},{"$f":"SUMPRODUCT((AC243<=AV$113:AV$367)*(AD243>=AV$113:AV$367))","v":{"$error":"#VALUE!"}},null,"2027-12-08","2027-12-08","Mariä Empfängnis",2027]
[null,null,null,null,null,null,null,null,null,null,null,null,null,null,null,null,null,null,null,null,null,null,null,null,null,null,null,"",{"$error":"#VALUE!"},{"$error":"#VALUE!"},{"$error":"#VALUE!"},{"$error":"#VALUE!"},null,null,null,null,null,null,null,null,null,null,null,null,{"$error":"#VALUE!"},{"$f":"SUMPRODUCT((AC244<=AV$113:AV$367)*(AD244>=AV$113:AV$367))","v":{"$error":"#VALUE!"}},null,"2027-12-24","2027-12-24","Heiligabend",2027]
[null,null,null,null,null,null,null,null,null,null,null,null,null,null,null,null,null,null,null,null,null,null,null,null,null,null,null,"",{"$error":"#VALUE!"},{"$error":"#VALUE!"},{"$error":"#VALUE!"},{"$error":"#VALUE!"},null,null,null,null,null,null,null,null,null,null,null,null,{"$error":"#VALUE!"},{"$f":"SUMPRODUCT((AC245<=AV$113:AV$367)*(AD245>=AV$113:AV$367))","v":{"$error":"#VALUE!"}},null,"2027-12-25","2027-12-25","Christtag",2027]
[null,null,null,null,null,null,null,null,null,null,null,null,null,null,null,null,null,null,null,null,null,null,null,null,null,null,null,"",{"$error":"#VALUE!"},{"$error":"#VALUE!"},{"$error":"#VALUE!"},{"$error":"#VALUE!"},null,null,null,null,null,null,null,null,null,null,null,null,{"$error":"#VALUE!"},{"$f":"SUMPRODUCT((AC246<=AV$113:AV$367)*(AD246>=AV$113:AV$367))","v":{"$error":"#VALUE!"}},null,"-","2027-12-26","Stefanitag",2027]
[null,null,null,null,null,null,null,null,null,null,null,null,null,null,null,null,null,null,null,null,null,null,null,null,null,null,null,"",{"$error":"#VALUE!"},{"$error":"#VALUE!"},{"$error":"#VALUE!"},{"$error":"#VALUE!"},null,null,null,null,null,null,null,null,null,null,null,null,{"$error":"#VALUE!"},{"$f":"SUMPRODUCT((AC247<=AV$113:AV$367)*(AD247>=AV$113:AV$367))","v":{"$error":"#VALUE!"}},null,"2027-12-31","2027-12-31","Silvester",2027]
[null,null,null,null,null,null,null,null,null,null,null,null,null,null,null,null,null,null,null,null,null,null,null,null,null,null,null,"",{"$error":"#VALUE!"},{"$error":"#VALUE!"},{"$error":"#VALUE!"},{"$error":"#VALUE!"},null,null,null,null,null,null,null,null,null,null,null,null,{"$error":"#VALUE!"},{"$f":"SUMPRODUCT((AC248<=AV$113:AV$367)*(AD248>=AV$113:AV$367))","v":{"$error":"#VALUE!"}},null,"2028-01-01","2028-01-01","Neujahr",2028]
[null,null,null,null,null,null,null,null,null,null,null,null,null,null,null,null,null,null,null,null,null,null,null,null,null,null,null,"",{"$error":"#VALUE!"},{"$error":"#VALUE!"},{"$error":"#VALUE!"},{"$error":"#VALUE!"},null,null,null,null,null,null,null,null,null,null,null,null,{"$error":"#VALUE!"},{"$f":"SUMPRODUCT((AC249<=AV$113:AV$367)*(AD249>=AV$113:AV$367))","v":{"$error":"#VALUE!"}},null,"2028-01-06","2028-01-06","Heilige Drei Könige",2028]
[null,null,null,null,null,null,null,null,null,null,null,null,null,null,null,null,null,null,null,null,null,null,null,null,null,null,null,"",{"$error":"#VALUE!"},{"$error":"#VALUE!"},{"$error":"#VALUE!"},{"$error":"#VALUE!"},null,null,null,null,null,null,null,null,null,null,null,null,{"$error":"#VALUE!"},{"$f":"SUMPRODUCT((AC250<=AV$113:AV$367)*(AD250>=AV$113:AV$367))","v":{"$error":"#VALUE!"}},null,"2028-04-17","2028-04-17","Ostermontag",2028]
[null,null,null,null,null,null,null,null,null,null,null,null,null,null,null,null,null,null,null,null,null,null,null,null,null,null,null,"",{"$error":"#VALUE!"},{"$error":"#VALUE!"},{"$error":"#VALUE!"},{"$error":"#VALUE!"},null,null,null,null,null,null,null,null,null,null,null,null,{"$error":"#VALUE!"},{"$f":"SUMPRODUCT((AC251<=AV$113:AV$367)*(AD251>=AV$113:AV$367))","v":{"$error":"#VALUE!"}},null,"2028-05-01","2028-05-01","Staatsfeiertag",2028]
[null,null,null,null,null,null,null,null,null,null,null,null,null,null,null,null,null,null,null,null,null,null,null,null,null,null,null,"",{"$error":"#VALUE!"},{"$error":"#VALUE!"},{"$error":"#VALUE!"},{"$error":"#VALUE!"},null,null,null,null,null,null,null,null,null,null,null,null,{"$error":"#VALUE!"},{"$f":"SUMPRODUCT((AC252<=AV$113:AV$367)*(AD252>=AV$113:AV$367))","v":{"$error":"#VALUE!"}},null,"2028-05-25","2028-05-25","Christi Himmelfahrt",2028]
[null,null,null,null,null,null,null,null,null,null,null,null,null,null,null,null,null,null,null,null,null,null,null,null,null,null,null,"",{"$error":"#VALUE!"},{"$error":"#VALUE!"},{"$error":"#VALUE!"},{"$error":"#VALUE!"},null,null,null,null,null,null,null,null,null,null,null,null,{"$error":"#VALUE!"},{"$f":"SUMPRODUCT((AC253<=AV$113:AV$367)*(AD253>=AV$113:AV$367))","v":{"$error":"#VALUE!"}},null,"2028-06-05","2028-06-05","Pfingstmontag",2028]
[null,null,null,null,null,null,null,null,null,null,null,null,null,null,null,null,null,null,null,null,null,null,null,null,null,null,null,"",{"$error":"#VALUE!"},{"$error":"#VALUE!"},{"$error":"#VALUE!"},{"$error":"#VALUE!"},null,null,null,null,null,null,null,null,null,null,null,null,{"$error":"#VALUE!"},{"$f":"SUMPRODUCT((AC254<=AV$113:AV$367)*(AD254>=AV$113:AV$367))","v":{"$error":"#VALUE!"}},null,"2028-06-15","2028-06-15","Fronleichnam",2028]
[null,null,null,null,null,null,null,null,null,null,null,null,null,null,null,null,null,null,null,null,null,null,null,null,null,null,null,"",{"$error":"#VALUE!"},{"$error":"#VALUE!"},{"$error":"#VALUE!"},{"$error":"#VALUE!"},null,null,null,null,null,null,null,null,null,null,null,null,{"$error":"#VALUE!"},{"$f":"SUMPRODUCT((AC255<=AV$113:AV$367)*(AD255>=AV$113:AV$367))","v":{"$error":"#VALUE!"}},null,"2028-08-15","2028-08-15","Mariä Himmelfahrt",2028]
[null,null,null,null,null,null,null,null,null,null,null,null,null,null,null,null,null,null,null,null,null,null,null,null,null,null,null,"",{"$error":"#VALUE!"},{"$error":"#VALUE!"},{"$error":"#VALUE!"},{"$error":"#VALUE!"},null,null,null,null,null,null,null,null,null,null,null,null,{"$error":"#VALUE!"},{"$f":"SUMPRODUCT((AC256<=AV$113:AV$367)*(AD256>=AV$113:AV$367))","v":{"$error":"#VALUE!"}},null,"2028-10-26","2028-10-26","Nationalfeiertag",2028]
[null,null,null,null,null,null,null,null,null,null,null,null,null,null,null,null,null,null,null,null,null,null,null,null,null,null,null,"",{"$error":"#VALUE!"},{"$error":"#VALUE!"},{"$error":"#VALUE!"},{"$error":"#VALUE!"},null,null,null,null,null,null,null,null,null,null,null,null,{"$error":"#VALUE!"},{"$f":"SUMPRODUCT((AC257<=AV$113:AV$367)*(AD257>=AV$113:AV$367))","v":{"$error":"#VALUE!"}},null,"2028-11-01","2028-11-01","Allerheiligen",2028]
[null,null,null,null,null,null,null,null,null,null,null,null,null,null,null,null,null,null,null,null,null,null,null,null,null,null,null,"",{"$error":"#VALUE!"},{"$error":"#VALUE!"},{"$error":"#VALUE!"},{"$error":"#VALUE!"},null,null,null,null,null,null,null,null,null,null,null,null,{"$error":"#VALUE!"},{"$f":"SUMPRODUCT((AC258<=AV$113:AV$367)*(AD258>=AV$113:AV$367))","v":{"$error":"#VALUE!"}},null,"2028-12-08","2028-12-08","Mariä Empfängnis",2028]
[null,null,null,null,null,null,null,null,null,null,null,null,null,null,null,null,null,null,null,null,null,null,null,null,null,null,null,"",{"$error":"#VALUE!"},{"$error":"#VALUE!"},{"$error":"#VALUE!"},{"$error":"#VALUE!"},null,null,null,null,null,null,null,null,null,null,null,null,{"$error":"#VALUE!"},{"$f":"SUMPRODUCT((AC259<=AV$113:AV$367)*(AD259>=AV$113:AV$367))","v":{"$error":"#VALUE!"}},null,"-","2028-12-24","Heiligabend",2028]
[null,null,null,null,null,null,null,null,null,null,null,null,null,null,null,null,null,null,null,null,null,null,null,null,null,null,null,"",{"$error":"#VALUE!"},{"$error":"#VALUE!"},{"$error":"#VALUE!"},{"$error":"#VALUE!"},null,null,null,null,null,null,null,null,null,null,null,null,{"$error":"#VALUE!"},{"$f":"SUMPRODUCT((AC260<=AV$113:AV$367)*(AD260>=AV$113:AV$367))","v":{"$error":"#VALUE!"}},null,"2028-12-25","2028-12-25","Christtag",2028]
[null,null,null,null,null,null,null,null,null,null,null,null,null,null,null,null,null,null,null,null,null,null,null,null,null,null,null,"",{"$error":"#VALUE!"},{"$error":"#VALUE!"},{"$error":"#VALUE!"},{"$error":"#VALUE!"},null,null,null,null,null,null,null,null,null,null,null,null,{"$error":"#VALUE!"},{"$f":"SUMPRODUCT((AC261<=AV$113:AV$367)*(AD261>=AV$113:AV$367))","v":{"$error":"#VALUE!"}},null,"2028-12-26","2028-12-26","Stefanitag",2028]
[null,null,null,null,null,null,null,null,null,null,null,null,null,null,null,null,null,null,null,null,null,null,null,null,null,null,null,"",{"$error":"#VALUE!"},{"$error":"#VALUE!"},{"$error":"#VALUE!"},{"$error":"#VALUE!"},null,null,null,null,null,null,null,null,null,null,null,null,{"$error":"#VALUE!"},{"$f":"SUMPRODUCT((AC262<=AV$113:AV$367)*(AD262>=AV$113:AV$367))","v":{"$error":"#VALUE!"}},null,"-","2028-12-31","Silvester",2028]
[null,null,null,null,null,null,null,null,null,null,null,null,null,null,null,null,null,null,null,null,null,null,null,null,null,null,null,"",{"$error":"#VALUE!"},{"$error":"#VALUE!"},{"$error":"#VALUE!"},{"$error":"#VALUE!"},null,null,null,null,null,null,null,null,null,null,null,null,{"$error":"#VALUE!"},{"$f":"SUMPRODUCT((AC263<=AV$113:AV$367)*(AD263>=AV$113:AV$367))","v":{"$error":"#VALUE!"}},null,"2029-01-01","2029-01-01","Neujahr",2029]
[null,null,null,null,null,null,null,null,null,null,null,null,null,null,null,null,null,null,null,null,null,null,null,null,null,null,null,"",{"$error":"#VALUE!"},{"$error":"#VALUE!"},{"$error":"#VALUE!"},{"$error":"#VALUE!"},null,null,null,null,null,null,null,null,null,null,null,null,{"$error":"#VALUE!"},{"$f":"SUMPRODUCT((AC264<=AV$113:AV$367)*(AD264>=AV$113:AV$367))","v":{"$error":"#VALUE!"}},null,"2029-01-06","2029-01-06","Heilige Drei Könige",2029]
[null,null,null,null,null,null,null,null,null,null,null,null,null,null,null,null,null,null,null,null,null,null,null,null,null,null,null,"",{"$error":"#VALUE!"},{"$error":"#VALUE!"},{"$error":"#VALUE!"},{"$error":"#VALUE!"},null,null,null,null,null,null,null,null,null,null,null,null,{"$error":"#VALUE!"},{"$f":"SUMPRODUCT((AC265<=AV$113:AV$367)*(AD265>=AV$113:AV$367))","v":{"$error":"#VALUE!"}},null,"2029-04-02","2029-04-02","Ostermontag",2029]
[null,null,null,null,null,null,null,null,null,null,null,null,null,null,null,null,null,null,null,null,null,null,null,null,null,null,null,"",{"$error":"#VALUE!"},{"$error":"#VALUE!"},{"$error":"#VALUE!"},{"$error":"#VALUE!"},null,null,null,null,null,null,null,null,null,null,null,null,{"$error":"#VALUE!"},{"$f":"SUMPRODUCT((AC266<=AV$113:AV$367)*(AD266>=AV$113:AV$367))","v":{"$error":"#VALUE!"}},null,"2029-05-01","2029-05-01","Staatsfeiertag",2029]
[null,null,null,null,null,null,null,null,null,null,null,null,null,null,null,null,null,null,null,null,null,null,null,null,null,null,null,"",{"$error":"#VALUE!"},{"$error":"#VALUE!"},{"$error":"#VALUE!"},{"$error":"#VALUE!"},null,null,null,null,null,null,null,null,null,null,null,null,{"$error":"#VALUE!"},{"$f":"SUMPRODUCT((AC267<=AV$113:AV$367)*(AD267>=AV$113:AV$367))","v":{"$error":"#VALUE!"}},null,"2029-05-10","2029-05-10","Christi Himmelfahrt",2029]
[null,null,null,null,null,null,null,null,null,null,null,null,null,null,null,null,null,null,null,null,null,null,null,null,null,null,null,"",{"$error":"#VALUE!"},{"$error":"#VALUE!"},{"$error":"#VALUE!"},{"$error":"#VALUE!"},null,null,null,null,null,null,null,null,null,null,null,null,{"$error":"#VALUE!"},{"$f":"SUMPRODUCT((AC268<=AV$113:AV$367)*(AD268>=AV$113:AV$367))","v":{"$error":"#VALUE!"}},null,"2029-05-21","2029-05-21","Pfingstmontag",2029]
[null,null,null,null,null,null,null,null,null,null,null,null,null,null,null,null,null,null,null,null,null,null,null,null,null,null,null,"",{"$error":"#VALUE!"},{"$error":"#VALUE!"},{"$error":"#VALUE!"},{"$error":"#VALUE!"},null,null,null,null,null,null,null,null,null,null,null,null,{"$error":"#VALUE!"},{"$f":"SUMPRODUCT((AC269<=AV$113:AV$367)*(AD269>=AV$113:AV$367))","v":{"$error":"#VALUE!"}},null,"2029-05-31","2029-05-31","Fronleichnam",2029]
[null,null,null,null,null,null,null,null,null,null,null,null,null,null,null,null,null,null,null,null,null,null,null,null,null,null,null,"",{"$error":"#VALUE!"},{"$error":"#VALUE!"},{"$error":"#VALUE!"},{"$error":"#VALUE!"},null,null,null,null,null,null,null,null,null,null,null,null,{"$error":"#VALUE!"},{"$f":"SUMPRODUCT((AC270<=AV$113:AV$367)*(AD270>=AV$113:AV$367))","v":{"$error":"#VALUE!"}},null,"2029-08-15","2029-08-15","Mariä Himmelfahrt",2029]
[null,null,null,null,null,null,null,null,null,null,null,null,null,null,null,null,null,null,null,null,null,null,null,null,null,null,null,"",{"$error":"#VALUE!"},{"$error":"#VALUE!"},{"$error":"#VALUE!"},{"$error":"#VALUE!"},null,null,null,null,null,null,null,null,null,null,null,null,{"$error":"#VALUE!"},{"$f":"SUMPRODUCT((AC271<=AV$113:AV$367)*(AD271>=AV$113:AV$367))","v":{"$error":"#VALUE!"}},null,"2029-10-26","2029-10-26","Nationalfeiertag",2029]
[null,null,null,null,null,null,null,null,null,null,null,null,null,null,null,null,null,null,null,null,null,null,null,null,null,null,null,"",{"$error":"#VALUE!"},{"$error":"#VALUE!"},{"$error":"#VALUE!"},{"$error":"#VALUE!"},null,null,null,null,null,null,null,null,null,null,null,null,{"$error":"#VALUE!"},{"$f":"SUMPRODUCT((AC272<=AV$113:AV$367)*(AD272>=AV$113:AV$367))","v":{"$error":"#VALUE!"}},null,"2029-11-01","2029-11-01","Allerheiligen",2029]
[null,null,null,null,null,null,null,null,null,null,null,null,null,null,null,null,null,null,null,null,null,null,null,null,null,null,null,"",{"$error":"#VALUE!"},{"$error":"#VALUE!"},{"$error":"#VALUE!"},{"$error":"#VALUE!"},null,null,null,null,null,null,null,null,null,null,null,null,{"$error":"#VALUE!"},{"$f":"SUMPRODUCT((AC273<=AV$113:AV$367)*(AD273>=AV$113:AV$367))","v":{"$error":"#VALUE!"}},null,"2029-12-08","2029-12-08","Mariä Empfängnis",2029]
[null,null,null,null,null,null,null,null,null,null,null,null,null,null,null,null,null,null,null,null,null,null,null,null,null,null,null,"",{"$error":"#VALUE!"},{"$error":"#VALUE!"},{"$f":"AT274","v":{"$error":"#VALUE!"}},{"$error":"#VALUE!"},null,null,null,null,null,null,null,null,null,null,null,null,{"$error":"#VALUE!"},{"$f":"SUMPRODUCT((AC274<=AV$113:AV$367)*(AD274>=AV$113:AV$367))","v":{"$error":"#VALUE!"}},null,"2029-12-24","2029-12-24","Heiligabend",2029]
[null,null,null,null,null,null,null,null,null,null,null,null,null,null,null,null,null,null,null,null,null,null,null,null,null,null,null,"",{"$error":"#VALUE!"},{"$error":"#VALUE!"},{"$error":"#VALUE!"},{"$error":"#VALUE!"},null,null,null,null,null,null,null,null,null,null,null,null,{"$error":"#VALUE!"},{"$f":"SUMPRODUCT((AC275<=AV$113:AV$367)*(AD275>=AV$113:AV$367))","v":{"$error":"#VALUE!"}},null,"2029-12-25","2029-12-25","Christtag",2029]
[null,null,null,null,null,null,null,null,null,null,null,null,null,null,null,null,null,null,null,null,null,null,null,null,null,null,null,"",{"$error":"#VALUE!"},{"$error":"#VALUE!"},{"$error":"#VALUE!"},{"$error":"#VALUE!"},null,null,null,null,null,null,null,null,null,null,null,null,{"$error":"#VALUE!"},{"$f":"SUMPRODUCT((AC276<=AV$113:AV$367)*(AD276>=AV$113:AV$367))","v":{"$error":"#VALUE!"}},null,"2029-12-26","2029-12-26","Stefanitag",2029]
[null,null,null,null,null,null,null,null,null,null,null,null,null,null,null,null,null,null,null,null,null,null,null,null,null,null,null,"",{"$error":"#VALUE!"},{"$error":"#VALUE!"},{"$error":"#VALUE!"},{"$error":"#VALUE!"},null,null,null,null,null,null,null,null,null,null,null,null,{"$error":"#VALUE!"},{"$f":"SUMPRODUCT((AC277<=AV$113:AV$367)*(AD277>=AV$113:AV$367))","v":{"$error":"#VALUE!"}},null,"2029-12-31","2029-12-31","Silvester",2029]
[null,null,null,null,null,null,null,null,null,null,null,null,null,null,null,null,null,null,null,null,null,null,null,null,null,null,null,"",{"$error":"#VALUE!"},{"$error":"#VALUE!"},{"$error":"#VALUE!"},{"$error":"#VALUE!"},null,null,null,null,null,null,null,null,null,null,null,null,{"$error":"#VALUE!"},{"$f":"SUMPRODUCT((AC278<=AV$113:AV$367)*(AD278>=AV$113:AV$367))","v":{"$error":"#VALUE!"}},null,"2030-01-01","2030-01-01","Neujahr",2030]
[null,null,null,null,null,null,null,null,null,null,null,null,null,null,null,null,null,null,null,null,null,null,null,null,null,null,null,"",{"$error":"#VALUE!"},{"$error":"#VALUE!"},{"$error":"#VALUE!"},{"$error":"#VALUE!"},null,null,null,null,null,null,null,null,null,null,null,null,{"$error":"#VALUE!"},{"$f":"SUMPRODUCT((AC279<=AV$113:AV$367)*(AD279>=AV$113:AV$367))","v":{"$error":"#VALUE!"}},null,"-","2030-01-06","Heilige Drei Könige",2030]
[null,null,null,null,null,null,null,null,null,null,null,null,null,null,null,null,null,null,null,null,null,null,null,null,null,null,null,"",{"$error":"#VALUE!"},{"$error":"#VALUE!"},{"$error":"#VALUE!"},{"$error":"#VALUE!"},null,null,null,null,null,null,null,null,null,null,null,null,{"$error":"#VALUE!"},{"$f":"SUMPRODUCT((AC280<=AV$113:AV$367)*(AD280>=AV$113:AV$367))","v":{"$error":"#VALUE!"}},null,"2030-04-22","2030-04-22","Ostermontag",2030]
[null,null,null,null,null,null,null,null,null,null,null,null,null,null,null,null,null,null,null,null,null,null,null,null,null,null,null,"",{"$error":"#VALUE!"},{"$error":"#VALUE!"},{"$error":"#VALUE!"},{"$error":"#VALUE!"},null,null,null,null,null,null,null,null,null,null,null,null,{"$error":"#VALUE!"},{"$f":"SUMPRODUCT((AC281<=AV$113:AV$367)*(AD281>=AV$113:AV$367))","v":{"$error":"#VALUE!"}},null,"2030-05-01","2030-05-01","Staatsfeiertag",2030]
[null,null,null,null,null,null,null,null,null,null,null,null,null,null,null,null,null,null,null,null,null,null,null,null,null,null,null,"",{"$error":"#VALUE!"},{"$error":"#VALUE!"},{"$error":"#VALUE!"},{"$error":"#VALUE!"},null,null,null,null,null,null,null,null,null,null,null,null,{"$error":"#VALUE!"},{"$f":"SUMPRODUCT((AC282<=AV$113:AV$367)*(AD282>=AV$113:AV$367))","v":{"$error":"#VALUE!"}},null,"2030-05-30","2030-05-30","Christi Himmelfahrt",2030]
[null,null,null,null,null,null,null,null,null,null,null,null,null,null,null,null,null,null,null,null,null,null,null,null,null,null,null,"",{"$error":"#VALUE!"},{"$error":"#VALUE!"},{"$error":"#VALUE!"},{"$error":"#VALUE!"},null,null,null,null,null,null,null,null,null,null,null,null,{"$error":"#VALUE!"},{"$f":"SUMPRODUCT((AC283<=AV$113:AV$367)*(AD283>=AV$113:AV$367))","v":{"$error":"#VALUE!"}},null,"2030-06-10","2030-06-10","Pfingstmontag",2030]
[null,null,null,null,null,null,null,null,null,null,null,null,null,null,null,null,null,null,null,null,null,null,null,null,null,null,null,"",{"$error":"#VALUE!"},{"$error":"#VALUE!"},{"$error":"#VALUE!"},{"$error":"#VALUE!"},null,null,null,null,null,null,null,null,null,null,null,null,{"$error":"#VALUE!"},{"$f":"SUMPRODUCT((AC284<=AV$113:AV$367)*(AD284>=AV$113:AV$367))","v":{"$error":"#VALUE!"}},null,"2030-06-20","2030-06-20","Fronleichnam",2030]
[null,null,null,null,null,null,null,null,null,null,null,null,null,null,null,null,null,null,null,null,null,null,null,null,null,null,null,"",{"$error":"#VALUE!"},{"$error":"#VALUE!"},{"$error":"#VALUE!"},{"$error":"#VALUE!"},null,null,null,null,null,null,null,null,null,null,null,null,{"$error":"#VALUE!"},{"$f":"SUMPRODUCT((AC285<=AV$113:AV$367)*(AD285>=AV$113:AV$367))","v":{"$error":"#VALUE!"}},null,"2030-08-15","2030-08-15","Mariä Himmelfahrt",2030]
[null,null,null,null,null,null,null,null,null,null,null,null,null,null,null,null,null,null,null,null,null,null,null,null,null,null,null,"",{"$error":"#VALUE!"},{"$error":"#VALUE!"},{"$error":"#VALUE!"},{"$error":"#VALUE!"},null,null,null,null,null,null,null,null,null,null,null,null,{"$error":"#VALUE!"},{"$f":"SUMPRODUCT((AC286<=AV$113:AV$367)*(AD286>=AV$113:AV$367))","v":{"$error":"#VALUE!"}},null,"2030-10-26","2030-10-26","Nationalfeiertag",2030]
[null,null,null,null,null,null,null,null,null,null,null,null,null,null,null,null,null,null,null,null,null,null,null,null,null,null,null,"",{"$error":"#VALUE!"},{"$error":"#VALUE!"},{"$error":"#VALUE!"},{"$error":"#VALUE!"},null,null,null,null,null,null,null,null,null,null,null,null,{"$error":"#VALUE!"},{"$f":"SUMPRODUCT((AC287<=AV$113:AV$367)*(AD287>=AV$113:AV$367))","v":{"$error":"#VALUE!"}},null,"2030-11-01","2030-11-01","Allerheiligen",2030]
[null,null,null,null,null,null,null,null,null,null,null,null,null,null,null,null,null,null,null,null,null,null,null,null,null,null,null,"",{"$error":"#VALUE!"},{"$error":"#VALUE!"},{"$error":"#VALUE!"},{"$error":"#VALUE!"},null,null,null,null,null,null,null,null,null,null,null,null,{"$error":"#VALUE!"},{"$f":"SUMPRODUCT((AC288<=AV$113:AV$367)*(AD288>=AV$113:AV$367))","v":{"$error":"#VALUE!"}},null,"-","2030-12-08","Mariä Empfängnis",2030]
[null,null,null,null,null,null,null,null,null,null,null,null,null,null,null,null,null,null,null,null,null,null,null,null,null,null,null,"",{"$error":"#VALUE!"},{"$error":"#VALUE!"},{"$error":"#VALUE!"},{"$error":"#VALUE!"},null,null,null,null,null,null,null,null,null,null,null,null,{"$error":"#VALUE!"},{"$f":"SUMPRODUCT((AC289<=AV$113:AV$367)*(AD289>=AV$113:AV$367))","v":{"$error":"#VALUE!"}},null,"2030-12-24","2030-12-24","Heiligabend",2030]
[null,null,null,null,null,null,null,null,null,null,null,null,null,null,null,null,null,null,null,null,null,null,null,null,null,null,null,null,null,null,{"$f":"AT291","v":0},null,null,null,null,null,null,null,null,null,null,null,null,null,1,{"$f":"SUMPRODUCT((AC290<=AV$113:AV$367)*(AD290>=AV$113:AV$367))","v":0},null,"2030-12-25","2030-12-25","Christtag",2030]
[null,null,null,null,null,null,null,null,null,null,null,null,null,null,null,null,null,null,null,null,null,null,null,null,null,null,null,null,null,null,null,null,null,null,null,null,null,null,null,null,null,null,null,null,1,{"$f":"SUMPRODUCT((AC291<=AV$113:AV$367)*(AD291>=AV$113:AV$367))","v":0},null,"2030-12-26","2030-12-26","Stefanitag",2030]
[null,null,null,null,null,null,null,null,null,null,null,null,null,null,null,null,null,null,null,null,null,null,null,null,null,null,null,null,null,null,null,null,null,null,null,null,null,null,null,null,null,null,null,null,1,{"$f":"SUMPRODUCT((AC292<=AV$113:AV$367)*(AD292>=AV$113:AV$367))","v":0},null,"2030-12-31","2030-12-31","Silvester",2030]
[null,null,null,null,null,null,null,null,null,null,null,null,null,null,null,null,null,null,null,null,null,null,null,null,null,null,null,null,null,null,null,null,null,null,null,null,null,null,null,null,null,null,null,null,1,{"$f":"SUMPRODUCT((AC293<=AV$113:AV$367)*(AD293>=AV$113:AV$367))","v":0},null,"2031-01-01","2031-01-01","Neujahr",2031]
[null,null,null,null,null,null,null,null,null,null,null,null,null,null,null,null,null,null,null,null,null,null,null,null,null,null,null,null,null,null,null,null,null,null,null,null,null,null,null,null,null,null,null,null,1,{"$f":"SUMPRODUCT((AC294<=AV$113:AV$367)*(AD294>=AV$113:AV$367))","v":0},null,"2031-01-06","2031-01-06","Heilige Drei Könige",2031]
[null,null,null,null,null,null,null,null,null,null,null,null,null,null,null,null,null,null,null,null,null,null,null,null,null,null,null,null,null,null,null,null,null,null,null,null,null,null,null,null,null,null,null,null,1,{"$f":"SUMPRODUCT((AC295<=AV$113:AV$367)*(AD295>=AV$113:AV$367))","v":0},null,"2031-04-14","2031-04-14","Ostermontag",2031]
[null,null,null,null,null,null,null,null,null,null,null,null,null,null,null,null,null,null,null,null,null,null,null,null,null,null,null,null,null,null,null,null,null,null,null,null,null,null,null,null,null,null,null,null,1,{"$f":"SUMPRODUCT((AC296<=AV$113:AV$367)*(AD296>=AV$113:AV$367))","v":0},null,"2031-05-01","2031-05-01","Staatsfeiertag",2031]
[null,null,null,null,null,null,null,null,null,null,null,null,null,null,null,null,null,null,null,null,null,null,null,null,null,null,null,null,null,null,null,null,null,null,null,null,null,null,null,null,null,null,null,null,1,{"$f":"SUMPRODUCT((AC297<=AV$113:AV$367)*(AD297>=AV$113:AV$367))","v":0},null,"2031-05-22","2031-05-22","Christi Himmelfahrt",2031]
[null,null,null,null,null,null,null,null,null,null,null,null,null,null,null,null,null,null,null,null,null,null,null,null,null,null,null,null,null,null,null,null,null,null,null,null,null,null,null,null,null,null,null,null,1,{"$f":"SUMPRODUCT((AC298<=AV$113:AV$367)*(AD298>=AV$113:AV$367))","v":0},null,"2031-06-02","2031-06-02","Pfingstmontag",2031]
[null,null,null,null,null,null,null,null,null,null,null,null,null,null,null,null,null,null,null,null,null,null,null,null,null,null,null,null,null,null,null,null,null,null,null,null,null,null,null,null,null,null,null,null,1,{"$f":"SUMPRODUCT((AC299<=AV$113:AV$367)*(AD299>=AV$113:AV$367))","v":0},null,"2031-06-12","2031-06-12","Fronleichnam",2031]
[null,null,null,null,null,null,null,null,null,null,null,null,null,null,null,null,null,null,null,null,null,null,null,null,null,null,null,null,null,null,null,null,null,null,null,null,null,null,null,null,null,null,null,null,1,{"$f":"SUMPRODUCT((AC300<=AV$113:AV$367)*(AD300>=AV$113:AV$367))","v":0},null,"2031-08-15","2031-08-15","Mariä Himmelfahrt",2031]
[null,null,null,null,null,null,null,null,null,null,null,null,null,null,null,null,null,null,null,null,null,null,null,null,null,null,null,null,null,null,null,null,null,null,null,null,null,null,null,null,null,null,null,null,1,{"$f":"SUMPRODUCT((AC301<=AV$113:AV$367)*(AD301>=AV$113:AV$367))","v":0},null,"-","2031-10-26","Nationalfeiertag",2031]
[null,null,null,null,null,null,null,null,null,null,null,null,null,null,null,null,null,null,null,null,null,null,null,null,null,null,null,null,null,null,null,null,null,null,null,null,null,null,null,null,null,null,null,null,1,{"$f":"SUMPRODUCT((AC302<=AV$113:AV$367)*(AD302>=AV$113:AV$367))","v":0},null,"2031-11-01","2031-11-01","Allerheiligen",2031]
[null,null,null,null,null,null,null,null,null,null,null,null,null,null,null,null,null,null,null,null,null,null,null,null,null,null,null,null,null,null,null,null,null,null,null,null,null,null,null,null,null,null,null,null,1,{"$f":"SUMPRODUCT((AC303<=AV$113:AV$367)*(AD303>=AV$113:AV$367))","v":0},null,"2031-12-08","2031-12-08","Mariä Empfängnis",2031]
[null,null,null,null,null,null,null,null,null,null,null,null,null,null,null,null,null,null,null,null,null,null,null,null,null,null,null,null,null,null,null,null,null,null,null,null,null,null,null,null,null,null,null,null,1,{"$f":"SUMPRODUCT((AC304<=AV$113:AV$367)*(AD304>=AV$113:AV$367))","v":0},null,"2031-12-24","2031-12-24","Heiligabend",2031,null,"KALKULATION"]
[null,null,null,null,null,null,null,null,null,null,null,null,null,null,null,null,null,null,null,null,null,null,null,null,null,null,null,null,null,null,null,null,null,null,null,null,null,null,null,null,null,null,null,null,1,{"$f":"SUMPRODUCT((AC305<=AV$113:AV$367)*(AD305>=AV$113:AV$367))","v":0},null,"2031-12-25","2031-12-25","Christtag",2031,null,null,"Bezeichnung der Maßnahme:",{"$f":"F23","v":"1_MusterMA_"},null,null,null,null,{"$f":"P23","v":1}]
[null,null,null,null,null,null,null,null,null,null,null,null,null,null,null,null,null,null,null,null,null,null,null,null,null,null,null,null,null,null,null,null,null,null,null,null,null,null,null,null,null,null,null,null,{"$f":"AD306-AC306+IF(WEEKDAY(AD306)<>1,1,0)-IF(AND(WEEKDAY(AD306,2)>=6,AD$105=\"nein\"),1,0)","v":1},{"$f":"SUMPRODUCT((AC306<=AV$113:AV$367)*(AD306>=AV$113:AV$367))","v":0},null,{"$f":"IF(AD$105=\"ja\",IF(WEEKDAY(AW306)=1,\"-\",AW306),IF(OR(WEEKDAY(AW306)=1,WEEKDAY(AW306)=7),\"-\",AW306))","v":"2031-12-26"},"2031-12-26","Stefanitag",{"$f":"YEAR(AW306)","v":2031},null,null,null,"Gesamt MSTN lt. Zeitplan ",{"$f":"MSTNGesamt_Zeitplan","v":0}]
[null,null,null,null,null,null,null,null,null,null,null,null,null,null,null,null,null,null,null,null,null,null,null,null,null,null,null,null,null,null,null,null,null,null,null,null,null,null,null,null,null,null,null,null,1,{"$f":"SUMPRODUCT((AC307<=AV$113:AV$367)*(AD307>=AV$113:AV$367))","v":0},null,"2031-12-31","2031-12-31","Silvester",2031,null,null,null,"MS GruppentrainerInnen lt. Zeitplan ",{"$f":"MPS","v":0},{"$f":"IF(ROUND(BD307,2)<>$BD$313,\"–> Achtung: Wert stimmt nicht mit MS GruppentrainerInnen lt. Kalkulation überein!\",\"\")","v":""}]
[null,null,null,null,null,null,null,null,null,null,null,null,null,null,null,null,null,null,null,null,null,null,null,null,null,null,null,null,null,null,null,null,null,null,null,null,null,null,null,null,null,null,null,null,1,{"$f":"SUMPRODUCT((AC308<=AV$113:AV$367)*(AD308>=AV$113:AV$367))","v":0},null,"2032-01-01","2032-01-01","Neujahr",2032]
[null,null,null,null,null,null,null,null,null,null,null,null,null,null,null,null,null,null,null,null,null,null,null,null,null,null,null,null,null,null,null,null,null,null,null,null,null,null,null,null,null,null,null,null,1,{"$f":"SUMPRODUCT((AC309<=AV$113:AV$367)*(AD309>=AV$113:AV$367))","v":0},null,"2032-01-06","2032-01-06","Heilige Drei Könige",2032,null,"MASSNAHMENKOSTEN"]
[null,null,null,null,null,null,null,null,null,null,null,null,null,null,null,null,null,null,null,null,null,null,null,null,null,null,null,null,null,null,null,null,null,null,null,null,null,null,null,null,null,null,null,null,1,{"$f":"SUMPRODUCT((AC310<=AV$113:AV$367)*(AD310>=AV$113:AV$367))","v":0},null,"2032-03-29","2032-03-29","Ostermontag",2032,null,null,"GruppentrainerInnen",null,"MS","Einheitspreis/MS","Gesamt"]
[null,null,null,null,null,null,null,null,null,null,null,null,null,null,null,null,null,null,null,null,null,null,null,null,null,null,null,null,null,null,null,null,null,null,null,null,null,null,null,null,null,null,null,null,1,{"$f":"SUMPRODUCT((AC311<=AV$113:AV$367)*(AD311>=AV$113:AV$367))","v":0},null,"2032-05-01","2032-05-01","Staatsfeiertag",2032,null,"e",null,null,null,null,{"$f":"BD311*BE311","v":0},"+","–"]
[null,null,null,null,null,null,null,null,null,null,null,null,null,null,null,null,null,null,null,null,null,null,null,null,null,null,null,null,null,null,null,null,null,null,null,null,null,null,null,null,null,null,null,null,1,{"$f":"SUMPRODUCT((AC312<=AV$113:AV$367)*(AD312>=AV$113:AV$367))","v":0},null,"2032-05-06","2032-05-06","Christi Himmelfahrt",2032,null,null,"Zeile nicht löschen!"]
[null,null,null,null,null,null,null,null,null,null,null,null,null,null,null,null,null,null,null,null,null,null,null,null,null,null,null,null,null,null,null,null,null,null,null,null,null,null,null,null,null,null,null,null,1,{"$f":"SUMPRODUCT((AC313<=AV$113:AV$367)*(AD313>=AV$113:AV$367))","v":0},null,"2032-05-17","2032-05-17","Pfingstmontag",2032,null,null,null,"Summe",{"$f":"SUM(BD311:BD312)","v":0},{"$f":"IF(ISERROR(BF313/BD313),0,ROUND(BF313/BD313,2))","v":0},{"$f":"SUM(BF311:BF312)","v":0}]
[null,null,null,null,null,null,null,null,null,null,null,null,null,null,null,null,null,null,null,null,null,null,null,null,null,null,null,null,null,null,null,null,null,null,null,null,null,null,null,null,null,null,null,null,1,{"$f":"SUMPRODUCT((AC314<=AV$113:AV$367)*(AD314>=AV$113:AV$367))","v":0},null,"2032-05-27","2032-05-27","Fronleichnam",2032]
[null,null,null,null,null,null,null,null,null,null,null,null,null,null,null,null,null,null,null,null,null,null,null,null,null,null,null,null,null,null,null,null,null,null,null,null,null,null,null,null,null,null,null,null,1,{"$f":"SUMPRODUCT((AC315<=AV$113:AV$367)*(AD315>=AV$113:AV$367))","v":0},null,"-","2032-08-15","Mariä Himmelfahrt",2032,null,null,"EinzeltrainerInnen",null,"MS","Einheitspreis/MS","Gesamt"]
[null,null,null,null,null,null,null,null,null,null,null,null,null,null,null,null,null,null,null,null,null,null,null,null,null,null,null,null,null,null,null,null,null,null,null,null,null,null,null,null,null,null,null,null,1,{"$f":"SUMPRODUCT((AC316<=AV$113:AV$367)*(AD316>=AV$113:AV$367))","v":0},null,"2032-10-26","2032-10-26","Nationalfeiertag",2032,null,"e",null,null,null,null,{"$f":"BD316*BE316","v":0},"+","–"]
[null,null,null,null,null,null,null,null,null,null,null,null,null,null,null,null,null,null,null,null,null,null,null,null,null,null,null,null,null,null,null,null,null,null,null,null,null,null,null,null,null,null,null,null,1,{"$f":"SUMPRODUCT((AC317<=AV$113:AV$367)*(AD317>=AV$113:AV$367))","v":0},null,"2032-11-01","2032-11-01","Allerheiligen",2032]
[null,null,null,null,null,null,null,null,null,null,null,null,null,null,null,null,null,null,null,null,null,null,null,null,null,null,null,null,null,null,null,null,null,null,null,null,null,null,null,null,null,null,null,null,1,{"$f":"SUMPRODUCT((AC318<=AV$113:AV$367)*(AD318>=AV$113:AV$367))","v":0},null,"2032-12-08","2032-12-08","Mariä Empfängnis",2032,null,null,null,"Summe",{"$f":"SUM(BD316:BD317)","v":0},null,{"$f":"SUM(BF316:BF317)","v":0}]
[null,null,null,null,null,null,null,null,null,null,null,null,null,null,null,null,null,null,null,null,null,null,null,null,null,null,null,null,null,null,null,null,null,null,null,null,null,null,null,null,null,null,null,null,1,{"$f":"SUMPRODUCT((AC319<=AV$113:AV$367)*(AD319>=AV$113:AV$367))","v":0},null,"2032-12-24","2032-12-24","Heiligabend",2032]
[null,null,null,null,null,null,null,null,null,null,null,null,null,null,null,null,null,null,null,null,null,null,null,null,null,null,null,null,null,null,null,null,null,null,null,null,null,null,null,null,null,null,null,null,1,{"$f":"SUMPRODUCT((AC320<=AV$113:AV$367)*(AD320>=AV$113:AV$367))","v":0},null,"2032-12-25","2032-12-25","Christtag",2032,null,null,null,null,null,"Personalaufwand gesamt",{"$f":"ROUND(BF313+BF318,2)","v":0}]
[null,null,null,null,null,null,null,null,null,null,null,null,null,null,null,null,null,null,null,null,null,null,null,null,null,null,null,null,null,null,null,null,null,null,null,null,null,null,null,null,null,null,null,null,1,{"$f":"SUMPRODUCT((AC321<=AV$113:AV$367)*(AD321>=AV$113:AV$367))","v":0},null,"-","2032-12-26","Stefanitag",2032]
[null,null,null,null,null,null,null,null,null,null,null,null,null,null,null,null,null,null,null,null,null,null,null,null,null,null,null,null,null,null,null,null,null,null,null,null,null,null,null,null,null,null,null,null,1,{"$f":"SUMPRODUCT((AC322<=AV$113:AV$367)*(AD322>=AV$113:AV$367))","v":0},null,"2032-12-31","2032-12-31","Silvester",2032,null,null,"Räumliche/technische Ausstattung",null,"MS","Einheitspreis/MS","Gesamt"]
[null,null,null,null,null,null,null,null,null,null,null,null,null,null,null,null,null,null,null,null,null,null,null,null,null,null,null,null,null,null,null,null,null,null,null,null,null,null,null,null,null,null,null,null,1,{"$f":"SUMPRODUCT((AC323<=AV$113:AV$367)*(AD323>=AV$113:AV$367))","v":0},null,"2033-01-01","2033-01-01","Neujahr",2033,null,"e1",null,null,null,{"$f":"IF(ISERROR(BF323/BD323),0,BF323/BD323)","v":0},null,"+","–"]
[null,null,null,null,null,null,null,null,null,null,null,null,null,null,null,null,null,null,null,null,null,null,null,null,null,null,null,null,null,null,null,null,null,null,null,null,null,null,null,null,null,null,null,null,1,{"$f":"SUMPRODUCT((AC324<=AV$113:AV$367)*(AD324>=AV$113:AV$367))","v":0},null,"2033-01-06","2033-01-06","Heilige Drei Könige",2033]
[null,null,null,null,null,null,null,null,null,null,null,null,null,null,null,null,null,null,null,null,null,null,null,null,null,null,null,null,null,null,null,null,null,null,null,null,null,null,null,null,null,null,null,null,1,{"$f":"SUMPRODUCT((AC325<=AV$113:AV$367)*(AD325>=AV$113:AV$367))","v":0},null,"2033-04-18","2033-04-18","Ostermontag",2033,null,null,null,"Summe",{"$f":"ROUND(SUM(BD323:BD324),2)","v":0},null,{"$f":"ROUND(SUM(BF323:BF324),4)","v":0}]
[null,null,null,null,null,null,null,null,null,null,null,null,null,null,null,null,null,null,null,null,null,null,null,null,null,null,null,null,null,null,null,null,null,null,null,null,null,null,null,null,null,null,null,null,1,{"$f":"SUMPRODUCT((AC326<=AV$113:AV$367)*(AD326>=AV$113:AV$367))","v":0},null,"-","2033-05-01","Staatsfeiertag",2033]
[null,null,null,null,null,null,null,null,null,null,null,null,null,null,null,null,null,null,null,null,null,null,null,null,null,null,null,null,null,null,null,null,null,null,null,null,null,null,null,null,null,null,null,null,1,{"$f":"SUMPRODUCT((AC327<=AV$113:AV$367)*(AD327>=AV$113:AV$367))","v":0},null,"2033-05-26","2033-05-26","Christi Himmelfahrt",2033,null,null,"Sonstiger Aufwand",null,"MS","Einheitspreis/MS","Gesamt"]
[null,null,null,null,null,null,null,null,null,null,null,null,null,null,null,null,null,null,null,null,null,null,null,null,null,null,null,null,null,null,null,null,null,null,null,null,null,null,null,null,null,null,null,null,1,{"$f":"SUMPRODUCT((AC328<=AV$113:AV$367)*(AD328>=AV$113:AV$367))","v":0},null,"2033-06-06","2033-06-06","Pfingstmontag",2033,null,"e1",null,null,null,{"$f":"IF(ISERROR(BF328/BD328),0,BF328/BD328)","v":0},null,"+","–"]
[null,null,null,null,null,null,null,null,null,null,null,null,null,null,null,null,null,null,null,null,null,null,null,null,null,null,null,null,null,null,null,null,null,null,null,null,null,null,null,null,null,null,null,null,1,{"$f":"SUMPRODUCT((AC329<=AV$113:AV$367)*(AD329>=AV$113:AV$367))","v":0},null,"2033-06-16","2033-06-16","Fronleichnam",2033,null,null,"Zeile nicht löschen !"]
[null,null,null,null,null,null,null,null,null,null,null,null,null,null,null,null,null,null,null,null,null,null,null,null,null,null,null,null,null,null,null,null,null,null,null,null,null,null,null,null,null,null,null,null,1,{"$f":"SUMPRODUCT((AC330<=AV$113:AV$367)*(AD330>=AV$113:AV$367))","v":0},null,"2033-08-15","2033-08-15","Mariä Himmelfahrt",2033,null,null,null,"Summe",{"$f":"ROUND(SUM(BD328:BD329),2)","v":0},null,{"$f":"ROUND(SUM(BF328:BF329),2)","v":0}]
[null,null,null,null,null,null,null,null,null,null,null,null,null,null,null,null,null,null,null,null,null,null,null,null,null,null,null,null,null,null,null,null,null,null,null,null,null,null,null,null,null,null,null,null,1,{"$f":"SUMPRODUCT((AC331<=AV$113:AV$367)*(AD331>=AV$113:AV$367))","v":0},null,"2033-10-26","2033-10-26","Nationalfeiertag",2033]
[null,null,null,null,null,null,null,null,null,null,null,null,null,null,null,null,null,null,null,null,null,null,null,null,null,null,null,null,null,null,null,null,null,null,null,null,null,null,null,null,null,null,null,null,1,{"$f":"SUMPRODUCT((AC332<=AV$113:AV$367)*(AD332>=AV$113:AV$367))","v":0},null,"2033-11-01","2033-11-01","Allerheiligen",2033]
[null,null,null,null,null,null,null,null,null,null,null,null,null,null,null,null,null,null,null,null,null,null,null,null,null,null,null,null,null,null,null,null,null,null,null,null,null,null,null,null,null,null,null,null,1,{"$f":"SUMPRODUCT((AC333<=AV$113:AV$367)*(AD333>=AV$113:AV$367))","v":0},null,"2033-12-08","2033-12-08","Mariä Empfängnis",2033,null,"MASSNAHMENNEBENKOSTEN"]
[null,null,null,null,null,null,null,null,null,null,null,null,null,null,null,null,null,null,null,null,null,null,null,null,null,null,null,null,null,null,null,null,null,null,null,null,null,null,null,null,null,null,null,null,1,{"$f":"SUMPRODUCT((AC334<=AV$113:AV$367)*(AD334>=AV$113:AV$367))","v":0},null,"2033-12-24","2033-12-24","Heiligabend",2033,null,null,"Ausbildungsbeihilfe",null,null,null,"Gesamt"]
[null,null,null,null,null,null,null,null,null,null,null,null,null,null,null,null,null,null,null,null,null,null,null,null,null,null,null,null,null,null,null,null,null,null,null,null,null,null,null,null,null,null,null,null,1,{"$f":"SUMPRODUCT((AC335<=AV$113:AV$367)*(AD335>=AV$113:AV$367))","v":0},null,"-","2033-12-25","Christtag",2033,null,"e2",null,null,null,null,null,"+","–"]
[null,null,null,null,null,null,null,null,null,null,null,null,null,null,null,null,null,null,null,null,null,null,null,null,null,null,null,null,null,null,null,null,null,null,null,null,null,null,null,null,null,null,null,null,1,{"$f":"SUMPRODUCT((AC336<=AV$113:AV$367)*(AD336>=AV$113:AV$367))","v":0},null,"2033-12-26","2033-12-26","Stefanitag",2033]
[null,null,null,null,null,null,null,null,null,null,null,null,null,null,null,null,null,null,null,null,null,null,null,null,null,null,null,null,null,null,null,null,null,null,null,null,null,null,null,null,null,null,null,null,1,{"$f":"SUMPRODUCT((AC337<=AV$113:AV$367)*(AD337>=AV$113:AV$367))","v":0},null,"2033-12-31","2033-12-31","Silvester",2033,null,null,null,null,null,"Summe",{"$f":"SUM(BF335:BF336)","v":0}]
[null,null,null,null,null,null,null,null,null,null,null,null,null,null,null,null,null,null,null,null,null,null,null,null,null,null,null,null,null,null,null,null,null,null,null,null,null,null,null,null,null,null,null,null,1,{"$f":"SUMPRODUCT((AC338<=AV$113:AV$367)*(AD338>=AV$113:AV$367))","v":0},null,"-","2034-01-01","Neujahr",2034,null,null,"Unterkunft und Verpflegung",null,null,null,"Gesamt"]
[null,null,null,null,null,null,null,null,null,null,null,null,null,null,null,null,null,null,null,null,null,null,null,null,null,null,null,null,null,null,null,null,null,null,null,null,null,null,null,null,null,null,null,null,1,{"$f":"SUMPRODUCT((AC339<=AV$113:AV$367)*(AD339>=AV$113:AV$367))","v":0},null,"2034-01-06","2034-01-06","Heilige Drei Könige",2034,null,"e2",null,null,null,null,null,"+","–"]
[null,null,null,null,null,null,null,null,null,null,null,null,null,null,null,null,null,null,null,null,null,null,null,null,null,null,null,null,null,null,null,null,null,null,null,null,null,null,null,null,null,null,null,null,1,{"$f":"SUMPRODUCT((AC340<=AV$113:AV$367)*(AD340>=AV$113:AV$367))","v":0},null,"2034-04-10","2034-04-10","Ostermontag",2034]
[null,null,null,null,null,null,null,null,null,null,null,null,null,null,null,null,null,null,null,null,null,null,null,null,null,null,null,null,null,null,null,null,null,null,null,null,null,null,null,null,null,null,null,null,1,{"$f":"SUMPRODUCT((AC341<=AV$113:AV$367)*(AD341>=AV$113:AV$367))","v":0},null,"2034-05-01","2034-05-01","Staatsfeiertag",2034,null,null,null,null,null,"Summe",{"$f":"SUM(BF339:BF340)","v":0}]
[null,null,null,null,null,null,null,null,null,null,null,null,null,null,null,null,null,null,null,null,null,null,null,null,null,null,null,null,null,null,null,null,null,null,null,null,null,null,null,null,null,null,null,null,1,{"$f":"SUMPRODUCT((AC342<=AV$113:AV$367)*(AD342>=AV$113:AV$367))","v":0},null,"2034-05-18","2034-05-18","Christi Himmelfahrt",2034,null,null,"Kinderbetreuung",null,null,null,"Gesamt"]
[null,null,null,null,null,null,null,null,null,null,null,null,null,null,null,null,null,null,null,null,null,null,null,null,null,null,null,null,null,null,null,null,null,null,null,null,null,null,null,null,null,null,null,null,1,{"$f":"SUMPRODUCT((AC343<=AV$113:AV$367)*(AD343>=AV$113:AV$367))","v":0},null,"2034-05-29","2034-05-29","Pfingstmontag",2034,null,"e2",null,null,null,null,null,"+","–"]
[null,null,null,null,null,null,null,null,null,null,null,null,null,null,null,null,null,null,null,null,null,null,null,null,null,null,null,null,null,null,null,null,null,null,null,null,null,null,null,null,null,null,null,null,1,{"$f":"SUMPRODUCT((AC344<=AV$113:AV$367)*(AD344>=AV$113:AV$367))","v":0},null,"2034-06-08","2034-06-08","Fronleichnam",2034]
[null,null,null,null,null,null,null,null,null,null,null,null,null,null,null,null,null,null,null,null,null,null,null,null,null,null,null,null,null,null,null,null,null,null,null,null,null,null,null,null,null,null,null,null,1,{"$f":"SUMPRODUCT((AC345<=AV$113:AV$367)*(AD345>=AV$113:AV$367))","v":0},null,"2034-08-15","2034-08-15","Mariä Himmelfahrt",2034,null,null,null,null,null,"Summe",{"$f":"SUM(BF343:BF344)","v":0}]
[null,null,null,null,null,null,null,null,null,null,null,null,null,null,null,null,null,null,null,null,null,null,null,null,null,null,null,null,null,null,null,null,null,null,null,null,null,null,null,null,null,null,null,null,1,{"$f":"SUMPRODUCT((AC346<=AV$113:AV$367)*(AD346>=AV$113:AV$367))","v":0},null,"2034-10-26","2034-10-26","Nationalfeiertag",2034,null,null,"TeilnehmerInnenbezogene Kosten",null,null,null,"Gesamt"]
[null,null,null,null,null,null,null,null,null,null,null,null,null,null,null,null,null,null,null,null,null,null,null,null,null,null,null,null,null,null,null,null,null,null,null,null,null,null,null,null,null,null,null,null,1,{"$f":"SUMPRODUCT((AC347<=AV$113:AV$367)*(AD347>=AV$113:AV$367))","v":0},null,"2034-11-01","2034-11-01","Allerheiligen",2034,null,"e2","",null,null,null,null,"+","–"]
[null,null,null,null,null,null,null,null,null,null,null,null,null,null,null,null,null,null,null,null,null,null,null,null,null,null,null,null,null,null,null,null,null,null,null,null,null,null,null,null,null,null,null,null,1,{"$f":"SUMPRODUCT((AC348<=AV$113:AV$367)*(AD348>=AV$113:AV$367))","v":0},null,"2034-12-08","2034-12-08","Mariä Empfängnis",2034]
[null,null,null,null,null,null,null,null,null,null,null,null,null,null,null,null,null,null,null,null,null,null,null,null,null,null,null,null,null,null,null,null,null,null,null,null,null,null,null,null,null,null,null,null,1,{"$f":"SUMPRODUCT((AC349<=AV$113:AV$367)*(AD349>=AV$113:AV$367))","v":0},null,"-","2034-12-24","Heiligabend",2034,null,null,null,null,null,"Summe",{"$f":"SUM(BF347:BF348)","v":0}]
[null,null,null,null,null,null,null,null,null,null,null,null,null,null,null,null,null,null,null,null,null,null,null,null,null,null,null,null,null,null,null,null,null,null,null,null,null,null,null,null,null,null,null,null,1,{"$f":"SUMPRODUCT((AC350<=AV$113:AV$367)*(AD350>=AV$113:AV$367))","v":0},null,"2034-12-25","2034-12-25","Christtag",2034]
[null,null,null,null,null,null,null,null,null,null,null,null,null,null,null,null,null,null,null,null,null,null,null,null,null,null,null,null,null,null,null,null,null,null,null,null,null,null,null,null,null,null,null,null,1,{"$f":"SUMPRODUCT((AC351<=AV$113:AV$367)*(AD351>=AV$113:AV$367))","v":0},null,"2034-12-26","2034-12-26","Stefanitag",2034]
[null,null,null,null,null,null,null,null,null,null,null,null,null,null,null,null,null,null,null,null,null,null,null,null,null,null,null,null,null,null,null,null,null,null,null,null,null,null,null,null,null,null,null,null,1,{"$f":"SUMPRODUCT((AC352<=AV$113:AV$367)*(AD352>=AV$113:AV$367))","v":0},null,"-","2034-12-31","Silvester",2034,null,null,null,null,null,"Gesamt MSTN",{"$f":"MSTNGesamt_Zeitplan","v":0}]
[null,null,null,null,null,null,null,null,null,null,null,null,null,null,null,null,null,null,null,null,null,null,null,null,null,null,null,null,null,null,null,null,null,null,null,null,null,null,null,null,null,null,null,null,1,{"$f":"SUMPRODUCT((AC353<=AV$113:AV$367)*(AD353>=AV$113:AV$367))","v":0},null,"2035-01-01","2035-01-01","Neujahr",2035,null,null,null,null,null,"Maßnahmenkosten",{"$f":"BF320+BF325+BF330","v":0}]
[null,null,null,null,null,null,null,null,null,null,null,null,null,null,null,null,null,null,null,null,null,null,null,null,null,null,null,null,null,null,null,null,null,null,null,null,null,null,null,null,null,null,null,null,1,{"$f":"SUMPRODUCT((AC354<=AV$113:AV$367)*(AD354>=AV$113:AV$367))","v":0},null,"2035-01-06","2035-01-06","Heilige Drei Könige",2035,null,null,null,null,null,"Einheitspreis / MSTN",{"$f":"IF(BF352=0,\"\",BF353/BF352)","v":""}]
[null,null,null,null,null,null,null,null,null,null,null,null,null,null,null,null,null,null,null,null,null,null,null,null,null,null,null,null,null,null,null,null,null,null,null,null,null,null,null,null,null,null,null,null,1,{"$f":"SUMPRODUCT((AC355<=AV$113:AV$367)*(AD355>=AV$113:AV$367))","v":0},null,"2035-03-26","2035-03-26","Ostermontag",2035]
[null,null,null,null,null,null,null,null,null,null,null,null,null,null,null,null,null,null,null,null,null,null,null,null,null,null,null,null,null,null,null,null,null,null,null,null,null,null,null,null,null,null,null,null,1,{"$f":"SUMPRODUCT((AC356<=AV$113:AV$367)*(AD356>=AV$113:AV$367))","v":0},null,"2035-05-01","2035-05-01","Staatsfeiertag",2035,null,null,null,null,null,"Maßnahmennebenkosten",{"$f":"ROUND(BF337+BF341+BF345+BF349,2)","v":0},{"$f":"IF(BF358=0,\"\",BF356/BF358)","v":""}]
[null,null,null,null,null,null,null,null,null,null,null,null,null,null,null,null,null,null,null,null,null,null,null,null,null,null,null,null,null,null,null,null,null,null,null,null,null,null,null,null,null,null,null,null,1,{"$f":"SUMPRODUCT((AC357<=AV$113:AV$367)*(AD357>=AV$113:AV$367))","v":0},null,"2035-05-03","2035-05-03","Christi Himmelfahrt",2035]
[null,null,null,null,null,null,null,null,null,null,null,null,null,null,null,null,null,null,null,null,null,null,null,null,null,null,null,null,null,null,null,null,null,null,null,null,null,null,null,null,null,null,null,null,1,{"$f":"SUMPRODUCT((AC358<=AV$113:AV$367)*(AD358>=AV$113:AV$367))","v":0},null,"2035-05-11","2035-05-11","Pfingstmontag",2035,null,"Abkürzungen:",null,null,null,"Maßnahmengesamtkosten",{"$f":"BF353+BF356","v":0}]
[null,null,null,null,null,null,null,null,null,null,null,null,null,null,null,null,null,null,null,null,null,null,null,null,null,null,null,null,null,null,null,null,null,null,null,null,null,null,null,null,null,null,null,null,1,{"$f":"SUMPRODUCT((AC359<=AV$113:AV$367)*(AD359>=AV$113:AV$367))","v":0},null,"2035-05-24","2035-05-24","Fronleichnam",2035,null,"MS = Maßnahmenstunde/n"]
[null,null,null,null,null,null,null,null,null,null,null,null,null,null,null,null,null,null,null,null,null,null,null,null,null,null,null,null,null,null,null,null,null,null,null,null,null,null,null,null,null,null,null,null,1,{"$f":"SUMPRODUCT((AC360<=AV$113:AV$367)*(AD360>=AV$113:AV$367))","v":0},null,"2035-08-15","2035-08-15","Mariä Himmelfahrt",2035,null,"MSTN = Maßnahmenstunden TeilnehmerInnen"]
[null,null,null,null,null,null,null,null,null,null,null,null,null,null,null,null,null,null,null,null,null,null,null,null,null,null,null,null,null,null,null,null,null,null,null,null,null,null,null,null,null,null,null,null,1,{"$f":"SUMPRODUCT((AC361<=AV$113:AV$367)*(AD361>=AV$113:AV$367))","v":0},null,"2035-10-26","2035-10-26","Nationalfeiertag",2035]
[null,null,null,null,null,null,null,null,null,null,null,null,null,null,null,null,null,null,null,null,null,null,null,null,null,null,null,null,null,null,null,null,null,null,null,null,null,null,null,null,null,null,null,null,1,{"$f":"SUMPRODUCT((AC362<=AV$113:AV$367)*(AD362>=AV$113:AV$367))","v":0},null,"2035-11-01","2035-11-01","Allerheiligen",2035]
[null,null,null,null,null,null,null,null,null,null,null,null,null,null,null,null,null,null,null,null,null,null,null,null,null,null,null,null,null,null,null,null,null,null,null,null,null,null,null,null,null,null,null,null,1,{"$f":"SUMPRODUCT((AC363<=AV$113:AV$367)*(AD363>=AV$113:AV$367))","v":0},null,"2035-12-08","2035-12-08","Mariä Empfängnis",2035]
[null,null,null,null,null,null,null,null,null,null,null,null,null,null,null,null,null,null,null,null,null,null,null,null,null,null,null,null,null,null,null,null,null,null,null,null,null,null,null,null,null,null,null,null,1,{"$f":"SUMPRODUCT((AC364<=AV$113:AV$367)*(AD364>=AV$113:AV$367))","v":0},null,"2035-12-24","2035-12-24","Heiligabend",2035]
[null,null,null,null,null,null,null,null,null,null,null,null,null,null,null,null,null,null,null,null,null,null,null,null,null,null,null,null,null,null,null,null,null,null,null,null,null,null,null,null,null,null,null,null,1,{"$f":"SUMPRODUCT((AC365<=AV$113:AV$367)*(AD365>=AV$113:AV$367))","v":0},null,"2035-12-25","2035-12-25","Christtag",2035]
[null,null,null,null,null,null,null,null,null,null,null,null,null,null,null,null,null,null,null,null,null,null,null,null,null,null,null,null,null,null,null,null,null,null,null,null,null,null,null,null,null,null,null,null,1,{"$f":"SUMPRODUCT((AC366<=AV$113:AV$367)*(AD366>=AV$113:AV$367))","v":0},null,"2035-12-26","2035-12-26","Stefanitag",2035]
[null,null,null,null,null,null,null,null,null,null,null,null,null,null,null,null,null,null,null,null,null,null,null,null,null,null,null,null,null,null,null,null,null,null,null,null,null,null,null,null,null,null,null,null,1,{"$f":"SUMPRODUCT((AC367<=AV$113:AV$367)*(AD367>=AV$113:AV$367))","v":0},null,"2035-12-31","2035-12-31","Silvester",2035]
[]
[]
[]
[]
[]
[]
[]
[]
[]
[]
[]
[]
[]
[]
[]
[]
[]
[]
[]
[]
[]
[]
[]
[]
[]
[]
[]
[]
[]
[]
[]
[]
[]
[]
[]
[]
[]
[]
[]
[]
[]
[]
[]
[]
[]
[]
[]
[]
[]
[]
[]
[]
[]
[]
[]
[]
[]
[]
[]
[]
[]
[]
[]
[]
[]
[]
[]
[]
[]
[]
[]
[]
[]
[]
[]
[]
[]
[]
[]
[]
[]
[]
[]
[]
[]
[]
[]
[]
[]
[]
[]
[]
[]
[]
[]
[]
[]
[]
[]
[]
[]
[]
[]
[]
[]
[]
[]
[]
[]
[]
[]
[]
[]
[]
[]
[]
[]
[]
[]
[]
[]
[]
[]
[]
[]
[]
[]
[]
[]
[]
[]
[]
[]
[]
[]
[]
[]
[]
[null,null,null,null,null,null,null,null,null,null,null,null,null,null,null,null,null,null,null,null,null,null,null,null,null,null,null,null,null,null,null,null,null,null,null,null,null,null,null,null,null,null,null,null,null,null,null,null,null,null,null,null,null,null,null,null,null,null,null,null,null,null,null,null,null,null,null,null,null,null,null,null,null,null,null,null,null,null,null,"DURCHFÜHRUNGSBERICHT"]
[null,null,null,null,null,null,null,null,null,null,null,null,null,null,null,null,null,null,null,null,null,null,null,null,null,null,null,null,null,null,null,null,null,null,null,null,null,null,null,null,null,null,null,null,null,null,null,null,null,null,null,null,null,null,null,null,null,null,null,null,null,null,null,null,null,null,null,null,null,null,null,null,null,null,null,null,null,null,null,"DURCHFÜHRUNGSBERICHT"]
[]
[null,null,null,null,null,null,null,null,null,null,null,null,null,null,null,null,null,null,null,null,null,null,null,null,null,null,null,null,null,null,null,null,null,null,null,null,null,null,null,null,null,null,null,null,null,null,null,null,null,null,null,null,null,null,null,null,null,null,null,null,null,null,null,null,null,null,null,null,null,null,null,null,null,null,null,null,null,null,null,null,null,"Bezeichnung der Maßnahme:",{"$f":"F23","v":"1_MusterMA_"},null,null,null,null,null,{"$f":"P23","v":1}]
[]
[null,null,null,null,null,null,null,null,null,null,null,null,null,null,null,null,null,null,null,null,null,null,null,null,null,null,null,null,null,null,null,null,null,null,null,null,null,null,null,null,null,null,null,null,null,null,null,null,null,null,null,null,null,null,null,null,null,null,null,null,null,null,null,null,null,null,null,null,null,null,null,null,null,null,null,null,null,null,null,"ABWEICHUNGEN BEI MSTN"]
[]
[null,null,null,null,null,null,null,null,null,null,null,null,null,null,null,null,null,null,null,null,null,null,null,null,null,null,null,null,null,null,null,null,null,null,null,null,null,null,null,null,null,null,null,null,null,null,null,null,null,null,null,null,null,null,null,null,null,null,null,null,null,null,null,null,null,null,null,null,null,null,null,null,null,null,null,null,null,null,null,null,"Datum","Anzahl MSTN","Betrag","Begründung"]
[null,null,null,null,null,null,null,null,null,null,null,null,null,null,null,null,null,null,null,null,null,null,null,null,null,null,null,null,null,null,null,null,null,null,null,null,null,null,null,null,null,null,null,null,null,null,null,null,null,null,null,null,null,null,null,null,null,null,null,null,null,null,null,null,null,null,null,null,null,null,null,null,null,null,null,null,null,null,null,"e1",null,null,{"$f":"IF(ISERROR(ROUND(Einheitspreis_MSTN*CD514,2)),0,ROUND(Einheitspreis_MSTN*CD514,2))","v":0},null,null,null,null,"+","–"]
[]
[null,null,null,null,null,null,null,null,null,null,null,null,null,null,null,null,null,null,null,null,null,null,null,null,null,null,null,null,null,null,null,null,null,null,null,null,null,null,null,null,null,null,null,null,null,null,null,null,null,null,null,null,null,null,null,null,null,null,null,null,null,null,null,null,null,null,null,null,null,null,null,null,null,null,null,null,null,null,null,null,"Summe",{"$f":"ROUND(SUM(CD514:CD515),2)","v":0},{"$f":"ROUND(SUM(CE514:CE515),2)","v":0}]
[]
[]
[null,null,null,null,null,null,null,null,null,null,null,null,null,null,null,null,null,null,null,null,null,null,null,null,null,null,null,null,null,null,null,null,null,null,null,null,null,null,null,null,null,null,null,null,null,null,null,null,null,null,null,null,null,null,null,null,null,null,null,null,null,null,null,null,null,null,null,null,null,null,null,null,null,null,null,null,null,null,null,"STORNO VON MSTN"]
[]
[null,null,null,null,null,null,null,null,null,null,null,null,null,null,null,null,null,null,null,null,null,null,null,null,null,null,null,null,null,null,null,null,null,null,null,null,null,null,null,null,null,null,null,null,null,null,null,null,null,null,null,null,null,null,null,null,null,null,null,null,null,null,null,null,null,null,null,null,null,null,null,null,null,null,null,null,null,null,null,null,"Datum","Anzahl MSTN","Prozentsatz","Betrag","Begründung"]
[null,null,null,null,null,null,null,null,null,null,null,null,null,null,null,null,null,null,null,null,null,null,null,null,null,null,null,null,null,null,null,null,null,null,null,null,null,null,null,null,null,null,null,null,null,null,null,null,null,null,null,null,null,null,null,null,null,null,null,null,null,null,null,null,null,null,null,null,null,null,null,null,null,null,null,null,null,null,null,"e2",null,null,null,{"$f":"IF(ISERROR(ROUND(Einheitspreis_MSTN*CD522*CE522,2)),0,ROUND(Einheitspreis_MSTN*CD522*CE522,2))","v":0},"",null,null,"+","–"]
[]
[null,null,null,null,null,null,null,null,null,null,null,null,null,null,null,null,null,null,null,null,null,null,null,null,null,null,null,null,null,null,null,null,null,null,null,null,null,null,null,null,null,null,null,null,null,null,null,null,null,null,null,null,null,null,null,null,null,null,null,null,null,null,null,null,null,null,null,null,null,null,null,null,null,null,null,null,null,null,null,null,"Summe",{"$f":"ROUND(SUM(CD522:CD523),2)","v":0},"Summe",{"$f":"ROUND(SUM(CF522:CF523),2)","v":0}]
[]
[]
[null,null,null,null,null,null,null,null,null,null,null,null,null,null,null,null,null,null,null,null,null,null,null,null,null,null,null,null,null,null,null,null,null,null,null,null,null,null,null,null,null,null,null,null,null,null,null,null,null,null,null,null,null,null,null,null,null,null,null,null,null,null,null,null,null,null,null,null,null,null,null,null,null,null,null,null,null,null,null,null,null,null,"Anzahl der tatsächlich geleisteten MSTN",null,null,null,{"$f":"MSTNGesamt_Zeitplan+CD516","v":0}]
[null,null,null,null,null,null,null,null,null,null,null,null,null,null,null,null,null,null,null,null,null,null,null,null,null,null,null,null,null,null,null,null,null,null,null,null,null,null,null,null,null,null,null,null,null,null,null,null,null,null,null,null,null,null,null,null,null,null,null,null,null,null,null,null,null,null,null,null,null,null,null,null,null,null,null,null,null,null,null,null,null,null,"Maßnahmenkosten lt. Kalkulation",null,null,null,{"$f":"CD12","v":0}]
[null,null,null,null,null,null,null,null,null,null,null,null,null,null,null,null,null,null,null,null,null,null,null,null,null,null,null,null,null,null,null,null,null,null,null,null,null,null,null,null,null,null,null,null,null,null,null,null,null,null,null,null,null,null,null,null,null,null,null,null,null,null,null,null,null,null,null,null,null,null,null,null,null,null,null,null,null,null,null,null,null,null,"Kostenmäßige Abweichung und Storno bei MSTN",null,null,null,{"$f":"CE516+CF524","v":0}]
[null,null,null,null,null,null,null,null,null,null,null,null,null,null,null,null,null,null,null,null,null,null,null,null,null,null,null,null,null,null,null,null,null,null,null,null,null,null,null,null,null,null,null,null,null,null,null,null,null,null,null,null,null,null,null,null,null,null,null,null,null,null,null,null,null,null,null,null,null,null,null,null,null,null,null,null,null,null,null,null,null,null,"ergibt %-Änderung bei Personal, Ausstattung u. sonstigem Aufwand",null,null,null,{"$f":"IF(ISERROR(CI529/CI528),0,(CI529/CI528))","v":0}]
[]
[null,null,null,null,null,null,null,null,null,null,null,null,null,null,null,null,null,null,null,null,null,null,null,null,null,null,null,null,null,null,null,null,null,null,null,null,null,null,null,null,null,null,null,null,null,null,null,null,null,null,null,null,null,null,null,null,null,null,null,null,null,null,null,null,null,null,null,null,null,null,null,null,null,null,null,null,null,null,null,"ABWEICHUNGEN BEI TRAINERiNNENSTUNDEN"]
[]
[null,null,null,null,null,null,null,null,null,null,null,null,null,null,null,null,null,null,null,null,null,null,null,null,null,null,null,null,null,null,null,null,null,null,null,null,null,null,null,null,null,null,null,null,null,null,null,null,null,null,null,null,null,null,null,null,null,null,null,null,null,null,null,null,null,null,null,null,null,null,null,null,null,null,null,null,null,null,null,null,"Datum","Anzahl MSP","Einheitspreis MSP","Betrag","TrainerIn","Begründung"]
[null,null,null,null,null,null,null,null,null,null,null,null,null,null,null,null,null,null,null,null,null,null,null,null,null,null,null,null,null,null,null,null,null,null,null,null,null,null,null,null,null,null,null,null,null,null,null,null,null,null,null,null,null,null,null,null,null,null,null,null,null,null,null,null,null,null,null,null,null,null,null,null,null,null,null,null,null,null,null,"e2",null,null,null,{"$f":"ROUND(CD535*CE535,2)","v":0},null,null,null,"+","–"]
[]
[null,null,null,null,null,null,null,null,null,null,null,null,null,null,null,null,null,null,null,null,null,null,null,null,null,null,null,null,null,null,null,null,null,null,null,null,null,null,null,null,null,null,null,null,null,null,null,null,null,null,null,null,null,null,null,null,null,null,null,null,null,null,null,null,null,null,null,null,null,null,null,null,null,null,null,null,null,null,null,null,"Summe",{"$f":"ROUND(SUM(CD535:CD536),2)","v":0},"Summe",{"$f":"ROUND(SUM(CF535:CF536),2)","v":0}]
[]
[]
[null,null,null,null,null,null,null,null,null,null,null,null,null,null,null,null,null,null,null,null,null,null,null,null,null,null,null,null,null,null,null,null,null,null,null,null,null,null,null,null,null,null,null,null,null,null,null,null,null,null,null,null,null,null,null,null,null,null,null,null,null,null,null,null,null,null,null,null,null,null,null,null,null,null,null,null,null,null,null,"ABWEICHUNGEN BEI RÄUMLICHER/TECHNISCHER AUSSTATTUNG"]
[]
[null,null,null,null,null,null,null,null,null,null,null,null,null,null,null,null,null,null,null,null,null,null,null,null,null,null,null,null,null,null,null,null,null,null,null,null,null,null,null,null,null,null,null,null,null,null,null,null,null,null,null,null,null,null,null,null,null,null,null,null,null,null,null,null,null,null,null,null,null,null,null,null,null,null,null,null,null,null,null,null,"Bezeichnung",null,null,"Betrag","Begründung"]
[null,null,null,null,null,null,null,null,null,null,null,null,null,null,null,null,null,null,null,null,null,null,null,null,null,null,null,null,null,null,null,null,null,null,null,null,null,null,null,null,null,null,null,null,null,null,null,null,null,null,null,null,null,null,null,null,null,null,null,null,null,null,null,null,null,null,null,null,null,null,null,null,null,null,null,null,null,null,null,"e3",null,null,null,null,null,null,null,"+","–"]
[]
[null,null,null,null,null,null,null,null,null,null,null,null,null,null,null,null,null,null,null,null,null,null,null,null,null,null,null,null,null,null,null,null,null,null,null,null,null,null,null,null,null,null,null,null,null,null,null,null,null,null,null,null,null,null,null,null,null,null,null,null,null,null,null,null,null,null,null,null,null,null,null,null,null,null,null,null,null,null,null,null,null,null,"Summe",{"$f":"ROUND(SUM(CF543:CF544),4)","v":0}]
[]
[]
[null,null,null,null,null,null,null,null,null,null,null,null,null,null,null,null,null,null,null,null,null,null,null,null,null,null,null,null,null,null,null,null,null,null,null,null,null,null,null,null,null,null,null,null,null,null,null,null,null,null,null,null,null,null,null,null,null,null,null,null,null,null,null,null,null,null,null,null,null,null,null,null,null,null,null,null,null,null,null,"ABWEICHUNGEN BEI SONSTIGEM AUFWAND"]
[]
[null,null,null,null,null,null,null,null,null,null,null,null,null,null,null,null,null,null,null,null,null,null,null,null,null,null,null,null,null,null,null,null,null,null,null,null,null,null,null,null,null,null,null,null,null,null,null,null,null,null,null,null,null,null,null,null,null,null,null,null,null,null,null,null,null,null,null,null,null,null,null,null,null,null,null,null,null,null,null,null,"Bezeichnung",null,null,"Betrag","Begründung"]
[null,null,null,null,null,null,null,null,null,null,null,null,null,null,null,null,null,null,null,null,null,null,null,null,null,null,null,null,null,null,null,null,null,null,null,null,null,null,null,null,null,null,null,null,null,null,null,null,null,null,null,null,null,null,null,null,null,null,null,null,null,null,null,null,null,null,null,null,null,null,null,null,null,null,null,null,null,null,null,"e3",null,null,null,null,null,null,null,"+","–"]
[]
[null,null,null,null,null,null,null,null,null,null,null,null,null,null,null,null,null,null,null,null,null,null,null,null,null,null,null,null,null,null,null,null,null,null,null,null,null,null,null,null,null,null,null,null,null,null,null,null,null,null,null,null,null,null,null,null,null,null,null,null,null,null,null,null,null,null,null,null,null,null,null,null,null,null,null,null,null,null,null,null,null,null,"Summe",{"$f":"ROUND(SUM(CF551:CF552),4)","v":0}]
[]
[]
[null,null,null,null,null,null,null,null,null,null,null,null,null,null,null,null,null,null,null,null,null,null,null,null,null,null,null,null,null,null,null,null,null,null,null,null,null,null,null,null,null,null,null,null,null,null,null,null,null,null,null,null,null,null,null,null,null,null,null,null,null,null,null,null,null,null,null,null,null,null,null,null,null,null,null,null,null,null,null,"ABWEICHUNGEN BEI MASSNAHMENNEBENKOSTEN"]
[]
[null,null,null,null,null,null,null,null,null,null,null,null,null,null,null,null,null,null,null,null,null,null,null,null,null,null,null,null,null,null,null,null,null,null,null,null,null,null,null,null,null,null,null,null,null,null,null,null,null,null,null,null,null,null,null,null,null,null,null,null,null,null,null,null,null,null,null,null,null,null,null,null,null,null,null,null,null,null,null,null,"Ausbildungsbeihilfe",null,null,null,"Betrag","Begründung"]
[null,null,null,null,null,null,null,null,null,null,null,null,null,null,null,null,null,null,null,null,null,null,null,null,null,null,null,null,null,null,null,null,null,null,null,null,null,null,null,null,null,null,null,null,null,null,null,null,null,null,null,null,null,null,null,null,null,null,null,null,null,null,null,null,null,null,null,null,null,null,null,null,null,null,null,null,null,null,null,"e4",null,null,null,null,null,null,null,"+","–"]
[]
[null,null,null,null,null,null,null,null,null,null,null,null,null,null,null,null,null,null,null,null,null,null,null,null,null,null,null,null,null,null,null,null,null,null,null,null,null,null,null,null,null,null,null,null,null,null,null,null,null,null,null,null,null,null,null,null,null,null,null,null,null,null,null,null,null,null,null,null,null,null,null,null,null,null,null,null,null,null,null,null,null,null,null,"Summe",{"$f":"ROUND(SUM(CG559:CG560),2)","v":0}]
[null,null,null,null,null,null,null,null,null,null,null,null,null,null,null,null,null,null,null,null,null,null,null,null,null,null,null,null,null,null,null,null,null,null,null,null,null,null,null,null,null,null,null,null,null,null,null,null,null,null,null,null,null,null,null,null,null,null,null,null,null,null,null,null,null,null,null,null,null,null,null,null,null,null,null,null,null,null,null,null,"Unterkunft und Verpflegung",null,null,null,"Betrag"]
[null,null,null,null,null,null,null,null,null,null,null,null,null,null,null,null,null,null,null,null,null,null,null,null,null,null,null,null,null,null,null,null,null,null,null,null,null,null,null,null,null,null,null,null,null,null,null,null,null,null,null,null,null,null,null,null,null,null,null,null,null,null,null,null,null,null,null,null,null,null,null,null,null,null,null,null,null,null,null,"e4","",null,null,null,null,"",null,"+","–"]
[]
[null,null,null,null,null,null,null,null,null,null,null,null,null,null,null,null,null,null,null,null,null,null,null,null,null,null,null,null,null,null,null,null,null,null,null,null,null,null,null,null,null,null,null,null,null,null,null,null,null,null,null,null,null,null,null,null,null,null,null,null,null,null,null,null,null,null,null,null,null,null,null,null,null,null,null,null,null,null,null,null,null,null,null,"Summe",{"$f":"ROUND(SUM(CG563:CG564),2)","v":0}]
[null,null,null,null,null,null,null,null,null,null,null,null,null,null,null,null,null,null,null,null,null,null,null,null,null,null,null,null,null,null,null,null,null,null,null,null,null,null,null,null,null,null,null,null,null,null,null,null,null,null,null,null,null,null,null,null,null,null,null,null,null,null,null,null,null,null,null,null,null,null,null,null,null,null,null,null,null,null,null,null,"Kinderbetreuung",null,null,null,"Betrag"]
[null,null,null,null,null,null,null,null,null,null,null,null,null,null,null,null,null,null,null,null,null,null,null,null,null,null,null,null,null,null,null,null,null,null,null,null,null,null,null,null,null,null,null,null,null,null,null,null,null,null,null,null,null,null,null,null,null,null,null,null,null,null,null,null,null,null,null,null,null,null,null,null,null,null,null,null,null,null,null,"e4",null,null,null,null,null,null,null,"+","–"]
[]
[null,null,null,null,null,null,null,null,null,null,null,null,null,null,null,null,null,null,null,null,null,null,null,null,null,null,null,null,null,null,null,null,null,null,null,null,null,null,null,null,null,null,null,null,null,null,null,null,null,null,null,null,null,null,null,null,null,null,null,null,null,null,null,null,null,null,null,null,null,null,null,null,null,null,null,null,null,null,null,null,null,null,null,"Summe",{"$f":"ROUND(SUM(CG567:CG568),2)","v":0}]
[null,null,null,null,null,null,null,null,null,null,null,null,null,null,null,null,null,null,null,null,null,null,null,null,null,null,null,null,null,null,null,null,null,null,null,null,null,null,null,null,null,null,null,null,null,null,null,null,null,null,null,null,null,null,null,null,null,null,null,null,null,null,null,null,null,null,null,null,null,null,null,null,null,null,null,null,null,null,null,null,"TeilnehmerInnenbezogene Kosten",null,null,null,"Betrag"]
[null,null,null,null,null,null,null,null,null,null,null,null,null,null,null,null,null,null,null,null,null,null,null,null,null,null,null,null,null,null,null,null,null,null,null,null,null,null,null,null,null,null,null,null,null,null,null,null,null,null,null,null,null,null,null,null,null,null,null,null,null,null,null,null,null,null,null,null,null,null,null,null,null,null,null,null,null,null,null,"e4",null,null,null,null,null,null,null,"+","–"]
[]
[null,null,null,null,null,null,null,null,null,null,null,null,null,null,null,null,null,null,null,null,null,null,null,null,null,null,null,null,null,null,null,null,null,null,null,null,null,null,null,null,null,null,null,null,null,null,null,null,null,null,null,null,null,null,null,null,null,null,null,null,null,null,null,null,null,null,null,null,null,null,null,null,null,null,null,null,null,null,null,null,null,null,null,"Summe",{"$f":"ROUND(SUM(CG571:CG572),2)","v":0}]
[null,null,null,null,null,null,null,null,null,null,null,null,null,null,null,null,null,null,null,null,null,null,null,null,null,null,null,null,null,null,null,null,null,null,null,null,null,null,null,null,null,null,null,null,null,null,null,null,null,null,null,null,null,null,null,null,null,null,null,null,null,null,null,null,null,null,null,null,null,null,null,null,null,null,null,null,null,null,null,null,null,null,null,"Summe gesamt",{"$f":"CG561+CG565+CG569+CG573","v":0}]
[]
[]
[null,null,null,null,null,null,null,null,null,null,null,null,null,null,null,null,null,null,null,null,null,null,null,null,null,null,null,null,null,null,null,null,null,null,null,null,null,null,null,null,null,null,null,null,null,null,null,null,null,null,null,null,null,null,null,null,null,null,null,null,null,null,null,null,null,null,null,null,null,null,null,null,null,null,null,null,null,null,null,"ERTRÄGE / FÖRDERUNGEN"]
[]
[null,null,null,null,null,null,null,null,null,null,null,null,null,null,null,null,null,null,null,null,null,null,null,null,null,null,null,null,null,null,null,null,null,null,null,null,null,null,null,null,null,null,null,null,null,null,null,null,null,null,null,null,null,null,null,null,null,null,null,null,null,null,null,null,null,null,null,null,null,null,null,null,null,null,null,null,null,null,null,null,"Art der Erträge / Förderungen",null,null,null,"Betrag","Begründung"]
[null,null,null,null,null,null,null,null,null,null,null,null,null,null,null,null,null,null,null,null,null,null,null,null,null,null,null,null,null,null,null,null,null,null,null,null,null,null,null,null,null,null,null,null,null,null,null,null,null,null,null,null,null,null,null,null,null,null,null,null,null,null,null,null,null,null,null,null,null,null,null,null,null,null,null,null,null,null,null,"e5",null,null,null,null,null,null,null,"+","–"]
[]
[null,null,null,null,null,null,null,null,null,null,null,null,null,null,null,null,null,null,null,null,null,null,null,null,null,null,null,null,null,null,null,null,null,null,null,null,null,null,null,null,null,null,null,null,null,null,null,null,null,null,null,null,null,null,null,null,null,null,null,null,null,null,null,null,null,null,null,null,null,null,null,null,null,null,null,null,null,null,null,null,null,null,null,"Summe",{"$f":"ROUND(SUM(CG580:CG581),2)","v":0}]
[]
[]
[null,null,null,null,null,null,null,null,null,null,null,null,null,null,null,null,null,null,null,null,null,null,null,null,null,null,null,null,null,null,null,null,null,null,null,null,null,null,null,null,null,null,null,null,null,null,null,null,null,null,null,null,null,null,null,null,null,null,null,null,null,null,null,null,null,null,null,null,null,null,null,null,null,null,null,null,null,null,null,null,null,null,null,null,"Gesamtsumme aller Abweichungen",null,null,{"$f":"CG582+CG574+CF553+CF545+CF537+CI529","v":0}]
[null,null,null,null,null,null,null,null,null,null,null,null,null,null,null,null,null,null,null,null,null,null,null,null,null,null,null,null,null,null,null,null,null,null,null,null,null,null,null,null,null,null,null,null,null,null,null,null,null,null,null,null,null,null,null,null,null,null,null,null,null,null,null,null,null,null,null,null,null,null,null,null,null,null,null,null,null,null,null,"Anmerkungen"]
[null,null,null,null,null,null,null,null,null,null,null,null,null,null,null,null,null,null,null,null,null,null,null,null,null,null,null,null,null,null,null,null,null,null,null,null,null,null,null,null,null,null,null,null,null,null,null,null,null,null,null,null,null,null,null,null,null,null,null,null,null,null,null,null,null,null,null,null,null,null,null,null,null,null,null,null,null,null,null,"Für Zeilenumbruch drücken Sie ALT + ENTER!\nUm einen Text aus der Zwischenablage einzufügen, machen Sie zuerst einen Doppelklick in dieses Feld!"]

{"sheet":"Unterschrift","index":4,"n_rows":34,"n_cols":10,"rows_kept":34,"cut":false,"hidden":false,"merged":[[31,1,31,4],[3,3,3,8],[15,1,15,9],[16,1,16,9],[17,1,17,9],[18,1,18,9],[10,1,10,9],[12,1,12,9],[13,1,13,9],[14,1,14,9]]}
[]
[]
[]
[null,"Projektbezeichnung: ",null,{"$f":"IF(Deckblatt!D16=0,\"\",Deckblatt!D16)","v":""}]
[]
[]
[null,"UNTERSCHRIFT"]
[]
[]
[]
[null,"Bitte reichen Sie alle zu diesem Angebot gehörigen Teile zusammengeheftet (kopierfähig) ein!"]
[]
[null,"Ihr Angebot gilt nur dann als vollständig eingebracht und wird vom AMS weiter bearbeitet, wenn dieses Formular rechtsgültig unterzeichnet und "]
[null,"mit allen anderen in der Bekanntmachung/Ausschreibungsunterlage geforderten Unterlagen zusammen rechtzeitig dem AMS übermittelt wird."]
[]
[null,"Der Bieter bestätigt mit seiner Unterschrift, dass ihm der Inhalt der  \"Allgemeinen Bestimmungen zur Gewährung von finanziellen Leistungen  "]
[null,"an Bildungsträger für die entstehenden Personal- und Sachkosten bei der Durchführung von Bildungsmaßnahmen, die vom AMS übertragen"]
[null,"werden\" in der zum Zeitpunkt der Bekanntmachung gültigen Fassung der Landesgeschäftsstelle, bei der dieses Angebot gestellt wird,  "]
[null,"bekannt ist. Diese Bestimmungen stellen einen integrierten Bestandteil des gegenständlichen Angebots dar."]
[null," "]
[null,"Bitte reichen Sie bei einer postalischen Übermittlung alle zu dieser Abrechnung gehörigen Teile zusammengeheftet (kopierfähig) ein!"]
[null,"Bei Übermittlung im Wege des eAMS-Kontos ist keine eigenhändige Unterschrift für die Rechtsverbindlichkeit erforderlich. "]
[]
[]
[]
[]
[]
[null,"Ich bestätige die Vollständigkeit und Richtigkeit der gemachten Angaben."]
[]
[]
[]
[]
[null,"Ort, Datum",null,null,null,null,"Rechtsgültige Unterschrift",null,null,"Unterschrift und Stampiglie des Bieters"]
[null,null,null,null,null,null,"Der Name ist auch in Blockbuchstaben anzuführen."]

{"sheet":"Erläuterung","index":5,"n_rows":172,"n_cols":2,"rows_kept":172,"cut":false,"hidden":false,"merged":[]}
[]
[null,"ERLÄUTERUNG Formular \"BM Kalkulation/Abrechnung Einheitspreise 07.02\""]
[]
[null,"Inhaltsverzeichnis:"]
[null,"Allgemein"]
[null,"Deckblatt"]
[null,"Maßnahmenbeschreibung (organisatorisch)"]
[null,"Zeitplan"]
[null,"Kalkulation"]
[null,"Abrechnung"]
[null,"Durchführungsbericht"]
[null,"Unterschrift"]
[null,"Drucken / PDF-Umwandlung"]
[]
[null,"Allgemein"]
[]
[null,"Dieses Formular bietet Ihnen die Möglichkeit, es sowohl für die Kalkulation als auch für die Abrechnung zu verwenden. Erstellen Sie zunächst die Kalkulation! Sie haben durch das Feature „Maßnahme kopieren“ einen einfachen Weg, ähnliche oder gleiche Maßnahmen/Veranstaltungen innerhalb eines Projektes rasch zu erstellen. Durch \"Maßnahme kopieren\" oder \"Neues Maßnahmenblatt\" wird ein Maßnahmenblatt jeweils nach dem aktuellen Tabellenblatt eingefügt. Sie können die Reihenfolge der Blätter durch Verschieben der Blattregister beliebig ändern.\n"]
[null,"Ist Ihr Projekt soweit, dass es abgerechnet werden soll, wird Ihnen durch händische Umstellung des orangen Feldes rechts oben auf dem Deckblatt von \"Kalkulation\" auf \"Abrechnung\" automatisch ein Abrechnungsblatt zur Verfügung gestellt, das die Daten aus allen Kalkulationsblättern und dem Durchführungsbericht übernimmt. \n"]
[null,"Hinweise: \nDaten in den Kalkulationsblättern sind im Modus \"Abrechnung\" nicht mehr veränderbar. \n\nSie können bei Bedarf von \"Abrechnung\" wieder auf \"Kalkulation\" wechseln, alle eingetragenen Daten bleiben erhalten und sind überschreibbar. Allerdings können Sie in diesem Fall auf dem Deckblatt erst \ndann wieder Veränderungen vornehmen, wenn Sie vorher einmal ein anderes Tabellenblatt aktiviert \nhaben."]
[null,"\nFelder, in denen Sie Daten eintragen können, sind orange umrandet. Am besten bewegen Sie sich innerhalb des Formulars mit der TAB-Taste Ihrer Tastatur. Sie springen dann von Bearbeitungsfeld zu Bearbeitungsfeld. Um sich rückwärts zu bewegen, benutzen sie die Tastenkombination Umschalt + TAB.\n"]
[null,"Das Formular ist so aufgebaut, dass Sie einen Eintrag, der mehrmals vorkommt, nur einmal machen müssen. Alle anderen Felder gleichen Inhalts werden automatisch ausgefüllt (z.B. Projektbezeichnung). Berechnungsformeln sind im Formular integriert, Sie müssen nur die benötigten Basiswerte eingeben.\n"]
[null,"Hinweis: \nAlle Rechnungsergebnisse - mit Ausnahme der Position \"Räumlichen und technischen Ausstattung\" -  werden auf zwei Kommastellen gerundet."]
[null,"\nIn einigen Feldern ist ein Kommentar eingefügt. Diese Felder erkennen Sie durch das rote Eck am Feld rechts oben. Den Kommentar können Sie aktivieren, indem Sie mit der Maus in das so gekennzeichnete Feld fahren.\n"]
[null,"Das Formular an sich bietet Ihnen die Möglichkeit, ein Projekt mit mehreren Maßnahmen/Veranstaltungen sowohl auf einem einzigen Maßnahmeblatt aber auch jede dieser Maßnahmen/Veranstaltungen auf einem eigenem Maßnahmenblatt darzustellen. Welcher Weg hier zu wählen ist, wird Ihnen in den Ausschreibungsunterlagen zum jeweiligen Projekt vorgegeben werden. Im Zweifelsfalle wenden Sie sich an die ausschreibende/vergebende Stelle.\n"]
[null,"\n"]
[null,"Deckblatt"]
[]
[null,"Um die Zuordnung des von Ihnen eingereichten Angebots zu ermöglichen, müssen Sie die zuständige AMS-Landesgeschäftsstelle (Bundesland) sowie das Datum der Bekanntmachung des AMS eintragen und im Feld für das Projekt die vom AMS vorgegebene Bezeichnung und Nummer für das Projekt eingeben."]
[]
[null,"Bieter/Schulungsträger:"]
[null,"Name/Firma: Bezeichnung des Bildungsträgers"]
[null,"Adresse: Firmenadresse, wohin alle Mitteilungen, die die Übertragung der Maßnahme betreffen, geschickt werden sollen."]
[null,"Kontaktperson: Hier ist die Person einzutragen, die dem AMS für Rückfragen Angebot auf Seiten des Bieters zur Verfügung steht."]
[null,"Projektnummer: Hier ist - falls vorhanden - die vom AMS vorgegebene Projektnummer für den Vorgang einzutragen."]
[]
[null,"Durchführungszeitraum/Projektdauer:"]
[null,"Tragen Sie hier das Beginndatum der ersten Veranstaltung und das Enddatum der letzten Veranstaltung des Projektes ein."]
[]
[null,"Soll-Kostenübersicht:"]
[null,"Die restlichen Felder des Deckblattes werden automatisch mit den von Ihnen eingegebenen Daten gefüllt und geben einen Überblick über die Gesamtkalkulation des Projektes. Händisch eingeben müssen Sie hier nur - falls notwendig - Daten in die Felder „davon Erträge/Förderungen“. Schreiben Sie in das erste orange umrandete Feld den Namen des Fördergebers und in das zweite Feld den Betrag hinein! Dieser Betrag wird von den Gesamtkosten abgezogen und es bleibt der Betrag über, der dem AMS in Rechnung gestellt wird. "]
[]
[null,"Maßnahmenbeschreibung (organisatorisch)"]
[]
[null,"Bezeichnung der Maßnahme: "]
[null,"Geben Sie hier eine entsprechende Bezeichnung der Maßnahme ein bzw. übernehmen Sie diese aus den Vorgaben der Ausschreibung."]
[]
[null,"Veranstaltungsort: "]
[null,"Hier ist die Anschrift des Schulungsortes einzutragen."]
[]
[null,"TeilnehmerInnen:"]
[null,"Hier ist die Anzahl der TeilnehmerInnen einzutragen, die während der gesamten Periode an der Maßnahme teilnehmen können. Beispiel: Bei einer Tageskapazität von 10 TeilnehmerInnen und einer individuellen Maßnahmendauer pro TeilnehmerIn von einem Monat beträgt die GesamtteilnehmerInnenanzahl (Durchlauf) bei einer Maßnahmendauer von insgesamt vier Monaten 40."]
[]
[null,"Tageskapazität:"]
[null,"Hier ist die Anzahl der TeilnehmerInnen einzutragen, die an einem Tag an der Maßnahme teilnehmen können."]
[]
[null,"TeilnehmerInnen:TrainerInnen-Schlüssel:"]
[null,"Hier ist einzutragen, wie viele TeilnehmerInnen in der Regel von wie vielen TrainerInnen permanent unterrichtet/betreut werden. Werden bei einer Orientierungsmaßnahme  z.B. 15 TeilnehmerInnen von 2 TrainerInnen betreut, so wäre hier 15:2 einzutragen. Werden die 15 TeilnehmerInnen nur von einem/r TrainerIn betreut und fallweise wird ein/e zweite/r TrainerIn beigezogen, so wäre hier 15:1 einzutragen."]
[]
[null,"Veranstaltungsbeginn/ -ende:"]
[null,"Durch Ausfüllen dieser beiden Felder wird automatisch der entsprechende Zeitplan auf dem Blatt „Zeitplan“ aktiviert."]
[]
[null,"Gesamt MSTN:"]
[null,"Geben Sie hier die Gesamtanzahl der Maßnahmenstunden des Projektes/der Veranstaltung ein, die dann auch Basis für die Abrechnung sein wird. Wie viele Maßnahmenstunden ein Projekt/eine Veranstaltung haben soll/darf, entnehmen Sie den Vorgaben in der Ausschreibung."]
[]
[null,"Darstellung einer Normwoche:"]
[null,"Die hier einzutragenden Zeiten stellen eine Maßnahmennormwoche dar, etwaige Feiertage oder sonstige Schließzeiten sind hier nicht zu berücksichtigen, sondern am Blatt „Zeitplan“."]
[]
[null,"Maßnahmenstunden pro Woche:"]
[null,"Wird automatisch aus obiger Tabelle generiert.\n"]
[]
[null,"Zeitplan"]
[]
[null,"Bezeichnung der Maßnahme:"]
[null,"Wird vom Blatt \"Beschreibung\" automatisch übernommen."]
[]
[null,"Beginn, Ende:"]
[null,"Wird vom Blatt \"Maßnahmenbeschreibung\" automatisch übernommen."]
[null," "]
[null,"Samstag Unterricht:"]
[null,"Durch Aktivierung des entsprechenden Eintrags wird die Spalte \"MN-Tage\" gesamt automatisch mit dem richtigen Eintrag versehen (5 oder 6)."]
[]
[null,"Anzahl Wochen:"]
[null,"Zahl wird automatisch aus dem Zeitplan übernommen. 177 Wochen sind maximal eintragbar."]
[]
[null,"Unterrichtsfreie Tage (außer Sa, So):"]
[null,"Hier ist die Anzahl der unterrichtsfreien Tage in der jeweiligen Woche einzutragen. Die automatisch generierte Anzahl der MN-Tage verändert sich dadurch entsprechend. Feiertage werden automatisch als unterrichtsfreie Tage vorgegeben."]
[null," "]
[null,"Maßnahmentage gesamt:"]
[null,"Stellt die Anzahl der Tage der Maßnahme pro Woche dar, an denen die Maßnahme stattfindet, und wird automatisch generiert."]
[]
[null,"Maßnahmenstunden"]
[]
[null,"Maßnahmenstunden in dieser Woche:"]
[null,"In dieser Spalte ist der Wert der Normwoche für eine Maßnahmengruppe unter Berücksichtigung der tatsächlichen Gegebenheiten einzutragen. Beinhaltet die Normwoche 35 Stunden Unterricht an 5 Tagen und fällt in dieser Woche ein Tag  wegen eines Feiertages aus, so ist hier 28 einzutragen. Beinhaltet die Normwoche 35 Stunden, es werden aber durchgehend fünf Gruppen parallel unterrichtet, so ist hier ebenfalls 35 einzutragen (und nicht 175!). Das tatsächliche Volumen lässt sich aus den Eintragungen der nächsten beiden Spalten (Maßnahmenstunden TrainerInnen und Maßnahmenstunden TeilnehmerInnen gesamt) ableiten. Bei fünf parallelen Gruppen mit jeweils einem Trainer pro Gruppe ist hier 175 einzutragen."]
[null," "]
[null,"Maßnahmenstunden GruppentrainerInnen:"]
[null,"Zu erfassen sind hier nur die TrainerInnen, die eine Gruppe von Personen im Klassenverband unterrichten.  Unterstützendes Personal wie z.B. EinzeltrainerInnen, SozialpädagogInnen ist hier nicht zu erfassen."]
[null,"Maßnahmenstunden Personal ist die Anzahl der Maßnahmenstunden der Trainer und Trainerinnen, die von diesen während der Maßnahme gegenüber den TeilnehmerInnen geleistet werden. Sie ist für gewöhnlich mindestens so hoch wie die Anzahl Maßnahmenstunden TeilnehmerInnen, kann aber höher sein, wenn mehrere TrainerInnen eine TeilnehmerInnengruppe unterrichten oder betreuen. Bei spezifischen Maßnahmen mit Telelernformen können die Maßnahmenstunden Personal geringer sein als die Maßnahmenstunden TeilnehmerInnen. Orientieren Sie sich an den Vorgaben bezüglich Personal in der Ausschreibung/Leistungsbeschreibung."]
[null," "]
[null,"Maßnahmenstunden TeilnehmerInnen gesamt (Gesamt MSTN):"]
[null,"Hier sind die Maßnahmenstunden pro Woche einzutragen, für die die Kalkulation/Abrechnung auf Basis des Einheitspreises erfolgen soll."]
[]
[null,"Bemerkung:"]
[null,"Hier können Sie alle Abweichungen von der Norm kurz beschreiben."]
[]
[null,"Prüfsumme:"]
[null,"Diese vergleicht die Werte, die sich für die MSTN aus dem Zeitplan ergeben mit dem Wert, den Sie händisch als Gesamt MSTN für diese Maßnahme/Veranstaltung im Blatt Maßnahmenbeschreibung (organisatorisch) eingegeben haben. Es dient zur Kontrolle und zeigt an, wenn unterschiedliche Summendaten auf diesen zwei Blättern ausgefüllt wurden.  Die Bearbeitung des Formulars kann auch beendet werden, ohne dass diese Daten übereinstimmen."]
[]
[null,"Definition Maßnahmenstunden:"]
[null,"Jede Bildungsmaßnahme ist durch eine bestimmte Anzahl von Maßnahmenstunden definiert. Die Maßnahmenstunden werden benötigt, um definierte Aufwandsbereiche  zuzuordnen und entsprechend abzugelten. Eine Maßnahmenstunde stellt daher sowohl eine Planungseinheit für Inhalt und Volumen der Maßnahme als auch eine Be- und Abrechnungseinheit dar und besteht aus 60 Minuten (Pausen inkludiert). In der Leistungsbeschreibung/Maßnahmenbeschreibung wird festgelegt, wie viele Maßnahmenstunden die Maßnahme beinhalten soll (Maßnahmenstunden TeilnehmerInnen gesamt (MSTN Gesamt))."]
[]
[null,"Die Anzahl der Maßnahmenstunden TeilnehmerInnen (MSTN) ist bei traditionellen Maßnahmen ident mit der Anzahl der Unterrichtseinheiten, die ein/e TeilnehmerInnengruppe benötigt, um an der Maßnahme von Anfang bis zum Ende teilzunehmen. Sie definieren gleichsam das Volumen des Maßnahmeninhaltes (Lehrstoff oder aber auch Inhalt von Orientierungs- oder Aktivierungsmaßnahmen). Sie müssen nicht ident sein mit der Anzahl der geleisteten Unterrichtseinheiten des Lehrpersonals (Maßnahmenstunden TrainerInnen) oder des Betreuungspersonals, da Doppelbesetzungen durch TrainerInnen keine Auswirkungen auf die Anzahl der Maßnahmenstunden TeilnehmerInnen haben. Ebenso keine Auswirkungen auf die Anzahl der Maßnahmenstunden haben etwaige vorübergehende Gruppenteilungen oder die Anzahl der TeilnehmerInnen an sich.\n"]
[null,"Bei organisatorisch komplexen Systemen wie modularen, Block-, Kontingent- oder ähnlichen Systemen werden, wenn obiges Modell nicht anwendbar ist, die Maßnahmenstunden durch die Anwendung eines „Teilungsschlüssels“ ermittelt: Hierzu ist zunächst die Anzahl der (fiktiven) Gesamtmaßnahmenstunden aller möglichen TeilnehmerInnen innerhalb des Projektes zu ermitteln. Weiters wird von der LGS in der Ausschreibung ein Teilungsschlüssel definiert, der festlegt, wie viele TeilnehmerInnen ein/e TrainerIn bei dieser spezifischen Maßnahme unterrichten soll/kann. Die Division „Anzahl der (fiktiven) Gesamtmaß-nahmenstunden“ durch die „Anzahl der zu unterrichtenden TeilnehmerInnen pro TrainerIn“ (Teilungsschlüssel) ergibt die Maßnahmenstunden, die für die Zuordnung der Kosten herangezogen werden. Werden die TeilnehmerInnengruppen aufgrund des Spezifikums der Maßnahme von zwei TrainerInnen gleichzeitig unterrichtet/betreut, so ist dies bei der Festlegung des Teilungsschlüssels entsprechend zu berücksichtigen."]
[]
[null,"Die Maßnahmenstunden TeilnehmerInnen sind keine Aufsummierung der Maßnahmenstunden, die jeder einzelne Teilnehmer/jede einzelne Teilnehmerin im Rahmen der Maßnahme absolviert, sondern beziehen sich immer auf die Maßnahmenstunden, die im Regelfall Gruppen innerhalb der Maßnahme absolvieren."]
[null,"Die Maßnahmenstunden TeilnehmerInnen sind auch die Bezugsgröße für die Zuordnung der Einheiten für Ausstattung und Gemeinkosten/sonstige Kosten.\n"]
[]
[null,"Kalkulation"]
[]
[null,"Auf diesem Bearbeitungsblatt sind die unterschiedlichen Kostenpositionen im Detail nach den Vorgaben der Ausschreibung aufzuschlüsseln. Jede Tabelle ist von vornherein so eingerichtet, dass eine Bearbeitungszeile vorgegeben ist. Wird eine weitere benötigt, so kann diese durch Anklicken des (+) Plus-Buttons angefügt werden. Zeilenreduktion funktioniert durch Anklicken des (-) Minus-Buttons. Die Tabelle kann durch Anklicken jeweils nur um eine Zeile erweitert oder reduziert werden."]
[]
[null,"Maßnahmenkosten"]
[]
[null,"Personalaufwand GruppentrainerInnen:"]
[null,"Darunter sind alle Beschäftigten in einer Maßnahme zu verstehen, die mit den MaßnahmenteilnehmerInnen arbeiten, also TrainerInnen mit unterrichtenden Tätigkeiten in Qualifizierungsmaßnahmen, aber auch TrainerInnen bei Maßnahmen der Orientierung, der aktiven Arbeitssuche und Trainingsmaßnahmen.\nTragen Sie hier die Kosten aller Maßnahmenstunden ein, die von GruppentrainerInnen durchgeführt \nwerden.\n\nDefinition \"GruppentrainerInnen\": TrainerInnen, die eine Gruppe von Personen im Klassenverband unterrichten, beraten oder betreuen.\nIst ein Trainer / eine Trainerin sowohl als Gruppen- als auch als EinzeltrainerIn in dieser Maßnahme im Einsatz, so sind hier nur die Gruppenstunden anzuführen."]
[null,"Personalaufwand EinzeltrainerInnen"]
[null,"Definition \"EinzeltrainerInnen\": TrainerInnen, SozialpädagogInnen etc., die eine Einzelperson außerhalb des Klassenverbandes unterrichten, beraten oder betreuen\nIst ein Trainer / eine Trainerin sowohl als Gruppen- als auch als EinzeltrainerIn in dieser Maßnahme im Einsatz, so sind hier nur die Einzelstunden anzuführen."]
[]
[null,"Ausstattung (Sachaufwand):"]
[null,"Stellen Sie hier Ihre Kosten nach den in der Ausschreibung geforderten Detailliertheitsgrad dar."]
[]
[null,"Sonstiger Aufwand:"]
[null,"Hier sind alle Kosten zu erfassen, die aufgrund der Maßnahmendurchführung anfallen werden und die nicht unter Personal und Ausstattung subsumierbar sind."]
[]
[null,"MS:"]
[null,"Hier ist die Anzahl der Maßnahmenstunden einzutragen, die in der Maßnahme/Veranstaltung erbracht wird."]
[null,"Einheitspreis MS:"]
[null,"Geben Sie hier an, wie hoch die ihnen entstehenden (Gesamt-) Kosten für eine Maßnahmenstunde sind."]
[]
[null,"Maßnahmennebenkosten:"]
[null,"In die vorgesehene Tabelle sind die entstehenden Kosten einzutragen. Die Positionen können kumuliert dargestellt werden. Die inhaltliche Nachvollziehbarkeit muss gewährleistet sein.\n"]
[]
[null,"Abrechnung"]
[]
[null,"Wenn sie im Drop-Down-Menu auf dem Deckblatt „Abrechnung“ gewählt haben, lassen sich die Daten in den zur Kalkulation gehörigen Blättern (Beschreibung, Zeitplan, Kalkulation) nicht mehr ändern. Sie bekommen dafür aber ein neues Blatt mit der Bezeichnung „Abrechnung“, das sich unten in der Registerkartenzeile neben jedem bestehenden Maßnahmenblatt einfügt. \n"]
[null,"Hinweis: Stellen Sie wieder auf Kalkulation um, so verschwinden alle Abrechnungsblätter. Alle Zahlen (z.B. auch jene Änderungen, die aus dem Durchführungsbericht übernommen wurden) bleiben aber erhalten, und Sie finden Sie wieder, sobald Sie wieder in den Abrechnungsmodus umschalten."]
[]
[null,"Auf dem Abrechnungsblatt selbst können Sie keine Änderungen durchführen. Diese müssen Sie im Durchführungsbericht vornehmen. Zu diesem kommen Sie folgendermaßen:\n\nWenn Sie im Abrechnungsmodus sind und das ursprüngliche Maßnahmenblatt durch einen Klick in die Registerkartenzeile wieder auf den Bildschirm holen, so finden Sie nun oben neben „Beschreibung“, „Zeitplan“ und „Kalkulation“ einen neuen Button mit der Bezeichnung „Durchführungsbericht“, der diesen per Klick aktiviert.\n\n"]
[null,"Durchführungsbericht"]
[]
[null,"Dieses Blatt erscheint nur, wenn Sie am Deckblatt rechts oben den Modus von \"Kalkulation\" auf \"Abrechnung\" umstellen. Alle Eintragungen, die Sie hier durchführen, werden in ihren Summen automatisch auf das Blatt \"Abrechnung“ übernommen. Dort können Sie selbst keine Änderungen mehr vornehmen.\n\nIm Durchführungsbericht sind\n-      alle abrechnungsrelevanten Abweichungen gegenüber dem ursprünglichen Maßnahmenkonzept und\n-      Optimierungs- bzw. Verbesserungsvorschläge, die sich aus Sicht des Auftragnehmers während der  \n       Maßnahmendurchführung ergeben haben, \ndarzustellen.\n\nBenutzen Sie für die verbale Beschreibung der Abweichungen das Anmerkungsfeld! Achtung: Über das vorgesehene Feld hinausgehende Texte werden abgeschnitten. Wenn Sie mehr einfügen, so ist das am Ausdruck bzw. Bildschirm nicht mehr sichtbar. Verwenden Sie in diesem Falle ein Extrablatt oder -dokument, das Sie den Abrechnungsunterlagen hinzufügen."]
[null,"Hinweis: Wenn Sie Stunden oder Kosten in Abzug bringen müssen, so setzen Sie vor die Zahl ein Minus!!! Wenn etwas dazu gerechnet werden soll, dann müssen Sie kein Vorzeichen vor die Zahl setzen."]
[]
[null,"Abweichungen bei MSTN\nTragen Sie hier alle abrechnungsrelevanten Abweichungen, die im Bereich der Maßnahmenstunden TeilnehmerInnen aufgetreten sind, ein (z.B. ein Trainer fiel einen Tag aus, Sie konnten keinen Ersatz finden und fünf Stunden konnten nicht durchgeführt werden: Abzug von 5 MSTN)! Nachdem die MSTN mit dem kalkulierten Einheitspreis abgerechnet werden, können sie hier nur zusätzliche oder weniger Stunden auf Basis des Einheitspreises zur Abrechnung bringen. Sollte das Feld Begründung nicht ausreichend sein, verwenden Sie unten, am Ende des Blattes, das Feld Anmerkungen. \n"]
[null,"Storno von MSTN\nTragen Sie hier jene Maßnahmenstunden TeilnehmerInnen ein, die zunächst vom AMS bestellt worden waren, später jedoch von diesem storniert wurden! Für diese Stunden können Sie eine Stornopauschale von zumindest 50% des Einheitspreises für die MSTN verrechnen. Die von Ihnen geltend gemachten Prozente werden vom Einheitspreis automatisch errechnet. Sollte das Feld Begründung nicht ausreichend sein, verwenden Sie unten, am Ende des Blattes, das Feld Anmerkungen. Achtung: Die Eingabe von Stornostunden (50% plus) setzt die Eingabe von MSTN-Abweichungen oben (100% minus) voraus!"]
[null,"Abweichungen bei TrainerInnenstunden\nTragen Sie hier alle abrechnungsrelevanten Abweichungen, die im Bereich der Maßnahmenstunden TrainerInnen aufgetreten sind und durch die kein gänzlicher Abzug einer Einheit MSTN stattfindet, ein (z.B. eine TeilnehmerInnengruppe sollte an einem Tag - sieben Stunden - von 2 TrainerInnen gleichzeitig unterrichtet werden. Ein Trainer fiel jedoch kurzfristig aus, und die Gruppe wurde nur von einem Trainer unterrichtet. Sieben Stunden im Ausmaß des Einheitspreises für Personal werden zum Abzug gebracht. Oder: Eine EinzeltrainerInnenstunde war nur als zusätzliche Personalkosten kalkuliert und nicht gesamt als Einheitspreis MSTN. Sie können daher nur eine Stunde im Ausmaß des entsprechenden Einheitspreises für Personal zum Abzug bringen)! Sollte das Feld Begründung nicht ausreichend sein, verwenden Sie unten, am Ende des Blattes, das Feld Anmerkungen.\n"]
[null,"Sonstige Abweichungen bei Maßnahmenkosten\nTragen Sie hier alle sonstigen abrechnungsrelevanten Abweichungen, die im Bereich der Maßnahmen-kosten aufgetreten sind, ein! Die Eintragungen können individuell vorgenommen werden, es gibt keinen vorgegebenen Bezug zu den Einheitspreisen der Kalkulation.\n"]
[null,"Abweichungen bei Maßnahmennebenkosten\nTragen Sie hier alle abrechnungsrelevanten Abweichungen, die im Bereich der Maßnahmennebenkosten aufgetreten sind, ein (z.B. nicht alle kalkulierten Ausbildungsbeihilfen wurden ausbezahlt, weil einige TeilnehmerInnen die Maßnahme vorzeitig abgebrochen haben)! \nWichtig: Tragen Sie hier den nicht zur Auszahlung gekommenen Betrag als Abzug ein!  \n"]
[null,"Erträge/Förderungen\nTragen Sie hier alle abrechnungsrelevanten Erträge oder Förderungen/Kofinanzierungen durch andere Stellen ein!\n"]
[]
[null,"Unterschrift"]
[]
[null,"Das Formular muss hier von einer zeichnungsberechtigten Person handschriftlich gezeichnet werden.\n\nAbrechnungsformulare können auch elektronisch übermittelt werden. Schicken Sie das Formular über das eAMS-Konto, so müssen Sie es nicht unterzeichnen und abstempeln. Durch die elektronische Übermittlung ist die Rechtsgültigkeit hergestellt."]
[]
[null,"Drucken / PDF-Umwandlung"]
[]
[null,"Drucken \nWenn Sie in einem Maßnahmenblatt auf Drucken > Aktuelles Blatt klicken, so werden alle zu dieser Maßnahme gehörenden Teile (\"Maßnahmenbeschreibung\", \"Zeitplan\", \"Kalkulation\" und, falls der Abrechnungsmodus gewählt wurde, der \"Durchführungsbericht\") gedruckt. Sollten Sie nur einen Bereich (z.B. den \"Zeitplan\") drucken wollen, so verwenden Sie bitte das Standard-Druckmenü von EXCEL (Datei > Drucken)."]
[]
[null,"Umwandlung in PDF\n\nUnter EXCEL 2007 (und allen künftigen Versionen): \nBeim Klick auf Drucken > PDF-Datei erstellen wird eine PDF-Datei erstellt und im selben Verzeichnis wie das aktuelle Formular abgelegt. Diese Datei kann so via eAMS versendet werden. Auf dem Blatt „Unterschrift“ werden automatische Einträge („Erstellt am xx.xx.xxxx“ und „Übermittlung via e-AMS Konto“) generiert.\n\nUnter EXCEL 2003 oder älter: \nBeim Klick auf Drucken > Datei für PDF-Umwandlung erstellen wird eine  EXCEL-Datei erstellt, namentlich gekennzeichnet und im selben Verzeichnis abgelegt wie das geöffnete Formular. Es handelt sich um eine geschützte Kopie, in der nichts mehr verändert werden kann. Auf dem Arbeitsblatt „Unterschrift“ werden automatische Einträge („Erstellt am xx.xx.xxxx“ und „Übermittlung via e-AMS Konto“) generiert.\nDie neue Datei wird unmittelbar geöffnet und man sieht durch eine Art Wasserzeichen am Deckblatt, dass es sich um die Kopie für die PDF-Umwandlung handelt. Diese Datei kann im Anschluss mit jeder geeigneten Software „manuell“ in ein PDF umgewandelt werden, welches per eAMS versendet werden kann. (Der Zwischenschritt ist notwendig, weil die PDF-Funktion nicht automatisch in älteren EXCEL-Versionen vorhanden ist.)\n\n"]
[null,"\nHaben Sie bereits eine Druck- oder Umwandlungsdatei erstellt, so wird diese bei einer neuerlichen Umwandlung automatisch ersetzt."]
[]
[null,"Problem beim Drucken oder bei der PDF-Umwandlung\n\nProblembeschreibung:  \nAnstatt zu drucken erscheint das Fenster „Zur Druckdatei-Erstellung muss zumindest ein Maßnahmenblatt vorhanden sein“ und es werden automatisch neue, leere Tabellenblätter erstellt.\nODER\nEs wird ein Ausdruck oder PDF erstellt, der bzw. das anstelle von Maßnahmenblättern leere Blätter enthält.\nFehlererklärung: \nÜberschreiben Sie die automatisch erstellten Namen von Tabellenblättern mit mehr als 24 Zeichen, so funktioniert die Druck- und PDF-Funktion nicht mehr.\nLösung: \n1. Reduzieren Sie die Anzahl der für die Namen der Tabellenblätter verwendeten Zeichen auf 24!\n2. Löschen Sie automatisch erstellte Tabellenblätter!\n3. Geben Sie erneut den Befehl zum Drucken oder zur PDF-Umwandlung!\n"]